Workbook

Sheet PI vs x
A1: Measurement | B1: Hall
A2: Type | B2: Off-axis
A4: Project | B4: ='10 y=-0.2'!B5 -> 504314
A5: PS serial no | B5: ='10 y=-0.2'!B7 -> 2410089
A7: Measurement date | B7: =LEFT('10 y=-0.2'!B4,10) -> 02-09-2024
C11: Nominal gap [mm] | D11: Encoder [counts] | E11: Encoder [mm] | F11: PI [T^2mm^3] | G11: y [mm] | H11: Encoder value at 10 mm gap:
B12: ='PI vs x'!$C$12 & "mm gap" -> 10mm gap | C12: ='10 y=-0.2'!B48 -> 10 | D12: ='10 y=-0.2'!$B$50 -> 19.5576 | E12: =D12-$H$12+10 -> 10.0027 | F12: ='10 y=-0.2'!$K$3 -> 10565.8086 | G12: -0.2 | H12: 19.5549
C13: =C12 -> 10 | D13: ='10 y=-0.1'!$B$50 -> 19.5576 | E13: =D13-$H$12+10 -> 10.0027 | F13: ='10 y=-0.1'!$K$3 -> 10563.08939 | G13: -0.1
C14: =C13 -> 10 | D14: ='10 y=0'!$B$50 -> 19.5576 | E14: 10.0027 | F14: ='10 y=0'!$K$3 -> 10562.16169 | G14: 0
C15: 10 | D15: ='10 y=0.1'!$B$50 -> 19.5576 | E15: 10.0027 | F15: ='10 y=0.1'!$K$3 -> 10565.59128 | G15: 0.1
C16: 10 | D16: ='10 y=0.2'!$B$50 -> 19.5576 | E16: 10.0027 | F16: ='10 y=0.2'!$K$3 -> 10569.19793 | G16: 0.2
B17: ='PI vs x'!$C$17 & "mm gap" -> mm gap

Sheet 10 y=-0.2
A1: =IF('DF raw data'!A1="","",'DF raw data'!A1) -> Number of header lines | B1: =IF('DF raw data'!B1="","",'DF raw data'!B1) -> 54 | C1: =IF('DF raw data'!C1="","",'DF raw data'!C1) ->  | D1: =IF('DF raw data'!D1="","",'DF raw data'!D1) ->  | F1: T_coeff | G1: -0.001 | H1: /degC | J1: IBy total | K1: =J1262*1000 -> -15.14499637 | L1: muTm | M1: =L1262*1000 -> 39.29900737 | R1: DF ref | S1: 1
A2: =IF('DF raw data'!A2="","",'DF raw data'!A2) -> Measured by | B2: =IF('DF raw data'!B2="","",'DF raw data'!B2) -> Danfysik | C2: =IF('DF raw data'!C2="","",'DF raw data'!C2) ->  | D2: =IF('DF raw data'!D2="","",'DF raw data'!D2) ->  | F2: Tcorr | G2: 20 | H2: degC | J2: JBy total | K2: =K1262 -> -12.18037027 | L2: muTm^2 | M2: =M1262 -> 14.85028216
A3: =IF('DF raw data'!A3="","",'DF raw data'!A3) -> Operator | B3: =IF('DF raw data'!B3="","",'DF raw data'!B3) -> PMHA | C3: =IF('DF raw data'!C3="","",'DF raw data'!C3) ->  | D3: =IF('DF raw data'!D3="","",'DF raw data'!D3) ->  | F3: Step | G3: =A63-A62 -> 0.5 | H3: mm | J3: PI total | K3: =N1262 -> 10565.8086 | L3: T^2mm^3
A4: =IF('DF raw data'!A4="","",'DF raw data'!A4) -> Data-time | B4: =IF('DF raw data'!B4="","",'DF raw data'!B4) -> 02-09-2024, 12:55:32 | C4: =IF('DF raw data'!C4="","",'DF raw data'!C4) ->  | D4: =IF('DF raw data'!D4="","",'DF raw data'!D4) -> 
A5: =IF('DF raw data'!A5="","",'DF raw data'!A5) -> Project | B5: =IF('DF raw data'!B5="","",'DF raw data'!B5) -> 504314 | C5: =IF('DF raw data'!C5="","",'DF raw data'!C5) ->  | D5: =IF('DF raw data'!D5="","",'DF raw data'!D5) -> 
A6: =IF('DF raw data'!A6="","",'DF raw data'!A6) -> Magnet type | B6: =IF('DF raw data'!B6="","",'DF raw data'!B6) -> Dipole | C6: =IF('DF raw data'!C6="","",'DF raw data'!C6) ->  | D6: =IF('DF raw data'!D6="","",'DF raw data'!D6) -> 
A7: =IF('DF raw data'!A7="","",'DF raw data'!A7) -> Magnet nr. | B7: =IF('DF raw data'!B7="","",'DF raw data'!B7) -> 2410089 | C7: =IF('DF raw data'!C7="","",'DF raw data'!C7) ->  | D7: =IF('DF raw data'!D7="","",'DF raw data'!D7) -> 
A8: =IF('DF raw data'!A8="","",'DF raw data'!A8) -> Meas. number | B8: =IF('DF raw data'!B8="","",'DF raw data'!B8) -> 298 | C8: =IF('DF raw data'!C8="","",'DF raw data'!C8) ->  | D8: =IF('DF raw data'!D8="","",'DF raw data'!D8) -> 
A9: =IF('DF raw data'!A9="","",'DF raw data'!A9) -> Add. info | B9: =IF('DF raw data'!B9="","",'DF raw data'!B9) -> Y-alignment scan 1) | C9: =IF('DF raw data'!C9="","",'DF raw data'!C9) ->  | D9: =IF('DF raw data'!D9="","",'DF raw data'!D9) -> 
A10: =IF('DF raw data'!A10="","",'DF raw data'!A10) -> Device | B10: =IF('DF raw data'!B10="","",'DF raw data'!B10) -> (HAL) HALL-PROBE | C10: =IF('DF raw data'!C10="","",'DF raw data'!C10) ->  | D10: =IF('DF raw data'!D10="","",'DF raw data'!D10) -> 
A11: =IF('DF raw data'!A11="","",'DF raw data'!A11) -> Goal | B11: =IF('DF raw data'!B11="","",'DF raw data'!B11) -> (AXI) AXis Integral (Line, EFB) | C11: =IF('DF raw data'!C11="","",'DF raw data'!C11) ->  | D11: =IF('DF raw data'!D11="","",'DF raw data'!D11) -> 
A12: =IF('DF raw data'!A12="","",'DF raw data'!A12) -> Power supply mode | B12: =IF('DF raw data'!B12="","",'DF raw data'!B12) -> (PM) Permanent Magnet (no MPS in use) | C12: =IF('DF raw data'!C12="","",'DF raw data'!C12) ->  | D12: =IF('DF raw data'!D12="","",'DF raw data'!D12) -> 
A13: =IF('DF raw data'!A13="","",'DF raw data'!A13) -> Data format | B13: =IF('DF raw data'!B13="","",'DF raw data'!B13) -> Raw data text file | C13: =IF('DF raw data'!C13="","",'DF raw data'!C13) ->  | D13: =IF('DF raw data'!D13="","",'DF raw data'!D13) -> 
A14: =IF('DF raw data'!A14="","",'DF raw data'!A14) -> Direction of the pos. x-axis | B14: =IF('DF raw data'!B14="","",'DF raw data'!B14) -> See test program | C14: =IF('DF raw data'!C14="","",'DF raw data'!C14) ->  | D14: =IF('DF raw data'!D14="","",'DF raw data'!D14) -> 
A15: =IF('DF raw data'!A15="","",'DF raw data'!A15) -> Direction of the pos. y-axis | B15: =IF('DF raw data'!B15="","",'DF raw data'!B15) -> Vertical up | C15: =IF('DF raw data'!C15="","",'DF raw data'!C15) ->  | D15: =IF('DF raw data'!D15="","",'DF raw data'!D15) -> 
A16: =IF('DF raw data'!A16="","",'DF raw data'!A16) -> Direction of the pos. z-axis | B16: =IF('DF raw data'!B16="","",'DF raw data'!B16) -> See test program | C16: =IF('DF raw data'!C16="","",'DF raw data'!C16) ->  | D16: =IF('DF raw data'!D16="","",'DF raw data'!D16) -> 
A17: =IF('DF raw data'!A17="","",'DF raw data'!A17) -> Mapper type | B17: =IF('DF raw data'!B17="","",'DF raw data'!B17) -> Precision Hall Mapper | C17: =IF('DF raw data'!C17="","",'DF raw data'!C17) ->  | D17: =IF('DF raw data'!D17="","",'DF raw data'!D17) -> 
A18: =IF('DF raw data'!A18="","",'DF raw data'!A18) -> Mapper Danfysik Reg. Number | B18: =IF('DF raw data'!B18="","",'DF raw data'!B18) -> 2033-D (mapper 1) | C18: =IF('DF raw data'!C18="","",'DF raw data'!C18) ->  | D18: =IF('DF raw data'!D18="","",'DF raw data'!D18) -> 
A19: =IF('DF raw data'!A19="","",'DF raw data'!A19) -> Measurement consept | B19: =IF('DF raw data'!B19="","",'DF raw data'!B19) -> Square line grid | C19: =IF('DF raw data'!C19="","",'DF raw data'!C19) ->  | D19: =IF('DF raw data'!D19="","",'DF raw data'!D19) -> 
A20: =IF('DF raw data'!A20="","",'DF raw data'!A20) -> Mode | B20: =IF('DF raw data'!B20="","",'DF raw data'!B20) -> On-the-fly measurement | C20: =IF('DF raw data'!C20="","",'DF raw data'!C20) ->  | D20: =IF('DF raw data'!D20="","",'DF raw data'!D20) -> 
A21: =IF('DF raw data'!A21="","",'DF raw data'!A21) ->  | B21: =IF('DF raw data'!B21="","",'DF raw data'!B21) ->  | C21: =IF('DF raw data'!C21="","",'DF raw data'!C21) ->  | D21: =IF('DF raw data'!D21="","",'DF raw data'!D21) -> 
A22: =IF('DF raw data'!A22="","",'DF raw data'!A22) -> Probe Name | B22: =IF('DF raw data'!B22="","",'DF raw data'!B22) -> ID12_By | C22: =IF('DF raw data'!C22="","",'DF raw data'!C22) ->  | D22: =IF('DF raw data'!D22="","",'DF raw data'!D22) -> 
A23: =IF('DF raw data'!A23="","",'DF raw data'!A23) -> Probe Type | B23: =IF('DF raw data'!B23="","",'DF raw data'!B23) -> DF_ID_3D_Bxyz | C23: =IF('DF raw data'!C23="","",'DF raw data'!C23) ->  | D23: =IF('DF raw data'!D23="","",'DF raw data'!D23) -> 
A24: =IF('DF raw data'!A24="","",'DF raw data'!A24) -> Probe Danfysik Reg. Number | B24: =IF('DF raw data'!B24="","",'DF raw data'!B24) -> 2277 | C24: =IF('DF raw data'!C24="","",'DF raw data'!C24) ->  | D24: =IF('DF raw data'!D24="","",'DF raw data'!D24) -> 
A25: =IF('DF raw data'!A25="","",'DF raw data'!A25) -> Probe Axis | B25: =IF('DF raw data'!B25="","",'DF raw data'!B25) -> By | C25: =IF('DF raw data'!C25="","",'DF raw data'!C25) ->  | D25: =IF('DF raw data'!D25="","",'DF raw data'!D25) -> 
A26: =IF('DF raw data'!A26="","",'DF raw data'!A26) -> Probe Current Supply | B26: =IF('DF raw data'!B26="","",'DF raw data'!B26) -> 1825-D | C26: =IF('DF raw data'!C26="","",'DF raw data'!C26) ->  | D26: =IF('DF raw data'!D26="","",'DF raw data'!D26) -> 
A27: =IF('DF raw data'!A27="","",'DF raw data'!A27) -> Probe Gain Correction | B27: =IF('DF raw data'!B27="","",'DF raw data'!B27) -> 0.99611 | C27: =IF('DF raw data'!C27="","",'DF raw data'!C27) ->  | D27: =IF('DF raw data'!D27="","",'DF raw data'!D27) -> 
A28: =IF('DF raw data'!A28="","",'DF raw data'!A28) -> Probe Offset Correction | B28: =IF('DF raw data'!B28="","",'DF raw data'!B28) -> 0.0027639 | C28: =IF('DF raw data'!C28="","",'DF raw data'!C28) ->  | D28: =IF('DF raw data'!D28="","",'DF raw data'!D28) -> 
A29: =IF('DF raw data'!A29="","",'DF raw data'!A29) -> DVM Number | B29: =IF('DF raw data'!B29="","",'DF raw data'!B29) -> 2 | C29: =IF('DF raw data'!C29="","",'DF raw data'!C29) ->  | D29: =IF('DF raw data'!D29="","",'DF raw data'!D29) -> 
A30: =IF('DF raw data'!A30="","",'DF raw data'!A30) -> DVM Type | B30: =IF('DF raw data'!B30="","",'DF raw data'!B30) -> K2701 | C30: =IF('DF raw data'!C30="","",'DF raw data'!C30) ->  | D30: =IF('DF raw data'!D30="","",'DF raw data'!D30) -> 
A31: =IF('DF raw data'!A31="","",'DF raw data'!A31) -> DVM Danfysik Reg. Number | B31: =IF('DF raw data'!B31="","",'DF raw data'!B31) -> 1743-D | C31: =IF('DF raw data'!C31="","",'DF raw data'!C31) ->  | D31: =IF('DF raw data'!D31="","",'DF raw data'!D31) -> 
A32: =IF('DF raw data'!A32="","",'DF raw data'!A32) -> Probe Name | B32: =IF('DF raw data'!B32="","",'DF raw data'!B32) -> ID12_Bx | C32: =IF('DF raw data'!C32="","",'DF raw data'!C32) ->  | D32: =IF('DF raw data'!D32="","",'DF raw data'!D32) -> 
A33: =IF('DF raw data'!A33="","",'DF raw data'!A33) -> Probe Type | B33: =IF('DF raw data'!B33="","",'DF raw data'!B33) -> DF_ID_3D_Bxyz | C33: =IF('DF raw data'!C33="","",'DF raw data'!C33) ->  | D33: =IF('DF raw data'!D33="","",'DF raw data'!D33) -> 
A34: =IF('DF raw data'!A34="","",'DF raw data'!A34) -> Probe Danfysik Reg. Number | B34: =IF('DF raw data'!B34="","",'DF raw data'!B34) -> 2277 | C34: =IF('DF raw data'!C34="","",'DF raw data'!C34) ->  | D34: =IF('DF raw data'!D34="","",'DF raw data'!D34) -> 
A35: =IF('DF raw data'!A35="","",'DF raw data'!A35) -> Probe Axis | B35: =IF('DF raw data'!B35="","",'DF raw data'!B35) -> Bx | C35: =IF('DF raw data'!C35="","",'DF raw data'!C35) ->  | D35: =IF('DF raw data'!D35="","",'DF raw data'!D35) -> 
A36: =IF('DF raw data'!A36="","",'DF raw data'!A36) -> Probe Current Supply | B36: =IF('DF raw data'!B36="","",'DF raw data'!B36) -> 1825-D | C36: =IF('DF raw data'!C36="","",'DF raw data'!C36) ->  | D36: =IF('DF raw data'!D36="","",'DF raw data'!D36) -> 
A37: =IF('DF raw data'!A37="","",'DF raw data'!A37) -> Probe Gain Correction | B37: =IF('DF raw data'!B37="","",'DF raw data'!B37) -> 1 | C37: =IF('DF raw data'!C37="","",'DF raw data'!C37) ->  | D37: =IF('DF raw data'!D37="","",'DF raw data'!D37) -> 
A38: =IF('DF raw data'!A38="","",'DF raw data'!A38) -> Probe Offset Correction | B38: =IF('DF raw data'!B38="","",'DF raw data'!B38) -> -0.17554 | C38: =IF('DF raw data'!C38="","",'DF raw data'!C38) ->  | D38: =IF('DF raw data'!D38="","",'DF raw data'!D38) -> 
A39: =IF('DF raw data'!A39="","",'DF raw data'!A39) -> DVM Number | B39: =IF('DF raw data'!B39="","",'DF raw data'!B39) -> 3 | C39: =IF('DF raw data'!C39="","",'DF raw data'!C39) ->  | D39: =IF('DF raw data'!D39="","",'DF raw data'!D39) -> 
A40: =IF('DF raw data'!A40="","",'DF raw data'!A40) -> DVM Type | B40: =IF('DF raw data'!B40="","",'DF raw data'!B40) -> K2701 | C40: =IF('DF raw data'!C40="","",'DF raw data'!C40) ->  | D40: =IF('DF raw data'!D40="","",'DF raw data'!D40) -> 
A41: =IF('DF raw data'!A41="","",'DF raw data'!A41) -> DVM Danfysik Reg. Number | B41: =IF('DF raw data'!B41="","",'DF raw data'!B41) -> 1744-D | C41: =IF('DF raw data'!C41="","",'DF raw data'!C41) ->  | D41: =IF('DF raw data'!D41="","",'DF raw data'!D41) -> 
A42: =IF('DF raw data'!A42="","",'DF raw data'!A42) -> Probe Name | B42: =IF('DF raw data'!B42="","",'DF raw data'!B42) -> ID12_Bz | C42: =IF('DF raw data'!C42="","",'DF raw data'!C42) ->  | D42: =IF('DF raw data'!D42="","",'DF raw data'!D42) -> 
A43: =IF('DF raw data'!A43="","",'DF raw data'!A43) -> Probe Type | B43: =IF('DF raw data'!B43="","",'DF raw data'!B43) -> DF_ID_3D_Bxyz | C43: =IF('DF raw data'!C43="","",'DF raw data'!C43) ->  | D43: =IF('DF raw data'!D43="","",'DF raw data'!D43) -> 
A44: =IF('DF raw data'!A44="","",'DF raw data'!A44) -> Probe Danfysik Reg. Number | B44: =IF('DF raw data'!B44="","",'DF raw data'!B44) -> 2277 | C44: =IF('DF raw data'!C44="","",'DF raw data'!C44) ->  | D44: =IF('DF raw data'!D44="","",'DF raw data'!D44) -> 
A45: =IF('DF raw data'!A45="","",'DF raw data'!A45) -> Probe Axis | B45: =IF('DF raw data'!B45="","",'DF raw data'!B45) -> Bz | C45: =IF('DF raw data'!C45="","",'DF raw data'!C45) ->  | D45: =IF('DF raw data'!D45="","",'DF raw data'!D45) -> 
A46: =IF('DF raw data'!A46="","",'DF raw data'!A46) -> Probe Current Supply | B46: =IF('DF raw data'!B46="","",'DF raw data'!B46) -> 1825-D | C46: =IF('DF raw data'!C46="","",'DF raw data'!C46) ->  | D46: =IF('DF raw data'!D46="","",'DF raw data'!D46) -> 
A47: =IF('DF raw data'!A47="","",'DF raw data'!A47) -> Probe Gain Correction | B47: =IF('DF raw data'!B47="","",'DF raw data'!B47) -> 1 | C47: =IF('DF raw data'!C47="","",'DF raw data'!C47) ->  | D47: =IF('DF raw data'!D47="","",'DF raw data'!D47) -> 
A48: =IF('DF raw data'!A53="","",'DF raw data'!A53) -> PS-Gap: | B48: =IF('DF raw data'!B53="","",'DF raw data'!B53) -> 10 | C48: =IF('DF raw data'!C53="","",'DF raw data'!C53) ->  | D48: =IF('DF raw data'!D53="","",'DF raw data'!D53) -> 
A49: =IF('DF raw data'!A54="","",'DF raw data'!A54) -> PS-Temperature: | B49: =IF('DF raw data'!B54="","",'DF raw data'!B54) -> 24.1 | C49: =IF('DF raw data'!C54="","",'DF raw data'!C54) ->  | D49: =IF('DF raw data'!D54="","",'DF raw data'!D54) -> 
A50: =IF('DF raw data'!A55="","",'DF raw data'!A55) -> PS-Encoder: | B50: =IF('DF raw data'!B55="","",'DF raw data'!B55) -> 19.5576 | C50: =IF('DF raw data'!C55="","",'DF raw data'!C55) ->  | D50: =IF('DF raw data'!D55="","",'DF raw data'!D55) -> 
A51: =IF('DF raw data'!A56="","",'DF raw data'!A56) ->  | B51: =IF('DF raw data'!B56="","",'DF raw data'!B56) ->  | C51: =IF('DF raw data'!C56="","",'DF raw data'!C56) ->  | D51: =IF('DF raw data'!D56="","",'DF raw data'!D56) -> 
A52: =IF('DF raw data'!A57="","",'DF raw data'!A57) -> Monitor-Index | B52: =IF('DF raw data'!B57="","",'DF raw data'!B57) -> [1,1,4] | C52: =IF('DF raw data'!C57="","",'DF raw data'!C57) ->  | D52: =IF('DF raw data'!D57="","",'DF raw data'!D57) -> 
A53: =IF('DF raw data'!A58="","",'DF raw data'!A58) ->  | B53: =IF('DF raw data'!B58="","",'DF raw data'!B58) ->  | C53: =IF('DF raw data'!C58="","",'DF raw data'!C58) ->  | D53: =IF('DF raw data'!D58="","",'DF raw data'!D58) -> 
A54: =IF('DF raw data'!A59="","",'DF raw data'!A59) -> Time [s] | B54: =IF('DF raw data'!B59="","",'DF raw data'!B59) -> Y [mm] | C54: =IF('DF raw data'!C59="","",'DF raw data'!C59) -> X [mm] | D54: =IF('DF raw data'!D59="","",'DF raw data'!D59) -> Nominal current [A]
A55: =IF('DF raw data'!A60="","",'DF raw data'!A60) ->  | B55: =IF('DF raw data'!B60="","",'DF raw data'!B60) ->  | C55: =IF('DF raw data'!C60="","",'DF raw data'!C60) ->  | D55: =IF('DF raw data'!D60="","",'DF raw data'!D60) -> 
A56: =IF('DF raw data'!A61="","",'DF raw data'!A61) -> 226.7 | B56: =IF('DF raw data'!B61="","",'DF raw data'!B61) -> 31.36 | C56: =IF('DF raw data'!C61="","",'DF raw data'!C61) -> 301.8 | D56: =IF('DF raw data'!D61="","",'DF raw data'!D61) -> 0
A57: =IF('DF raw data'!A62="","",'DF raw data'!A62) ->  | B57: =IF('DF raw data'!B62="","",'DF raw data'!B62) ->  | C57: =IF('DF raw data'!C62="","",'DF raw data'!C62) ->  | D57: =IF('DF raw data'!D62="","",'DF raw data'!D62) -> 
A58: =IF('DF raw data'!A63="","",'DF raw data'!A63) -> Measurement-Index | B58: =IF('DF raw data'!B63="","",'DF raw data'!B63) -> [1,1,1201,2] | C58: =IF('DF raw data'!C63="","",'DF raw data'!C63) ->  | D58: =IF('DF raw data'!D63="","",'DF raw data'!D63) -> 
A59: =IF('DF raw data'!A64="","",'DF raw data'!A64) ->  | B59: =IF('DF raw data'!B64="","",'DF raw data'!B64) ->  | C59: =IF('DF raw data'!C64="","",'DF raw data'!C64) ->  | D59: =IF('DF raw data'!D64="","",'DF raw data'!D64) -> 
A60: =IF('DF raw data'!A65="","",'DF raw data'!A65) -> Z [mm] | B60: =IF('DF raw data'!B65="","",'DF raw data'!B65) -> By [T] | C60: =IF('DF raw data'!C65="","",'DF raw data'!C65) -> Bx [T] | D60: =IF('DF raw data'!D65="","",'DF raw data'!D65) -> Bz [T] | F60: By_corr | G60: Bx_corr | H60: Bz_corr | J60: Iy | K60: Jy | L60: Ix | M60: Jx | N60: PI
A62: =IF('DF raw data'!A67="","",'DF raw data'!A67) -> -300 | B62: =IF('DF raw data'!B67="","",'DF raw data'!B67) -> -3.2316e-05 | C62: =IF('DF raw data'!C67="","",'DF raw data'!C67) -> 0.000134977 | D62: =IF('DF raw data'!D67="","",'DF raw data'!D67) -> -2.52497e-05 | F62: =(1-$G$1*($B$49))*B62 -> -3.30948156e-05 | G62: =(1-$G$1*($B$49-$G$2))*C62 -> 0.0001355304057 | H62: =(1-$G$1*($B$49-$G$2))*D62 -> -2.535322377e-05 | J62: =F62*$G$3 -> -1.65474078e-05 | K62: =J62*$G$3 -> -8.2737039e-06 | L62: =G62*$G$3 -> 6.776520285e-05 | M62: =L62*$G$3 -> 3.388260142e-05 | N62: =(J62^2+L62^2)*$G$3 -> 2.432969711e-09
A63: =IF('DF raw data'!A68="","",'DF raw data'!A68) -> -299.5 | B63: =IF('DF raw data'!B68="","",'DF raw data'!B68) -> -3.5392e-05 | C63: =IF('DF raw data'!C68="","",'DF raw data'!C68) -> 0.000136155 | D63: =IF('DF raw data'!D68="","",'DF raw data'!D68) -> -2.51925e-05 | F63: =(1-$G$1*($B$49-$G$2))*B63 -> -3.55371072e-05 | G63: =(1-$G$1*($B$49-$G$2))*C63 -> 0.0001367132355 | H63: -2.529578925e-05 | J63: =F63*$G$3+J62 -> -3.43159614e-05 | K63: =J63*$G$3+K62 -> -2.54316846e-05 | L63: =G63*$G$3+L62 -> 0.0001361218206 | M63: =L63*$G$3+M62 -> 0.0001019435117 | N63: =(J63^2+L63^2)*$G$3+N62 -> 1.228633734e-08
A64: =IF('DF raw data'!A69="","",'DF raw data'!A69) -> -299 | B64: =IF('DF raw data'!B69="","",'DF raw data'!B69) -> -2.85992e-05 | C64: =IF('DF raw data'!C69="","",'DF raw data'!C69) -> 0.000131862 | D64: =IF('DF raw data'!D69="","",'DF raw data'!D69) -> -2.49854e-05 | F64: =(1-$G$1*($B$49-$G$2))*B64 -> -2.871645672e-05 | G64: 0.0001324026342 | H64: -2.508784014e-05 | J64: =F64*$G$3+J63 -> -4.867418976e-05 | K64: =J64*$G$3+K63 -> -4.976877948e-05 | L64: =G64*$G$3+L63 -> 0.0002023231377 | M64: =L64*$G$3+M63 -> 0.0002031050806 | N64: =(J64^2+L64^2)*$G$3+N63 -> 3.393825174e-08
A65: =IF('DF raw data'!A70="","",'DF raw data'!A70) -> -298.5 | B65: =IF('DF raw data'!B70="","",'DF raw data'!B70) -> -3.93657e-05 | C65: =IF('DF raw data'!C70="","",'DF raw data'!C70) -> 0.000146339 | D65: =IF('DF raw data'!D70="","",'DF raw data'!D70) -> -2.45631e-05 | F65: -3.952709937e-05 | G65: 0.0001469389899 | H65: -2.466380871e-05 | J65: -6.843773945e-05 | K65: -8.39876492e-05 | L65: 0.0002757926327 | M65: 0.0003410013969 | N65: 7.431090194e-08
A66: =IF('DF raw data'!A71="","",'DF raw data'!A71) -> -298 | B66: =IF('DF raw data'!B71="","",'DF raw data'!B71) -> -2.44983e-05 | C66: =IF('DF raw data'!C71="","",'DF raw data'!C71) -> 0.000143109 | D66: =IF('DF raw data'!D71="","",'DF raw data'!D71) -> -2.45985e-05 | F66: -2.459874303e-05 | G66: 0.0001436957469 | H66: -2.469935385e-05 | J66: -8.073711096e-05 | K66: -0.0001243562047 | L66: 0.0003476405061 | M66: 0.00051482165 | N66: 1.379971032e-07
A67: =IF('DF raw data'!A72="","",'DF raw data'!A72) -> -297.5 | B67: =IF('DF raw data'!B72="","",'DF raw data'!B72) -> -2.83428e-05 | C67: =IF('DF raw data'!C72="","",'DF raw data'!C72) -> 0.000134287 | D67: =IF('DF raw data'!D72="","",'DF raw data'!D72) -> -2.51738e-05 | F67: -2.845900548e-05 | G67: 0.0001348375767 | H67: -2.527701258e-05 | J67: -9.49666137e-05 | K67: -0.0001718395115 | L67: 0.0004150592944 | M67: 0.0007223512972 | N67: 2.28643541e-07
A68: =IF('DF raw data'!A73="","",'DF raw data'!A73) -> -297 | B68: =IF('DF raw data'!B73="","",'DF raw data'!B73) -> -3.00728e-05 | C68: =IF('DF raw data'!C73="","",'DF raw data'!C73) -> 0.000129372 | D68: =IF('DF raw data'!D73="","",'DF raw data'!D73) -> -2.56533e-05 | F68: -3.019609848e-05 | G68: 0.0001299024252 | H68: -2.575847853e-05 | J68: -0.0001100646629 | K68: -0.000226871843 | L68: 0.000480010507 | M68: 0.0009623565507 | N68: 3.499056995e-07
A69: =IF('DF raw data'!A74="","",'DF raw data'!A74) -> -296.5 | B69: =IF('DF raw data'!B74="","",'DF raw data'!B74) -> -3.25721e-05 | C69: =IF('DF raw data'!C74="","",'DF raw data'!C74) -> 0.000128174 | D69: =IF('DF raw data'!D74="","",'DF raw data'!D74) -> -2.56023e-05 | F69: -3.270564561e-05 | G69: 0.0001286995134 | H69: -2.570726943e-05 | J69: -0.0001264174857 | K69: -0.0002900805859 | L69: 0.0005443602637 | M69: 0.001234536683 | N69: 5.060604382e-07
A70: =IF('DF raw data'!A75="","",'DF raw data'!A75) -> -296 | B70: =IF('DF raw data'!B75="","",'DF raw data'!B75) -> -3.42384e-05 | C70: =IF('DF raw data'!C75="","",'DF raw data'!C75) -> 0.000130432 | D70: =IF('DF raw data'!D75="","",'DF raw data'!D75) -> -2.54017e-05 | F70: -3.437877744e-05 | G70: 0.0001309667712 | H70: -2.550584697e-05 | J70: -0.0001436068745 | K70: -0.0003618840231 | L70: 0.0006098436493 | M70: 0.001539458507 | N70: 7.023265437e-07
A71: =IF('DF raw data'!A76="","",'DF raw data'!A76) -> -295.5 | B71: =IF('DF raw data'!B76="","",'DF raw data'!B76) -> -3.37896e-05 | C71: =IF('DF raw data'!C76="","",'DF raw data'!C76) -> 0.000133115 | D71: =IF('DF raw data'!D76="","",'DF raw data'!D76) -> -2.54779e-05 | F71: -3.392813736e-05 | G71: 0.0001336607715 | H71: -2.558235939e-05 | J71: -0.0001605709431 | K71: -0.0004421694947 | L71: 0.0006766740351 | M71: 0.001877795525 | N71: 9.441619325e-07
A72: =IF('DF raw data'!A77="","",'DF raw data'!A77) -> -295 | B72: =IF('DF raw data'!B77="","",'DF raw data'!B77) -> -3.21234e-05 | C72: =IF('DF raw data'!C77="","",'DF raw data'!C77) -> 0.000130183 | D72: =IF('DF raw data'!D77="","",'DF raw data'!D77) -> -2.55992e-05 | F72: -3.225510594e-05 | G72: 0.0001307167503 | H72: -2.570415672e-05 | J72: -0.0001766984961 | K72: -0.0005305187427 | L72: 0.0007420324102 | M72: 0.00224881173 | N72: 1.235079161e-06
A73: =IF('DF raw data'!A78="","",'DF raw data'!A78) -> -294.5 | B73: =IF('DF raw data'!B78="","",'DF raw data'!B78) -> -4.48761e-05 | C73: =IF('DF raw data'!C78="","",'DF raw data'!C78) -> 0.000128318 | D73: =IF('DF raw data'!D78="","",'DF raw data'!D78) -> -2.54666e-05 | F73: -4.506009201e-05 | G73: 0.0001288441038 | H73: -2.557101306e-05 | J73: -0.0001992285421 | K73: -0.0006301330138 | L73: 0.0008064544621 | M73: 0.002652038961 | N73: 1.580109566e-06
A74: =IF('DF raw data'!A79="","",'DF raw data'!A79) -> -294 | B74: =IF('DF raw data'!B79="","",'DF raw data'!B79) -> -2.96884e-05 | C74: =IF('DF raw data'!C79="","",'DF raw data'!C79) -> 0.000139344 | D74: =IF('DF raw data'!D79="","",'DF raw data'!D79) -> -2.55758e-05 | F74: -2.981012244e-05 | G74: 0.0001399153104 | H74: -2.568066078e-05 | J74: -0.0002141336033 | K74: -0.0007371998155 | L74: 0.0008764121173 | M74: 0.00309024502 | N74: 1.987085266e-06
A75: =IF('DF raw data'!A80="","",'DF raw data'!A80) -> -293.5 | B75: =IF('DF raw data'!B80="","",'DF raw data'!B80) -> -4.51324e-05 | C75: =IF('DF raw data'!C80="","",'DF raw data'!C80) -> 0.000139947 | D75: =IF('DF raw data'!D80="","",'DF raw data'!D80) -> -2.55399e-05 | F75: -4.531744284e-05 | G75: 0.0001405207827 | H75: -2.564461359e-05 | J75: -0.0002367923248 | K75: -0.0008555959778 | L75: 0.0009466725087 | M75: 0.003563581274 | N75: 2.463214988e-06
A76: =IF('DF raw data'!A81="","",'DF raw data'!A81) -> -293 | B76: =IF('DF raw data'!B81="","",'DF raw data'!B81) -> -4.16081e-05 | C76: =IF('DF raw data'!C81="","",'DF raw data'!C81) -> 0.00013982 | D76: =IF('DF raw data'!D81="","",'DF raw data'!D81) -> -2.49971e-05 | F76: -4.177869321e-05 | G76: 0.000140393262 | H76: -2.509958811e-05 | J76: -0.0002576816714 | K76: -0.0009844368135 | L76: 0.00101686914 | M76: 0.004072015844 | N76: 3.013426334e-06
A77: =IF('DF raw data'!A82="","",'DF raw data'!A82) -> -292.5 | B77: =IF('DF raw data'!B82="","",'DF raw data'!B82) -> -4.12883e-05 | C77: =IF('DF raw data'!C82="","",'DF raw data'!C82) -> 0.000137239 | D77: =IF('DF raw data'!D82="","",'DF raw data'!D82) -> -2.44353e-05 | F77: -4.145758203e-05 | G77: 0.0001378016799 | H77: -2.453548473e-05 | J77: -0.0002784104624 | K77: -0.001123642045 | L77: 0.00108576998 | M77: 0.004614900834 | N77: 3.641630751e-06
A78: =IF('DF raw data'!A83="","",'DF raw data'!A83) -> -292 | B78: =IF('DF raw data'!B83="","",'DF raw data'!B83) -> -3.48159e-05 | C78: =IF('DF raw data'!C83="","",'DF raw data'!C83) -> 0.000136455 | D78: =IF('DF raw data'!D83="","",'DF raw data'!D83) -> -2.44355e-05 | F78: -3.495864519e-05 | G78: 0.0001370144655 | H78: -2.453568555e-05 | J78: -0.000295889785 | K78: -0.001271586937 | L78: 0.001154277212 | M78: 0.00519203944 | N78: 4.351584075e-06
A79: =IF('DF raw data'!A84="","",'DF raw data'!A84) -> -291.5 | B79: =IF('DF raw data'!B84="","",'DF raw data'!B84) -> -3.64859e-05 | C79: =IF('DF raw data'!C84="","",'DF raw data'!C84) -> 0.00013404 | D79: =IF('DF raw data'!D84="","",'DF raw data'!D84) -> -1.84984e-05 | F79: -3.663549219e-05 | G79: 0.000134589564 | H79: -1.857424344e-05 | J79: -0.0003142075311 | K79: -0.001428690703 | L79: 0.001221571994 | M79: 0.005802825437 | N79: 5.14706633e-06
A80: =IF('DF raw data'!A85="","",'DF raw data'!A85) -> -291 | B80: =IF('DF raw data'!B85="","",'DF raw data'!B85) -> -3.52045e-05 | C80: =IF('DF raw data'!C85="","",'DF raw data'!C85) -> 0.000131038 | D80: =IF('DF raw data'!D85="","",'DF raw data'!D85) -> -1.81093e-05 | F80: -3.534883845e-05 | G80: 0.0001315752558 | H80: -1.818354813e-05 | J80: -0.0003318819503 | K80: -0.001594631678 | L80: 0.001287359622 | M80: 0.006446505248 | N80: 6.030786543e-06
A81: =IF('DF raw data'!A86="","",'DF raw data'!A86) -> -290.5 | B81: =IF('DF raw data'!B86="","",'DF raw data'!B86) -> -2.976e-05 | C81: =IF('DF raw data'!C86="","",'DF raw data'!C86) -> 0.000132875 | D81: =IF('DF raw data'!D86="","",'DF raw data'!D86) -> -1.36924e-05 | F81: -2.9882016e-05 | G81: 0.0001334197875 | H81: -1.374853884e-05 | J81: -0.0003468229583 | K81: -0.001768043157 | L81: 0.001354069516 | M81: 0.007123540006 | N81: 7.007681752e-06
A82: =IF('DF raw data'!A87="","",'DF raw data'!A87) -> -290 | B82: =IF('DF raw data'!B87="","",'DF raw data'!B87) -> -4.07712e-05 | C82: =IF('DF raw data'!C87="","",'DF raw data'!C87) -> 0.000126507 | D82: =IF('DF raw data'!D87="","",'DF raw data'!D87) -> -3.1241e-05 | F82: -4.093836192e-05 | G82: 0.0001270256787 | H82: -3.13690881e-05 | J82: -0.0003672921393 | K82: -0.001951689227 | L82: 0.001417582355 | M82: 0.007832331184 | N82: 8.079903377e-06
A83: =IF('DF raw data'!A88="","",'DF raw data'!A88) -> -289.5 | B83: =IF('DF raw data'!B88="","",'DF raw data'!B88) -> -3.18708e-05 | C83: =IF('DF raw data'!C88="","",'DF raw data'!C88) -> 0.000126934 | D83: =IF('DF raw data'!D88="","",'DF raw data'!D88) -> -1.99869e-05 | F83: -3.200147028e-05 | G83: 0.0001274544294 | H83: -2.006884629e-05 | J83: -0.0003832928744 | K83: -0.002143335664 | L83: 0.00148130957 | M83: 0.008572985969 | N83: 9.250499112e-06
A84: =IF('DF raw data'!A89="","",'DF raw data'!A89) -> -289 | B84: =IF('DF raw data'!B89="","",'DF raw data'!B89) -> -2.57173e-05 | C84: =IF('DF raw data'!C89="","",'DF raw data'!C89) -> 0.00012491 | D84: =IF('DF raw data'!D89="","",'DF raw data'!D89) -> -2.2121e-05 | F84: -2.582274093e-05 | G84: 0.000125422131 | H84: -2.22116961e-05 | J84: -0.0003962042449 | K84: -0.002341437786 | L84: 0.001544020636 | M84: 0.009344996287 | N84: 1.052098788e-05
A85: =IF('DF raw data'!A90="","",'DF raw data'!A90) -> -288.5 | B85: =IF('DF raw data'!B90="","",'DF raw data'!B90) -> -4.34051e-05 | C85: =IF('DF raw data'!C90="","",'DF raw data'!C90) -> 0.000128809 | D85: =IF('DF raw data'!D90="","",'DF raw data'!D90) -> -2.13113e-05 | F85: -4.358306091e-05 | G85: 0.0001293371169 | H85: -2.139867633e-05 | J85: -0.0004179957753 | K85: -0.002550435674 | L85: 0.001608689194 | M85: 0.01014934088 | N85: 1.190228857e-05
A86: =IF('DF raw data'!A91="","",'DF raw data'!A91) -> -288 | B86: =IF('DF raw data'!B91="","",'DF raw data'!B91) -> -3.34638e-05 | C86: =IF('DF raw data'!C91="","",'DF raw data'!C91) -> 0.000128975 | D86: =IF('DF raw data'!D91="","",'DF raw data'!D91) -> -3.41342e-05 | F86: -3.360100158e-05 | G86: 0.0001295037975 | H86: -3.427415022e-05 | J86: -0.0004347962761 | K86: -0.002767833812 | L86: 0.001673441093 | M86: 0.01098606143 | N86: 1.339701502e-05
A87: =IF('DF raw data'!A92="","",'DF raw data'!A92) -> -287.5 | B87: =IF('DF raw data'!B92="","",'DF raw data'!B92) -> -4.17971e-05 | C87: =IF('DF raw data'!C92="","",'DF raw data'!C92) -> 0.000126021 | D87: =IF('DF raw data'!D92="","",'DF raw data'!D92) -> -3.03265e-05 | F87: -4.196846811e-05 | G87: 0.0001265376861 | H87: -3.045083865e-05 | J87: -0.0004557805102 | K87: -0.002995724067 | L87: 0.001736709936 | M87: 0.0118544164 | N87: 1.500896365e-05
A88: =IF('DF raw data'!A93="","",'DF raw data'!A93) -> -287 | B88: =IF('DF raw data'!B93="","",'DF raw data'!B93) -> -4.54532e-05 | C88: =IF('DF raw data'!C93="","",'DF raw data'!C93) -> 0.000124846 | D88: =IF('DF raw data'!D93="","",'DF raw data'!D93) -> -2.51956e-05 | F88: -4.563955812e-05 | G88: 0.0001253578686 | H88: -2.529890196e-05 | J88: -0.0004786002892 | K88: -0.003235024212 | L88: 0.00179938887 | M88: 0.01275411083 | N88: 1.674239293e-05
A89: =IF('DF raw data'!A94="","",'DF raw data'!A94) -> -286.5 | B89: =IF('DF raw data'!B94="","",'DF raw data'!B94) -> -3.57799e-05 | C89: =IF('DF raw data'!C94="","",'DF raw data'!C94) -> 0.000131408 | D89: =IF('DF raw data'!D94="","",'DF raw data'!D94) -> -1.99874e-05 | F89: -3.592659759e-05 | G89: 0.0001319467728 | H89: -2.006934834e-05 | J89: -0.000496563588 | K89: -0.003483306006 | L89: 0.001865362257 | M89: 0.01368679196 | N89: 1.86054688e-05
A90: =IF('DF raw data'!A95="","",'DF raw data'!A95) -> -286 | B90: =IF('DF raw data'!B95="","",'DF raw data'!B95) -> -3.09682e-05 | C90: =IF('DF raw data'!C95="","",'DF raw data'!C95) -> 0.000128072 | D90: =IF('DF raw data'!D95="","",'DF raw data'!D95) -> -2.83369e-05 | F90: -3.109516962e-05 | G90: 0.0001285970952 | H90: -2.845308129e-05 | J90: -0.0005121111728 | K90: -0.003739361592 | L90: 0.001929660804 | M90: 0.01465162236 | N90: 2.059839314e-05
A91: =IF('DF raw data'!A96="","",'DF raw data'!A96) -> -285.5 | B91: =IF('DF raw data'!B96="","",'DF raw data'!B96) -> -2.73171e-05 | C91: =IF('DF raw data'!C96="","",'DF raw data'!C96) -> 0.000133167 | D91: =IF('DF raw data'!D96="","",'DF raw data'!D96) -> -2.57404e-05 | F91: -2.742910011e-05 | G91: 0.0001337129847 | H91: -2.584593564e-05 | J91: -0.0005258257229 | K91: -0.004002274454 | L91: 0.001996517297 | M91: 0.01564988101 | N91: 2.272968014e-05
A92: =IF('DF raw data'!A97="","",'DF raw data'!A97) -> -285 | B92: =IF('DF raw data'!B97="","",'DF raw data'!B97) -> -2.57094e-05 | C92: =IF('DF raw data'!C97="","",'DF raw data'!C97) -> 0.000136074 | D92: =IF('DF raw data'!D97="","",'DF raw data'!D97) -> -3.43865e-05 | F92: -2.581480854e-05 | G92: 0.0001366319034 | H92: -3.452748465e-05 | J92: -0.0005387331271 | K92: -0.004271641017 | L92: 0.002064833248 | M92: 0.01668229764 | N92: 2.5006565e-05
A93: =IF('DF raw data'!A98="","",'DF raw data'!A98) -> -284.5 | B93: =IF('DF raw data'!B98="","",'DF raw data'!B98) -> -3.39118e-05 | C93: =IF('DF raw data'!C98="","",'DF raw data'!C98) -> 0.000122788 | D93: =IF('DF raw data'!D98="","",'DF raw data'!D98) -> -3.48428e-05 | F93: -3.405083838e-05 | G93: 0.0001232914308 | H93: -3.498565548e-05 | J93: -0.0005557585463 | K93: -0.00454952029 | L93: 0.002126478964 | M93: 0.01774553712 | N93: 2.742195517e-05
A94: =IF('DF raw data'!A99="","",'DF raw data'!A99) -> -284 | B94: =IF('DF raw data'!B99="","",'DF raw data'!B99) -> -3.92302e-05 | C94: =IF('DF raw data'!C99="","",'DF raw data'!C99) -> 0.000123471 | D94: =IF('DF raw data'!D99="","",'DF raw data'!D99) -> -3.59199e-05 | F94: -3.939104382e-05 | G94: 0.0001239772311 | H94: -3.606717159e-05 | J94: -0.0005754540683 | K94: -0.004837247324 | L94: 0.002188467579 | M94: 0.01883977091 | N94: 2.998222404e-05
A95: =IF('DF raw data'!A100="","",'DF raw data'!A100) -> -283.5 | B95: =IF('DF raw data'!B100="","",'DF raw data'!B100) -> -4.4301e-05 | C95: =IF('DF raw data'!C100="","",'DF raw data'!C100) -> 0.000123718 | D95: =IF('DF raw data'!D100="","",'DF raw data'!D100) -> -2.32377e-05 | F95: -4.44826341e-05 | G95: 0.0001242252438 | H95: -2.333297457e-05 | J95: -0.0005976953853 | K95: -0.005136095017 | L95: 0.002250580201 | M95: 0.01996506101 | N95: 3.269339955e-05
A96: =IF('DF raw data'!A101="","",'DF raw data'!A101) -> -283 | B96: =IF('DF raw data'!B101="","",'DF raw data'!B101) -> -4.05764e-05 | C96: =IF('DF raw data'!C101="","",'DF raw data'!C101) -> 0.000125877 | D96: =IF('DF raw data'!D101="","",'DF raw data'!D101) -> -3.4931e-05 | F96: -4.074276324e-05 | G96: 0.0001263930957 | H96: -3.50742171e-05 | J96: -0.0006180667669 | K96: -0.005445128401 | L96: 0.002313776749 | M96: 0.02112194938 | N96: 3.556118423e-05
A97: =IF('DF raw data'!A102="","",'DF raw data'!A102) -> -282.5 | B97: =IF('DF raw data'!B102="","",'DF raw data'!B102) -> -3.56506e-05 | C97: =IF('DF raw data'!C102="","",'DF raw data'!C102) -> 0.000125356 | D97: =IF('DF raw data'!D102="","",'DF raw data'!D102) -> -2.16763e-05 | F97: -3.579676746e-05 | G97: 0.0001258699596 | H97: -2.176517283e-05 | J97: -0.0006359651506 | K97: -0.005763110976 | L97: 0.002376711729 | M97: 0.02231030525 | N97: 3.858778939e-05
A98: =IF('DF raw data'!A103="","",'DF raw data'!A103) -> -282 | B98: =IF('DF raw data'!B103="","",'DF raw data'!B103) -> -2.44311e-05 | C98: =IF('DF raw data'!C103="","",'DF raw data'!C103) -> 0.000128194 | D98: =IF('DF raw data'!D103="","",'DF raw data'!D103) -> -2.92412e-05 | F98: -2.453126751e-05 | G98: 0.0001287195954 | H98: -2.936108892e-05 | J98: -0.0006482307844 | K98: -0.006087226368 | L98: 0.002441071526 | M98: 0.02353084101 | N98: 4.177730606e-05
A99: =IF('DF raw data'!A104="","",'DF raw data'!A104) -> -281.5 | B99: =IF('DF raw data'!B104="","",'DF raw data'!B104) -> -3.64917e-05 | C99: =IF('DF raw data'!C104="","",'DF raw data'!C104) -> 0.000128902 | D99: =IF('DF raw data'!D104="","",'DF raw data'!D104) -> -9.51032e-06 | F99: -3.664131597e-05 | G99: 0.0001294304982 | H99: -9.549312312e-06 | J99: -0.0006665514424 | K99: -0.006420502089 | L99: 0.002505786776 | M99: 0.0247837344 | N99: 4.513893516e-05
A100: =IF('DF raw data'!A105="","",'DF raw data'!A105) -> -281 | B100: =IF('DF raw data'!B105="","",'DF raw data'!B105) -> -3.32784e-05 | C100: =IF('DF raw data'!C105="","",'DF raw data'!C105) -> 0.000125467 | D100: =IF('DF raw data'!D105="","",'DF raw data'!D105) -> -2.33515e-05 | F100: -3.341484144e-05 | G100: 0.0001259814147 | H100: -2.344724115e-05 | J100: -0.0006832588631 | K100: -0.006762131521 | L100: 0.002568777483 | M100: 0.02606812314 | N100: 4.867166537e-05
A101: =IF('DF raw data'!A106="","",'DF raw data'!A106) -> -280.5 | B101: =IF('DF raw data'!B106="","",'DF raw data'!B106) -> -2.87322e-05 | C101: =IF('DF raw data'!C106="","",'DF raw data'!C106) -> 0.00013249 | D101: =IF('DF raw data'!D106="","",'DF raw data'!D106) -> -1.76536e-05 | F101: -2.885000202e-05 | G101: 0.000133033209 | H101: -1.772597976e-05 | J101: -0.0006976838641 | K101: -0.007110973453 | L101: 0.002635294087 | M101: 0.02738577018 | N101: 5.238743422e-05
A102: =IF('DF raw data'!A107="","",'DF raw data'!A107) -> -280 | B102: =IF('DF raw data'!B107="","",'DF raw data'!B107) -> -2.30793e-05 | C102: =IF('DF raw data'!C107="","",'DF raw data'!C107) -> 0.00013545 | D102: =IF('DF raw data'!D107="","",'DF raw data'!D107) -> -3.87544e-05 | F102: -2.317392513e-05 | G102: 0.000136005345 | H102: -3.891329304e-05 | J102: -0.0007092708267 | K102: -0.007465608866 | L102: 0.00270329676 | M102: 0.02873741856 | N102: 5.629287346e-05
A103: =IF('DF raw data'!A108="","",'DF raw data'!A108) -> -279.5 | B103: =IF('DF raw data'!B108="","",'DF raw data'!B108) -> -3.19234e-05 | C103: =IF('DF raw data'!C108="","",'DF raw data'!C108) -> 0.000127514 | D103: =IF('DF raw data'!D108="","",'DF raw data'!D108) -> -3.79109e-05 | F103: -3.205428594e-05 | G103: 0.0001280368074 | H103: -3.806633469e-05 | J103: -0.0007252979697 | K103: -0.007828257851 | L103: 0.002767315164 | M103: 0.03012107614 | N103: 6.038491864e-05
A104: =IF('DF raw data'!A109="","",'DF raw data'!A109) -> -279 | B104: =IF('DF raw data'!B109="","",'DF raw data'!B109) -> -3.88443e-05 | C104: =IF('DF raw data'!C109="","",'DF raw data'!C109) -> 0.000122119 | D104: =IF('DF raw data'!D109="","",'DF raw data'!D109) -> -3.8084e-05 | F104: -3.900356163e-05 | G104: 0.0001226196879 | H104: -3.82401444e-05 | J104: -0.0007447997505 | K104: -0.008200657726 | L104: 0.002828625007 | M104: 0.03153538865 | N104: 6.466284169e-05
A105: =IF('DF raw data'!A110="","",'DF raw data'!A110) -> -278.5 | B105: =IF('DF raw data'!B110="","",'DF raw data'!B110) -> -2.93658e-05 | C105: =IF('DF raw data'!C110="","",'DF raw data'!C110) -> 0.000125533 | D105: =IF('DF raw data'!D110="","",'DF raw data'!D110) -> -2.87779e-05 | F105: -2.948619978e-05 | G105: 0.0001260476853 | H105: -2.889588939e-05 | J105: -0.0007595428504 | K105: -0.008580429151 | L105: 0.00289164885 | M105: 0.03298121307 | N105: 6.91321109e-05
A106: =IF('DF raw data'!A111="","",'DF raw data'!A111) -> -278 | B106: =IF('DF raw data'!B111="","",'DF raw data'!B111) -> -2.8534e-05 | C106: =IF('DF raw data'!C111="","",'DF raw data'!C111) -> 0.000122751 | D106: =IF('DF raw data'!D111="","",'DF raw data'!D111) -> -2.70105e-05 | F106: -2.86509894e-05 | G106: 0.0001232542791 | H106: -2.712124305e-05 | J106: -0.0007738683451 | K106: -0.008967363324 | L106: 0.00295327599 | M106: 0.03445785107 | N106: 7.379246654e-05
A107: =IF('DF raw data'!A112="","",'DF raw data'!A112) -> -277.5 | B107: =IF('DF raw data'!B112="","",'DF raw data'!B112) -> -3.53253e-05 | C107: =IF('DF raw data'!C112="","",'DF raw data'!C112) -> 0.000123401 | D107: =IF('DF raw data'!D112="","",'DF raw data'!D112) -> -2.94224e-05 | F107: -3.547013373e-05 | G107: 0.0001239069441 | H107: -2.954303184e-05 | J107: -0.0007916034119 | K107: -0.00936316503 | L107: 0.003015229462 | M107: 0.0359654658 | N107: 7.865158888e-05
A108: =IF('DF raw data'!A113="","",'DF raw data'!A113) -> -277 | B108: =IF('DF raw data'!B113="","",'DF raw data'!B113) -> -4.18603e-05 | C108: =IF('DF raw data'!C113="","",'DF raw data'!C113) -> 0.000127223 | D108: =IF('DF raw data'!D113="","",'DF raw data'!D113) -> -3.15336e-05 | F108: -4.203192723e-05 | G108: 0.0001277446143 | H108: -3.166288776e-05 | J108: -0.0008126193755 | K108: -0.009769474718 | L108: 0.003079101769 | M108: 0.03750501668 | N108: 8.372219785e-05
A109: =IF('DF raw data'!A114="","",'DF raw data'!A114) -> -276.5 | B109: =IF('DF raw data'!B114="","",'DF raw data'!B114) -> -3.06441e-05 | C109: =IF('DF raw data'!C114="","",'DF raw data'!C114) -> 0.000131199 | D109: =IF('DF raw data'!D114="","",'DF raw data'!D114) -> -3.42113e-05 | F109: -3.076974081e-05 | G109: 0.0001317369159 | H109: -3.435156633e-05 | J109: -0.0008280042459 | K109: -0.01018347684 | L109: 0.003144970227 | M109: 0.0390775018 | N109: 8.901041223e-05
A110: =IF('DF raw data'!A115="","",'DF raw data'!A115) -> -276 | B110: =IF('DF raw data'!B115="","",'DF raw data'!B115) -> -2.33426e-05 | C110: =IF('DF raw data'!C115="","",'DF raw data'!C115) -> 0.000136553 | D110: =IF('DF raw data'!D115="","",'DF raw data'!D115) -> -2.80437e-05 | F110: -2.343830466e-05 | G110: 0.0001371128673 | H110: -2.815867917e-05 | J110: -0.0008397233983 | K110: -0.01060333854 | L110: 0.00321352666 | M110: 0.04068426513 | N110: 9.452635672e-05
A111: =IF('DF raw data'!A116="","",'DF raw data'!A116) -> -275.5 | B111: =IF('DF raw data'!B116="","",'DF raw data'!B116) -> -4.09021e-05 | C111: =IF('DF raw data'!C116="","",'DF raw data'!C116) -> 0.000140909 | D111: =IF('DF raw data'!D116="","",'DF raw data'!D116) -> -2.69796e-05 | F111: -4.106979861e-05 | G111: 0.0001414867269 | H111: -2.709021636e-05 | J111: -0.0008602582976 | K111: -0.01103346769 | L111: 0.003284270024 | M111: 0.04232640014 | N111: 0.0001002895937
A112: =IF('DF raw data'!A117="","",'DF raw data'!A117) -> -275 | B112: =IF('DF raw data'!B117="","",'DF raw data'!B117) -> -4.23736e-05 | C112: =IF('DF raw data'!C117="","",'DF raw data'!C117) -> 0.000133929 | D112: =IF('DF raw data'!D117="","",'DF raw data'!D117) -> -3.09427e-05 | F112: -4.254733176e-05 | G112: 0.0001344781089 | H112: -3.106956507e-05 | J112: -0.0008815319635 | K112: -0.01147423367 | L112: 0.003351509078 | M112: 0.04400215468 | N112: 0.0001062944495
A113: =IF('DF raw data'!A118="","",'DF raw data'!A118) -> -274.5 | B113: =IF('DF raw data'!B118="","",'DF raw data'!B118) -> -2.35415e-05 | C113: =IF('DF raw data'!C118="","",'DF raw data'!C118) -> 0.000133064 | D113: =IF('DF raw data'!D118="","",'DF raw data'!D118) -> -1.76343e-05 | F113: -2.363802015e-05 | G113: 0.0001336095624 | H113: -1.770660063e-05 | J113: -0.0008933509735 | K113: -0.01192090916 | L113: 0.00341831386 | M113: 0.04571131161 | N113: 0.0001125359223
A114: =IF('DF raw data'!A119="","",'DF raw data'!A119) -> -274 | B114: =IF('DF raw data'!B119="","",'DF raw data'!B119) -> -3.60334e-05 | C114: =IF('DF raw data'!C119="","",'DF raw data'!C119) -> 0.000135955 | D114: =IF('DF raw data'!D119="","",'DF raw data'!D119) -> -2.4385e-05 | F114: -3.618113694e-05 | G114: 0.0001365124155 | H114: -2.44849785e-05 | J114: -0.000911441542 | K114: -0.01237662993 | L114: 0.003486570067 | M114: 0.04745459664 | N114: 0.0001190293706
A115: =IF('DF raw data'!A120="","",'DF raw data'!A120) -> -273.5 | B115: =IF('DF raw data'!B120="","",'DF raw data'!B120) -> -3.90424e-05 | C115: =IF('DF raw data'!C120="","",'DF raw data'!C120) -> 0.000147557 | D115: =IF('DF raw data'!D120="","",'DF raw data'!D120) -> -2.89406e-05 | F115: -3.920247384e-05 | G115: 0.0001481619837 | H115: -2.905925646e-05 | J115: -0.0009310427789 | K115: -0.01284215132 | L115: 0.003560651059 | M115: 0.04923492217 | N115: 0.0001258019089
A116: =IF('DF raw data'!A121="","",'DF raw data'!A121) -> -273 | B116: =IF('DF raw data'!B121="","",'DF raw data'!B121) -> -3.142e-05 | C116: =IF('DF raw data'!C121="","",'DF raw data'!C121) -> 0.000139445 | D116: =IF('DF raw data'!D121="","",'DF raw data'!D121) -> -2.35964e-05 | F116: -3.1548822e-05 | G116: 0.0001400167245 | H116: -2.369314524e-05 | J116: -0.0009468171899 | K116: -0.01331555991 | L116: 0.003630659421 | M116: 0.05105025188 | N116: 0.0001328409842
A117: =IF('DF raw data'!A122="","",'DF raw data'!A122) -> -272.5 | B117: =IF('DF raw data'!B122="","",'DF raw data'!B122) -> -2.97584e-05 | C117: =IF('DF raw data'!C122="","",'DF raw data'!C122) -> 0.000130616 | D117: =IF('DF raw data'!D122="","",'DF raw data'!D122) -> -1.62723e-05 | F117: -2.988040944e-05 | G117: 0.0001311515256 | H117: -1.633901643e-05 | J117: -0.0009617573946 | K117: -0.01379643861 | L117: 0.003696235184 | M117: 0.05289836947 | N117: 0.0001401345501
A118: =IF('DF raw data'!A123="","",'DF raw data'!A123) -> -272 | B118: =IF('DF raw data'!B123="","",'DF raw data'!B123) -> -3.84079e-05 | C118: =IF('DF raw data'!C123="","",'DF raw data'!C123) -> 0.000134987 | D118: =IF('DF raw data'!D123="","",'DF raw data'!D123) -> -1.91208e-05 | F118: -3.856537239e-05 | G118: 0.0001355404467 | H118: -1.919919528e-05 | J118: -0.0009810400808 | K118: -0.01428695865 | L118: 0.003764005408 | M118: 0.05478037218 | N118: 0.0001476996383
A119: =IF('DF raw data'!A124="","",'DF raw data'!A124) -> -271.5 | B119: =IF('DF raw data'!B124="","",'DF raw data'!B124) -> -2.37305e-05 | C119: =IF('DF raw data'!C124="","",'DF raw data'!C124) -> 0.000134261 | D119: =IF('DF raw data'!D124="","",'DF raw data'!D124) -> -2.27797e-05 | F119: -2.382779505e-05 | G119: 0.0001348114701 | H119: -2.287309677e-05 | J119: -0.0009929539784 | K119: -0.01478343564 | L119: 0.003831411143 | M119: 0.05669607775 | N119: 0.0001555324728
A120: =IF('DF raw data'!A125="","",'DF raw data'!A125) -> -271 | B120: =IF('DF raw data'!B125="","",'DF raw data'!B125) -> -2.41102e-05 | C120: =IF('DF raw data'!C125="","",'DF raw data'!C125) -> 0.000131821 | D120: =IF('DF raw data'!D125="","",'DF raw data'!D125) -> -3.01655e-05 | F120: -2.420905182e-05 | G120: 0.0001323614661 | H120: -3.028917855e-05 | J120: -0.001005058504 | K120: -0.01528596489 | L120: 0.003897591876 | M120: 0.05864487369 | N120: 0.0001636331553
A121: =IF('DF raw data'!A126="","",'DF raw data'!A126) -> -270.5 | B121: =IF('DF raw data'!B126="","",'DF raw data'!B126) -> -3.90397e-05 | C121: =IF('DF raw data'!C126="","",'DF raw data'!C126) -> 0.000135283 | D121: =IF('DF raw data'!D126="","",'DF raw data'!D126) -> -3.29816e-05 | F121: -3.919976277e-05 | G121: 0.0001358376603 | H121: -3.311682456e-05 | J121: -0.001024658386 | K121: -0.01579829408 | L121: 0.003965510706 | M121: 0.06062762904 | N121: 0.0001720207553
A122: =IF('DF raw data'!A127="","",'DF raw data'!A127) -> -270 | B122: =IF('DF raw data'!B127="","",'DF raw data'!B127) -> -3.35373e-05 | C122: =IF('DF raw data'!C127="","",'DF raw data'!C127) -> 0.000139352 | D122: =IF('DF raw data'!D127="","",'DF raw data'!D127) -> -1.94405e-05 | F122: -3.367480293e-05 | G122: 0.0001399233432 | H122: -1.952020605e-05 | J122: -0.001041495787 | K122: -0.01631904198 | L122: 0.004035472377 | M122: 0.06264536523 | N122: 0.0001807056307
A123: =IF('DF raw data'!A128="","",'DF raw data'!A128) -> -269.5 | B123: =IF('DF raw data'!B128="","",'DF raw data'!B128) -> -2.66783e-05 | C123: =IF('DF raw data'!C128="","",'DF raw data'!C128) -> 0.000138561 | D123: =IF('DF raw data'!D128="","",'DF raw data'!D128) -> -2.26575e-05 | F123: -2.678768103e-05 | G123: 0.0001391291001 | H123: -2.275039575e-05 | J123: -0.001054889628 | K123: -0.01684648679 | L123: 0.004105036927 | M123: 0.06469788369 | N123: 0.0001896876908
A124: =IF('DF raw data'!A129="","",'DF raw data'!A129) -> -269 | B124: =IF('DF raw data'!B129="","",'DF raw data'!B129) -> -3.13503e-05 | C124: =IF('DF raw data'!C129="","",'DF raw data'!C129) -> 0.000136383 | D124: =IF('DF raw data'!D129="","",'DF raw data'!D129) -> -3.21022e-05 | F124: -3.147883623e-05 | G124: 0.0001369421703 | H124: -3.223381902e-05 | J124: -0.001070629046 | K124: -0.01738180131 | L124: 0.004173508013 | M124: 0.0667846377 | N124: 0.0001989698987
A125: =IF('DF raw data'!A130="","",'DF raw data'!A130) -> -268.5 | B125: =IF('DF raw data'!B130="","",'DF raw data'!B130) -> -3.30155e-05 | C125: =IF('DF raw data'!C130="","",'DF raw data'!C130) -> 0.000135435 | D125: =IF('DF raw data'!D130="","",'DF raw data'!D130) -> -3.35081e-05 | F125: -3.315086355e-05 | G125: 0.0001359902835 | H125: -3.364548321e-05 | J125: -0.001087204478 | K125: -0.01792540355 | L125: 0.004241503154 | M125: 0.06890538928 | N125: 0.00020855608
A126: =IF('DF raw data'!A131="","",'DF raw data'!A131) -> -268 | B126: =IF('DF raw data'!B131="","",'DF raw data'!B131) -> -2.90466e-05 | C126: =IF('DF raw data'!C131="","",'DF raw data'!C131) -> 0.000135224 | D126: =IF('DF raw data'!D131="","",'DF raw data'!D131) -> -2.71101e-05 | F126: -2.916569106e-05 | G126: 0.0001357784184 | H126: -2.722125141e-05 | J126: -0.001101787323 | K126: -0.01847629721 | L126: 0.004309392364 | M126: 0.07106008546 | N126: 0.0002184484789
A127: =IF('DF raw data'!A132="","",'DF raw data'!A132) -> -267.5 | B127: =IF('DF raw data'!B132="","",'DF raw data'!B132) -> -3.05749e-05 | C127: =IF('DF raw data'!C132="","",'DF raw data'!C132) -> 0.000131972 | D127: =IF('DF raw data'!D132="","",'DF raw data'!D132) -> -4.2035e-05 | F127: -3.070025709e-05 | G127: 0.0001325130852 | H127: -4.22073435e-05 | J127: -0.001117137452 | K127: -0.01903486594 | L127: 0.004375648906 | M127: 0.07324790991 | N127: 0.0002286456286
A128: =IF('DF raw data'!A133="","",'DF raw data'!A133) -> -267 | B128: =IF('DF raw data'!B133="","",'DF raw data'!B133) -> -3.9558e-05 | C128: =IF('DF raw data'!C133="","",'DF raw data'!C133) -> 0.00012664 | D128: =IF('DF raw data'!D133="","",'DF raw data'!D133) -> -2.43584e-05 | F128: =(1-$G$1*($B$49-$G$2))*B128 -> -3.97201878e-05 | G128: 0.000127159224 | H128: -2.445826944e-05 | J128: =F128*$G$3+J127 -> -0.001136997546 | K128: =J128*$G$3+K127 -> -0.01960336471 | L128: =G128*$G$3+L127 -> 0.004439228518 | M128: =L128*$G$3+M127 -> 0.07546752417 | N128: =(J128^2+L128^2)*$G$3+N127 -> 0.0002391453852
A129: =IF('DF raw data'!A134="","",'DF raw data'!A134) -> -266.5 | B129: =IF('DF raw data'!B134="","",'DF raw data'!B134) -> -3.57053e-05 | C129: =IF('DF raw data'!C134="","",'DF raw data'!C134) -> 0.000126843 | D129: =IF('DF raw data'!D134="","",'DF raw data'!D134) -> -3.63711e-05 | F129: -3.585169173e-05 | G129: 0.0001273630563 | H129: -3.652022151e-05 | J129: -0.001154923391 | K129: -0.02018082641 | L129: 0.004502910046 | M129: 0.07771897919 | N129: 0.0002499504087
A130: =IF('DF raw data'!A135="","",'DF raw data'!A135) -> -266 | B130: =IF('DF raw data'!B135="","",'DF raw data'!B135) -> -2.3225e-05 | C130: =IF('DF raw data'!C135="","",'DF raw data'!C135) -> 0.000133485 | D130: =IF('DF raw data'!D135="","",'DF raw data'!D135) -> -1.1767e-05 | F130: -2.33202225e-05 | G130: 0.0001340322885 | H130: -1.18152447e-05 | J130: -0.001166583503 | K130: -0.02076411816 | L130: 0.004569926191 | M130: 0.08000394229 | N130: 0.0002610729799
A131: =IF('DF raw data'!A136="","",'DF raw data'!A136) -> -265.5 | B131: =IF('DF raw data'!B136="","",'DF raw data'!B136) -> -2.86551e-05 | C131: =IF('DF raw data'!C136="","",'DF raw data'!C136) -> 0.000132737 | D131: =IF('DF raw data'!D136="","",'DF raw data'!D136) -> -3.79175e-05 | F131: -2.877258591e-05 | G131: 0.0001332812217 | H131: -3.807296175e-05 | J131: -0.001180969796 | K131: -0.02135460306 | L131: 0.004636566801 | M131: 0.08232222569 | N131: 0.0002725192006
A132: =IF('DF raw data'!A137="","",'DF raw data'!A137) -> -265 | B132: =IF('DF raw data'!B137="","",'DF raw data'!B137) -> -3.88535e-05 | C132: =IF('DF raw data'!C137="","",'DF raw data'!C137) -> 0.000129933 | D132: =IF('DF raw data'!D137="","",'DF raw data'!D137) -> -2.4e-05 | F132: -3.901279935e-05 | G132: 0.0001304657253 | H132: -2.40984e-05 | J132: -0.001200476195 | K132: -0.02195484116 | L132: 0.004701799664 | M132: 0.08467312552 | N132: 0.0002842932322
A133: =IF('DF raw data'!A138="","",'DF raw data'!A138) -> -264.5 | B133: =IF('DF raw data'!B138="","",'DF raw data'!B138) -> -3.38508e-05 | C133: =IF('DF raw data'!C138="","",'DF raw data'!C138) -> 0.000124464 | D133: =IF('DF raw data'!D138="","",'DF raw data'!D138) -> -3.02737e-05 | F133: -3.398958828e-05 | G133: 0.0001249743024 | H133: -3.039782217e-05 | J133: -0.001217470989 | K133: -0.02256357665 | L133: 0.004764286815 | M133: 0.08705526893 | N133: 0.0002963835644
A134: =IF('DF raw data'!A139="","",'DF raw data'!A139) -> -264 | B134: =IF('DF raw data'!B139="","",'DF raw data'!B139) -> -3.54545e-05 | C134: =IF('DF raw data'!C139="","",'DF raw data'!C139) -> 0.000124135 | D134: =IF('DF raw data'!D139="","",'DF raw data'!D139) -> -2.78264e-05 | F134: -3.559986345e-05 | G134: 0.0001246439535 | H134: -2.794048824e-05 | J134: -0.001235270921 | K134: -0.02318121211 | L134: 0.004826608792 | M134: 0.08946857332 | N134: 0.0003087945878
A135: =IF('DF raw data'!A140="","",'DF raw data'!A140) -> -263.5 | B135: =IF('DF raw data'!B140="","",'DF raw data'!B140) -> -3.18618e-05 | C135: =IF('DF raw data'!C140="","",'DF raw data'!C140) -> 0.000138262 | D135: =IF('DF raw data'!D140="","",'DF raw data'!D140) -> -3.38818e-05 | F135: -3.199243338e-05 | G135: 0.0001388288742 | H135: -3.402071538e-05 | J135: -0.001251267138 | K135: -0.02380684568 | L135: 0.004896023229 | M135: 0.09191658494 | N135: 0.0003215629442
A136: =IF('DF raw data'!A141="","",'DF raw data'!A141) -> -263 | B136: =IF('DF raw data'!B141="","",'DF raw data'!B141) -> -2.64207e-05 | C136: =IF('DF raw data'!C141="","",'DF raw data'!C141) -> 0.000138706 | D136: =IF('DF raw data'!D141="","",'DF raw data'!D141) -> -2.46056e-05 | F136: -2.652902487e-05 | G136: 0.0001392746946 | H136: -2.470648296e-05 | J136: -0.00126453165 | K136: -0.02443911151 | L136: 0.004965660576 | M136: 0.09439941523 | N136: 0.0003346913568
A137: =IF('DF raw data'!A142="","",'DF raw data'!A142) -> -262.5 | B137: =IF('DF raw data'!B142="","",'DF raw data'!B142) -> -3.36588e-05 | C137: =IF('DF raw data'!C142="","",'DF raw data'!C142) -> 0.000136251 | D137: =IF('DF raw data'!D142="","",'DF raw data'!D142) -> -2.96021e-05 | F137: -3.379680108e-05 | G137: 0.0001368096291 | H137: -2.972346861e-05 | J137: -0.001281430051 | K137: -0.02507982653 | L137: 0.005034065391 | M137: 0.09691644792 | N137: 0.0003481832955
A138: =IF('DF raw data'!A143="","",'DF raw data'!A143) -> -262 | B138: =IF('DF raw data'!B143="","",'DF raw data'!B143) -> -3.21821e-05 | C138: =IF('DF raw data'!C143="","",'DF raw data'!C143) -> 0.000136052 | D138: =IF('DF raw data'!D143="","",'DF raw data'!D143) -> -3.42335e-05 | F138: -3.231404661e-05 | G138: 0.0001366098132 | H138: -3.437385735e-05 | J138: -0.001297587074 | K138: -0.02572862007 | L138: 0.005102370298 | M138: 0.09946763307 | N138: 0.0003620422529
A139: =IF('DF raw data'!A144="","",'DF raw data'!A144) -> -261.5 | B139: =IF('DF raw data'!B144="","",'DF raw data'!B144) -> -3.55821e-05 | C139: =IF('DF raw data'!C144="","",'DF raw data'!C144) -> 0.000134792 | D139: =IF('DF raw data'!D144="","",'DF raw data'!D144) -> -2.87681e-05 | F139: -3.572798661e-05 | G139: 0.0001353446472 | H139: -2.888604921e-05 | J139: -0.001315451067 | K139: -0.0263863456 | L139: 0.005170042621 | M139: 0.1020526544 | N139: 0.0003762721291
A140: =IF('DF raw data'!A145="","",'DF raw data'!A145) -> -261 | B140: =IF('DF raw data'!B145="","",'DF raw data'!B145) -> -3.5198e-05 | C140: =IF('DF raw data'!C145="","",'DF raw data'!C145) -> 0.000128446 | D140: =IF('DF raw data'!D145="","",'DF raw data'!D145) -> -2.81206e-05 | F140: -3.53423118e-05 | G140: 0.0001289726286 | H140: -2.823589446e-05 | J140: -0.001333122223 | K140: -0.02705290671 | L140: 0.005234528935 | M140: 0.1046699189 | N140: 0.0003908608831
A141: =IF('DF raw data'!A146="","",'DF raw data'!A146) -> -260.5 | B141: =IF('DF raw data'!B146="","",'DF raw data'!B146) -> -3.0908e-05 | C141: =IF('DF raw data'!C146="","",'DF raw data'!C146) -> 0.000134022 | D141: =IF('DF raw data'!D146="","",'DF raw data'!D146) -> -2.26476e-05 | F141: -3.10347228e-05 | G141: 0.0001345714902 | H141: -2.274045516e-05 | J141: -0.001348639585 | K141: -0.02772722651 | L141: 0.005301814681 | M141: 0.1073208262 | N141: 0.0004058249169
A142: =IF('DF raw data'!A147="","",'DF raw data'!A147) -> -260 | B142: =IF('DF raw data'!B147="","",'DF raw data'!B147) -> -2.91125e-05 | C142: =IF('DF raw data'!C147="","",'DF raw data'!C147) -> 0.000138391 | D142: =IF('DF raw data'!D147="","",'DF raw data'!D147) -> -2.40986e-05 | F142: -2.923186125e-05 | G142: 0.0001389584031 | H142: -2.419740426e-05 | J142: -0.001363255515 | K142: -0.02840885426 | L142: 0.005371293882 | M142: 0.1100064731 | N142: 0.0004211795487
A143: =IF('DF raw data'!A148="","",'DF raw data'!A148) -> -259.5 | B143: =IF('DF raw data'!B148="","",'DF raw data'!B148) -> -3.07105e-05 | C143: =IF('DF raw data'!C148="","",'DF raw data'!C148) -> 0.000145689 | D143: =IF('DF raw data'!D148="","",'DF raw data'!D148) -> -3.05837e-05 | F143: -3.083641305e-05 | G143: 0.0001462863249 | H143: -3.070909317e-05 | J143: -0.001378673722 | K143: -0.02909819112 | L143: 0.005444437045 | M143: 0.1127286917 | N143: 0.0004369508667
A144: =IF('DF raw data'!A149="","",'DF raw data'!A149) -> -259 | B144: =IF('DF raw data'!B149="","",'DF raw data'!B149) -> -2.53171e-05 | C144: =IF('DF raw data'!C149="","",'DF raw data'!C149) -> 0.000133711 | D144: =IF('DF raw data'!D149="","",'DF raw data'!D149) -> -4.6389e-05 | F144: -2.542090011e-05 | G144: 0.0001342592151 | H144: -4.65791949e-05 | J144: -0.001391384172 | K144: -0.02979388321 | L144: 0.005511566652 | M144: 0.115484475 | N144: 0.0004531075251
A145: =IF('DF raw data'!A150="","",'DF raw data'!A150) -> -258.5 | B145: =IF('DF raw data'!B150="","",'DF raw data'!B150) -> -3.06415e-05 | C145: =IF('DF raw data'!C150="","",'DF raw data'!C150) -> 0.000123372 | D145: =IF('DF raw data'!D150="","",'DF raw data'!D150) -> -3.827e-05 | F145: -3.076713015e-05 | G145: 0.0001238778252 | H145: -3.8426907e-05 | J145: -0.001406767737 | K145: -0.03049726708 | L145: 0.005573505565 | M145: 0.1182712278 | N145: 0.000469629005
A146: =IF('DF raw data'!A151="","",'DF raw data'!A151) -> -258 | B146: =IF('DF raw data'!B151="","",'DF raw data'!B151) -> -2.78867e-05 | C146: =IF('DF raw data'!C151="","",'DF raw data'!C151) -> 0.000135027 | D146: =IF('DF raw data'!D151="","",'DF raw data'!D151) -> -3.69718e-05 | F146: -2.800103547e-05 | G146: 0.0001355806107 | H146: -3.712338438e-05 | J146: -0.001420768255 | K146: -0.03120765121 | L146: 0.00564129587 | M146: 0.1210918757 | N146: 0.0004865504057
A147: =IF('DF raw data'!A152="","",'DF raw data'!A152) -> -257.5 | B147: =IF('DF raw data'!B152="","",'DF raw data'!B152) -> -3.23782e-05 | C147: =IF('DF raw data'!C152="","",'DF raw data'!C152) -> 0.000136093 | D147: =IF('DF raw data'!D152="","",'DF raw data'!D152) -> -2.80788e-05 | F147: -3.251095062e-05 | G147: 0.0001366509813 | H147: -2.819392308e-05 | J147: -0.00143702373 | K147: -0.03192616307 | L147: 0.005709621361 | M147: 0.1239466864 | N147: 0.0005038828124
A148: =IF('DF raw data'!A153="","",'DF raw data'!A153) -> -257 | B148: =IF('DF raw data'!B153="","",'DF raw data'!B153) -> -4.41169e-05 | C148: =IF('DF raw data'!C153="","",'DF raw data'!C153) -> 0.000141865 | D148: =IF('DF raw data'!D153="","",'DF raw data'!D153) -> -1.05444e-05 | F148: -4.429777929e-05 | G148: 0.0001424466465 | H148: -1.058763204e-05 | J148: -0.00145917262 | K148: -0.03265574938 | L148: 0.005780844684 | M148: 0.1268371087 | N148: 0.0005216564874
A149: =IF('DF raw data'!A154="","",'DF raw data'!A154) -> -256.5 | B149: =IF('DF raw data'!B154="","",'DF raw data'!B154) -> -2.6541e-05 | C149: =IF('DF raw data'!C154="","",'DF raw data'!C154) -> 0.000142079 | D149: =IF('DF raw data'!D154="","",'DF raw data'!D154) -> -3.68657e-05 | F149: -2.66498181e-05 | G149: 0.0001426615239 | H149: -3.701684937e-05 | J149: -0.001472497529 | K149: -0.03339199814 | L149: 0.005852175446 | M149: 0.1297631964 | N149: 0.0005398645906
A150: =IF('DF raw data'!A155="","",'DF raw data'!A155) -> -256 | B150: =IF('DF raw data'!B155="","",'DF raw data'!B155) -> -3.61632e-05 | C150: =IF('DF raw data'!C155="","",'DF raw data'!C155) -> 0.000130395 | D150: =IF('DF raw data'!D155="","",'DF raw data'!D155) -> -2.17886e-05 | F150: -3.631146912e-05 | G150: 0.0001309296195 | H150: -2.187793326e-05 | J150: -0.001490653263 | K150: -0.03413732478 | L150: 0.005917640256 | M150: 0.1327220166 | N150: 0.0005584848473
A151: =IF('DF raw data'!A156="","",'DF raw data'!A156) -> -255.5 | B151: =IF('DF raw data'!B156="","",'DF raw data'!B156) -> -2.50007e-05 | C151: =IF('DF raw data'!C156="","",'DF raw data'!C156) -> 0.000124583 | D151: =IF('DF raw data'!D156="","",'DF raw data'!D156) -> -4.03739e-05 | F151: -2.510320287e-05 | G151: 0.0001250937903 | H151: -4.053943299e-05 | J151: -0.001503204865 | K151: -0.03488892721 | L151: 0.005980187151 | M151: 0.1357121101 | N151: 0.0005774959789
A152: =IF('DF raw data'!A157="","",'DF raw data'!A157) -> -255 | B152: =IF('DF raw data'!B157="","",'DF raw data'!B157) -> -3.46864e-05 | C152: =IF('DF raw data'!C157="","",'DF raw data'!C157) -> 0.00012815 | D152: =IF('DF raw data'!D157="","",'DF raw data'!D157) -> -2.66045e-05 | F152: -3.482861424e-05 | G152: 0.000128675415 | H152: -2.671357845e-05 | J152: -0.001520619172 | K152: -0.03564923679 | L152: 0.006044524858 | M152: 0.1387343726 | N152: 0.0005969202606
A153: =IF('DF raw data'!A158="","",'DF raw data'!A158) -> -254.5 | B153: =IF('DF raw data'!B158="","",'DF raw data'!B158) -> -3.64836e-05 | C153: =IF('DF raw data'!C158="","",'DF raw data'!C158) -> 0.00013202 | D153: =IF('DF raw data'!D158="","",'DF raw data'!D158) -> -2.20722e-05 | F153: -3.663318276e-05 | G153: 0.000132561282 | H153: -2.216269602e-05 | J153: -0.001538935763 | K153: -0.03641870468 | L153: 0.006110805499 | M153: 0.1417897753 | N153: 0.0006167753942
A154: =IF('DF raw data'!A159="","",'DF raw data'!A159) -> -254 | B154: =IF('DF raw data'!B159="","",'DF raw data'!B159) -> -3.25188e-05 | C154: =IF('DF raw data'!C159="","",'DF raw data'!C159) -> 0.000134723 | D154: =IF('DF raw data'!D159="","",'DF raw data'!D159) -> -8.94002e-06 | F154: -3.265212708e-05 | G154: 0.0001352753643 | H154: -8.976674082e-06 | J154: -0.001555261827 | K154: -0.03719633559 | L154: 0.006178443181 | M154: 0.1448789969 | N154: 0.0006370713939
A155: =IF('DF raw data'!A160="","",'DF raw data'!A160) -> -253.5 | B155: =IF('DF raw data'!B160="","",'DF raw data'!B160) -> -2.45049e-05 | C155: =IF('DF raw data'!C160="","",'DF raw data'!C160) -> 0.000128414 | D155: =IF('DF raw data'!D160="","",'DF raw data'!D160) -> -1.4507e-05 | F155: -2.460537009e-05 | G155: 0.0001289404974 | H155: -1.45664787e-05 | J155: -0.001567564512 | K155: -0.03798011785 | L155: 0.00624291343 | M155: 0.1480004536 | N155: 0.0006577870072
A156: =IF('DF raw data'!A161="","",'DF raw data'!A161) -> -253 | B156: =IF('DF raw data'!B161="","",'DF raw data'!B161) -> -2.79632e-05 | C156: =IF('DF raw data'!C161="","",'DF raw data'!C161) -> 0.000127566 | D156: =IF('DF raw data'!D161="","",'DF raw data'!D161) -> -1.76886e-05 | F156: -2.807784912e-05 | G156: 0.0001280890206 | H156: -1.776112326e-05 | J156: -0.001581603436 | K156: -0.03877091956 | L156: 0.006306957941 | M156: 0.1511539326 | N156: 0.0006789266011
A157: =IF('DF raw data'!A162="","",'DF raw data'!A162) -> -252.5 | B157: =IF('DF raw data'!B162="","",'DF raw data'!B162) -> -2.86603e-05 | C157: =IF('DF raw data'!C162="","",'DF raw data'!C162) -> 0.000131804 | D157: =IF('DF raw data'!D162="","",'DF raw data'!D162) -> -2.9978e-05 | F157: -2.877780723e-05 | G157: 0.0001323443964 | H157: -3.01009098e-05 | J157: -0.00159599234 | K157: -0.03956891573 | L157: 0.006373130139 | M157: 0.1543404977 | N157: 0.0007005085908
A158: =IF('DF raw data'!A163="","",'DF raw data'!A163) -> -252 | B158: =IF('DF raw data'!B163="","",'DF raw data'!B163) -> -3.63495e-05 | C158: =IF('DF raw data'!C163="","",'DF raw data'!C163) -> 0.000125623 | D158: =IF('DF raw data'!D163="","",'DF raw data'!D163) -> -3.12538e-05 | F158: -3.649853295e-05 | G158: 0.0001261380543 | H158: -3.138194058e-05 | J158: -0.001614241606 | K158: -0.04037603654 | L158: 0.006436199166 | M158: 0.1575585973 | N158: 0.0007225238086
A159: =IF('DF raw data'!A164="","",'DF raw data'!A164) -> -251.5 | B159: =IF('DF raw data'!B164="","",'DF raw data'!B164) -> -3.81469e-05 | C159: =IF('DF raw data'!C164="","",'DF raw data'!C164) -> 0.000129427 | D159: =IF('DF raw data'!D164="","",'DF raw data'!D164) -> -2.64242e-05 | F159: -3.830330229e-05 | G159: 0.0001299576507 | H159: -2.653253922e-05 | J159: -0.001633393258 | K159: -0.04119273317 | L159: 0.006501177991 | M159: 0.1608091862 | N159: 0.000744990453
A160: =IF('DF raw data'!A165="","",'DF raw data'!A165) -> -251 | B160: =IF('DF raw data'!B165="","",'DF raw data'!B165) -> -4.48805e-05 | C160: =IF('DF raw data'!C165="","",'DF raw data'!C165) -> 0.000125359 | D160: =IF('DF raw data'!D165="","",'DF raw data'!D165) -> -1.88613e-05 | F160: -4.506451005e-05 | G160: 0.0001258729719 | H160: -1.893863133e-05 | J160: -0.001655925513 | K160: -0.04202069592 | L160: 0.006564114477 | M160: 0.1640912435 | N160: 0.0007679052971
A161: =IF('DF raw data'!A166="","",'DF raw data'!A166) -> -250.5 | B161: =IF('DF raw data'!B166="","",'DF raw data'!B166) -> -4.07059e-05 | C161: =IF('DF raw data'!C166="","",'DF raw data'!C166) -> 0.000124077 | D161: =IF('DF raw data'!D166="","",'DF raw data'!D166) -> -3.29599e-05 | F161: -4.087279419e-05 | G161: 0.0001245857157 | H161: -3.309503559e-05 | J161: -0.00167636191 | K161: -0.04285887688 | L161: 0.006626407335 | M161: 0.1674044472 | N161: 0.0007912650288
A162: =IF('DF raw data'!A167="","",'DF raw data'!A167) -> -250 | B162: =IF('DF raw data'!B167="","",'DF raw data'!B167) -> -3.40365e-05 | C162: =IF('DF raw data'!C167="","",'DF raw data'!C167) -> 0.00012839 | D162: =IF('DF raw data'!D167="","",'DF raw data'!D167) -> -4.01768e-05 | F162: -3.417604965e-05 | G162: 0.000128916399 | H162: -4.034152488e-05 | J162: -0.001693449935 | K162: -0.04370560184 | L162: 0.006690865534 | M162: 0.1707498799 | N162: 0.000815082756
A163: =IF('DF raw data'!A168="","",'DF raw data'!A168) -> -249.5 | B163: =IF('DF raw data'!B168="","",'DF raw data'!B168) -> -3.57144e-05 | C163: =IF('DF raw data'!C168="","",'DF raw data'!C168) -> 0.000129397 | D163: =IF('DF raw data'!D168="","",'DF raw data'!D168) -> -2.24295e-05 | F163: -3.586082904e-05 | G163: 0.0001299275277 | H163: -2.252146095e-05 | J163: -0.001711380349 | K163: -0.04456129202 | L163: 0.006755829298 | M163: 0.1741277946 | N163: 0.0008393677821
A164: =IF('DF raw data'!A169="","",'DF raw data'!A169) -> -249 | B164: =IF('DF raw data'!B169="","",'DF raw data'!B169) -> -4.46774e-05 | C164: =IF('DF raw data'!C169="","",'DF raw data'!C169) -> 0.000131214 | D164: =IF('DF raw data'!D169="","",'DF raw data'!D169) -> -3.58834e-05 | F164: -4.486057734e-05 | G164: 0.0001317519774 | H164: -3.603052194e-05 | J164: -0.001733810638 | K164: -0.04542819734 | L164: 0.006821705287 | M164: 0.1775386472 | N164: 0.0008641386633
A165: =IF('DF raw data'!A170="","",'DF raw data'!A170) -> -248.5 | B165: =IF('DF raw data'!B170="","",'DF raw data'!B170) -> -4.55831e-05 | C165: =IF('DF raw data'!C170="","",'DF raw data'!C170) -> 0.000132514 | D165: =IF('DF raw data'!D170="","",'DF raw data'!D170) -> -2.26341e-05 | F165: -4.576999071e-05 | G165: 0.0001330573074 | H165: -2.272689981e-05 | J165: -0.001756695633 | K165: -0.04630654515 | L165: 0.006888233941 | M165: 0.1809827642 | N165: 0.0008894055364
A166: =IF('DF raw data'!A171="","",'DF raw data'!A171) -> -248 | B166: =IF('DF raw data'!B171="","",'DF raw data'!B171) -> -3.22539e-05 | C166: =IF('DF raw data'!C171="","",'DF raw data'!C171) -> 0.000129721 | D166: =IF('DF raw data'!D171="","",'DF raw data'!D171) -> -2.21304e-05 | F166: -3.238614099e-05 | G166: 0.0001302528561 | H166: -2.222113464e-05 | J166: -0.001772888704 | K166: -0.04719298951 | L166: 0.006953360369 | M166: 0.1844594444 | N166: 0.0009151517138
A167: =IF('DF raw data'!A172="","",'DF raw data'!A172) -> -247.5 | B167: =IF('DF raw data'!B172="","",'DF raw data'!B172) -> -2.9302e-05 | C167: =IF('DF raw data'!C172="","",'DF raw data'!C172) -> 0.000129794 | D167: =IF('DF raw data'!D172="","",'DF raw data'!D172) -> -2.86661e-05 | F167: -2.94221382e-05 | G167: 0.0001303261554 | H167: -2.878363101e-05 | J167: -0.001787599773 | K167: -0.04808678939 | L167: 0.007018523447 | M167: 0.1879687061 | N167: 0.000941379306
A168: =IF('DF raw data'!A173="","",'DF raw data'!A173) -> -247 | B168: =IF('DF raw data'!B173="","",'DF raw data'!B173) -> -3.98875e-05 | C168: =IF('DF raw data'!C173="","",'DF raw data'!C173) -> 0.000133039 | D168: =IF('DF raw data'!D173="","",'DF raw data'!D173) -> -1.06843e-05 | F168: -4.005103875e-05 | G168: 0.0001335844599 | H168: -1.072810563e-05 | J168: -0.001807625292 | K168: -0.04899060204 | L168: 0.007085315676 | M168: 0.1915113639 | N168: 0.0009681139097
A169: =IF('DF raw data'!A174="","",'DF raw data'!A174) -> -246.5 | B169: =IF('DF raw data'!B174="","",'DF raw data'!B174) -> -3.7196e-05 | C169: =IF('DF raw data'!C174="","",'DF raw data'!C174) -> 0.000142165 | D169: =IF('DF raw data'!D174="","",'DF raw data'!D174) -> -1.02915e-05 | F169: -3.73485036e-05 | G169: 0.0001427478765 | H169: -1.033369515e-05 | J169: -0.001826299544 | K169: -0.04990375181 | L169: 0.007156689615 | M169: 0.1950897087 | N169: 0.0009953906978
A170: =IF('DF raw data'!A175="","",'DF raw data'!A175) -> -246 | B170: =IF('DF raw data'!B175="","",'DF raw data'!B175) -> -2.87935e-05 | C170: =IF('DF raw data'!C175="","",'DF raw data'!C175) -> 0.000143478 | D170: =IF('DF raw data'!D175="","",'DF raw data'!D175) -> -2.21932e-05 | F170: -2.891155335e-05 | G170: 0.0001440662598 | H170: -2.228419212e-05 | J170: -0.001840755321 | K170: -0.05082412947 | L170: 0.007228722745 | M170: 0.1987040701 | N170: 0.001023212104
A171: =IF('DF raw data'!A176="","",'DF raw data'!A176) -> -245.5 | B171: =IF('DF raw data'!B176="","",'DF raw data'!B176) -> -2.70016e-05 | C171: =IF('DF raw data'!C176="","",'DF raw data'!C176) -> 0.000135446 | D171: =IF('DF raw data'!D176="","",'DF raw data'!D176) -> -1.84967e-05 | F171: -2.711230656e-05 | G171: 0.0001360013286 | H171: -1.857253647e-05 | J171: -0.001854311474 | K171: -0.05175128521 | L171: 0.007296723409 | M171: 0.2023524318 | N171: 0.001051552426
A172: =IF('DF raw data'!A177="","",'DF raw data'!A177) -> -245 | B172: =IF('DF raw data'!B177="","",'DF raw data'!B177) -> -3.30822e-05 | C172: =IF('DF raw data'!C177="","",'DF raw data'!C177) -> 0.000146757 | D172: =IF('DF raw data'!D177="","",'DF raw data'!D177) -> -2.98268e-05 | F172: -3.321783702e-05 | G172: 0.0001473587037 | H172: -2.994908988e-05 | J172: -0.001870920392 | K172: -0.0526867454 | L172: 0.007370402761 | M172: 0.2060376332 | N172: 0.001080464016
A173: =IF('DF raw data'!A178="","",'DF raw data'!A178) -> -244.5 | B173: =IF('DF raw data'!B178="","",'DF raw data'!B178) -> -2.88604e-05 | C173: =IF('DF raw data'!C178="","",'DF raw data'!C178) -> 0.000143516 | D173: =IF('DF raw data'!D178="","",'DF raw data'!D178) -> -1.77132e-05 | F173: -2.897872764e-05 | G173: 0.0001441044156 | H173: -1.778582412e-05 | J173: -0.001885409756 | K173: -0.05362945028 | L173: 0.007442454969 | M173: 0.2097588607 | N173: 0.001109936469
A174: =IF('DF raw data'!A179="","",'DF raw data'!A179) -> -244 | B174: =IF('DF raw data'!B179="","",'DF raw data'!B179) -> -1.77035e-05 | C174: =IF('DF raw data'!C179="","",'DF raw data'!C179) -> 0.000133599 | D174: =IF('DF raw data'!D179="","",'DF raw data'!D179) -> -2.75727e-05 | F174: -1.777608435e-05 | G174: 0.0001341467559 | H174: -2.768574807e-05 | J174: -0.001894297798 | K174: -0.05457659918 | L174: 0.007509528346 | M174: 0.2135136249 | N174: 0.001139927159
A175: =IF('DF raw data'!A180="","",'DF raw data'!A180) -> -243.5 | B175: =IF('DF raw data'!B180="","",'DF raw data'!B180) -> -3.30225e-05 | C175: =IF('DF raw data'!C180="","",'DF raw data'!C180) -> 0.00013286 | D175: =IF('DF raw data'!D180="","",'DF raw data'!D180) -> -2.27679e-05 | F175: -3.315789225e-05 | G175: 0.000133404726 | H175: -2.286124839e-05 | J175: -0.001910876744 | K175: -0.05553203755 | L175: 0.007576230709 | M175: 0.2173017402 | N175: 0.00117045252
A176: =IF('DF raw data'!A181="","",'DF raw data'!A181) -> -243 | B176: =IF('DF raw data'!B181="","",'DF raw data'!B181) -> -3.4556e-05 | C176: =IF('DF raw data'!C181="","",'DF raw data'!C181) -> 0.000137462 | D176: =IF('DF raw data'!D181="","",'DF raw data'!D181) -> -3.00448e-05 | F176: -3.46976796e-05 | G176: 0.0001380255942 | H176: -3.016798368e-05 | J176: -0.001928225584 | K176: -0.05649615035 | L176: 0.007645243507 | M176: 0.221124362 | N176: 0.001201536421
A177: =IF('DF raw data'!A182="","",'DF raw data'!A182) -> -242.5 | B177: =IF('DF raw data'!B182="","",'DF raw data'!B182) -> -2.43059e-05 | C177: =IF('DF raw data'!C182="","",'DF raw data'!C182) -> 0.000141503 | D177: =IF('DF raw data'!D182="","",'DF raw data'!D182) -> -2.46521e-05 | F177: -2.440555419e-05 | G177: 0.0001420831623 | H177: -2.475317361e-05 | J177: -0.001940428361 | K177: -0.05746636453 | L177: 0.007716285088 | M177: 0.2249825045 | N177: 0.00123318958
A178: =IF('DF raw data'!A183="","",'DF raw data'!A183) -> -242 | B178: =IF('DF raw data'!B183="","",'DF raw data'!B183) -> -3.09018e-05 | C178: =IF('DF raw data'!C183="","",'DF raw data'!C183) -> 0.000130813 | D178: =IF('DF raw data'!D183="","",'DF raw data'!D183) -> -3.23118e-05 | F178: -3.102849738e-05 | G178: 0.0001313493333 | H178: -3.244427838e-05 | J178: -0.00195594261 | K178: -0.05844433583 | L178: 0.007781959754 | M178: 0.2288734844 | N178: 0.001265381884
A179: =IF('DF raw data'!A184="","",'DF raw data'!A184) -> -241.5 | B179: =IF('DF raw data'!B184="","",'DF raw data'!B184) -> -3.41704e-05 | C179: =IF('DF raw data'!C184="","",'DF raw data'!C184) -> 0.00012339 | D179: =IF('DF raw data'!D184="","",'DF raw data'!D184) -> -3.13593e-05 | F179: -3.431049864e-05 | G179: 0.000123895899 | H179: -3.148787313e-05 | J179: -0.001973097859 | K179: -0.05943088476 | L179: 0.007843907704 | M179: 0.2327954382 | N179: 0.001298091886
A180: =IF('DF raw data'!A185="","",'DF raw data'!A185) -> -241 | B180: =IF('DF raw data'!B185="","",'DF raw data'!B185) -> -2.59018e-05 | C180: =IF('DF raw data'!C185="","",'DF raw data'!C185) -> 0.000128176 | D180: =IF('DF raw data'!D185="","",'DF raw data'!D185) -> -3.4338e-05 | F180: -2.600799738e-05 | G180: 0.0001287015216 | H180: -3.44787858e-05 | J180: -0.001986101858 | K180: -0.06042393569 | L180: 0.007908258465 | M180: 0.2367495675 | N180: 0.001331334462
A181: =IF('DF raw data'!A186="","",'DF raw data'!A186) -> -240.5 | B181: =IF('DF raw data'!B186="","",'DF raw data'!B186) -> -3.17357e-05 | C181: =IF('DF raw data'!C186="","",'DF raw data'!C186) -> 0.00013604 | D181: =IF('DF raw data'!D186="","",'DF raw data'!D186) -> -3.07541e-05 | F181: -3.186581637e-05 | G181: 0.000136597764 | H181: -3.088019181e-05 | J181: -0.002002034766 | K181: -0.06142495307 | L181: 0.007976557347 | M181: 0.2407378461 | N181: 0.001365151267
A182: =IF('DF raw data'!A187="","",'DF raw data'!A187) -> -240 | B182: =IF('DF raw data'!B187="","",'DF raw data'!B187) -> -3.53288e-05 | C182: =IF('DF raw data'!C187="","",'DF raw data'!C187) -> 0.000127064 | D182: =IF('DF raw data'!D187="","",'DF raw data'!D187) -> -2.42584e-05 | F182: -3.547364808e-05 | G182: 0.0001275849624 | H182: -2.435785944e-05 | J182: -0.00201977159 | K182: -0.06243483887 | L182: 0.008040349828 | M182: 0.2447580211 | N182: 0.001399514619
A183: =IF('DF raw data'!A188="","",'DF raw data'!A188) -> -239.5 | B183: =IF('DF raw data'!B188="","",'DF raw data'!B188) -> -3.70634e-05 | C183: =IF('DF raw data'!C188="","",'DF raw data'!C188) -> 0.000110327 | D183: =IF('DF raw data'!D188="","",'DF raw data'!D188) -> -1.71646e-05 | F183: -3.721535994e-05 | G183: 0.0001107793407 | H183: -1.723497486e-05 | J183: -0.00203837927 | K183: -0.0634540285 | L183: 0.008095739498 | M183: 0.2488058908 | N183: 0.001434362613
A184: =IF('DF raw data'!A189="","",'DF raw data'!A189) -> -239 | B184: =IF('DF raw data'!B189="","",'DF raw data'!B189) -> -3.43035e-05 | C184: =IF('DF raw data'!C189="","",'DF raw data'!C189) -> 0.000119462 | D184: =IF('DF raw data'!D189="","",'DF raw data'!D189) -> -2.37461e-05 | F184: -3.444414435e-05 | G184: 0.0001199517942 | H184: -2.384345901e-05 | J184: -0.002055601342 | K184: -0.06448182917 | L184: 0.008155715395 | M184: 0.2528837485 | N184: 0.001469733208
A185: =IF('DF raw data'!A190="","",'DF raw data'!A190) -> -238.5 | B185: =IF('DF raw data'!B190="","",'DF raw data'!B190) -> -4.12862e-05 | C185: =IF('DF raw data'!C190="","",'DF raw data'!C190) -> 0.000124484 | D185: =IF('DF raw data'!D190="","",'DF raw data'!D190) -> -2.78001e-05 | F185: -4.145547342e-05 | G185: 0.0001249943844 | H185: -2.791408041e-05 | J185: -0.002076329079 | K185: -0.06551999371 | L185: 0.008218212588 | M185: 0.2569928548 | N185: 0.001505658288
A186: =IF('DF raw data'!A191="","",'DF raw data'!A191) -> -238 | B186: =IF('DF raw data'!B191="","",'DF raw data'!B191) -> -3.09087e-05 | C186: =IF('DF raw data'!C191="","",'DF raw data'!C191) -> 0.000121152 | D186: =IF('DF raw data'!D191="","",'DF raw data'!D191) -> -2.16933e-05 | F186: -3.103542567e-05 | G186: 0.0001216487232 | H186: -2.178224253e-05 | J186: -0.002091846792 | K186: -0.06656591711 | L186: 0.008279036949 | M186: 0.2611323733 | N186: 0.001542117426
A187: =IF('DF raw data'!A192="","",'DF raw data'!A192) -> -237.5 | B187: =IF('DF raw data'!B192="","",'DF raw data'!B192) -> -2.55905e-05 | C187: =IF('DF raw data'!C192="","",'DF raw data'!C192) -> 0.000130501 | D187: =IF('DF raw data'!D192="","",'DF raw data'!D192) -> -2.01653e-05 | F187: -2.569542105e-05 | G187: 0.0001310360541 | H187: -2.024797773e-05 | J187: -0.002104694502 | K187: -0.06761826436 | L187: 0.008344554976 | M187: 0.2653046508 | N187: 0.001579148095
A188: =IF('DF raw data'!A193="","",'DF raw data'!A193) -> -237 | B188: =IF('DF raw data'!B193="","",'DF raw data'!B193) -> -2.6357e-05 | C188: =IF('DF raw data'!C193="","",'DF raw data'!C193) -> 0.000129198 | D188: =IF('DF raw data'!D193="","",'DF raw data'!D193) -> -2.39748e-05 | F188: -2.64650637e-05 | G188: 0.0001297277118 | H188: -2.407309668e-05 | J188: -0.002117927034 | K188: -0.06867722788 | L188: 0.008409418832 | M188: 0.2695093602 | N188: 0.001616750065
A189: =IF('DF raw data'!A194="","",'DF raw data'!A194) -> -236.5 | B189: =IF('DF raw data'!B194="","",'DF raw data'!B194) -> -1.69389e-05 | C189: =IF('DF raw data'!C194="","",'DF raw data'!C194) -> 0.000128328 | D189: =IF('DF raw data'!D194="","",'DF raw data'!D194) -> -2.08292e-05 | F189: -1.700834949e-05 | G189: 0.0001288541448 | H189: -2.091459972e-05 | J189: -0.002126431209 | K189: -0.06974044348 | L189: 0.008473845904 | M189: 0.2737462831 | N189: 0.001654913952
A190: =IF('DF raw data'!A195="","",'DF raw data'!A195) -> -236 | B190: =IF('DF raw data'!B195="","",'DF raw data'!B195) -> -3.21261e-05 | C190: =IF('DF raw data'!C195="","",'DF raw data'!C195) -> 0.000126651 | D190: =IF('DF raw data'!D195="","",'DF raw data'!D195) -> -2.16327e-05 | F190: -3.225781701e-05 | G190: 0.0001271702691 | H190: -2.172139407e-05 | J190: -0.002142560118 | K190: -0.07081172354 | L190: 0.008537431039 | M190: 0.2780149986 | N190: 0.001693653098
A191: =IF('DF raw data'!A196="","",'DF raw data'!A196) -> -235.5 | B191: =IF('DF raw data'!B196="","",'DF raw data'!B196) -> -3.6864e-05 | C191: =IF('DF raw data'!C196="","",'DF raw data'!C196) -> 0.000122396 | D191: =IF('DF raw data'!D196="","",'DF raw data'!D196) -> -2.84579e-05 | F191: -3.70151424e-05 | G191: 0.0001228978236 | H191: -2.857457739e-05 | J191: -0.002161067689 | K191: -0.07189225739 | L191: 0.008598879951 | M191: 0.2823144386 | N191: 0.001732958573
A192: =IF('DF raw data'!A197="","",'DF raw data'!A197) -> -235 | B192: =IF('DF raw data'!B197="","",'DF raw data'!B197) -> -3.03892e-05 | C192: =IF('DF raw data'!C197="","",'DF raw data'!C197) -> 0.000125479 | D192: =IF('DF raw data'!D197="","",'DF raw data'!D197) -> -3.1871e-05 | F192: =(1-$G$1*($B$49-$G$2))*B192 -> -3.051379572e-05 | G192: 0.0001259934639 | H192: -3.20016711e-05 | J192: =F192*$G$3+J191 -> -0.002176324587 | K192: =J192*$G$3+K191 -> -0.07298041968 | L192: =G192*$G$3+L191 -> 0.008661876683 | M192: =L192*$G$3+M191 -> 0.286645377 | N192: =(J192^2+L192^2)*$G$3+N191 -> 0.001772840821
A193: =IF('DF raw data'!A198="","",'DF raw data'!A198) -> -234.5 | B193: =IF('DF raw data'!B198="","",'DF raw data'!B198) -> -2.91116e-05 | C193: =IF('DF raw data'!C198="","",'DF raw data'!C198) -> 0.000130364 | D193: =IF('DF raw data'!D198="","",'DF raw data'!D198) -> -2.56256e-05 | F193: -2.923095756e-05 | G193: 0.0001308984924 | H193: -2.573066496e-05 | J193: -0.002190940065 | K193: -0.07407588971 | L193: 0.008727325929 | M193: 0.2910090399 | N193: 0.001813324039
A194: =IF('DF raw data'!A199="","",'DF raw data'!A199) -> -234 | B194: =IF('DF raw data'!B199="","",'DF raw data'!B199) -> -4.3337e-05 | C194: =IF('DF raw data'!C199="","",'DF raw data'!C199) -> 0.000130768 | D194: =IF('DF raw data'!D199="","",'DF raw data'!D199) -> -2.76469e-05 | F194: -4.35146817e-05 | G194: 0.0001313041488 | H194: -2.776025229e-05 | J194: -0.002212697406 | K194: -0.07518223841 | L194: 0.008792978003 | M194: 0.2954055289 | N194: 0.001854430285
A195: =IF('DF raw data'!A200="","",'DF raw data'!A200) -> -233.5 | B195: =IF('DF raw data'!B200="","",'DF raw data'!B200) -> -3.53888e-05 | C195: =IF('DF raw data'!C200="","",'DF raw data'!C200) -> 0.000126775 | D195: =IF('DF raw data'!D200="","",'DF raw data'!D200) -> -3.03382e-05 | F195: -3.553389408e-05 | G195: 0.0001272947775 | H195: -3.046258662e-05 | J195: -0.002230464353 | K195: -0.07629747059 | L195: 0.008856625392 | M195: 0.2998338416 | N195: 0.001896137677
A196: =IF('DF raw data'!A201="","",'DF raw data'!A201) -> -233 | B196: =IF('DF raw data'!B201="","",'DF raw data'!B201) -> -3.99488e-05 | C196: =IF('DF raw data'!C201="","",'DF raw data'!C201) -> 0.000122815 | D196: =IF('DF raw data'!D201="","",'DF raw data'!D201) -> -1.48235e-05 | F196: -4.011259008e-05 | G196: 0.0001233185415 | H196: -1.488427635e-05 | J196: -0.002250520648 | K196: -0.07742273092 | L196: 0.008918284663 | M196: 0.304292984 | N196: 0.001938438
A197: =IF('DF raw data'!A202="","",'DF raw data'!A202) -> -232.5 | B197: =IF('DF raw data'!B202="","",'DF raw data'!B202) -> -2.48224e-05 | C197: =IF('DF raw data'!C202="","",'DF raw data'!C202) -> 0.000134388 | D197: =IF('DF raw data'!D202="","",'DF raw data'!D202) -> -1.88183e-05 | F197: -2.492417184e-05 | G197: 0.0001349389908 | H197: -1.889545503e-05 | J197: -0.002262982734 | K197: -0.07855422228 | L197: 0.008985754158 | M197: 0.308785861 | N197: 0.001981370434
A198: =IF('DF raw data'!A203="","",'DF raw data'!A203) -> -232 | B198: =IF('DF raw data'!B203="","",'DF raw data'!B203) -> -3.25098e-05 | C198: =IF('DF raw data'!C203="","",'DF raw data'!C203) -> 0.000133867 | D198: =IF('DF raw data'!D203="","",'DF raw data'!D203) -> -2.29914e-05 | F198: -3.264309018e-05 | G198: 0.0001344158547 | H198: -2.308566474e-05 | J198: -0.002279304279 | K198: -0.07969387442 | L198: 0.009052962086 | M198: 0.3133123421 | N198: 0.002024946109
A199: =IF('DF raw data'!A204="","",'DF raw data'!A204) -> -231.5 | B199: =IF('DF raw data'!B204="","",'DF raw data'!B204) -> -1.00779e-05 | C199: =IF('DF raw data'!C204="","",'DF raw data'!C204) -> 0.000138966 | D199: =IF('DF raw data'!D204="","",'DF raw data'!D204) -> -2.6816e-05 | F199: -1.011921939e-05 | G199: 0.0001395357606 | H199: -2.69259456e-05 | J199: -0.002284363889 | K199: -0.08083605637 | L199: 0.009122729966 | M199: 0.3178737071 | N199: 0.002069167369
A200: =IF('DF raw data'!A205="","",'DF raw data'!A205) -> -231 | B200: =IF('DF raw data'!B205="","",'DF raw data'!B205) -> -3.76347e-05 | C200: =IF('DF raw data'!C205="","",'DF raw data'!C205) -> 0.000134144 | D200: =IF('DF raw data'!D205="","",'DF raw data'!D205) -> -2.58184e-05 | F200: -3.778900227e-05 | G200: 0.0001346939904 | H200: -2.592425544e-05 | J200: -0.00230325839 | K200: -0.08198768556 | L200: 0.009190076961 | M200: 0.3224687455 | N200: 0.002114048626
A201: =IF('DF raw data'!A206="","",'DF raw data'!A206) -> -230.5 | B201: =IF('DF raw data'!B206="","",'DF raw data'!B206) -> -1.8862e-05 | C201: =IF('DF raw data'!C206="","",'DF raw data'!C206) -> 0.000137439 | D201: =IF('DF raw data'!D206="","",'DF raw data'!D206) -> -1.98372e-05 | F201: -1.89393342e-05 | G201: 0.0001380024999 | H201: -1.991853252e-05 | J201: -0.002312728057 | K201: -0.08314404959 | L201: 0.009259078211 | M201: 0.3270982846 | N201: 0.002159588247
... 1061 more rows

Sheet 10 y=-0.1
A1: =IF('DF raw data'!E1="","",'DF raw data'!E1) -> Number of header lines | B1: =IF('DF raw data'!F1="","",'DF raw data'!F1) -> 54 | C1: =IF('DF raw data'!G1="","",'DF raw data'!G1) ->  | D1: =IF('DF raw data'!H1="","",'DF raw data'!H1) ->  | F1: T_coeff | G1: -0.001 | H1: /degC | J1: IBy total | K1: =J1262*1000 -> -15.97674377 | L1: muTm | M1: =L1262*1000 -> -11.84628059 | R1: DF ref | S1: ='10 y=-0.2'!S1 -> 1
A2: =IF('DF raw data'!E2="","",'DF raw data'!E2) -> Measured by | B2: =IF('DF raw data'!F2="","",'DF raw data'!F2) -> Danfysik | C2: =IF('DF raw data'!G2="","",'DF raw data'!G2) ->  | D2: =IF('DF raw data'!H2="","",'DF raw data'!H2) ->  | F2: Tcorr | G2: 20 | H2: degC | J2: JBy total | K2: =K1262 -> -12.1257562 | L2: muTm^2 | M2: =M1262 -> -1.933033834
A3: =IF('DF raw data'!E3="","",'DF raw data'!E3) -> Operator | B3: =IF('DF raw data'!F3="","",'DF raw data'!F3) -> PMHA | C3: =IF('DF raw data'!G3="","",'DF raw data'!G3) ->  | D3: =IF('DF raw data'!H3="","",'DF raw data'!H3) ->  | F3: Step | G3: =A63-A62 -> 0.5 | H3: mm | J3: PI total | K3: =N1262 -> 10563.08939 | L3: T^2mm^3
A4: =IF('DF raw data'!E4="","",'DF raw data'!E4) -> Data-time | B4: =IF('DF raw data'!F4="","",'DF raw data'!F4) -> 02-09-2024, 12:59:01 | C4: =IF('DF raw data'!G4="","",'DF raw data'!G4) ->  | D4: =IF('DF raw data'!H4="","",'DF raw data'!H4) -> 
A5: =IF('DF raw data'!E5="","",'DF raw data'!E5) -> Project | B5: =IF('DF raw data'!F5="","",'DF raw data'!F5) -> 504314 | C5: =IF('DF raw data'!G5="","",'DF raw data'!G5) ->  | D5: =IF('DF raw data'!H5="","",'DF raw data'!H5) -> 
A6: =IF('DF raw data'!E6="","",'DF raw data'!E6) -> Magnet type | B6: =IF('DF raw data'!F6="","",'DF raw data'!F6) -> Dipole | C6: =IF('DF raw data'!G6="","",'DF raw data'!G6) ->  | D6: =IF('DF raw data'!H6="","",'DF raw data'!H6) -> 
A7: =IF('DF raw data'!E7="","",'DF raw data'!E7) -> Magnet nr. | B7: =IF('DF raw data'!F7="","",'DF raw data'!F7) -> 2410089 | C7: =IF('DF raw data'!G7="","",'DF raw data'!G7) ->  | D7: =IF('DF raw data'!H7="","",'DF raw data'!H7) -> 
A8: =IF('DF raw data'!E8="","",'DF raw data'!E8) -> Meas. number | B8: =IF('DF raw data'!F8="","",'DF raw data'!F8) -> 299 | C8: =IF('DF raw data'!G8="","",'DF raw data'!G8) ->  | D8: =IF('DF raw data'!H8="","",'DF raw data'!H8) -> 
A9: =IF('DF raw data'!E9="","",'DF raw data'!E9) -> Add. info | B9: =IF('DF raw data'!F9="","",'DF raw data'!F9) -> Y-alignment scan 2) | C9: =IF('DF raw data'!G9="","",'DF raw data'!G9) ->  | D9: =IF('DF raw data'!H9="","",'DF raw data'!H9) -> 
A10: =IF('DF raw data'!E10="","",'DF raw data'!E10) -> Device | B10: =IF('DF raw data'!F10="","",'DF raw data'!F10) -> (HAL) HALL-PROBE | C10: =IF('DF raw data'!G10="","",'DF raw data'!G10) ->  | D10: =IF('DF raw data'!H10="","",'DF raw data'!H10) -> 
A11: =IF('DF raw data'!E11="","",'DF raw data'!E11) -> Goal | B11: =IF('DF raw data'!F11="","",'DF raw data'!F11) -> (AXI) AXis Integral (Line, EFB) | C11: =IF('DF raw data'!G11="","",'DF raw data'!G11) ->  | D11: =IF('DF raw data'!H11="","",'DF raw data'!H11) -> 
A12: =IF('DF raw data'!E12="","",'DF raw data'!E12) -> Power supply mode | B12: =IF('DF raw data'!F12="","",'DF raw data'!F12) -> (PM) Permanent Magnet (no MPS in use) | C12: =IF('DF raw data'!G12="","",'DF raw data'!G12) ->  | D12: =IF('DF raw data'!H12="","",'DF raw data'!H12) -> 
A13: =IF('DF raw data'!E13="","",'DF raw data'!E13) -> Data format | B13: =IF('DF raw data'!F13="","",'DF raw data'!F13) -> Raw data text file | C13: =IF('DF raw data'!G13="","",'DF raw data'!G13) ->  | D13: =IF('DF raw data'!H13="","",'DF raw data'!H13) -> 
A14: =IF('DF raw data'!E14="","",'DF raw data'!E14) -> Direction of the pos. x-axis | B14: =IF('DF raw data'!F14="","",'DF raw data'!F14) -> See test program | C14: =IF('DF raw data'!G14="","",'DF raw data'!G14) ->  | D14: =IF('DF raw data'!H14="","",'DF raw data'!H14) -> 
A15: =IF('DF raw data'!E15="","",'DF raw data'!E15) -> Direction of the pos. y-axis | B15: =IF('DF raw data'!F15="","",'DF raw data'!F15) -> Vertical up | C15: =IF('DF raw data'!G15="","",'DF raw data'!G15) ->  | D15: =IF('DF raw data'!H15="","",'DF raw data'!H15) -> 
A16: =IF('DF raw data'!E16="","",'DF raw data'!E16) -> Direction of the pos. z-axis | B16: =IF('DF raw data'!F16="","",'DF raw data'!F16) -> See test program | C16: =IF('DF raw data'!G16="","",'DF raw data'!G16) ->  | D16: =IF('DF raw data'!H16="","",'DF raw data'!H16) -> 
A17: =IF('DF raw data'!E17="","",'DF raw data'!E17) -> Mapper type | B17: =IF('DF raw data'!F17="","",'DF raw data'!F17) -> Precision Hall Mapper | C17: =IF('DF raw data'!G17="","",'DF raw data'!G17) ->  | D17: =IF('DF raw data'!H17="","",'DF raw data'!H17) -> 
A18: =IF('DF raw data'!E18="","",'DF raw data'!E18) -> Mapper Danfysik Reg. Number | B18: =IF('DF raw data'!F18="","",'DF raw data'!F18) -> 2033-D (mapper 1) | C18: =IF('DF raw data'!G18="","",'DF raw data'!G18) ->  | D18: =IF('DF raw data'!H18="","",'DF raw data'!H18) -> 
A19: =IF('DF raw data'!E19="","",'DF raw data'!E19) -> Measurement consept | B19: =IF('DF raw data'!F19="","",'DF raw data'!F19) -> Square line grid | C19: =IF('DF raw data'!G19="","",'DF raw data'!G19) ->  | D19: =IF('DF raw data'!H19="","",'DF raw data'!H19) -> 
A20: =IF('DF raw data'!E20="","",'DF raw data'!E20) -> Mode | B20: =IF('DF raw data'!F20="","",'DF raw data'!F20) -> On-the-fly measurement | C20: =IF('DF raw data'!G20="","",'DF raw data'!G20) ->  | D20: =IF('DF raw data'!H20="","",'DF raw data'!H20) -> 
A21: =IF('DF raw data'!E21="","",'DF raw data'!E21) ->  | B21: =IF('DF raw data'!F21="","",'DF raw data'!F21) ->  | C21: =IF('DF raw data'!G21="","",'DF raw data'!G21) ->  | D21: =IF('DF raw data'!H21="","",'DF raw data'!H21) -> 
A22: =IF('DF raw data'!E22="","",'DF raw data'!E22) -> Probe Name | B22: =IF('DF raw data'!F22="","",'DF raw data'!F22) -> ID12_By | C22: =IF('DF raw data'!G22="","",'DF raw data'!G22) ->  | D22: =IF('DF raw data'!H22="","",'DF raw data'!H22) -> 
A23: =IF('DF raw data'!E23="","",'DF raw data'!E23) -> Probe Type | B23: =IF('DF raw data'!F23="","",'DF raw data'!F23) -> DF_ID_3D_Bxyz | C23: =IF('DF raw data'!G23="","",'DF raw data'!G23) ->  | D23: =IF('DF raw data'!H23="","",'DF raw data'!H23) -> 
A24: =IF('DF raw data'!E24="","",'DF raw data'!E24) -> Probe Danfysik Reg. Number | B24: =IF('DF raw data'!F24="","",'DF raw data'!F24) -> 2277 | C24: =IF('DF raw data'!G24="","",'DF raw data'!G24) ->  | D24: =IF('DF raw data'!H24="","",'DF raw data'!H24) -> 
A25: =IF('DF raw data'!E25="","",'DF raw data'!E25) -> Probe Axis | B25: =IF('DF raw data'!F25="","",'DF raw data'!F25) -> By | C25: =IF('DF raw data'!G25="","",'DF raw data'!G25) ->  | D25: =IF('DF raw data'!H25="","",'DF raw data'!H25) -> 
A26: =IF('DF raw data'!E26="","",'DF raw data'!E26) -> Probe Current Supply | B26: =IF('DF raw data'!F26="","",'DF raw data'!F26) -> 1825-D | C26: =IF('DF raw data'!G26="","",'DF raw data'!G26) ->  | D26: =IF('DF raw data'!H26="","",'DF raw data'!H26) -> 
A27: =IF('DF raw data'!E27="","",'DF raw data'!E27) -> Probe Gain Correction | B27: =IF('DF raw data'!F27="","",'DF raw data'!F27) -> 0.99611 | C27: =IF('DF raw data'!G27="","",'DF raw data'!G27) ->  | D27: =IF('DF raw data'!H27="","",'DF raw data'!H27) -> 
A28: =IF('DF raw data'!E28="","",'DF raw data'!E28) -> Probe Offset Correction | B28: =IF('DF raw data'!F28="","",'DF raw data'!F28) -> 0.0027639 | C28: =IF('DF raw data'!G28="","",'DF raw data'!G28) ->  | D28: =IF('DF raw data'!H28="","",'DF raw data'!H28) -> 
A29: =IF('DF raw data'!E29="","",'DF raw data'!E29) -> DVM Number | B29: =IF('DF raw data'!F29="","",'DF raw data'!F29) -> 2 | C29: =IF('DF raw data'!G29="","",'DF raw data'!G29) ->  | D29: =IF('DF raw data'!H29="","",'DF raw data'!H29) -> 
A30: =IF('DF raw data'!E30="","",'DF raw data'!E30) -> DVM Type | B30: =IF('DF raw data'!F30="","",'DF raw data'!F30) -> K2701 | C30: =IF('DF raw data'!G30="","",'DF raw data'!G30) ->  | D30: =IF('DF raw data'!H30="","",'DF raw data'!H30) -> 
A31: =IF('DF raw data'!E31="","",'DF raw data'!E31) -> DVM Danfysik Reg. Number | B31: =IF('DF raw data'!F31="","",'DF raw data'!F31) -> 1743-D | C31: =IF('DF raw data'!G31="","",'DF raw data'!G31) ->  | D31: =IF('DF raw data'!H31="","",'DF raw data'!H31) -> 
A32: =IF('DF raw data'!E32="","",'DF raw data'!E32) -> Probe Name | B32: =IF('DF raw data'!F32="","",'DF raw data'!F32) -> ID12_Bx | C32: =IF('DF raw data'!G32="","",'DF raw data'!G32) ->  | D32: =IF('DF raw data'!H32="","",'DF raw data'!H32) -> 
A33: =IF('DF raw data'!E33="","",'DF raw data'!E33) -> Probe Type | B33: =IF('DF raw data'!F33="","",'DF raw data'!F33) -> DF_ID_3D_Bxyz | C33: =IF('DF raw data'!G33="","",'DF raw data'!G33) ->  | D33: =IF('DF raw data'!H33="","",'DF raw data'!H33) -> 
A34: =IF('DF raw data'!E34="","",'DF raw data'!E34) -> Probe Danfysik Reg. Number | B34: =IF('DF raw data'!F34="","",'DF raw data'!F34) -> 2277 | C34: =IF('DF raw data'!G34="","",'DF raw data'!G34) ->  | D34: =IF('DF raw data'!H34="","",'DF raw data'!H34) -> 
A35: =IF('DF raw data'!E35="","",'DF raw data'!E35) -> Probe Axis | B35: =IF('DF raw data'!F35="","",'DF raw data'!F35) -> Bx | C35: =IF('DF raw data'!G35="","",'DF raw data'!G35) ->  | D35: =IF('DF raw data'!H35="","",'DF raw data'!H35) -> 
A36: =IF('DF raw data'!E36="","",'DF raw data'!E36) -> Probe Current Supply | B36: =IF('DF raw data'!F36="","",'DF raw data'!F36) -> 1825-D | C36: =IF('DF raw data'!G36="","",'DF raw data'!G36) ->  | D36: =IF('DF raw data'!H36="","",'DF raw data'!H36) -> 
A37: =IF('DF raw data'!E37="","",'DF raw data'!E37) -> Probe Gain Correction | B37: =IF('DF raw data'!F37="","",'DF raw data'!F37) -> 1 | C37: =IF('DF raw data'!G37="","",'DF raw data'!G37) ->  | D37: =IF('DF raw data'!H37="","",'DF raw data'!H37) -> 
A38: =IF('DF raw data'!E38="","",'DF raw data'!E38) -> Probe Offset Correction | B38: =IF('DF raw data'!F38="","",'DF raw data'!F38) -> -0.17554 | C38: =IF('DF raw data'!G38="","",'DF raw data'!G38) ->  | D38: =IF('DF raw data'!H38="","",'DF raw data'!H38) -> 
A39: =IF('DF raw data'!E39="","",'DF raw data'!E39) -> DVM Number | B39: =IF('DF raw data'!F39="","",'DF raw data'!F39) -> 3 | C39: =IF('DF raw data'!G39="","",'DF raw data'!G39) ->  | D39: =IF('DF raw data'!H39="","",'DF raw data'!H39) -> 
A40: =IF('DF raw data'!E40="","",'DF raw data'!E40) -> DVM Type | B40: =IF('DF raw data'!F40="","",'DF raw data'!F40) -> K2701 | C40: =IF('DF raw data'!G40="","",'DF raw data'!G40) ->  | D40: =IF('DF raw data'!H40="","",'DF raw data'!H40) -> 
A41: =IF('DF raw data'!E41="","",'DF raw data'!E41) -> DVM Danfysik Reg. Number | B41: =IF('DF raw data'!F41="","",'DF raw data'!F41) -> 1744-D | C41: =IF('DF raw data'!G41="","",'DF raw data'!G41) ->  | D41: =IF('DF raw data'!H41="","",'DF raw data'!H41) -> 
A42: =IF('DF raw data'!E42="","",'DF raw data'!E42) -> Probe Name | B42: =IF('DF raw data'!F42="","",'DF raw data'!F42) -> ID12_Bz | C42: =IF('DF raw data'!G42="","",'DF raw data'!G42) ->  | D42: =IF('DF raw data'!H42="","",'DF raw data'!H42) -> 
A43: =IF('DF raw data'!E43="","",'DF raw data'!E43) -> Probe Type | B43: =IF('DF raw data'!F43="","",'DF raw data'!F43) -> DF_ID_3D_Bxyz | C43: =IF('DF raw data'!G43="","",'DF raw data'!G43) ->  | D43: =IF('DF raw data'!H43="","",'DF raw data'!H43) -> 
A44: =IF('DF raw data'!E44="","",'DF raw data'!E44) -> Probe Danfysik Reg. Number | B44: =IF('DF raw data'!F44="","",'DF raw data'!F44) -> 2277 | C44: =IF('DF raw data'!G44="","",'DF raw data'!G44) ->  | D44: =IF('DF raw data'!H44="","",'DF raw data'!H44) -> 
A45: =IF('DF raw data'!E45="","",'DF raw data'!E45) -> Probe Axis | B45: =IF('DF raw data'!F45="","",'DF raw data'!F45) -> Bz | C45: =IF('DF raw data'!G45="","",'DF raw data'!G45) ->  | D45: =IF('DF raw data'!H45="","",'DF raw data'!H45) -> 
A46: =IF('DF raw data'!E46="","",'DF raw data'!E46) -> Probe Current Supply | B46: =IF('DF raw data'!F46="","",'DF raw data'!F46) -> 1825-D | C46: =IF('DF raw data'!G46="","",'DF raw data'!G46) ->  | D46: =IF('DF raw data'!H46="","",'DF raw data'!H46) -> 
A47: =IF('DF raw data'!E47="","",'DF raw data'!E47) -> Probe Gain Correction | B47: =IF('DF raw data'!F47="","",'DF raw data'!F47) -> 1 | C47: =IF('DF raw data'!G47="","",'DF raw data'!G47) ->  | D47: =IF('DF raw data'!H47="","",'DF raw data'!H47) -> 
A48: =IF('DF raw data'!E53="","",'DF raw data'!E53) -> PS-Gap: | B48: =IF('DF raw data'!F53="","",'DF raw data'!F53) -> 10 | C48: =IF('DF raw data'!G53="","",'DF raw data'!G53) ->  | D48: =IF('DF raw data'!H53="","",'DF raw data'!H53) -> 
A49: =IF('DF raw data'!E54="","",'DF raw data'!E54) -> PS-Temperature: | B49: =IF('DF raw data'!F54="","",'DF raw data'!F54) -> 24.1 | C49: =IF('DF raw data'!G54="","",'DF raw data'!G54) ->  | D49: =IF('DF raw data'!H54="","",'DF raw data'!H54) -> 
A50: =IF('DF raw data'!E55="","",'DF raw data'!E55) -> PS-Encoder: | B50: =IF('DF raw data'!F55="","",'DF raw data'!F55) -> 19.5576 | C50: =IF('DF raw data'!G55="","",'DF raw data'!G55) ->  | D50: =IF('DF raw data'!H55="","",'DF raw data'!H55) -> 
A51: =IF('DF raw data'!E56="","",'DF raw data'!E56) ->  | B51: =IF('DF raw data'!F56="","",'DF raw data'!F56) ->  | C51: =IF('DF raw data'!G56="","",'DF raw data'!G56) ->  | D51: =IF('DF raw data'!H56="","",'DF raw data'!H56) -> 
A52: =IF('DF raw data'!E57="","",'DF raw data'!E57) -> Monitor-Index | B52: =IF('DF raw data'!F57="","",'DF raw data'!F57) -> [1,1,4] | C52: =IF('DF raw data'!G57="","",'DF raw data'!G57) ->  | D52: =IF('DF raw data'!H57="","",'DF raw data'!H57) -> 
A53: =IF('DF raw data'!E58="","",'DF raw data'!E58) ->  | B53: =IF('DF raw data'!F58="","",'DF raw data'!F58) ->  | C53: =IF('DF raw data'!G58="","",'DF raw data'!G58) ->  | D53: =IF('DF raw data'!H58="","",'DF raw data'!H58) -> 
A54: =IF('DF raw data'!E59="","",'DF raw data'!E59) -> Time [s] | B54: =IF('DF raw data'!F59="","",'DF raw data'!F59) -> Y [mm] | C54: =IF('DF raw data'!G59="","",'DF raw data'!G59) -> X [mm] | D54: =IF('DF raw data'!H59="","",'DF raw data'!H59) -> Nominal current [A]
A55: =IF('DF raw data'!E60="","",'DF raw data'!E60) ->  | B55: =IF('DF raw data'!F60="","",'DF raw data'!F60) ->  | C55: =IF('DF raw data'!G60="","",'DF raw data'!G60) ->  | D55: =IF('DF raw data'!H60="","",'DF raw data'!H60) -> 
A56: =IF('DF raw data'!E61="","",'DF raw data'!E61) -> 208.6 | B56: =IF('DF raw data'!F61="","",'DF raw data'!F61) -> 31.46 | C56: =IF('DF raw data'!G61="","",'DF raw data'!G61) -> 301.8 | D56: =IF('DF raw data'!H61="","",'DF raw data'!H61) -> 0
A57: =IF('DF raw data'!E62="","",'DF raw data'!E62) ->  | B57: =IF('DF raw data'!F62="","",'DF raw data'!F62) ->  | C57: =IF('DF raw data'!G62="","",'DF raw data'!G62) ->  | D57: =IF('DF raw data'!H62="","",'DF raw data'!H62) -> 
A58: =IF('DF raw data'!E63="","",'DF raw data'!E63) -> Measurement-Index | B58: =IF('DF raw data'!F63="","",'DF raw data'!F63) -> [1,1,1201,2] | C58: =IF('DF raw data'!G63="","",'DF raw data'!G63) ->  | D58: =IF('DF raw data'!H63="","",'DF raw data'!H63) -> 
A59: =IF('DF raw data'!E64="","",'DF raw data'!E64) ->  | B59: =IF('DF raw data'!F64="","",'DF raw data'!F64) ->  | C59: =IF('DF raw data'!G64="","",'DF raw data'!G64) ->  | D59: =IF('DF raw data'!H64="","",'DF raw data'!H64) -> 
A60: =IF('DF raw data'!E65="","",'DF raw data'!E65) -> Z [mm] | B60: By [T] | C60: Bx [T] | D60: Bz [T] | F60: By_corr | G60: Bx_corr | H60: Bz_corr | J60: Iy | K60: Jy | L60: Ix | M60: Jx | N60: PI
A62: =IF('DF raw data'!E67="","",'DF raw data'!E67) -> -300 | B62: =IF('DF raw data'!F67="","",'DF raw data'!F67) -> -2.84357e-05 | C62: =IF('DF raw data'!G67="","",'DF raw data'!G67) -> 3.64218e-05 | D62: =IF('DF raw data'!H67="","",'DF raw data'!H67) -> -3.88915e-05 | F62: =(1-$G$1*($B$49))*B62 -> -2.912100037e-05 | G62: =(1-$G$1*($B$49-$G$2))*C62 -> 3.657112938e-05 | H62: =(1-$G$1*($B$49-$G$2))*D62 -> -3.905095515e-05 | J62: =F62*$G$3 -> -1.456050018e-05 | K62: =J62*$G$3 -> -7.280250092e-06 | L62: =G62*$G$3 -> 1.828556469e-05 | M62: =L62*$G$3 -> 9.142782345e-06 | N62: =(J62^2+L62^2)*$G$3 -> 2.731850208e-10
A63: =IF('DF raw data'!E68="","",'DF raw data'!E68) -> -299.5 | B63: =IF('DF raw data'!F68="","",'DF raw data'!F68) -> -2.62568e-05 | C63: =IF('DF raw data'!G68="","",'DF raw data'!G68) -> 4.76341e-05 | D63: =IF('DF raw data'!H68="","",'DF raw data'!H68) -> -3.89189e-05 | F63: =(1-$G$1*($B$49-$G$2))*B63 -> -2.636445288e-05 | G63: =(1-$G$1*($B$49-$G$2))*C63 -> 4.782939981e-05 | H63: -3.907846749e-05 | J63: =F63*$G$3+J62 -> -2.774272662e-05 | K63: =J63*$G$3+K62 -> -2.11516134e-05 | L63: =G63*$G$3+L62 -> 4.220026459e-05 | M63: =L63*$G$3+M62 -> 3.024291464e-05 | N63: =(J63^2+L63^2)*$G$3+N62 -> 1.548445627e-09
A64: =IF('DF raw data'!E69="","",'DF raw data'!E69) -> -299 | B64: =IF('DF raw data'!F69="","",'DF raw data'!F69) -> -2.49749e-05 | C64: =IF('DF raw data'!G69="","",'DF raw data'!G69) -> 4.7233e-05 | D64: =IF('DF raw data'!H69="","",'DF raw data'!H69) -> -3.91337e-05 | F64: =(1-$G$1*($B$49-$G$2))*B64 -> -2.507729709e-05 | G64: 4.74266553e-05 | H64: -3.929414817e-05 | J64: =F64*$G$3+J63 -> -4.028137517e-05 | K64: =J64*$G$3+K63 -> -4.129230099e-05 | L64: =G64*$G$3+L63 -> 6.591359224e-05 | M64: =L64*$G$3+M63 -> 6.319971076e-05 | N64: =(J64^2+L64^2)*$G$3+N63 -> 4.532041041e-09
A65: =IF('DF raw data'!E70="","",'DF raw data'!E70) -> -298.5 | B65: =IF('DF raw data'!F70="","",'DF raw data'!F70) -> -1.93986e-05 | C65: =IF('DF raw data'!G70="","",'DF raw data'!G70) -> 4.57693e-05 | D65: =IF('DF raw data'!H70="","",'DF raw data'!H70) -> -3.95148e-05 | F65: -1.947813426e-05 | G65: 4.595695413e-05 | H65: -3.967681068e-05 | J65: -5.00204423e-05 | K65: -6.630252214e-05 | L65: 8.889206931e-05 | M65: 0.0001076457454 | N65: 9.733963358e-09
A66: =IF('DF raw data'!E71="","",'DF raw data'!E71) -> -298 | B66: =IF('DF raw data'!F71="","",'DF raw data'!F71) -> -2.85634e-05 | C66: =IF('DF raw data'!G71="","",'DF raw data'!G71) -> 4.26845e-05 | D66: =IF('DF raw data'!H71="","",'DF raw data'!H71) -> -3.97596e-05 | F66: -2.868050994e-05 | G66: 4.285950645e-05 | H66: -3.992261436e-05 | J66: -6.436069727e-05 | K66: -9.848287077e-05 | L66: 0.0001103218225 | M66: 0.0001628066567 | N66: 1.78905653e-08
A67: =IF('DF raw data'!E72="","",'DF raw data'!E72) -> -297.5 | B67: =IF('DF raw data'!F72="","",'DF raw data'!F72) -> -1.98469e-05 | C67: =IF('DF raw data'!G72="","",'DF raw data'!G72) -> 3.61689e-05 | D67: =IF('DF raw data'!H72="","",'DF raw data'!H72) -> -4.02059e-05 | F67: -1.992827229e-05 | G67: 3.631719249e-05 | H67: -4.037074419e-05 | J67: -7.432483342e-05 | K67: -0.0001356452875 | L67: 0.0001284804188 | M67: 0.0002270468661 | N67: 2.890626473e-08
A68: =IF('DF raw data'!E73="","",'DF raw data'!E73) -> -297 | B68: =IF('DF raw data'!F73="","",'DF raw data'!F73) -> -2.77297e-05 | C68: =IF('DF raw data'!G73="","",'DF raw data'!G73) -> 3.84705e-05 | D68: =IF('DF raw data'!H73="","",'DF raw data'!H73) -> -4.07106e-05 | F68: -2.784339177e-05 | G68: 3.862822905e-05 | H68: -4.087751346e-05 | J68: -8.82465293e-05 | K68: -0.0001797685521 | L68: 0.0001477945333 | M68: 0.0003009441327 | N68: 4.372160174e-08
A69: =IF('DF raw data'!E74="","",'DF raw data'!E74) -> -296.5 | B69: =IF('DF raw data'!F74="","",'DF raw data'!F74) -> -3.17676e-05 | C69: =IF('DF raw data'!G74="","",'DF raw data'!G74) -> 3.38705e-05 | D69: =IF('DF raw data'!H74="","",'DF raw data'!H74) -> -4.0482e-05 | F69: -3.189784716e-05 | G69: 3.400936905e-05 | H69: -4.06479762e-05 | J69: -0.0001041954529 | K69: -0.0002318662786 | L69: 0.0001647992178 | M69: 0.0003833437416 | N69: 6.272933904e-08
A70: =IF('DF raw data'!E75="","",'DF raw data'!E75) -> -296 | B70: =IF('DF raw data'!F75="","",'DF raw data'!F75) -> -4.00998e-05 | C70: =IF('DF raw data'!G75="","",'DF raw data'!G75) -> 3.73417e-05 | D70: =IF('DF raw data'!H75="","",'DF raw data'!H75) -> -3.95901e-05 | F70: -4.026420918e-05 | G70: 3.749480097e-05 | H70: -3.975241941e-05 | J70: -0.0001243275575 | K70: -0.0002940300573 | L70: 0.0001835466183 | M70: 0.0004751170508 | N70: 8.730269036e-08
A71: =IF('DF raw data'!E76="","",'DF raw data'!E76) -> -295.5 | B71: =IF('DF raw data'!F76="","",'DF raw data'!F76) -> -2.6705e-05 | C71: =IF('DF raw data'!G76="","",'DF raw data'!G76) -> 4.70886e-05 | D71: =IF('DF raw data'!H76="","",'DF raw data'!H76) -> -3.93269e-05 | F71: -2.68144905e-05 | G71: 4.728166326e-05 | H71: -3.948814029e-05 | J71: -0.0001377348027 | K71: -0.0003628974587 | L71: 0.0002071874499 | M71: 0.0005787107758 | N71: 1.18251448e-07
A72: =IF('DF raw data'!E77="","",'DF raw data'!E77) -> -295 | B72: =IF('DF raw data'!F77="","",'DF raw data'!F77) -> -3.08711e-05 | C72: =IF('DF raw data'!G77="","",'DF raw data'!G77) -> 4.56987e-05 | D72: =IF('DF raw data'!H77="","",'DF raw data'!H77) -> -3.93268e-05 | F72: -3.099767151e-05 | G72: 4.588606467e-05 | H72: -3.948803988e-05 | J72: -0.0001532336385 | K72: -0.0004395142779 | L72: 0.0002301304823 | M72: 0.0006937760169 | N72: 1.564717414e-07
A73: =IF('DF raw data'!E78="","",'DF raw data'!E78) -> -294.5 | B73: =IF('DF raw data'!F78="","",'DF raw data'!F78) -> -3.81136e-05 | C73: =IF('DF raw data'!G78="","",'DF raw data'!G78) -> 3.66724e-05 | D73: =IF('DF raw data'!H78="","",'DF raw data'!H78) -> -3.86524e-05 | F73: -3.826986576e-05 | G73: 3.682275684e-05 | H73: -3.881087484e-05 | J73: -0.0001723685714 | K73: -0.0005256985636 | L73: 0.0002485418607 | M73: 0.0008180469473 | N73: 2.022137319e-07
A74: =IF('DF raw data'!E79="","",'DF raw data'!E79) -> -294 | B74: =IF('DF raw data'!F79="","",'DF raw data'!F79) -> -2.36934e-05 | C74: =IF('DF raw data'!G79="","",'DF raw data'!G79) -> 3.75788e-05 | D74: =IF('DF raw data'!H79="","",'DF raw data'!H79) -> -3.82995e-05 | F74: -2.379054294e-05 | G74: 3.773287308e-05 | H74: -3.845652795e-05 | J74: -0.0001842638428 | K74: -0.000617830485 | L74: 0.0002674082972 | M74: 0.0009517510959 | N74: 2.549439125e-07
A75: =IF('DF raw data'!E80="","",'DF raw data'!E80) -> -293.5 | B75: =IF('DF raw data'!F80="","",'DF raw data'!F80) -> -1.68354e-05 | C75: =IF('DF raw data'!G80="","",'DF raw data'!G80) -> 4.12236e-05 | D75: =IF('DF raw data'!H80="","",'DF raw data'!H80) -> -3.9085e-05 | F75: -1.690442514e-05 | G75: 4.139261676e-05 | H75: -3.92452485e-05 | J75: -0.0001927160554 | K75: -0.0007141885127 | L75: 0.0002881046056 | M75: 0.001095803399 | N75: 3.150157834e-07
A76: =IF('DF raw data'!E81="","",'DF raw data'!E81) -> -293 | B76: =IF('DF raw data'!F81="","",'DF raw data'!F81) -> -2.71533e-05 | C76: =IF('DF raw data'!G81="","",'DF raw data'!G81) -> 5.19688e-05 | D76: =IF('DF raw data'!H81="","",'DF raw data'!H81) -> -3.99935e-05 | F76: -2.726462853e-05 | G76: 5.218187208e-05 | H76: -4.015747335e-05 | J76: -0.0002063483697 | K76: -0.0008173626975 | L76: 0.0003141955417 | M76: 0.00125290117 | N76: 3.856650274e-07
A77: =IF('DF raw data'!E82="","",'DF raw data'!E82) -> -292.5 | B77: =IF('DF raw data'!F82="","",'DF raw data'!F82) -> -2.01033e-05 | C77: =IF('DF raw data'!G82="","",'DF raw data'!G82) -> 3.70383e-05 | D77: =IF('DF raw data'!H82="","",'DF raw data'!H82) -> -4.02309e-05 | F77: -2.018572353e-05 | G77: 3.719015703e-05 | H77: -4.039584669e-05 | J77: -0.0002164412314 | K77: -0.0009255833132 | L77: 0.0003327906202 | M77: 0.00141929648 | N77: 4.644632292e-07
A78: =IF('DF raw data'!E83="","",'DF raw data'!E83) -> -292 | B78: =IF('DF raw data'!F83="","",'DF raw data'!F83) -> -3.36907e-05 | C78: =IF('DF raw data'!G83="","",'DF raw data'!G83) -> 2.80842e-05 | D78: =IF('DF raw data'!H83="","",'DF raw data'!H83) -> -3.97487e-05 | F78: -3.382883187e-05 | G78: 2.819934522e-05 | H78: -3.991166967e-05 | J78: -0.0002333556474 | K78: -0.001042261137 | L78: 0.0003468902928 | M78: 0.001592741626 | N78: 5.518570959e-07
A79: =IF('DF raw data'!E84="","",'DF raw data'!E84) -> -291.5 | B79: =IF('DF raw data'!F84="","",'DF raw data'!F84) -> -2.33785e-05 | C79: =IF('DF raw data'!G84="","",'DF raw data'!G84) -> 4.30712e-05 | D79: =IF('DF raw data'!H84="","",'DF raw data'!H84) -> -2.99778e-05 | F79: -2.347435185e-05 | G79: 4.324779192e-05 | H79: -3.010070898e-05 | J79: -0.0002450928233 | K79: -0.001164807549 | L79: 0.0003685141887 | M79: 0.00177699872 | N79: 6.497936955e-07
A80: =IF('DF raw data'!E85="","",'DF raw data'!E85) -> -291 | B80: =IF('DF raw data'!F85="","",'DF raw data'!F85) -> -2.78632e-05 | C80: =IF('DF raw data'!G85="","",'DF raw data'!G85) -> 4.47819e-05 | D80: =IF('DF raw data'!H85="","",'DF raw data'!H85) -> -3.26563e-05 | F80: -2.797743912e-05 | G80: 4.496550579e-05 | H80: -3.279019083e-05 | J80: -0.0002590815428 | K80: -0.00129434832 | L80: 0.0003909969416 | M80: 0.001972497191 | N80: 7.597946226e-07
A81: =IF('DF raw data'!E86="","",'DF raw data'!E86) -> -290.5 | B81: =IF('DF raw data'!F86="","",'DF raw data'!F86) -> -1.69648e-05 | C81: =IF('DF raw data'!G86="","",'DF raw data'!G86) -> 4.21141e-05 | D81: =IF('DF raw data'!H86="","",'DF raw data'!H86) -> -3.72322e-05 | F81: -1.703435568e-05 | G81: 4.228676781e-05 | H81: -3.738485202e-05 | J81: -0.0002675987207 | K81: -0.00142814768 | L81: 0.0004121403255 | M81: 0.002178567354 | N81: 8.805289843e-07
A82: =IF('DF raw data'!E87="","",'DF raw data'!E87) -> -290 | B82: =IF('DF raw data'!F87="","",'DF raw data'!F87) -> -3.11868e-05 | C82: =IF('DF raw data'!G87="","",'DF raw data'!G87) -> 4.19603e-05 | D82: =IF('DF raw data'!H87="","",'DF raw data'!H87) -> -4.64184e-05 | F82: -3.131466588e-05 | G82: 4.213233723e-05 | H82: -4.660871544e-05 | J82: -0.0002832560536 | K82: -0.001569775707 | L82: 0.0004332064942 | M82: 0.002395170601 | N82: 1.014479914e-06
A83: =IF('DF raw data'!E88="","",'DF raw data'!E88) -> -289.5 | B83: =IF('DF raw data'!F88="","",'DF raw data'!F88) -> -2.38204e-05 | C83: =IF('DF raw data'!G88="","",'DF raw data'!G88) -> 3.83983e-05 | D83: =IF('DF raw data'!H88="","",'DF raw data'!H88) -> -4.01475e-05 | F83: -2.391806364e-05 | G83: 3.855573303e-05 | H83: -4.031210475e-05 | J83: -0.0002952150854 | K83: -0.00171738325 | L83: 0.0004524843607 | M83: 0.002621412781 | N83: 1.160426935e-06
A84: =IF('DF raw data'!E89="","",'DF raw data'!E89) -> -289 | B84: =IF('DF raw data'!F89="","",'DF raw data'!F89) -> -3.4137e-05 | C84: =IF('DF raw data'!G89="","",'DF raw data'!G89) -> 4.28877e-05 | D84: =IF('DF raw data'!H89="","",'DF raw data'!H89) -> -4.36104e-05 | F84: -3.42769617e-05 | G84: 4.306353957e-05 | H84: -4.378920264e-05 | J84: -0.0003123535663 | K84: -0.001873560033 | L84: 0.0004740161305 | M84: 0.002858420847 | N84: 1.321554956e-06
A85: =IF('DF raw data'!E90="","",'DF raw data'!E90) -> -288.5 | B85: =IF('DF raw data'!F90="","",'DF raw data'!F90) -> -3.29844e-05 | C85: =IF('DF raw data'!G90="","",'DF raw data'!G90) -> 4.58326e-05 | D85: =IF('DF raw data'!H90="","",'DF raw data'!H90) -> -4.1631e-05 | F85: -3.311963604e-05 | G85: 4.602051366e-05 | H85: -4.18016871e-05 | J85: -0.0003289133843 | K85: -0.002038016725 | L85: 0.0004970263873 | M85: 0.00310693404 | N85: 1.499164578e-06
A86: =IF('DF raw data'!E91="","",'DF raw data'!E91) -> -288 | B86: =IF('DF raw data'!F91="","",'DF raw data'!F91) -> -2.58732e-05 | C86: =IF('DF raw data'!G91="","",'DF raw data'!G91) -> 3.93099e-05 | D86: =IF('DF raw data'!H91="","",'DF raw data'!H91) -> -3.75578e-05 | F86: -2.597928012e-05 | G86: 3.947107059e-05 | H86: -3.771178698e-05 | J86: -0.0003419030244 | K86: -0.002208968237 | L86: 0.0005167619226 | M86: 0.003365315002 | N86: 1.69113486e-06
A87: =IF('DF raw data'!E92="","",'DF raw data'!E92) -> -287.5 | B87: =IF('DF raw data'!F92="","",'DF raw data'!F92) -> -2.25981e-05 | C87: =IF('DF raw data'!G92="","",'DF raw data'!G92) -> 3.67927e-05 | D87: =IF('DF raw data'!H92="","",'DF raw data'!H92) -> -4.75193e-05 | F87: -2.269075221e-05 | G87: 3.694355007e-05 | H87: -4.771412913e-05 | J87: -0.0003532484005 | K87: -0.002385592438 | L87: 0.0005352336976 | M87: 0.00363293185 | N87: 1.896764631e-06
A88: =IF('DF raw data'!E93="","",'DF raw data'!E93) -> -287 | B88: =IF('DF raw data'!F93="","",'DF raw data'!F93) -> -2.54808e-05 | C88: =IF('DF raw data'!G93="","",'DF raw data'!G93) -> 3.24898e-05 | D88: =IF('DF raw data'!H93="","",'DF raw data'!H93) -> -4.96726e-05 | F88: -2.558527128e-05 | G88: 3.262300818e-05 | H88: -4.987625766e-05 | J88: -0.0003660410361 | K88: -0.002568612956 | L88: 0.0005515452017 | M88: 0.003908704451 | N88: 2.115858706e-06
A89: =IF('DF raw data'!E94="","",'DF raw data'!E94) -> -286.5 | B89: =IF('DF raw data'!F94="","",'DF raw data'!F94) -> -9.66087e-06 | C89: =IF('DF raw data'!G94="","",'DF raw data'!G94) -> 3.94206e-05 | D89: =IF('DF raw data'!H94="","",'DF raw data'!H94) -> -3.36053e-05 | F89: -9.700479567e-06 | G89: 3.958222446e-05 | H89: -3.374308173e-05 | J89: -0.0003708912759 | K89: -0.002754058594 | L89: 0.0005713363139 | M89: 0.004194372608 | N89: 2.347851467e-06
A90: =IF('DF raw data'!E95="","",'DF raw data'!E95) -> -286 | B90: =IF('DF raw data'!F95="","",'DF raw data'!F95) -> -3.1325e-05 | C90: =IF('DF raw data'!G95="","",'DF raw data'!G95) -> 3.97167e-05 | D90: =IF('DF raw data'!H95="","",'DF raw data'!H95) -> -3.09862e-05 | F90: -3.14534325e-05 | G90: 3.987953847e-05 | H90: -3.111324342e-05 | J90: -0.0003866179922 | K90: -0.00294736759 | L90: 0.0005912760832 | M90: 0.00449001065 | N90: 2.597391907e-06
A91: =IF('DF raw data'!E96="","",'DF raw data'!E96) -> -285.5 | B91: =IF('DF raw data'!F96="","",'DF raw data'!F96) -> -2.49761e-05 | C91: =IF('DF raw data'!G96="","",'DF raw data'!G96) -> 3.43705e-05 | D91: =IF('DF raw data'!H96="","",'DF raw data'!H96) -> -3.73523e-05 | F91: -2.507850201e-05 | G91: 3.451141905e-05 | H91: -3.750544443e-05 | J91: -0.0003991572432 | K91: -0.003146946211 | L91: 0.0006085317927 | M91: 0.004794276546 | N91: 2.86221063e-06
A92: =IF('DF raw data'!E97="","",'DF raw data'!E97) -> -285 | B92: =IF('DF raw data'!F97="","",'DF raw data'!F97) -> -2.31146e-05 | C92: =IF('DF raw data'!G97="","",'DF raw data'!G97) -> 3.80259e-05 | D92: =IF('DF raw data'!H97="","",'DF raw data'!H97) -> -4.17204e-05 | F92: -2.320936986e-05 | G92: 3.818180619e-05 | H92: -4.189145364e-05 | J92: -0.0004107619281 | K92: -0.003352327175 | L92: 0.0006276226958 | M92: 0.005108087894 | N92: 3.143528435e-06
A93: =IF('DF raw data'!E98="","",'DF raw data'!E98) -> -284.5 | B93: =IF('DF raw data'!F98="","",'DF raw data'!F98) -> -3.95236e-05 | C93: =IF('DF raw data'!G98="","",'DF raw data'!G98) -> 4.4796e-05 | D93: =IF('DF raw data'!H98="","",'DF raw data'!H98) -> -3.90918e-05 | F93: -3.968564676e-05 | G93: 4.49796636e-05 | H93: -3.925207638e-05 | J93: -0.0004306047515 | K93: -0.003567629551 | L93: 0.0006501125276 | M93: 0.005433144158 | N93: 3.447561811e-06
A94: =IF('DF raw data'!E99="","",'DF raw data'!E99) -> -284 | B94: =IF('DF raw data'!F99="","",'DF raw data'!F99) -> -3.004e-05 | C94: =IF('DF raw data'!G99="","",'DF raw data'!G99) -> 5.00819e-05 | D94: =IF('DF raw data'!H99="","",'DF raw data'!H99) -> -3.60567e-05 | F94: -3.0163164e-05 | G94: 5.028723579e-05 | H94: -3.620453247e-05 | J94: -0.0004456863335 | K94: -0.003790472718 | L94: 0.0006752561455 | M94: 0.005770772231 | N94: 3.774865395e-06
A95: =IF('DF raw data'!E100="","",'DF raw data'!E100) -> -283.5 | B95: =IF('DF raw data'!F100="","",'DF raw data'!F100) -> -3.1336e-05 | C95: =IF('DF raw data'!G100="","",'DF raw data'!G100) -> 4.71985e-05 | D95: =IF('DF raw data'!H100="","",'DF raw data'!H100) -> -1.41179e-05 | F95: -3.14644776e-05 | G95: 4.739201385e-05 | H95: -1.417578339e-05 | J95: -0.0004614185723 | K95: -0.004021182004 | L95: 0.0006989521524 | M95: 0.006120248307 | N95: 4.125586001e-06
A96: =IF('DF raw data'!E101="","",'DF raw data'!E101) -> -283 | B96: =IF('DF raw data'!F101="","",'DF raw data'!F101) -> -2.2097e-05 | C96: =IF('DF raw data'!G101="","",'DF raw data'!G101) -> 3.94345e-05 | D96: =IF('DF raw data'!H101="","",'DF raw data'!H101) -> -2.96383e-05 | F96: -2.21875977e-05 | G96: 3.959618145e-05 | H96: -2.975981703e-05 | J96: -0.0004725123711 | K96: -0.004257438189 | L96: 0.0007187502431 | M96: 0.006479623428 | N96: 4.495520927e-06
A97: =IF('DF raw data'!E102="","",'DF raw data'!E102) -> -282.5 | B97: =IF('DF raw data'!F102="","",'DF raw data'!F102) -> -2.45292e-05 | C97: =IF('DF raw data'!G102="","",'DF raw data'!G102) -> 3.64374e-05 | D97: =IF('DF raw data'!H102="","",'DF raw data'!H102) -> -3.45849e-05 | F97: -2.462976972e-05 | G97: 3.658679334e-05 | H97: -3.472669809e-05 | J97: -0.000484827256 | K97: -0.004499851817 | L97: 0.0007370436398 | M97: 0.006848145248 | N97: 4.884666325e-06
A98: =IF('DF raw data'!E103="","",'DF raw data'!E103) -> -282 | B98: =IF('DF raw data'!F103="","",'DF raw data'!F103) -> -3.53583e-05 | C98: =IF('DF raw data'!G103="","",'DF raw data'!G103) -> 3.33741e-05 | D98: =IF('DF raw data'!H103="","",'DF raw data'!H103) -> -3.77737e-05 | F98: -3.550326903e-05 | G98: 3.351093381e-05 | H98: -3.792857217e-05 | J98: -0.0005025788905 | K98: -0.004751141263 | L98: 0.0007537991067 | M98: 0.007225044802 | N98: 5.295065642e-06
A99: =IF('DF raw data'!E104="","",'DF raw data'!E104) -> -281.5 | B99: =IF('DF raw data'!F104="","",'DF raw data'!F104) -> -4.7217e-05 | C99: =IF('DF raw data'!G104="","",'DF raw data'!G104) -> 3.42959e-05 | D99: =IF('DF raw data'!H104="","",'DF raw data'!H104) -> -3.51115e-05 | F99: -4.74105897e-05 | G99: 3.443651319e-05 | H99: -3.525545715e-05 | J99: -0.0005262841853 | K99: -0.005014283355 | L99: 0.0007710173633 | M99: 0.007610553483 | N99: 5.730787051e-06
A100: =IF('DF raw data'!E105="","",'DF raw data'!E105) -> -281 | B100: =IF('DF raw data'!F105="","",'DF raw data'!F105) -> -3.99152e-05 | C100: =IF('DF raw data'!G105="","",'DF raw data'!G105) -> 4.04394e-05 | D100: =IF('DF raw data'!H105="","",'DF raw data'!H105) -> -2.81115e-05 | F100: -4.007885232e-05 | G100: 4.060520154e-05 | H100: -2.822675715e-05 | J100: -0.0005463236115 | K100: -0.005287445161 | L100: 0.0007913199641 | M100: 0.008006213465 | N100: 6.193115438e-06
A101: =IF('DF raw data'!E106="","",'DF raw data'!E106) -> -280.5 | B101: =IF('DF raw data'!F106="","",'DF raw data'!F106) -> -2.91452e-05 | C101: =IF('DF raw data'!G106="","",'DF raw data'!G106) -> 4.12994e-05 | D101: =IF('DF raw data'!H106="","",'DF raw data'!H106) -> -3.2291e-05 | F101: -2.926469532e-05 | G101: 4.146872754e-05 | H101: -3.24233931e-05 | J101: -0.0005609559592 | K101: -0.005567923141 | L101: 0.0008120543278 | M101: 0.008412240629 | N101: 6.680167348e-06
A102: =IF('DF raw data'!E107="","",'DF raw data'!E107) -> -280 | B102: =IF('DF raw data'!F107="","",'DF raw data'!F107) -> -2.97954e-05 | C102: =IF('DF raw data'!G107="","",'DF raw data'!G107) -> 3.82855e-05 | D102: =IF('DF raw data'!H107="","",'DF raw data'!H107) -> -1.79095e-05 | F102: -2.991756114e-05 | G102: 3.844247055e-05 | H102: -1.798292895e-05 | J102: -0.0005759147397 | K102: -0.005855880511 | L102: 0.0008312755631 | M102: 0.008827878411 | N102: 7.191515772e-06
A103: =IF('DF raw data'!E108="","",'DF raw data'!E108) -> -279.5 | B103: =IF('DF raw data'!F108="","",'DF raw data'!F108) -> -2.0554e-05 | C103: =IF('DF raw data'!G108="","",'DF raw data'!G108) -> 3.3925e-05 | D103: =IF('DF raw data'!H108="","",'DF raw data'!H108) -> -3.68045e-05 | F103: -2.06382714e-05 | G103: 3.40640925e-05 | H103: -3.695539845e-05 | J103: -0.0005862338754 | K103: -0.006148997448 | L103: 0.0008483076094 | M103: 0.009252032215 | N103: 7.723163751e-06
A104: =IF('DF raw data'!E109="","",'DF raw data'!E109) -> -279 | B104: =IF('DF raw data'!F109="","",'DF raw data'!F109) -> -2.44718e-05 | C104: =IF('DF raw data'!G109="","",'DF raw data'!G109) -> 3.61716e-05 | D104: =IF('DF raw data'!H109="","",'DF raw data'!H109) -> -2.44227e-05 | F104: -2.457213438e-05 | G104: 3.631990356e-05 | H104: -2.452283307e-05 | J104: -0.0005985199426 | K104: -0.00644825742 | L104: 0.0008664675612 | M104: 0.009685265996 | N104: 8.277659829e-06
A105: =IF('DF raw data'!E110="","",'DF raw data'!E110) -> -278.5 | B105: =IF('DF raw data'!F110="","",'DF raw data'!F110) -> -3.5883e-05 | C105: =IF('DF raw data'!G110="","",'DF raw data'!G110) -> 4.39795e-05 | D105: =IF('DF raw data'!H110="","",'DF raw data'!H110) -> -1.93785e-05 | F105: -3.60301203e-05 | G105: 4.415981595e-05 | H105: -1.945795185e-05 | J105: -0.0006165350028 | K105: -0.006756524921 | L105: 0.0008885474691 | M105: 0.01012953973 | N105: 8.862475836e-06
A106: =IF('DF raw data'!E111="","",'DF raw data'!E111) -> -278 | B106: =IF('DF raw data'!F111="","",'DF raw data'!F111) -> -2.68457e-05 | C106: =IF('DF raw data'!G111="","",'DF raw data'!G111) -> 4.85641e-05 | D106: =IF('DF raw data'!H111="","",'DF raw data'!H111) -> -2.02114e-05 | F106: -2.695576737e-05 | G106: 4.876321281e-05 | H106: -2.029426674e-05 | J106: -0.0006300128865 | K106: -0.007071531364 | L106: 0.0009129290755 | M106: 0.01058600427 | N106: 9.477653703e-06
A107: =IF('DF raw data'!E112="","",'DF raw data'!E112) -> -277.5 | B107: =IF('DF raw data'!F112="","",'DF raw data'!F112) -> -3.97239e-05 | C107: =IF('DF raw data'!G112="","",'DF raw data'!G112) -> 3.5605e-05 | D107: =IF('DF raw data'!H112="","",'DF raw data'!H112) -> -2.6592e-05 | F107: -3.988676799e-05 | G107: 3.57509805e-05 | H107: -2.67010272e-05 | J107: -0.0006499562705 | K107: -0.007396509499 | L107: 0.0009308045658 | M107: 0.01105140655 | N107: 1.012207385e-05
A108: =IF('DF raw data'!E113="","",'DF raw data'!E113) -> -277 | B108: =IF('DF raw data'!F113="","",'DF raw data'!F113) -> -3.57381e-05 | C108: =IF('DF raw data'!G113="","",'DF raw data'!G113) -> 4.2435e-05 | D108: =IF('DF raw data'!H113="","",'DF raw data'!H113) -> -4.514e-05 | F108: -3.588462621e-05 | G108: 4.26089835e-05 | H108: -4.5325074e-05 | J108: -0.0006678985836 | K108: -0.007730458791 | L108: 0.0009521090575 | M108: 0.01152746108 | N108: 1.079837394e-05
A109: =IF('DF raw data'!E114="","",'DF raw data'!E114) -> -276.5 | B109: =IF('DF raw data'!F114="","",'DF raw data'!F114) -> -2.56872e-05 | C109: =IF('DF raw data'!G114="","",'DF raw data'!G114) -> 4.9542e-05 | D109: =IF('DF raw data'!H114="","",'DF raw data'!H114) -> -2.77612e-05 | F109: -2.579251752e-05 | G109: 4.97451222e-05 | H109: -2.787502092e-05 | J109: -0.0006807948423 | K109: -0.008070856212 | L109: 0.0009769816186 | M109: 0.01201595189 | N109: 1.150736129e-05
A110: =IF('DF raw data'!E115="","",'DF raw data'!E115) -> -276 | B110: =IF('DF raw data'!F115="","",'DF raw data'!F115) -> -2.82433e-05 | C110: =IF('DF raw data'!G115="","",'DF raw data'!G115) -> 4.80575e-05 | D110: =IF('DF raw data'!H115="","",'DF raw data'!H115) -> -3.96251e-05 | F110: -2.835909753e-05 | G110: 4.825453575e-05 | H110: -3.978756291e-05 | J110: -0.0006949743911 | K110: -0.008418343408 | L110: 0.001001108887 | M110: 0.01251650633 | N110: 1.224996549e-05
A111: =IF('DF raw data'!E116="","",'DF raw data'!E116) -> -275.5 | B111: =IF('DF raw data'!F116="","",'DF raw data'!F116) -> -2.76068e-05 | C111: =IF('DF raw data'!G116="","",'DF raw data'!G116) -> 4.07465e-05 | D111: =IF('DF raw data'!H116="","",'DF raw data'!H116) -> -3.27624e-05 | F111: -2.771998788e-05 | G111: 4.091356065e-05 | H111: -3.289672584e-05 | J111: -0.000708834385 | K111: -0.0087727606 | L111: 0.001021565667 | M111: 0.01302728917 | N111: 1.302298679e-05
A112: =IF('DF raw data'!E117="","",'DF raw data'!E117) -> -275 | B112: =IF('DF raw data'!F117="","",'DF raw data'!F117) -> -3.34985e-05 | C112: =IF('DF raw data'!G117="","",'DF raw data'!G117) -> 2.88763e-05 | D112: =IF('DF raw data'!H117="","",'DF raw data'!H117) -> -3.9998e-05 | F112: -3.363584385e-05 | G112: 2.899469283e-05 | H112: -4.01619918e-05 | J112: -0.0007256523069 | K112: -0.009135586754 | L112: 0.001036063013 | M112: 0.01354532067 | N112: 1.382298571e-05
A113: =IF('DF raw data'!E118="","",'DF raw data'!E118) -> -274.5 | B113: =IF('DF raw data'!F118="","",'DF raw data'!F118) -> -2.96519e-05 | C113: =IF('DF raw data'!G118="","",'DF raw data'!G118) -> 3.40625e-05 | D113: =IF('DF raw data'!H118="","",'DF raw data'!H118) -> -4.16203e-05 | F113: -2.977347279e-05 | G113: 3.420215625e-05 | H113: -4.179094323e-05 | J113: -0.0007405390433 | K113: -0.009505856276 | L113: 0.001053164091 | M113: 0.01407190272 | N113: 1.465176205e-05
A114: =IF('DF raw data'!E119="","",'DF raw data'!E119) -> -274 | B114: =IF('DF raw data'!F119="","",'DF raw data'!F119) -> -3.60036e-05 | C114: =IF('DF raw data'!G119="","",'DF raw data'!G119) -> 3.55195e-05 | D114: =IF('DF raw data'!H119="","",'DF raw data'!H119) -> -3.11046e-05 | F114: -3.615121476e-05 | G114: 3.566512995e-05 | H114: -3.123212886e-05 | J114: -0.0007586146507 | K114: -0.009885163601 | L114: 0.001070996656 | M114: 0.01460740105 | N114: 1.551302706e-05
A115: =IF('DF raw data'!E120="","",'DF raw data'!E120) -> -273.5 | B115: =IF('DF raw data'!F120="","",'DF raw data'!F120) -> -1.9982e-05 | C115: =IF('DF raw data'!G120="","",'DF raw data'!G120) -> 3.72574e-05 | D115: =IF('DF raw data'!H120="","",'DF raw data'!H120) -> -2.96802e-05 | F115: -2.00639262e-05 | G115: 3.741015534e-05 | H115: -2.980188882e-05 | J115: -0.0007686466138 | K115: -0.01026948691 | L115: 0.001089701734 | M115: 0.01515225191 | N115: 1.64021608e-05
A116: =IF('DF raw data'!E121="","",'DF raw data'!E121) -> -273 | B116: =IF('DF raw data'!F121="","",'DF raw data'!F121) -> -2.56844e-05 | C116: =IF('DF raw data'!G121="","",'DF raw data'!G121) -> 4.02619e-05 | D116: =IF('DF raw data'!H121="","",'DF raw data'!H121) -> -3.201e-05 | F116: -2.578970604e-05 | G116: 4.042697379e-05 | H116: -3.2141241e-05 | J116: -0.0007815414668 | K116: -0.01066025764 | L116: 0.001109915221 | M116: 0.01570720952 | N116: 1.732352023e-05
A117: =IF('DF raw data'!E122="","",'DF raw data'!E122) -> -272.5 | B117: =IF('DF raw data'!F122="","",'DF raw data'!F122) -> -3.68433e-05 | C117: =IF('DF raw data'!G122="","",'DF raw data'!G122) -> 4.37768e-05 | D117: =IF('DF raw data'!H122="","",'DF raw data'!H122) -> -2.11538e-05 | F117: -3.699435753e-05 | G117: 4.395628488e-05 | H117: -2.124053058e-05 | J117: -0.0008000386456 | K117: -0.01106027696 | L117: 0.001131893363 | M117: 0.01627315621 | N117: 1.828414245e-05
A118: =IF('DF raw data'!E123="","",'DF raw data'!E123) -> -272 | B118: =IF('DF raw data'!F123="","",'DF raw data'!F123) -> -3.00454e-05 | C118: =IF('DF raw data'!G123="","",'DF raw data'!G123) -> 3.53038e-05 | D118: =IF('DF raw data'!H123="","",'DF raw data'!H123) -> -2.78515e-05 | F118: -3.016858614e-05 | G118: 3.544854558e-05 | H118: -2.796569115e-05 | J118: -0.0008151229387 | K118: -0.01146783843 | L118: 0.001149617636 | M118: 0.01684796502 | N118: 1.92771655e-05
A119: =IF('DF raw data'!E124="","",'DF raw data'!E124) -> -271.5 | B119: =IF('DF raw data'!F124="","",'DF raw data'!F124) -> -2.19652e-05 | C119: =IF('DF raw data'!G124="","",'DF raw data'!G124) -> 2.41999e-05 | D119: =IF('DF raw data'!H124="","",'DF raw data'!H124) -> -3.53947e-05 | F119: -2.205525732e-05 | G119: 2.429911959e-05 | H119: -3.553981827e-05 | J119: -0.0008261505673 | K119: -0.01188091372 | L119: 0.001161767196 | M119: 0.01742884862 | N119: 2.029327939e-05
A120: =IF('DF raw data'!E125="","",'DF raw data'!E125) -> -271 | B120: =IF('DF raw data'!F125="","",'DF raw data'!F125) -> -1.748e-05 | C120: =IF('DF raw data'!G125="","",'DF raw data'!G125) -> 3.83817e-05 | D120: =IF('DF raw data'!H125="","",'DF raw data'!H125) -> -3.34132e-05 | F120: -1.7551668e-05 | G120: 3.853906497e-05 | H120: -3.355019412e-05 | J120: -0.0008349264013 | K120: -0.01229837692 | L120: 0.001181036728 | M120: 0.01801936699 | N120: 2.133925432e-05
A121: =IF('DF raw data'!E126="","",'DF raw data'!E126) -> -270.5 | B121: =IF('DF raw data'!F126="","",'DF raw data'!F126) -> -3.72837e-05 | C121: =IF('DF raw data'!G126="","",'DF raw data'!G126) -> 4.99528e-05 | D121: =IF('DF raw data'!H126="","",'DF raw data'!H126) -> -3.41107e-05 | F121: -3.743656317e-05 | G121: 5.015760648e-05 | H121: -3.425055387e-05 | J121: -0.0008536446829 | K121: -0.01272519926 | L121: 0.001206115532 | M121: 0.01862242475 | N121: 2.243096628e-05
A122: =IF('DF raw data'!E127="","",'DF raw data'!E127) -> -270 | B122: =IF('DF raw data'!F127="","",'DF raw data'!F127) -> -2.49854e-05 | C122: =IF('DF raw data'!G127="","",'DF raw data'!G127) -> 4.33701e-05 | D122: =IF('DF raw data'!H127="","",'DF raw data'!H127) -> -2.31245e-05 | F122: -2.508784014e-05 | G122: 4.354791741e-05 | H122: -2.321931045e-05 | J122: -0.000866188603 | K122: -0.01315829356 | L122: 0.00122788949 | M122: 0.0192363695 | N122: 2.355996392e-05
A123: =IF('DF raw data'!E128="","",'DF raw data'!E128) -> -269.5 | B123: =IF('DF raw data'!F128="","",'DF raw data'!F128) -> -2.94094e-05 | C123: =IF('DF raw data'!G128="","",'DF raw data'!G128) -> 4.13624e-05 | D123: =IF('DF raw data'!H128="","",'DF raw data'!H128) -> -2.02527e-05 | F123: -2.952997854e-05 | G123: 4.153198584e-05 | H123: -2.033573607e-05 | J123: -0.0008809535923 | K123: -0.01359877036 | L123: 0.001248655483 | M123: 0.01986069724 | N123: 2.47275738e-05
A124: =IF('DF raw data'!E129="","",'DF raw data'!E129) -> -269 | B124: =IF('DF raw data'!F129="","",'DF raw data'!F129) -> -2.42743e-05 | C124: =IF('DF raw data'!G129="","",'DF raw data'!G129) -> 4.12156e-05 | D124: =IF('DF raw data'!H129="","",'DF raw data'!H129) -> -3.24104e-05 | F124: -2.437382463e-05 | G124: 4.138458396e-05 | H124: -3.254328264e-05 | J124: -0.0008931405046 | K124: -0.01404534061 | L124: 0.001269347775 | M124: 0.02049537113 | N124: 2.593204567e-05
A125: =IF('DF raw data'!E130="","",'DF raw data'!E130) -> -268.5 | B125: =IF('DF raw data'!F130="","",'DF raw data'!F130) -> -1.5873e-05 | C125: =IF('DF raw data'!G130="","",'DF raw data'!G130) -> 4.42958e-05 | D125: =IF('DF raw data'!H130="","",'DF raw data'!H130) -> -4.06017e-05 | F125: -1.59380793e-05 | G125: 4.447741278e-05 | H125: -4.076816697e-05 | J125: -0.0009011095442 | K125: -0.01449589538 | L125: 0.001291586482 | M125: 0.02114116437 | N125: 2.717214269e-05
A126: =IF('DF raw data'!E131="","",'DF raw data'!E131) -> -268 | B126: =IF('DF raw data'!F131="","",'DF raw data'!F131) -> -2.50438e-05 | C126: =IF('DF raw data'!G131="","",'DF raw data'!G131) -> 3.71822e-05 | D126: =IF('DF raw data'!H131="","",'DF raw data'!H131) -> -3.16152e-05 | F126: -2.514647958e-05 | G126: 3.733464702e-05 | H126: -3.174482232e-05 | J126: -0.000913682784 | K126: -0.01495273677 | L126: 0.001310253805 | M126: 0.02179629127 | N126: 2.844793332e-05
A127: =IF('DF raw data'!E132="","",'DF raw data'!E132) -> -267.5 | B127: =IF('DF raw data'!F132="","",'DF raw data'!F132) -> -3.24749e-05 | C127: =IF('DF raw data'!G132="","",'DF raw data'!G132) -> 3.59648e-05 | D127: =IF('DF raw data'!H132="","",'DF raw data'!H132) -> -3.69009e-05 | F127: -3.260804709e-05 | G127: 3.611225568e-05 | H127: -3.705219369e-05 | J127: -0.0009299868076 | K127: -0.01541773018 | L127: 0.001328309933 | M127: 0.02246044624 | N127: 2.976257469e-05
A128: =IF('DF raw data'!E133="","",'DF raw data'!E133) -> -267 | B128: =IF('DF raw data'!F133="","",'DF raw data'!F133) -> -2.11328e-05 | C128: =IF('DF raw data'!G133="","",'DF raw data'!G133) -> 3.82529e-05 | D128: =IF('DF raw data'!H133="","",'DF raw data'!H133) -> -3.39953e-05 | F128: =(1-$G$1*($B$49-$G$2))*B128 -> -2.121944448e-05 | G128: 3.840973689e-05 | H128: -3.413468073e-05 | J128: =F128*$G$3+J127 -> -0.0009405965298 | K128: =J128*$G$3+K127 -> -0.01588802844 | L128: =G128*$G$3+L127 -> 0.001347514801 | M128: =L128*$G$3+M127 -> 0.02313420364 | N128: =(J128^2+L128^2)*$G$3+N127 -> 3.111283368e-05
A129: =IF('DF raw data'!E134="","",'DF raw data'!E134) -> -266.5 | B129: =IF('DF raw data'!F134="","",'DF raw data'!F134) -> -2.396e-05 | C129: =IF('DF raw data'!G134="","",'DF raw data'!G134) -> 4.14572e-05 | D129: =IF('DF raw data'!H134="","",'DF raw data'!H134) -> -2.27109e-05 | F129: -2.4058236e-05 | G129: 4.162717452e-05 | H129: -2.280401469e-05 | J129: -0.0009526256478 | K129: -0.01636434127 | L129: 0.001368328389 | M129: 0.02381836783 | N129: 3.250274278e-05
A130: =IF('DF raw data'!E135="","",'DF raw data'!E135) -> -266 | B130: =IF('DF raw data'!F135="","",'DF raw data'!F135) -> -2.71633e-05 | C130: =IF('DF raw data'!G135="","",'DF raw data'!G135) -> 3.73702e-05 | D130: =IF('DF raw data'!H135="","",'DF raw data'!H135) -> -2.48145e-05 | F130: -2.727466953e-05 | G130: 3.752341782e-05 | H130: -2.491623945e-05 | J130: -0.0009662629826 | K130: -0.01684747276 | L130: 0.001387090098 | M130: 0.02451191288 | N130: 3.393158433e-05
A131: =IF('DF raw data'!E136="","",'DF raw data'!E136) -> -265.5 | B131: =IF('DF raw data'!F136="","",'DF raw data'!F136) -> -1.95951e-05 | C131: =IF('DF raw data'!G136="","",'DF raw data'!G136) -> 3.67962e-05 | D131: =IF('DF raw data'!H136="","",'DF raw data'!H136) -> -3.3312e-05 | F131: -1.967543991e-05 | G131: 3.694706442e-05 | H131: -3.34485792e-05 | J131: -0.0009761007025 | K131: -0.01733552311 | L131: 0.00140556363 | M131: 0.02521469469 | N131: 3.539577518e-05
A132: =IF('DF raw data'!E137="","",'DF raw data'!E137) -> -265 | B132: =IF('DF raw data'!F137="","",'DF raw data'!F137) -> -1.25511e-05 | C132: =IF('DF raw data'!G137="","",'DF raw data'!G137) -> 3.44312e-05 | D132: =IF('DF raw data'!H137="","",'DF raw data'!H137) -> -2.41976e-05 | F132: -1.260255951e-05 | G132: 3.457236792e-05 | H132: -2.429681016e-05 | J132: -0.0009824019823 | K132: -0.0178267241 | L132: 0.001422849814 | M132: 0.0259261196 | N132: 3.68905828e-05
A133: =IF('DF raw data'!E138="","",'DF raw data'!E138) -> -264.5 | B133: =IF('DF raw data'!F138="","",'DF raw data'!F138) -> -2.04926e-05 | C133: =IF('DF raw data'!G138="","",'DF raw data'!G138) -> 4.05482e-05 | D133: =IF('DF raw data'!H138="","",'DF raw data'!H138) -> -3.29037e-05 | F133: -2.057661966e-05 | G133: 4.071444762e-05 | H133: -3.303860517e-05 | J133: -0.0009926902921 | K133: -0.01832306925 | L133: 0.001443207038 | M133: 0.02664772312 | N133: 3.842472308e-05
A134: =IF('DF raw data'!E139="","",'DF raw data'!E139) -> -264 | B134: =IF('DF raw data'!F139="","",'DF raw data'!F139) -> -3.58149e-05 | C134: =IF('DF raw data'!G139="","",'DF raw data'!G139) -> 4.43191e-05 | D134: =IF('DF raw data'!H139="","",'DF raw data'!H139) -> -2.58282e-05 | F134: -3.596174109e-05 | G134: 4.450080831e-05 | H134: -2.593409562e-05 | J134: -0.001010671163 | K134: -0.01882840483 | L134: 0.001465457442 | M134: 0.02738045184 | N134: 4.000923394e-05
A135: =IF('DF raw data'!E140="","",'DF raw data'!E140) -> -263.5 | B135: =IF('DF raw data'!F140="","",'DF raw data'!F140) -> -2.23503e-05 | C135: =IF('DF raw data'!G140="","",'DF raw data'!G140) -> 4.39138e-05 | D135: =IF('DF raw data'!H140="","",'DF raw data'!H140) -> -3.44187e-05 | F135: -2.244193623e-05 | G135: 4.409384658e-05 | H135: -3.455981667e-05 | J135: -0.001021892131 | K135: -0.01933935089 | L135: 0.001487504365 | M135: 0.02812420402 | N135: 4.163770032e-05
A136: =IF('DF raw data'!E141="","",'DF raw data'!E141) -> -263 | B136: =IF('DF raw data'!F141="","",'DF raw data'!F141) -> -3.08116e-05 | C136: =IF('DF raw data'!G141="","",'DF raw data'!G141) -> 5.12929e-05 | D136: =IF('DF raw data'!H141="","",'DF raw data'!H141) -> -3.23536e-05 | F136: -3.093792756e-05 | G136: 5.150320089e-05 | H136: -3.248624976e-05 | J136: -0.001037361095 | K136: -0.01985803144 | L136: 0.001513255965 | M136: 0.02888083201 | N136: 4.332073115e-05
A137: =IF('DF raw data'!E142="","",'DF raw data'!E142) -> -262.5 | B137: =IF('DF raw data'!F142="","",'DF raw data'!F142) -> -3.75413e-05 | C137: =IF('DF raw data'!G142="","",'DF raw data'!G142) -> 4.87871e-05 | D137: =IF('DF raw data'!H142="","",'DF raw data'!H142) -> -3.21904e-05 | F137: -3.769521933e-05 | G137: 4.898712711e-05 | H137: -3.232238064e-05 | J137: -0.001056208704 | K137: -0.02038613579 | L137: 0.001537749529 | M137: 0.02964970677 | N137: 4.506085637e-05
A138: =IF('DF raw data'!E143="","",'DF raw data'!E143) -> -262 | B138: =IF('DF raw data'!F143="","",'DF raw data'!F143) -> -1.67125e-05 | C138: =IF('DF raw data'!G143="","",'DF raw data'!G143) -> 4.64353e-05 | D138: =IF('DF raw data'!H143="","",'DF raw data'!H143) -> -3.10713e-05 | F138: -1.678102125e-05 | G138: 4.662568473e-05 | H138: -3.119869233e-05 | J138: -0.001064599215 | K138: -0.0209184354 | L138: 0.001561062371 | M138: 0.03043023796 | N138: 4.684599998e-05
A139: =IF('DF raw data'!E144="","",'DF raw data'!E144) -> -261.5 | B139: =IF('DF raw data'!F144="","",'DF raw data'!F144) -> -2.11922e-05 | C139: =IF('DF raw data'!G144="","",'DF raw data'!G144) -> 4.18307e-05 | D139: =IF('DF raw data'!H144="","",'DF raw data'!H144) -> -4.10611e-05 | F139: -2.127908802e-05 | G139: 4.200220587e-05 | H139: -4.122945051e-05 | J139: -0.001075238759 | K139: -0.02145605478 | L139: 0.001582063474 | M139: 0.03122126969 | N139: 4.867553159e-05
A140: =IF('DF raw data'!E145="","",'DF raw data'!E145) -> -261 | B140: =IF('DF raw data'!F145="","",'DF raw data'!F145) -> -3.08097e-05 | C140: =IF('DF raw data'!G145="","",'DF raw data'!G145) -> 3.91403e-05 | D140: =IF('DF raw data'!H145="","",'DF raw data'!H145) -> -3.52051e-05 | F140: -3.093601977e-05 | G140: 3.930077523e-05 | H140: -3.534944091e-05 | J140: -0.001090706769 | K140: -0.02200140816 | L140: 0.001601713862 | M140: 0.03202212663 | N140: 5.055309587e-05
A141: =IF('DF raw data'!E146="","",'DF raw data'!E146) -> -260.5 | B141: =IF('DF raw data'!F146="","",'DF raw data'!F146) -> -3.42756e-05 | C141: =IF('DF raw data'!G146="","",'DF raw data'!G146) -> 3.96289e-05 | D141: =IF('DF raw data'!H146="","",'DF raw data'!H146) -> -2.77558e-05 | F141: -3.441612996e-05 | G141: 3.979137849e-05 | H141: -2.786959878e-05 | J141: -0.001107914834 | K141: -0.02255536558 | L141: 0.001621609551 | M141: 0.0328329314 | N141: 5.248164228e-05
A142: =IF('DF raw data'!E147="","",'DF raw data'!E147) -> -260 | B142: =IF('DF raw data'!F147="","",'DF raw data'!F147) -> -2.44718e-05 | C142: =IF('DF raw data'!G147="","",'DF raw data'!G147) -> 3.84025e-05 | D142: =IF('DF raw data'!H147="","",'DF raw data'!H147) -> -2.45406e-05 | F142: -2.457213438e-05 | G142: 3.855995025e-05 | H142: -2.464121646e-05 | J142: -0.001120200901 | K142: -0.02311546603 | L142: 0.001640889526 | M142: 0.03365337616 | N142: 5.445532652e-05
A143: =IF('DF raw data'!E148="","",'DF raw data'!E148) -> -259.5 | B143: =IF('DF raw data'!F148="","",'DF raw data'!F148) -> -3.21591e-05 | C143: =IF('DF raw data'!G148="","",'DF raw data'!G148) -> 3.62849e-05 | D143: =IF('DF raw data'!H148="","",'DF raw data'!H148) -> -3.00191e-05 | F143: -3.229095231e-05 | G143: 3.643366809e-05 | H143: -3.014217831e-05 | J143: -0.001136346377 | K143: -0.02368363922 | L143: 0.00165910636 | M143: 0.03448292934 | N143: 5.647728502e-05
A144: =IF('DF raw data'!E149="","",'DF raw data'!E149) -> -259 | B144: =IF('DF raw data'!F149="","",'DF raw data'!F149) -> -3.56213e-05 | C144: =IF('DF raw data'!G149="","",'DF raw data'!G149) -> 3.82392e-05 | D144: =IF('DF raw data'!H149="","",'DF raw data'!H149) -> -2.78065e-05 | F144: -3.576734733e-05 | G144: 3.839598072e-05 | H144: -2.792050665e-05 | J144: -0.001154230051 | K144: -0.02426075424 | L144: 0.001678304351 | M144: 0.03532208152 | N144: 5.855176128e-05
A145: =IF('DF raw data'!E150="","",'DF raw data'!E150) -> -258.5 | B145: =IF('DF raw data'!F150="","",'DF raw data'!F150) -> -3.13247e-05 | C145: =IF('DF raw data'!G150="","",'DF raw data'!G150) -> 4.42062e-05 | D145: =IF('DF raw data'!H150="","",'DF raw data'!H150) -> -3.17135e-05 | F145: -3.145313127e-05 | G145: 4.438744542e-05 | H145: -3.184352535e-05 | J145: -0.001169956616 | K145: -0.02484573255 | L145: 0.001700498073 | M145: 0.03617233056 | N145: 6.068200737e-05
A146: =IF('DF raw data'!E151="","",'DF raw data'!E151) -> -258 | B146: =IF('DF raw data'!F151="","",'DF raw data'!F151) -> -1.92112e-05 | C146: =IF('DF raw data'!G151="","",'DF raw data'!G151) -> 3.76848e-05 | D146: =IF('DF raw data'!H151="","",'DF raw data'!H151) -> -3.2374e-05 | F146: -1.928996592e-05 | G146: 3.783930768e-05 | H146: -3.25067334e-05 | J146: -0.001179601599 | K146: -0.02543553335 | L146: 0.001719417727 | M146: 0.03703203942 | N146: 6.285593599e-05
A147: =IF('DF raw data'!E152="","",'DF raw data'!E152) -> -257.5 | B147: =IF('DF raw data'!F152="","",'DF raw data'!F152) -> -2.10674e-05 | C147: =IF('DF raw data'!G152="","",'DF raw data'!G152) -> 4.25201e-05 | D147: =IF('DF raw data'!H152="","",'DF raw data'!H152) -> -3.58211e-05 | F147: -2.115377634e-05 | G147: 4.269443241e-05 | H147: -3.596796651e-05 | J147: -0.001190178487 | K147: -0.0260306226 | L147: 0.001740764943 | M147: 0.03790242189 | N147: 6.507932971e-05
A148: =IF('DF raw data'!E153="","",'DF raw data'!E153) -> -257 | B148: =IF('DF raw data'!F153="","",'DF raw data'!F153) -> -3.59971e-05 | C148: =IF('DF raw data'!G153="","",'DF raw data'!G153) -> 4.03647e-05 | D148: =IF('DF raw data'!H153="","",'DF raw data'!H153) -> -4.11466e-05 | F148: -3.614468811e-05 | G148: 4.053019527e-05 | H148: -4.131530106e-05 | J148: -0.001208250832 | K148: -0.02663474801 | L148: 0.001761030041 | M148: 0.03878293691 | N148: 6.735987814e-05
A149: =IF('DF raw data'!E154="","",'DF raw data'!E154) -> -256.5 | B149: =IF('DF raw data'!F154="","",'DF raw data'!F154) -> -3.12502e-05 | C149: =IF('DF raw data'!G154="","",'DF raw data'!G154) -> 3.7698e-05 | D149: =IF('DF raw data'!H154="","",'DF raw data'!H154) -> -4.7921e-05 | F149: -3.137832582e-05 | G149: 3.78525618e-05 | H149: -4.81174761e-05 | J149: -0.001223939994 | K149: -0.02724671801 | L149: 0.001779956322 | M149: 0.03967291507 | N149: 6.969301495e-05
A150: =IF('DF raw data'!E155="","",'DF raw data'!E155) -> -256 | B150: =IF('DF raw data'!F155="","",'DF raw data'!F155) -> -3.2018e-05 | C150: =IF('DF raw data'!G155="","",'DF raw data'!G155) -> 3.8569e-05 | D150: =IF('DF raw data'!H155="","",'DF raw data'!H155) -> -4.99004e-05 | F150: -3.21492738e-05 | G150: 3.87271329e-05 | H150: -5.010499164e-05 | J150: -0.001240014631 | K150: -0.02786672532 | L150: 0.001799319888 | M150: 0.04057257502 | N150: 7.208060913e-05
A151: =IF('DF raw data'!E156="","",'DF raw data'!E156) -> -255.5 | B151: =IF('DF raw data'!F156="","",'DF raw data'!F156) -> -2.90777e-05 | C151: =IF('DF raw data'!G156="","",'DF raw data'!G156) -> 3.85419e-05 | D151: =IF('DF raw data'!H156="","",'DF raw data'!H156) -> -3.75301e-05 | F151: -2.919691857e-05 | G151: 3.869992179e-05 | H151: -3.768397341e-05 | J151: -0.001254613091 | K151: -0.02849403187 | L151: 0.001818669849 | M151: 0.04148190994 | N151: 7.452141614e-05
A152: =IF('DF raw data'!E157="","",'DF raw data'!E157) -> -255 | B152: =IF('DF raw data'!F157="","",'DF raw data'!F157) -> -3.05533e-05 | C152: =IF('DF raw data'!G157="","",'DF raw data'!G157) -> 3.70443e-05 | D152: =IF('DF raw data'!H157="","",'DF raw data'!H157) -> -3.5312e-05 | F152: -3.067856853e-05 | G152: 3.719618163e-05 | H152: -3.54567792e-05 | J152: -0.001269952375 | K152: -0.02912900806 | L152: 0.00183726794 | M152: 0.04240054391 | N152: 7.70155824e-05
A153: =IF('DF raw data'!E158="","",'DF raw data'!E158) -> -254.5 | B153: =IF('DF raw data'!F158="","",'DF raw data'!F158) -> -2.79877e-05 | C153: =IF('DF raw data'!G158="","",'DF raw data'!G158) -> 3.92527e-05 | D153: =IF('DF raw data'!H158="","",'DF raw data'!H158) -> -3.8461e-05 | F153: -2.810244957e-05 | G153: 3.941363607e-05 | H153: -3.86186901e-05 | J153: -0.0012840036 | K153: -0.02977100986 | L153: 0.001856974758 | M153: 0.04332903129 | N153: 7.956409265e-05
A154: =IF('DF raw data'!E159="","",'DF raw data'!E159) -> -254 | B154: =IF('DF raw data'!F159="","",'DF raw data'!F159) -> -2.93338e-05 | C154: =IF('DF raw data'!G159="","",'DF raw data'!G159) -> 4.44513e-05 | D154: =IF('DF raw data'!H159="","",'DF raw data'!H159) -> -3.78593e-05 | F154: -2.945406858e-05 | G154: 4.463355033e-05 | H154: -3.801452313e-05 | J154: -0.001298730634 | K154: -0.03042037517 | L154: 0.001879291533 | M154: 0.04426867706 | N154: 8.217331161e-05
A155: =IF('DF raw data'!E160="","",'DF raw data'!E160) -> -253.5 | B155: =IF('DF raw data'!F160="","",'DF raw data'!F160) -> -3.049e-05 | C155: =IF('DF raw data'!G160="","",'DF raw data'!G160) -> 5.04094e-05 | D155: =IF('DF raw data'!H160="","",'DF raw data'!H160) -> -3.42492e-05 | F155: -3.0615009e-05 | G155: 5.061607854e-05 | H155: -3.438962172e-05 | J155: -0.001314038138 | K155: -0.03107739424 | L155: 0.001904599573 | M155: 0.04522097684 | N155: 8.485040949e-05
A156: =IF('DF raw data'!E161="","",'DF raw data'!E161) -> -253 | B156: =IF('DF raw data'!F161="","",'DF raw data'!F161) -> -2.98465e-05 | C156: =IF('DF raw data'!G161="","",'DF raw data'!G161) -> 4.82504e-05 | D156: =IF('DF raw data'!H161="","",'DF raw data'!H161) -> -3.79035e-05 | F156: -2.996887065e-05 | G156: 4.844822664e-05 | H156: -3.805890435e-05 | J156: -0.001329022574 | K156: -0.03174190553 | L156: 0.001928823686 | M156: 0.04618538869 | N156: 8.75937404e-05
A157: =IF('DF raw data'!E162="","",'DF raw data'!E162) -> -252.5 | B157: =IF('DF raw data'!F162="","",'DF raw data'!F162) -> -2.92694e-05 | C157: =IF('DF raw data'!G162="","",'DF raw data'!G162) -> 4.25893e-05 | D157: =IF('DF raw data'!H162="","",'DF raw data'!H162) -> -3.86832e-05 | F157: -2.938940454e-05 | G157: 4.276391613e-05 | H157: -3.884180112e-05 | J157: -0.001343717276 | K157: -0.03241376417 | L157: 0.001950205644 | M157: 0.04716049151 | N157: 9.039817949e-05
A158: =IF('DF raw data'!E163="","",'DF raw data'!E163) -> -252 | B158: =IF('DF raw data'!F163="","",'DF raw data'!F163) -> -2.31833e-05 | C158: =IF('DF raw data'!G163="","",'DF raw data'!G163) -> 2.90039e-05 | D158: =IF('DF raw data'!H163="","",'DF raw data'!H163) -> -3.45821e-05 | F158: -2.327835153e-05 | G158: 2.912281599e-05 | H158: -3.472388661e-05 | J158: -0.001355356452 | K158: -0.03309144239 | L158: 0.001964767052 | M158: 0.04814287504 | N158: 9.324682983e-05
A159: =IF('DF raw data'!E164="","",'DF raw data'!E164) -> -251.5 | B159: =IF('DF raw data'!F164="","",'DF raw data'!F164) -> -3.31899e-05 | C159: =IF('DF raw data'!G164="","",'DF raw data'!G164) -> 2.85324e-05 | D159: =IF('DF raw data'!H164="","",'DF raw data'!H164) -> -2.16636e-05 | F159: -3.332597859e-05 | G159: 2.864938284e-05 | H159: -2.175242076e-05 | J159: -0.001372019441 | K159: -0.03377745211 | L159: 0.001979091743 | M159: 0.04913242091 | N159: 9.614645056e-05
A160: =IF('DF raw data'!E165="","",'DF raw data'!E165) -> -251 | B160: =IF('DF raw data'!F165="","",'DF raw data'!F165) -> -2.90875e-05 | C160: =IF('DF raw data'!G165="","",'DF raw data'!G165) -> 3.20208e-05 | D160: =IF('DF raw data'!H165="","",'DF raw data'!H165) -> -2.24832e-05 | F160: -2.920675875e-05 | G160: 3.215208528e-05 | H160: -2.257538112e-05 | J160: -0.001386622821 | K160: -0.03447076352 | L160: 0.001995167786 | M160: 0.0501300048 | N160: 9.909815923e-05
A161: =IF('DF raw data'!E166="","",'DF raw data'!E166) -> -250.5 | B161: =IF('DF raw data'!F166="","",'DF raw data'!F166) -> -3.72215e-05 | C161: =IF('DF raw data'!G166="","",'DF raw data'!G166) -> 3.66209e-05 | D161: =IF('DF raw data'!H166="","",'DF raw data'!H166) -> -3.0973e-05 | F161: -3.737410815e-05 | G161: 3.677104569e-05 | H161: -3.10999893e-05 | J161: -0.001405309875 | K161: -0.03517341846 | L161: 0.002013553309 | M161: 0.05113678145 | N161: 0.0001021128056
A162: =IF('DF raw data'!E167="","",'DF raw data'!E167) -> -250 | B162: =IF('DF raw data'!F167="","",'DF raw data'!F167) -> -3.12636e-05 | C162: =IF('DF raw data'!G167="","",'DF raw data'!G167) -> 3.58196e-05 | D162: =IF('DF raw data'!H167="","",'DF raw data'!H167) -> -2.72566e-05 | F162: -3.139178076e-05 | G162: 3.596646036e-05 | H162: -2.736835206e-05 | J162: -0.001421005765 | K162: -0.03588392134 | L162: 0.002031536539 | M162: 0.05215254972 | N162: 0.0001051860047
A163: =IF('DF raw data'!E168="","",'DF raw data'!E168) -> -249.5 | B163: =IF('DF raw data'!F168="","",'DF raw data'!F168) -> -3.93932e-05 | C163: =IF('DF raw data'!G168="","",'DF raw data'!G168) -> 4.19594e-05 | D163: =IF('DF raw data'!H168="","",'DF raw data'!H168) -> -4.23135e-05 | F163: -3.955471212e-05 | G163: 4.213143354e-05 | H163: -4.248698535e-05 | J163: -0.001440783121 | K163: -0.03660431291 | L163: 0.002052602256 | M163: 0.05317885085 | N163: 0.0001083305207
A164: =IF('DF raw data'!E169="","",'DF raw data'!E169) -> -249 | B164: =IF('DF raw data'!F169="","",'DF raw data'!F169) -> -3.13214e-05 | C164: =IF('DF raw data'!G169="","",'DF raw data'!G169) -> 4.50233e-05 | D164: =IF('DF raw data'!H169="","",'DF raw data'!H169) -> -3.68525e-05 | F164: -3.144981774e-05 | G164: 4.520789553e-05 | H164: -3.700359525e-05 | J164: -0.00145650803 | K164: -0.03733256692 | L164: 0.002075206204 | M164: 0.05421645395 | N164: 0.0001115444689
A165: =IF('DF raw data'!E170="","",'DF raw data'!E170) -> -248.5 | B165: =IF('DF raw data'!F170="","",'DF raw data'!F170) -> -3.4079e-05 | C165: =IF('DF raw data'!G170="","",'DF raw data'!G170) -> 3.94374e-05 | D165: =IF('DF raw data'!H170="","",'DF raw data'!H170) -> -3.4243e-05 | F165: -3.42187239e-05 | G165: 3.959909334e-05 | H165: -3.43833963e-05 | J165: -0.001473617392 | K165: -0.03806937562 | L165: 0.00209500575 | M165: 0.05526395683 | N165: 0.0001148247675
A166: =IF('DF raw data'!E171="","",'DF raw data'!E171) -> -248 | B166: =IF('DF raw data'!F171="","",'DF raw data'!F171) -> -2.70345e-05 | C166: =IF('DF raw data'!G171="","",'DF raw data'!G171) -> 3.28673e-05 | D166: =IF('DF raw data'!H171="","",'DF raw data'!H171) -> -2.58555e-05 | F166: -2.714534145e-05 | G166: 3.300205593e-05 | H166: -2.596150755e-05 | J166: -0.001487190063 | K166: -0.03881297065 | L166: 0.002111506778 | M166: 0.05631971022 | N166: 0.0001181598651
A167: =IF('DF raw data'!E172="","",'DF raw data'!E172) -> -247.5 | B167: =IF('DF raw data'!F172="","",'DF raw data'!F172) -> -2.98486e-05 | C167: =IF('DF raw data'!G172="","",'DF raw data'!G172) -> 4.14306e-05 | D167: =IF('DF raw data'!H172="","",'DF raw data'!H172) -> -3.47399e-05 | F167: -2.997097926e-05 | G167: 4.160046546e-05 | H167: -3.488233359e-05 | J167: -0.001502175552 | K167: -0.03956405842 | L167: 0.002132307011 | M167: 0.05738586372 | N167: 0.0001215614974
A168: =IF('DF raw data'!E173="","",'DF raw data'!E173) -> -247 | B168: =IF('DF raw data'!F173="","",'DF raw data'!F173) -> -2.68357e-05 | C168: =IF('DF raw data'!G173="","",'DF raw data'!G173) -> 4.10554e-05 | D168: =IF('DF raw data'!H173="","",'DF raw data'!H173) -> -3.57188e-05 | F168: -2.694572637e-05 | G168: 4.122372714e-05 | H168: -3.586524708e-05 | J168: -0.001515648415 | K168: -0.04032188263 | L168: 0.002152918875 | M168: 0.05846232316 | N168: 0.0001250276223
A169: =IF('DF raw data'!E174="","",'DF raw data'!E174) -> -246.5 | B169: =IF('DF raw data'!F174="","",'DF raw data'!F174) -> -2.27277e-05 | C169: =IF('DF raw data'!G174="","",'DF raw data'!G174) -> 4.2182e-05 | D169: =IF('DF raw data'!H174="","",'DF raw data'!H174) -> -4.54244e-05 | F169: -2.282088357e-05 | G169: 4.23549462e-05 | H169: -4.561064004e-05 | J169: -0.001527058857 | K169: -0.04108541206 | L169: 0.002174096348 | M169: 0.05954937133 | N169: 0.0001285569242
A170: =IF('DF raw data'!E175="","",'DF raw data'!E175) -> -246 | B170: =IF('DF raw data'!F175="","",'DF raw data'!F175) -> -2.19692e-05 | C170: =IF('DF raw data'!G175="","",'DF raw data'!G175) -> 3.47587e-05 | D170: =IF('DF raw data'!H175="","",'DF raw data'!H175) -> -2.9192e-05 | F170: -2.205927372e-05 | G170: 3.490121067e-05 | H170: -2.93116872e-05 | J170: -0.001538088494 | K170: -0.04185445631 | L170: 0.002191546953 | M170: 0.06064514481 | N170: 0.0001321412213
A171: =IF('DF raw data'!E176="","",'DF raw data'!E176) -> -245.5 | B171: =IF('DF raw data'!F176="","",'DF raw data'!F176) -> -2.56234e-05 | C171: =IF('DF raw data'!G176="","",'DF raw data'!G176) -> 3.6102e-05 | D171: =IF('DF raw data'!H176="","",'DF raw data'!H176) -> -2.7609e-05 | F171: -2.572845594e-05 | G171: 3.62500182e-05 | H171: -2.77221969e-05 | J171: -0.001550952722 | K171: -0.04262993267 | L171: 0.002209671962 | M171: 0.06174998079 | N171: 0.0001357852736
A172: =IF('DF raw data'!E177="","",'DF raw data'!E177) -> -245 | B172: =IF('DF raw data'!F177="","",'DF raw data'!F177) -> -2.40213e-05 | C172: =IF('DF raw data'!G177="","",'DF raw data'!G177) -> 3.55553e-05 | D172: =IF('DF raw data'!H177="","",'DF raw data'!H177) -> -2.71716e-05 | F172: -2.411978733e-05 | G172: 3.570107673e-05 | H172: -2.728300356e-05 | J172: -0.001563012616 | K172: -0.04341143898 | L172: 0.0022275225 | M172: 0.06286374204 | N172: 0.000139487706
A173: =IF('DF raw data'!E178="","",'DF raw data'!E178) -> -244.5 | B173: =IF('DF raw data'!F178="","",'DF raw data'!F178) -> -2.31954e-05 | C173: =IF('DF raw data'!G178="","",'DF raw data'!G178) -> 4.25084e-05 | D173: =IF('DF raw data'!H178="","",'DF raw data'!H178) -> -1.5907e-05 | F173: -2.329050114e-05 | G173: 4.268268444e-05 | H173: -1.59722187e-05 | J173: -0.001574657866 | K173: -0.04419876791 | L173: 0.002248863843 | M173: 0.06398817396 | N173: 0.000143256174
A174: =IF('DF raw data'!E179="","",'DF raw data'!E179) -> -244 | B174: =IF('DF raw data'!F179="","",'DF raw data'!F179) -> -1.90262e-05 | C174: =IF('DF raw data'!G179="","",'DF raw data'!G179) -> 3.81878e-05 | D174: =IF('DF raw data'!H179="","",'DF raw data'!H179) -> -2.10718e-05 | F174: -1.910420742e-05 | G174: 3.834436998e-05 | H174: -2.115819438e-05 | J174: -0.00158420997 | K174: -0.04499087289 | L174: 0.002268036028 | M174: 0.06512219198 | N174: 0.0001470830283
A175: =IF('DF raw data'!E180="","",'DF raw data'!E180) -> -243.5 | B175: =IF('DF raw data'!F180="","",'DF raw data'!F180) -> -1.59447e-05 | C175: =IF('DF raw data'!G180="","",'DF raw data'!G180) -> 2.86435e-05 | D175: =IF('DF raw data'!H180="","",'DF raw data'!H180) -> -2.91715e-05 | F175: -1.601007327e-05 | G175: 2.876093835e-05 | H175: -2.929110315e-05 | J175: -0.001592215007 | K175: -0.0457869804 | L175: 0.002282416497 | M175: 0.06626340023 | N175: 0.0001509553152
A176: =IF('DF raw data'!E181="","",'DF raw data'!E181) -> -243 | B176: =IF('DF raw data'!F181="","",'DF raw data'!F181) -> -2.70344e-05 | C176: =IF('DF raw data'!G181="","",'DF raw data'!G181) -> 2.87869e-05 | D176: =IF('DF raw data'!H181="","",'DF raw data'!H181) -> -2.60298e-05 | F176: -2.714524104e-05 | G176: 2.890492629e-05 | H176: -2.613652218e-05 | J176: -0.001605787627 | K176: -0.04658987421 | L176: 0.00229686896 | M176: 0.06741183471 | N176: 0.0001548823956
A177: =IF('DF raw data'!E182="","",'DF raw data'!E182) -> -242.5 | B177: =IF('DF raw data'!F182="","",'DF raw data'!F182) -> -1.45927e-05 | C177: =IF('DF raw data'!G182="","",'DF raw data'!G182) -> 2.99082e-05 | D177: =IF('DF raw data'!H182="","",'DF raw data'!H182) -> -3.83479e-05 | F177: -1.465253007e-05 | G177: 3.003082362e-05 | H177: -3.850512639e-05 | J177: -0.001613113892 | K177: -0.04739643116 | L177: 0.002311884372 | M177: 0.06856777689 | N177: 0.0001588558685
A178: =IF('DF raw data'!E183="","",'DF raw data'!E183) -> -242 | B178: =IF('DF raw data'!F183="","",'DF raw data'!F183) -> -2.29246e-05 | C178: =IF('DF raw data'!G183="","",'DF raw data'!G183) -> 2.33548e-05 | D178: =IF('DF raw data'!H183="","",'DF raw data'!H183) -> -3.81976e-05 | F178: -2.301859086e-05 | G178: 2.345055468e-05 | H178: -3.835421016e-05 | J178: -0.001624623188 | K178: -0.04820874275 | L178: 0.002323609649 | M178: 0.06972958172 | N178: 0.0001628751497
A179: =IF('DF raw data'!E184="","",'DF raw data'!E184) -> -241.5 | B179: =IF('DF raw data'!F184="","",'DF raw data'!F184) -> -2.62671e-05 | C179: =IF('DF raw data'!G184="","",'DF raw data'!G184) -> 3.76208e-05 | D179: =IF('DF raw data'!H184="","",'DF raw data'!H184) -> -2.31794e-05 | F179: -2.637479511e-05 | G179: 3.777504528e-05 | H179: -2.327443554e-05 | J179: -0.001637810585 | K179: -0.04902764804 | L179: 0.002342497172 | M179: 0.0709008303 | N179: 0.0001669600079
A180: =IF('DF raw data'!E185="","",'DF raw data'!E185) -> -241 | B180: =IF('DF raw data'!F185="","",'DF raw data'!F185) -> -3.05583e-05 | C180: =IF('DF raw data'!G185="","",'DF raw data'!G185) -> 4.03921e-05 | D180: =IF('DF raw data'!H185="","",'DF raw data'!H185) -> -2.76095e-05 | F180: -3.068358903e-05 | G180: 4.055770761e-05 | H180: -2.772269895e-05 | J180: -0.00165315238 | K180: -0.04985422423 | L180: 0.002362776026 | M180: 0.07208221832 | N180: 0.0001711178196
A181: =IF('DF raw data'!E186="","",'DF raw data'!E186) -> -240.5 | B181: =IF('DF raw data'!F186="","",'DF raw data'!F186) -> -3.06893e-05 | C181: =IF('DF raw data'!G186="","",'DF raw data'!G186) -> 4.14234e-05 | D181: =IF('DF raw data'!H186="","",'DF raw data'!H186) -> -2.3275e-05 | F181: -3.081512613e-05 | G181: 4.159323594e-05 | H181: -2.33704275e-05 | J181: -0.001668559943 | K181: -0.0506885042 | L181: 0.002383572644 | M181: 0.07327400464 | N181: 0.000175350575
A182: =IF('DF raw data'!E187="","",'DF raw data'!E187) -> -240 | B182: =IF('DF raw data'!F187="","",'DF raw data'!F187) -> -2.83819e-05 | C182: =IF('DF raw data'!G187="","",'DF raw data'!G187) -> 4.4673e-05 | D182: =IF('DF raw data'!H187="","",'DF raw data'!H187) -> -2.36387e-05 | F182: -2.849826579e-05 | G182: 4.48561593e-05 | H182: -2.373561867e-05 | J182: -0.001682809076 | K182: -0.05152990874 | L182: 0.002406000723 | M182: 0.074477005 | N182: 0.000179660918
A183: =IF('DF raw data'!E188="","",'DF raw data'!E188) -> -239.5 | B183: =IF('DF raw data'!F188="","",'DF raw data'!F188) -> -3.79921e-05 | C183: =IF('DF raw data'!G188="","",'DF raw data'!G188) -> 4.08314e-05 | D183: =IF('DF raw data'!H188="","",'DF raw data'!H188) -> -2.86674e-05 | F183: -3.814786761e-05 | G183: 4.099880874e-05 | H183: -2.878493634e-05 | J183: -0.001701883009 | K183: -0.05238085025 | L183: 0.002426500128 | M183: 0.07569025506 | N183: 0.0001840530723
A184: =IF('DF raw data'!E189="","",'DF raw data'!E189) -> -239 | B184: =IF('DF raw data'!F189="","",'DF raw data'!F189) -> -3.08206e-05 | C184: =IF('DF raw data'!G189="","",'DF raw data'!G189) -> 3.84966e-05 | D184: =IF('DF raw data'!H189="","",'DF raw data'!H189) -> -1.85165e-05 | F184: -3.094696446e-05 | G184: 3.865443606e-05 | H184: -1.859241765e-05 | J184: -0.001717356492 | K184: -0.05323952849 | L184: 0.002445827346 | M184: 0.07691316874 | N184: 0.0001885187646
A185: =IF('DF raw data'!E190="","",'DF raw data'!E190) -> -238.5 | B185: =IF('DF raw data'!F190="","",'DF raw data'!F190) -> -2.89611e-05 | C185: =IF('DF raw data'!G190="","",'DF raw data'!G190) -> 3.86987e-05 | D185: =IF('DF raw data'!H190="","",'DF raw data'!H190) -> -1.96527e-05 | F185: -2.907984051e-05 | G185: 3.885736467e-05 | H185: -1.973327607e-05 | J185: -0.001731896412 | K185: -0.0541054767 | L185: 0.002465256028 | M185: 0.07814579675 | N185: 0.0001930572409
A186: =IF('DF raw data'!E191="","",'DF raw data'!E191) -> -238 | B186: =IF('DF raw data'!F191="","",'DF raw data'!F191) -> -3.51777e-05 | C186: =IF('DF raw data'!G191="","",'DF raw data'!G191) -> 4.00389e-05 | D186: =IF('DF raw data'!H191="","",'DF raw data'!H191) -> -2.02015e-05 | F186: -3.532192857e-05 | G186: 4.020305949e-05 | H186: -2.028432615e-05 | J186: -0.001749557376 | K186: -0.05498025539 | L186: 0.002485357558 | M186: 0.07938847553 | N186: 0.0001976762175
A187: =IF('DF raw data'!E192="","",'DF raw data'!E192) -> -237.5 | B187: =IF('DF raw data'!F192="","",'DF raw data'!F192) -> -2.74155e-05 | C187: =IF('DF raw data'!G192="","",'DF raw data'!G192) -> 3.80193e-05 | D187: =IF('DF raw data'!H192="","",'DF raw data'!H192) -> -3.13414e-05 | F187: -2.752790355e-05 | G187: 3.817517913e-05 | H187: -3.146989974e-05 | J187: -0.001763321328 | K187: -0.05586191605 | L187: 0.002504445147 | M187: 0.0806406981 | N187: 0.0002023669913
A188: =IF('DF raw data'!E193="","",'DF raw data'!E193) -> -237 | B188: =IF('DF raw data'!F193="","",'DF raw data'!F193) -> -3.52417e-05 | C188: =IF('DF raw data'!G193="","",'DF raw data'!G193) -> 3.1937e-05 | D188: =IF('DF raw data'!H193="","",'DF raw data'!H193) -> -2.01406e-05 | F188: -3.538619097e-05 | G188: 3.20679417e-05 | H188: -2.022317646e-05 | J188: -0.001781014423 | K188: -0.05675242326 | L188: 0.002520479118 | M188: 0.08190093766 | N188: 0.000207129405
A189: =IF('DF raw data'!E194="","",'DF raw data'!E194) -> -236.5 | B189: =IF('DF raw data'!F194="","",'DF raw data'!F194) -> -2.40938e-05 | C189: =IF('DF raw data'!G194="","",'DF raw data'!G194) -> 3.3995e-05 | D189: =IF('DF raw data'!H194="","",'DF raw data'!H194) -> -1.40589e-05 | F189: -2.419258458e-05 | G189: 3.41343795e-05 | H189: -1.411654149e-05 | J189: -0.001793110716 | K189: -0.05764897862 | L189: 0.002537546308 | M189: 0.08316971082 | N189: 0.0002119565986
A190: =IF('DF raw data'!E195="","",'DF raw data'!E195) -> -236 | B190: =IF('DF raw data'!F195="","",'DF raw data'!F195) -> -1.62684e-05 | C190: =IF('DF raw data'!G195="","",'DF raw data'!G195) -> 3.79457e-05 | D190: =IF('DF raw data'!H195="","",'DF raw data'!H195) -> -2.39571e-05 | F190: -1.633510044e-05 | G190: 3.810127737e-05 | H190: -2.405532411e-05 | J190: -0.001801278266 | K190: -0.05854961775 | L190: 0.002556596947 | M190: 0.08444800929 | N190: 0.0002168469943
A191: =IF('DF raw data'!E196="","",'DF raw data'!E196) -> -235.5 | B191: =IF('DF raw data'!F196="","",'DF raw data'!F196) -> -2.56868e-05 | C191: =IF('DF raw data'!G196="","",'DF raw data'!G196) -> 3.21833e-05 | D191: =IF('DF raw data'!H196="","",'DF raw data'!H196) -> -2.84549e-05 | F191: -2.579211588e-05 | G191: 3.231525153e-05 | H191: -2.857156509e-05 | J191: -0.001814174324 | K191: -0.05945670491 | L191: 0.002572754572 | M191: 0.08573438657 | N191: 0.0002218021416
A192: =IF('DF raw data'!E197="","",'DF raw data'!E197) -> -235 | B192: =IF('DF raw data'!F197="","",'DF raw data'!F197) -> -2.72223e-05 | C192: =IF('DF raw data'!G197="","",'DF raw data'!G197) -> 3.83764e-05 | D192: =IF('DF raw data'!H197="","",'DF raw data'!H197) -> -3.25709e-05 | F192: =(1-$G$1*($B$49-$G$2))*B192 -> -2.733391143e-05 | G192: 3.853374324e-05 | H192: -3.270444069e-05 | J192: =F192*$G$3+J191 -> -0.00182784128 | K192: =J192*$G$3+K191 -> -0.06037062555 | L192: =G192*$G$3+L191 -> 0.002592021444 | M192: =L192*$G$3+M191 -> 0.0870303973 | N192: =(J192^2+L192^2)*$G$3+N191 -> 0.000226831931
A193: =IF('DF raw data'!E198="","",'DF raw data'!E198) -> -234.5 | B193: =IF('DF raw data'!F198="","",'DF raw data'!F198) -> -2.36313e-05 | C193: =IF('DF raw data'!G198="","",'DF raw data'!G198) -> 4.43267e-05 | D193: =IF('DF raw data'!H198="","",'DF raw data'!H198) -> -3.56688e-05 | F193: -2.372818833e-05 | G193: 4.450843947e-05 | H193: -3.581504208e-05 | J193: -0.001839705374 | K193: -0.06129047824 | L193: 0.002614275664 | M193: 0.08833753513 | N193: 0.0002319414076
A194: =IF('DF raw data'!E199="","",'DF raw data'!E199) -> -234 | B194: =IF('DF raw data'!F199="","",'DF raw data'!F199) -> -2.68968e-05 | C194: =IF('DF raw data'!G199="","",'DF raw data'!G199) -> 3.97237e-05 | D194: =IF('DF raw data'!H199="","",'DF raw data'!H199) -> -4.05886e-05 | F194: -2.700707688e-05 | G194: 3.988656717e-05 | H194: -4.075501326e-05 | J194: -0.001853208912 | K194: -0.0622170827 | L194: 0.002634218947 | M194: 0.0896546446 | N194: 0.0002371281539
A195: =IF('DF raw data'!E200="","",'DF raw data'!E200) -> -233.5 | B195: =IF('DF raw data'!F200="","",'DF raw data'!F200) -> -2.97856e-05 | C195: =IF('DF raw data'!G200="","",'DF raw data'!G200) -> 4.04843e-05 | D195: =IF('DF raw data'!H200="","",'DF raw data'!H200) -> -3.32561e-05 | F195: -2.990772096e-05 | G195: 4.065028563e-05 | H195: -3.339245001e-05 | J195: -0.001868162773 | K195: -0.06315116408 | L195: 0.00265454409 | M195: 0.09098191665 | N195: 0.0002423964722
A196: =IF('DF raw data'!E201="","",'DF raw data'!E201) -> -233 | B196: =IF('DF raw data'!F201="","",'DF raw data'!F201) -> -3.47213e-05 | C196: =IF('DF raw data'!G201="","",'DF raw data'!G201) -> 4.28939e-05 | D196: =IF('DF raw data'!H201="","",'DF raw data'!H201) -> -3.20623e-05 | F196: -3.486365733e-05 | G196: 4.306976499e-05 | H196: -3.219375543e-05 | J196: -0.001885594601 | K196: -0.06409396138 | L196: 0.002676078973 | M196: 0.09231995613 | N196: 0.000247754905
A197: =IF('DF raw data'!E202="","",'DF raw data'!E202) -> -232.5 | B197: =IF('DF raw data'!F202="","",'DF raw data'!F202) -> -3.33162e-05 | C197: =IF('DF raw data'!G202="","",'DF raw data'!G202) -> 4.34084e-05 | D197: =IF('DF raw data'!H202="","",'DF raw data'!H202) -> -2.46559e-05 | F197: -3.345279642e-05 | G197: 4.358637444e-05 | H197: -2.475698919e-05 | J197: -0.001902321 | K197: -0.06504512188 | L197: 0.00269787216 | M197: 0.09366889221 | N197: 0.0002532035747
A198: =IF('DF raw data'!E203="","",'DF raw data'!E203) -> -232 | B198: =IF('DF raw data'!F203="","",'DF raw data'!F203) -> -3.23523e-05 | C198: =IF('DF raw data'!G203="","",'DF raw data'!G203) -> 3.79957e-05 | D198: =IF('DF raw data'!H203="","",'DF raw data'!H203) -> -2.83818e-05 | F198: -3.248494443e-05 | G198: 3.815148237e-05 | H198: -2.849816538e-05 | J198: -0.001918563472 | K198: -0.06600440362 | L198: 0.002716947901 | M198: 0.09502736616 | N198: 0.0002587349205
A199: =IF('DF raw data'!E204="","",'DF raw data'!E204) -> -231.5 | B199: =IF('DF raw data'!F204="","",'DF raw data'!F204) -> -2.0241e-05 | C199: =IF('DF raw data'!G204="","",'DF raw data'!G204) -> 3.65131e-05 | D199: =IF('DF raw data'!H204="","",'DF raw data'!H204) -> -2.57416e-05 | F199: -2.03239881e-05 | G199: 3.666280371e-05 | H199: -2.584714056e-05 | J199: -0.001928725466 | K199: -0.06696876635 | L199: 0.002735279303 | M199: 0.09639500582 | N199: 0.0002643357879
A200: =IF('DF raw data'!E205="","",'DF raw data'!E205) -> -231 | B200: =IF('DF raw data'!F205="","",'DF raw data'!F205) -> -2.21017e-05 | C200: =IF('DF raw data'!G205="","",'DF raw data'!G205) -> 2.7438e-05 | D200: =IF('DF raw data'!H205="","",'DF raw data'!H205) -> -2.2577e-05 | F200: -2.219231697e-05 | G200: 2.75504958e-05 | H200: -2.26695657e-05 | J200: -0.001939821624 | K200: -0.06793867717 | L200: 0.002749054551 | M200: 0.09776953309 | N200: 0.0002699958924
A201: =IF('DF raw data'!E206="","",'DF raw data'!E206) -> -230.5 | B201: =IF('DF raw data'!F206="","",'DF raw data'!F206) -> -5.57013e-06 | C201: =IF('DF raw data'!G206="","",'DF raw data'!G206) -> 3.10274e-05 | D201: =IF('DF raw data'!H206="","",'DF raw data'!H206) -> -1.64675e-05 | F201: -5.592967533e-06 | G201: 3.115461234e-05 | H201: -1.653501675e-05 | J201: -0.001942618108 | K201: -0.06890998622 | L201: 0.002764631857 | M201: 0.09915184902 | N201: 0.0002757043696
... 1061 more rows

Sheet 10 y=0
A1: =IF('DF raw data'!I1="","",'DF raw data'!I1) -> Number of header lines | B1: =IF('DF raw data'!J1="","",'DF raw data'!J1) -> 54 | C1: =IF('DF raw data'!K1="","",'DF raw data'!K1) ->  | D1: =IF('DF raw data'!L1="","",'DF raw data'!L1) ->  | F1: T_coeff | G1: -0.001 | H1: /degC | J1: IBy total | K1: =J1262*1000 -> -15.72119707 | L1: muTm | M1: =L1262*1000 -> -9.924231569 | R1: DF ref | S1: ='10 y=-0.2'!S1 -> 1
A2: =IF('DF raw data'!I2="","",'DF raw data'!I2) -> Measured by | B2: =IF('DF raw data'!J2="","",'DF raw data'!J2) -> Danfysik | C2: =IF('DF raw data'!K2="","",'DF raw data'!K2) ->  | D2: =IF('DF raw data'!L2="","",'DF raw data'!L2) ->  | F2: Tcorr | G2: 20 | H2: degC | J2: JBy total | K2: =K1262 -> -12.04091419 | L2: muTm^2 | M2: =M1262 -> -1.092248907
A3: =IF('DF raw data'!I3="","",'DF raw data'!I3) -> Operator | B3: =IF('DF raw data'!J3="","",'DF raw data'!J3) -> PMHA | C3: =IF('DF raw data'!K3="","",'DF raw data'!K3) ->  | D3: =IF('DF raw data'!L3="","",'DF raw data'!L3) ->  | F3: Step | G3: =A63-A62 -> 0.5 | H3: mm | J3: PI total | K3: =N1262 -> 10562.16169 | L3: T^2mm^3
A4: =IF('DF raw data'!I4="","",'DF raw data'!I4) -> Data-time | B4: =IF('DF raw data'!J4="","",'DF raw data'!J4) -> 02-09-2024, 13:02:30 | C4: =IF('DF raw data'!K4="","",'DF raw data'!K4) ->  | D4: =IF('DF raw data'!L4="","",'DF raw data'!L4) -> 
A5: =IF('DF raw data'!I5="","",'DF raw data'!I5) -> Project | B5: =IF('DF raw data'!J5="","",'DF raw data'!J5) -> 504314 | C5: =IF('DF raw data'!K5="","",'DF raw data'!K5) ->  | D5: =IF('DF raw data'!L5="","",'DF raw data'!L5) -> 
A6: =IF('DF raw data'!I6="","",'DF raw data'!I6) -> Magnet type | B6: =IF('DF raw data'!J6="","",'DF raw data'!J6) -> Dipole | C6: =IF('DF raw data'!K6="","",'DF raw data'!K6) ->  | D6: =IF('DF raw data'!L6="","",'DF raw data'!L6) -> 
A7: =IF('DF raw data'!I7="","",'DF raw data'!I7) -> Magnet nr. | B7: =IF('DF raw data'!J7="","",'DF raw data'!J7) -> 2410089 | C7: =IF('DF raw data'!K7="","",'DF raw data'!K7) ->  | D7: =IF('DF raw data'!L7="","",'DF raw data'!L7) -> 
A8: =IF('DF raw data'!I8="","",'DF raw data'!I8) -> Meas. number | B8: =IF('DF raw data'!J8="","",'DF raw data'!J8) -> 300 | C8: =IF('DF raw data'!K8="","",'DF raw data'!K8) ->  | D8: =IF('DF raw data'!L8="","",'DF raw data'!L8) -> 
A9: =IF('DF raw data'!I9="","",'DF raw data'!I9) -> Add. info | B9: =IF('DF raw data'!J9="","",'DF raw data'!J9) -> Y-alignment scan 3) | C9: =IF('DF raw data'!K9="","",'DF raw data'!K9) ->  | D9: =IF('DF raw data'!L9="","",'DF raw data'!L9) -> 
A10: =IF('DF raw data'!I10="","",'DF raw data'!I10) -> Device | B10: =IF('DF raw data'!J10="","",'DF raw data'!J10) -> (HAL) HALL-PROBE | C10: =IF('DF raw data'!K10="","",'DF raw data'!K10) ->  | D10: =IF('DF raw data'!L10="","",'DF raw data'!L10) -> 
A11: =IF('DF raw data'!I11="","",'DF raw data'!I11) -> Goal | B11: =IF('DF raw data'!J11="","",'DF raw data'!J11) -> (AXI) AXis Integral (Line, EFB) | C11: =IF('DF raw data'!K11="","",'DF raw data'!K11) ->  | D11: =IF('DF raw data'!L11="","",'DF raw data'!L11) -> 
A12: =IF('DF raw data'!I12="","",'DF raw data'!I12) -> Power supply mode | B12: =IF('DF raw data'!J12="","",'DF raw data'!J12) -> (PM) Permanent Magnet (no MPS in use) | C12: =IF('DF raw data'!K12="","",'DF raw data'!K12) ->  | D12: =IF('DF raw data'!L12="","",'DF raw data'!L12) -> 
A13: =IF('DF raw data'!I13="","",'DF raw data'!I13) -> Data format | B13: =IF('DF raw data'!J13="","",'DF raw data'!J13) -> Raw data text file | C13: =IF('DF raw data'!K13="","",'DF raw data'!K13) ->  | D13: =IF('DF raw data'!L13="","",'DF raw data'!L13) -> 
A14: =IF('DF raw data'!I14="","",'DF raw data'!I14) -> Direction of the pos. x-axis | B14: =IF('DF raw data'!J14="","",'DF raw data'!J14) -> See test program | C14: =IF('DF raw data'!K14="","",'DF raw data'!K14) ->  | D14: =IF('DF raw data'!L14="","",'DF raw data'!L14) -> 
A15: =IF('DF raw data'!I15="","",'DF raw data'!I15) -> Direction of the pos. y-axis | B15: =IF('DF raw data'!J15="","",'DF raw data'!J15) -> Vertical up | C15: =IF('DF raw data'!K15="","",'DF raw data'!K15) ->  | D15: =IF('DF raw data'!L15="","",'DF raw data'!L15) -> 
A16: =IF('DF raw data'!I16="","",'DF raw data'!I16) -> Direction of the pos. z-axis | B16: =IF('DF raw data'!J16="","",'DF raw data'!J16) -> See test program | C16: =IF('DF raw data'!K16="","",'DF raw data'!K16) ->  | D16: =IF('DF raw data'!L16="","",'DF raw data'!L16) -> 
A17: =IF('DF raw data'!I17="","",'DF raw data'!I17) -> Mapper type | B17: =IF('DF raw data'!J17="","",'DF raw data'!J17) -> Precision Hall Mapper | C17: =IF('DF raw data'!K17="","",'DF raw data'!K17) ->  | D17: =IF('DF raw data'!L17="","",'DF raw data'!L17) -> 
A18: =IF('DF raw data'!I18="","",'DF raw data'!I18) -> Mapper Danfysik Reg. Number | B18: =IF('DF raw data'!J18="","",'DF raw data'!J18) -> 2033-D (mapper 1) | C18: =IF('DF raw data'!K18="","",'DF raw data'!K18) ->  | D18: =IF('DF raw data'!L18="","",'DF raw data'!L18) -> 
A19: =IF('DF raw data'!I19="","",'DF raw data'!I19) -> Measurement consept | B19: =IF('DF raw data'!J19="","",'DF raw data'!J19) -> Square line grid | C19: =IF('DF raw data'!K19="","",'DF raw data'!K19) ->  | D19: =IF('DF raw data'!L19="","",'DF raw data'!L19) -> 
A20: =IF('DF raw data'!I20="","",'DF raw data'!I20) -> Mode | B20: =IF('DF raw data'!J20="","",'DF raw data'!J20) -> On-the-fly measurement | C20: =IF('DF raw data'!K20="","",'DF raw data'!K20) ->  | D20: =IF('DF raw data'!L20="","",'DF raw data'!L20) -> 
A21: =IF('DF raw data'!I21="","",'DF raw data'!I21) ->  | B21: =IF('DF raw data'!J21="","",'DF raw data'!J21) ->  | C21: =IF('DF raw data'!K21="","",'DF raw data'!K21) ->  | D21: =IF('DF raw data'!L21="","",'DF raw data'!L21) -> 
A22: =IF('DF raw data'!I22="","",'DF raw data'!I22) -> Probe Name | B22: =IF('DF raw data'!J22="","",'DF raw data'!J22) -> ID12_By | C22: =IF('DF raw data'!K22="","",'DF raw data'!K22) ->  | D22: =IF('DF raw data'!L22="","",'DF raw data'!L22) -> 
A23: =IF('DF raw data'!I23="","",'DF raw data'!I23) -> Probe Type | B23: =IF('DF raw data'!J23="","",'DF raw data'!J23) -> DF_ID_3D_Bxyz | C23: =IF('DF raw data'!K23="","",'DF raw data'!K23) ->  | D23: =IF('DF raw data'!L23="","",'DF raw data'!L23) -> 
A24: =IF('DF raw data'!I24="","",'DF raw data'!I24) -> Probe Danfysik Reg. Number | B24: =IF('DF raw data'!J24="","",'DF raw data'!J24) -> 2277 | C24: =IF('DF raw data'!K24="","",'DF raw data'!K24) ->  | D24: =IF('DF raw data'!L24="","",'DF raw data'!L24) -> 
A25: =IF('DF raw data'!I25="","",'DF raw data'!I25) -> Probe Axis | B25: =IF('DF raw data'!J25="","",'DF raw data'!J25) -> By | C25: =IF('DF raw data'!K25="","",'DF raw data'!K25) ->  | D25: =IF('DF raw data'!L25="","",'DF raw data'!L25) -> 
A26: =IF('DF raw data'!I26="","",'DF raw data'!I26) -> Probe Current Supply | B26: =IF('DF raw data'!J26="","",'DF raw data'!J26) -> 1825-D | C26: =IF('DF raw data'!K26="","",'DF raw data'!K26) ->  | D26: =IF('DF raw data'!L26="","",'DF raw data'!L26) -> 
A27: =IF('DF raw data'!I27="","",'DF raw data'!I27) -> Probe Gain Correction | B27: =IF('DF raw data'!J27="","",'DF raw data'!J27) -> 0.99611 | C27: =IF('DF raw data'!K27="","",'DF raw data'!K27) ->  | D27: =IF('DF raw data'!L27="","",'DF raw data'!L27) -> 
A28: =IF('DF raw data'!I28="","",'DF raw data'!I28) -> Probe Offset Correction | B28: =IF('DF raw data'!J28="","",'DF raw data'!J28) -> 0.0027639 | C28: =IF('DF raw data'!K28="","",'DF raw data'!K28) ->  | D28: =IF('DF raw data'!L28="","",'DF raw data'!L28) -> 
A29: =IF('DF raw data'!I29="","",'DF raw data'!I29) -> DVM Number | B29: =IF('DF raw data'!J29="","",'DF raw data'!J29) -> 2 | C29: =IF('DF raw data'!K29="","",'DF raw data'!K29) ->  | D29: =IF('DF raw data'!L29="","",'DF raw data'!L29) -> 
A30: =IF('DF raw data'!I30="","",'DF raw data'!I30) -> DVM Type | B30: =IF('DF raw data'!J30="","",'DF raw data'!J30) -> K2701 | C30: =IF('DF raw data'!K30="","",'DF raw data'!K30) ->  | D30: =IF('DF raw data'!L30="","",'DF raw data'!L30) -> 
A31: =IF('DF raw data'!I31="","",'DF raw data'!I31) -> DVM Danfysik Reg. Number | B31: =IF('DF raw data'!J31="","",'DF raw data'!J31) -> 1743-D | C31: =IF('DF raw data'!K31="","",'DF raw data'!K31) ->  | D31: =IF('DF raw data'!L31="","",'DF raw data'!L31) -> 
A32: =IF('DF raw data'!I32="","",'DF raw data'!I32) -> Probe Name | B32: =IF('DF raw data'!J32="","",'DF raw data'!J32) -> ID12_Bx | C32: =IF('DF raw data'!K32="","",'DF raw data'!K32) ->  | D32: =IF('DF raw data'!L32="","",'DF raw data'!L32) -> 
A33: =IF('DF raw data'!I33="","",'DF raw data'!I33) -> Probe Type | B33: =IF('DF raw data'!J33="","",'DF raw data'!J33) -> DF_ID_3D_Bxyz | C33: =IF('DF raw data'!K33="","",'DF raw data'!K33) ->  | D33: =IF('DF raw data'!L33="","",'DF raw data'!L33) -> 
A34: =IF('DF raw data'!I34="","",'DF raw data'!I34) -> Probe Danfysik Reg. Number | B34: =IF('DF raw data'!J34="","",'DF raw data'!J34) -> 2277 | C34: =IF('DF raw data'!K34="","",'DF raw data'!K34) ->  | D34: =IF('DF raw data'!L34="","",'DF raw data'!L34) -> 
A35: =IF('DF raw data'!I35="","",'DF raw data'!I35) -> Probe Axis | B35: =IF('DF raw data'!J35="","",'DF raw data'!J35) -> Bx | C35: =IF('DF raw data'!K35="","",'DF raw data'!K35) ->  | D35: =IF('DF raw data'!L35="","",'DF raw data'!L35) -> 
A36: =IF('DF raw data'!I36="","",'DF raw data'!I36) -> Probe Current Supply | B36: =IF('DF raw data'!J36="","",'DF raw data'!J36) -> 1825-D | C36: =IF('DF raw data'!K36="","",'DF raw data'!K36) ->  | D36: =IF('DF raw data'!L36="","",'DF raw data'!L36) -> 
A37: =IF('DF raw data'!I37="","",'DF raw data'!I37) -> Probe Gain Correction | B37: =IF('DF raw data'!J37="","",'DF raw data'!J37) -> 1 | C37: =IF('DF raw data'!K37="","",'DF raw data'!K37) ->  | D37: =IF('DF raw data'!L37="","",'DF raw data'!L37) -> 
A38: =IF('DF raw data'!I38="","",'DF raw data'!I38) -> Probe Offset Correction | B38: =IF('DF raw data'!J38="","",'DF raw data'!J38) -> -0.17554 | C38: =IF('DF raw data'!K38="","",'DF raw data'!K38) ->  | D38: =IF('DF raw data'!L38="","",'DF raw data'!L38) -> 
A39: =IF('DF raw data'!I39="","",'DF raw data'!I39) -> DVM Number | B39: =IF('DF raw data'!J39="","",'DF raw data'!J39) -> 3 | C39: =IF('DF raw data'!K39="","",'DF raw data'!K39) ->  | D39: =IF('DF raw data'!L39="","",'DF raw data'!L39) -> 
A40: =IF('DF raw data'!I40="","",'DF raw data'!I40) -> DVM Type | B40: =IF('DF raw data'!J40="","",'DF raw data'!J40) -> K2701 | C40: =IF('DF raw data'!K40="","",'DF raw data'!K40) ->  | D40: =IF('DF raw data'!L40="","",'DF raw data'!L40) -> 
A41: =IF('DF raw data'!I41="","",'DF raw data'!I41) -> DVM Danfysik Reg. Number | B41: =IF('DF raw data'!J41="","",'DF raw data'!J41) -> 1744-D | C41: =IF('DF raw data'!K41="","",'DF raw data'!K41) ->  | D41: =IF('DF raw data'!L41="","",'DF raw data'!L41) -> 
A42: =IF('DF raw data'!I42="","",'DF raw data'!I42) -> Probe Name | B42: =IF('DF raw data'!J42="","",'DF raw data'!J42) -> ID12_Bz | C42: =IF('DF raw data'!K42="","",'DF raw data'!K42) ->  | D42: =IF('DF raw data'!L42="","",'DF raw data'!L42) -> 
A43: =IF('DF raw data'!I43="","",'DF raw data'!I43) -> Probe Type | B43: =IF('DF raw data'!J43="","",'DF raw data'!J43) -> DF_ID_3D_Bxyz | C43: =IF('DF raw data'!K43="","",'DF raw data'!K43) ->  | D43: =IF('DF raw data'!L43="","",'DF raw data'!L43) -> 
A44: =IF('DF raw data'!I44="","",'DF raw data'!I44) -> Probe Danfysik Reg. Number | B44: =IF('DF raw data'!J44="","",'DF raw data'!J44) -> 2277 | C44: =IF('DF raw data'!K44="","",'DF raw data'!K44) ->  | D44: =IF('DF raw data'!L44="","",'DF raw data'!L44) -> 
A45: =IF('DF raw data'!I45="","",'DF raw data'!I45) -> Probe Axis | B45: =IF('DF raw data'!J45="","",'DF raw data'!J45) -> Bz | C45: =IF('DF raw data'!K45="","",'DF raw data'!K45) ->  | D45: =IF('DF raw data'!L45="","",'DF raw data'!L45) -> 
A46: =IF('DF raw data'!I46="","",'DF raw data'!I46) -> Probe Current Supply | B46: =IF('DF raw data'!J46="","",'DF raw data'!J46) -> 1825-D | C46: =IF('DF raw data'!K46="","",'DF raw data'!K46) ->  | D46: =IF('DF raw data'!L46="","",'DF raw data'!L46) -> 
A47: =IF('DF raw data'!I47="","",'DF raw data'!I47) -> Probe Gain Correction | B47: =IF('DF raw data'!J47="","",'DF raw data'!J47) -> 1 | C47: =IF('DF raw data'!K47="","",'DF raw data'!K47) ->  | D47: =IF('DF raw data'!L47="","",'DF raw data'!L47) -> 
A48: =IF('DF raw data'!I53="","",'DF raw data'!I53) -> PS-Gap: | B48: =IF('DF raw data'!J53="","",'DF raw data'!J53) -> 10 | C48: =IF('DF raw data'!K53="","",'DF raw data'!K53) ->  | D48: =IF('DF raw data'!L53="","",'DF raw data'!L53) -> 
A49: =IF('DF raw data'!I54="","",'DF raw data'!I54) -> PS-Temperature: | B49: =IF('DF raw data'!J54="","",'DF raw data'!J54) -> 24.1 | C49: =IF('DF raw data'!K54="","",'DF raw data'!K54) ->  | D49: =IF('DF raw data'!L54="","",'DF raw data'!L54) -> 
A50: =IF('DF raw data'!I55="","",'DF raw data'!I55) -> PS-Encoder: | B50: =IF('DF raw data'!J55="","",'DF raw data'!J55) -> 19.5576 | C50: =IF('DF raw data'!K55="","",'DF raw data'!K55) ->  | D50: =IF('DF raw data'!L55="","",'DF raw data'!L55) -> 
A51: =IF('DF raw data'!I56="","",'DF raw data'!I56) ->  | B51: =IF('DF raw data'!J56="","",'DF raw data'!J56) ->  | C51: =IF('DF raw data'!K56="","",'DF raw data'!K56) ->  | D51: =IF('DF raw data'!L56="","",'DF raw data'!L56) -> 
A52: =IF('DF raw data'!I57="","",'DF raw data'!I57) -> Monitor-Index | B52: =IF('DF raw data'!J57="","",'DF raw data'!J57) -> [1,1,4] | C52: =IF('DF raw data'!K57="","",'DF raw data'!K57) ->  | D52: =IF('DF raw data'!L57="","",'DF raw data'!L57) -> 
A53: =IF('DF raw data'!I58="","",'DF raw data'!I58) ->  | B53: =IF('DF raw data'!J58="","",'DF raw data'!J58) ->  | C53: =IF('DF raw data'!K58="","",'DF raw data'!K58) ->  | D53: =IF('DF raw data'!L58="","",'DF raw data'!L58) -> 
A54: =IF('DF raw data'!I59="","",'DF raw data'!I59) -> Time [s] | B54: =IF('DF raw data'!J59="","",'DF raw data'!J59) -> Y [mm] | C54: =IF('DF raw data'!K59="","",'DF raw data'!K59) -> X [mm] | D54: =IF('DF raw data'!L59="","",'DF raw data'!L59) -> Nominal current [A]
A55: =IF('DF raw data'!I60="","",'DF raw data'!I60) ->  | B55: =IF('DF raw data'!J60="","",'DF raw data'!J60) ->  | C55: =IF('DF raw data'!K60="","",'DF raw data'!K60) ->  | D55: =IF('DF raw data'!L60="","",'DF raw data'!L60) -> 
A56: =IF('DF raw data'!I61="","",'DF raw data'!I61) -> 208.4 | B56: =IF('DF raw data'!J61="","",'DF raw data'!J61) -> 31.56 | C56: =IF('DF raw data'!K61="","",'DF raw data'!K61) -> 301.8 | D56: =IF('DF raw data'!L61="","",'DF raw data'!L61) -> 0
A57: =IF('DF raw data'!I62="","",'DF raw data'!I62) ->  | B57: =IF('DF raw data'!J62="","",'DF raw data'!J62) ->  | C57: =IF('DF raw data'!K62="","",'DF raw data'!K62) ->  | D57: =IF('DF raw data'!L62="","",'DF raw data'!L62) -> 
A58: =IF('DF raw data'!I63="","",'DF raw data'!I63) -> Measurement-Index | B58: =IF('DF raw data'!J63="","",'DF raw data'!J63) -> [1,1,1201,2] | C58: =IF('DF raw data'!K63="","",'DF raw data'!K63) ->  | D58: =IF('DF raw data'!L63="","",'DF raw data'!L63) -> 
A59: =IF('DF raw data'!I64="","",'DF raw data'!I64) ->  | B59: =IF('DF raw data'!J64="","",'DF raw data'!J64) ->  | C59: =IF('DF raw data'!K64="","",'DF raw data'!K64) ->  | D59: =IF('DF raw data'!L64="","",'DF raw data'!L64) -> 
A60: =IF('DF raw data'!I65="","",'DF raw data'!I65) -> Z [mm] | B60: By [T] | C60: Bx [T] | D60: Bz [T] | F60: By_corr | G60: Bx_corr | H60: Bz_corr | J60: Iy | K60: Jy | L60: Ix | M60: Jx | N60: PI
A62: =IF('DF raw data'!I67="","",'DF raw data'!I67) -> -300 | B62: =IF('DF raw data'!J67="","",'DF raw data'!J67) -> -3.58368e-05 | C62: =IF('DF raw data'!K67="","",'DF raw data'!K67) -> 5.81184e-05 | D62: =IF('DF raw data'!L67="","",'DF raw data'!L67) -> -3.36964e-05 | F62: =(1-$G$1*($B$49))*B62 -> -3.670046688e-05 | G62: =(1-$G$1*($B$49-$G$2))*C62 -> 5.835668544e-05 | H62: =(1-$G$1*($B$49-$G$2))*D62 -> -3.383455524e-05 | J62: =F62*$G$3 -> -1.835023344e-05 | K62: =J62*$G$3 -> -9.17511672e-06 | L62: =G62*$G$3 -> 2.917834272e-05 | M62: =L62*$G$3 -> 1.458917136e-05 | N62: =(J62^2+L62^2)*$G$3 -> 5.940533756e-10
A63: =IF('DF raw data'!I68="","",'DF raw data'!I68) -> -299.5 | B63: =IF('DF raw data'!J68="","",'DF raw data'!J68) -> -4.07082e-05 | C63: =IF('DF raw data'!K68="","",'DF raw data'!K68) -> 5.60335e-05 | D63: =IF('DF raw data'!L68="","",'DF raw data'!L68) -> -3.3235e-05 | F63: =(1-$G$1*($B$49-$G$2))*B63 -> -4.087510362e-05 | G63: =(1-$G$1*($B$49-$G$2))*C63 -> 5.626323735e-05 | H63: -3.33712635e-05 | J63: =F63*$G$3+J62 -> -3.878778525e-05 | K63: =J63*$G$3+K62 -> -2.856900935e-05 | L63: =G63*$G$3+L62 -> 5.73099614e-05 | M63: =L63*$G$3+M62 -> 4.324415206e-05 | N63: =(J63^2+L63^2)*$G$3+N62 -> 2.988515355e-09
A64: =IF('DF raw data'!I69="","",'DF raw data'!I69) -> -299 | B64: =IF('DF raw data'!J69="","",'DF raw data'!J69) -> -3.42352e-05 | C64: =IF('DF raw data'!K69="","",'DF raw data'!K69) -> 5.58819e-05 | D64: =IF('DF raw data'!L69="","",'DF raw data'!L69) -> -3.25865e-05 | F64: =(1-$G$1*($B$49-$G$2))*B64 -> -3.437556432e-05 | G64: 5.611101579e-05 | H64: -3.272010465e-05 | J64: =F64*$G$3+J63 -> -5.597556741e-05 | K64: =J64*$G$3+K63 -> -5.655679305e-05 | L64: =G64*$G$3+L63 -> 8.536546929e-05 | M64: =L64*$G$3+M63 -> 8.59268867e-05 | N64: =(J64^2+L64^2)*$G$3+N63 -> 8.198779102e-09
A65: =IF('DF raw data'!I70="","",'DF raw data'!I70) -> -298.5 | B65: =IF('DF raw data'!J70="","",'DF raw data'!J70) -> -3.03899e-05 | C65: =IF('DF raw data'!K70="","",'DF raw data'!K70) -> 5.83821e-05 | D65: =IF('DF raw data'!L70="","",'DF raw data'!L70) -> -3.23948e-05 | F65: -3.051449859e-05 | G65: 5.862146661e-05 | H65: -3.252761868e-05 | J65: -7.123281671e-05 | K65: -9.21732014e-05 | L65: 0.0001146762026 | M65: 0.000143264988 | N65: 1.731115191e-08
A66: =IF('DF raw data'!I71="","",'DF raw data'!I71) -> -298 | B66: =IF('DF raw data'!J71="","",'DF raw data'!J71) -> -2.8403e-05 | C66: =IF('DF raw data'!K71="","",'DF raw data'!K71) -> 6.33979e-05 | D66: =IF('DF raw data'!L71="","",'DF raw data'!L71) -> -3.23952e-05 | F66: -2.85194523e-05 | G66: 6.365783139e-05 | H66: -3.252802032e-05 | J66: -8.549254285e-05 | K66: -0.0001349194728 | L66: 0.0001465051183 | M66: 0.0002165175471 | N66: 3.16975142e-08
A67: =IF('DF raw data'!I72="","",'DF raw data'!I72) -> -297.5 | B67: =IF('DF raw data'!J72="","",'DF raw data'!J72) -> -2.64802e-05 | C67: =IF('DF raw data'!K72="","",'DF raw data'!K72) -> 5.54525e-05 | D67: =IF('DF raw data'!L72="","",'DF raw data'!L72) -> -3.25759e-05 | F67: -2.658876882e-05 | G67: 5.567985525e-05 | H67: -3.270946119e-05 | J67: -9.878692726e-05 | K67: -0.0001843129365 | L67: 0.0001743450459 | M67: 0.0003036900701 | N67: 5.177504021e-08
A68: =IF('DF raw data'!I73="","",'DF raw data'!I73) -> -297 | B68: =IF('DF raw data'!J73="","",'DF raw data'!J73) -> -1.58403e-05 | C68: =IF('DF raw data'!K73="","",'DF raw data'!K73) -> 5.64096e-05 | D68: =IF('DF raw data'!L73="","",'DF raw data'!L73) -> -3.32068e-05 | F68: -1.590524523e-05 | G68: 5.664087936e-05 | H68: -3.334294788e-05 | J68: -0.0001067395499 | K68: -0.0002376827114 | L68: 0.0002026654856 | M68: 0.0004050228129 | N68: 7.800835549e-08
A69: =IF('DF raw data'!I74="","",'DF raw data'!I74) -> -296.5 | B69: =IF('DF raw data'!J74="","",'DF raw data'!J74) -> -2.71842e-05 | C69: =IF('DF raw data'!K74="","",'DF raw data'!K74) -> 6.08672e-05 | D69: =IF('DF raw data'!L74="","",'DF raw data'!L74) -> -3.39026e-05 | F69: -2.729565522e-05 | G69: 6.111675552e-05 | H69: -3.404160066e-05 | J69: -0.0001203873775 | K69: -0.0002978764001 | L69: 0.0002332238634 | M69: 0.0005216347446 | N69: 1.12451601e-07
A70: =IF('DF raw data'!I75="","",'DF raw data'!I75) -> -296 | B70: =IF('DF raw data'!J75="","",'DF raw data'!J75) -> -2.05823e-05 | C70: =IF('DF raw data'!K75="","",'DF raw data'!K75) -> 5.67018e-05 | D70: =IF('DF raw data'!L75="","",'DF raw data'!L75) -> -3.45803e-05 | F70: -2.066668743e-05 | G70: 5.693427738e-05 | H70: -3.472207923e-05 | J70: -0.0001307207212 | K70: -0.0003632367607 | L70: 0.000261691002 | M70: 0.0006524802456 | N70: 1.552366448e-07
A71: =IF('DF raw data'!I76="","",'DF raw data'!I76) -> -295.5 | B71: =IF('DF raw data'!J76="","",'DF raw data'!J76) -> -2.82732e-05 | C71: =IF('DF raw data'!K76="","",'DF raw data'!K76) -> 5.67073e-05 | D71: =IF('DF raw data'!L76="","",'DF raw data'!L76) -> -3.49225e-05 | F71: -2.838912012e-05 | G71: 5.693979993e-05 | H71: -3.506568225e-05 | J71: -0.0001449152813 | K71: -0.0004356944014 | L71: 0.000290160902 | M71: 0.0007975606966 | N71: 2.078335387e-07
A72: =IF('DF raw data'!I77="","",'DF raw data'!I77) -> -295 | B72: =IF('DF raw data'!J77="","",'DF raw data'!J77) -> -4.03229e-05 | C72: =IF('DF raw data'!K77="","",'DF raw data'!K77) -> 5.1843e-05 | D72: =IF('DF raw data'!L77="","",'DF raw data'!L77) -> -3.4558e-05 | F72: -4.048822389e-05 | G72: 5.20555563e-05 | H72: -3.46996878e-05 | J72: -0.0001651593932 | K72: -0.000518274098 | L72: 0.0003161886802 | M72: 0.0009556550367 | N72: 2.71459992e-07
A73: =IF('DF raw data'!I78="","",'DF raw data'!I78) -> -294.5 | B73: =IF('DF raw data'!J78="","",'DF raw data'!J78) -> -3.12221e-05 | C73: =IF('DF raw data'!K78="","",'DF raw data'!K78) -> 5.15004e-05 | D73: =IF('DF raw data'!L78="","",'DF raw data'!L78) -> -3.36682e-05 | F73: -3.135011061e-05 | G73: 5.171155164e-05 | H73: -3.380623962e-05 | J73: -0.0001808344485 | K73: -0.0006086913222 | L73: 0.000342044456 | M73: 0.001126677265 | N73: 3.463077458e-07
A74: =IF('DF raw data'!I79="","",'DF raw data'!I79) -> -294 | B74: =IF('DF raw data'!J79="","",'DF raw data'!J79) -> -4.55155e-05 | C74: =IF('DF raw data'!K79="","",'DF raw data'!K79) -> 5.04375e-05 | D74: =IF('DF raw data'!L79="","",'DF raw data'!L79) -> -3.27106e-05 | F74: -4.570211355e-05 | G74: 5.064429375e-05 | H74: -3.284471346e-05 | J74: -0.0002036855053 | K74: -0.0007105340749 | L74: 0.0003673666029 | M74: 0.001310360566 | N74: 4.345307488e-07
A75: =IF('DF raw data'!I80="","",'DF raw data'!I80) -> -293.5 | B75: =IF('DF raw data'!J80="","",'DF raw data'!J80) -> -2.47495e-05 | C75: =IF('DF raw data'!K80="","",'DF raw data'!K80) -> 5.38669e-05 | D75: =IF('DF raw data'!L80="","",'DF raw data'!L80) -> -3.27747e-05 | F75: -2.485097295e-05 | G75: 5.408775429e-05 | H75: -3.290907627e-05 | J75: -0.0002161109918 | K75: -0.0008185895708 | L75: 0.00039441048 | M75: 0.001507565806 | N75: 5.356625426e-07
A76: =IF('DF raw data'!I81="","",'DF raw data'!I81) -> -293 | B76: =IF('DF raw data'!J81="","",'DF raw data'!J81) -> -2.94918e-05 | C76: =IF('DF raw data'!K81="","",'DF raw data'!K81) -> 5.56976e-05 | D76: =IF('DF raw data'!L81="","",'DF raw data'!L81) -> -3.36601e-05 | F76: -2.961271638e-05 | G76: 5.592596016e-05 | H76: -3.379810641e-05 | J76: -0.00023091735 | K76: -0.0009340482458 | L76: 0.0004223734601 | M76: 0.001718752536 | N76: 6.515236237e-07
A77: =IF('DF raw data'!I82="","",'DF raw data'!I82) -> -292.5 | B77: =IF('DF raw data'!J82="","",'DF raw data'!J82) -> -3.39779e-05 | C77: =IF('DF raw data'!K82="","",'DF raw data'!K82) -> 5.11251e-05 | D77: =IF('DF raw data'!L82="","",'DF raw data'!L82) -> -3.40768e-05 | F77: -3.411720939e-05 | G77: 5.133471291e-05 | H77: -3.421651488e-05 | J77: -0.0002479759546 | K77: -0.001058036223 | L77: 0.0004480408165 | M77: 0.001942772944 | N77: 7.826399474e-07
A78: =IF('DF raw data'!I83="","",'DF raw data'!I83) -> -292 | B78: =IF('DF raw data'!J83="","",'DF raw data'!J83) -> -3.9362e-05 | C78: =IF('DF raw data'!K83="","",'DF raw data'!K83) -> 5.35388e-05 | D78: =IF('DF raw data'!L83="","",'DF raw data'!L83) -> -3.36661e-05 | F78: -3.95233842e-05 | G78: 5.375830908e-05 | H78: -3.380413101e-05 | J78: -0.0002677376468 | K78: -0.001191905046 | L78: 0.0004749199711 | M78: 0.00218023293 | N78: 9.312561606e-07
A79: =IF('DF raw data'!I84="","",'DF raw data'!I84) -> -291.5 | B79: =IF('DF raw data'!J84="","",'DF raw data'!J84) -> -2.91053e-05 | C79: =IF('DF raw data'!K84="","",'DF raw data'!K84) -> 4.46464e-05 | D79: =IF('DF raw data'!L84="","",'DF raw data'!L84) -> -3.67865e-05 | F79: -2.922463173e-05 | G79: 4.482945024e-05 | H79: -3.693732465e-05 | J79: -0.0002823499626 | K79: -0.001333080028 | L79: 0.0004973346962 | M79: 0.002428900278 | N79: 1.094787811e-06
A80: =IF('DF raw data'!I85="","",'DF raw data'!I85) -> -291 | B80: =IF('DF raw data'!J85="","",'DF raw data'!J85) -> -4.09594e-05 | C80: =IF('DF raw data'!K85="","",'DF raw data'!K85) -> 4.2733e-05 | D80: =IF('DF raw data'!L85="","",'DF raw data'!L85) -> -4.13628e-05 | F80: -4.112733354e-05 | G80: 4.29082053e-05 | H80: -4.153238748e-05 | J80: -0.0003029136294 | K80: -0.001484536842 | L80: 0.0005187887988 | M80: 0.002688294677 | N80: 1.275237054e-06
A81: =IF('DF raw data'!I86="","",'DF raw data'!I86) -> -290.5 | B81: =IF('DF raw data'!J86="","",'DF raw data'!J86) -> -2.62849e-05 | C81: =IF('DF raw data'!K86="","",'DF raw data'!K86) -> 4.97517e-05 | D81: =IF('DF raw data'!L86="","",'DF raw data'!L86) -> -3.69981e-05 | F81: -2.639266809e-05 | G81: 4.995568197e-05 | H81: -3.714979221e-05 | J81: -0.0003161099634 | K81: -0.001642591824 | L81: 0.0005437666398 | M81: 0.002960177997 | N81: 1.473040887e-06
A82: =IF('DF raw data'!I87="","",'DF raw data'!I87) -> -290 | B82: =IF('DF raw data'!J87="","",'DF raw data'!J87) -> -3.39143e-05 | C82: =IF('DF raw data'!K87="","",'DF raw data'!K87) -> 4.87226e-05 | D82: =IF('DF raw data'!L87="","",'DF raw data'!L87) -> -3.35457e-05 | F82: -3.405334863e-05 | G82: 4.892236266e-05 | H82: -3.368323737e-05 | J82: -0.0003331366377 | K82: -0.001809160143 | L82: 0.0005682278212 | M82: 0.003244291908 | N82: 1.689972325e-06
A83: =IF('DF raw data'!I88="","",'DF raw data'!I88) -> -289.5 | B83: =IF('DF raw data'!J88="","",'DF raw data'!J88) -> -3.33328e-05 | C83: =IF('DF raw data'!K88="","",'DF raw data'!K88) -> 5.2044e-05 | D83: =IF('DF raw data'!L88="","",'DF raw data'!L88) -> -4.05487e-05 | F83: -3.346946448e-05 | G83: 5.22573804e-05 | H83: -4.071494967e-05 | J83: -0.00034987137 | K83: -0.001984095828 | L83: 0.0005943565114 | M83: 0.003541470164 | N83: 1.927807145e-06
A84: =IF('DF raw data'!I89="","",'DF raw data'!I89) -> -289 | B84: =IF('DF raw data'!J89="","",'DF raw data'!J89) -> -2.79533e-05 | C84: =IF('DF raw data'!K89="","",'DF raw data'!K89) -> 5.64161e-05 | D84: =IF('DF raw data'!L89="","",'DF raw data'!L89) -> -3.43029e-05 | F84: -2.806790853e-05 | G84: 5.664740601e-05 | H84: -3.444354189e-05 | J84: -0.0003639053242 | K84: -0.00216604849 | L84: 0.0006226802144 | M84: 0.003852810271 | N84: 2.187886012e-06
A85: =IF('DF raw data'!I90="","",'DF raw data'!I90) -> -288.5 | B85: =IF('DF raw data'!J90="","",'DF raw data'!J90) -> -3.30844e-05 | C85: =IF('DF raw data'!K90="","",'DF raw data'!K90) -> 5.77303e-05 | D85: =IF('DF raw data'!L90="","",'DF raw data'!L90) -> -2.83413e-05 | F85: -3.322004604e-05 | G85: 5.796699423e-05 | H85: -2.845749933e-05 | J85: -0.0003805153473 | K85: -0.002356306164 | L85: 0.0006516637115 | M85: 0.004178642127 | N85: 2.472614773e-06
A86: =IF('DF raw data'!I91="","",'DF raw data'!I91) -> -288 | B86: =IF('DF raw data'!J91="","",'DF raw data'!J91) -> -3.46848e-05 | C86: =IF('DF raw data'!K91="","",'DF raw data'!K91) -> 5.55896e-05 | D86: =IF('DF raw data'!L91="","",'DF raw data'!L91) -> -3.13219e-05 | F86: -3.482700768e-05 | G86: 5.581751736e-05 | H86: -3.145031979e-05 | J86: -0.0003979288511 | K86: -0.002555270589 | L86: 0.0006795724702 | M86: 0.004518428362 | N86: 2.782697829e-06
A87: =IF('DF raw data'!I92="","",'DF raw data'!I92) -> -287.5 | B87: =IF('DF raw data'!J92="","",'DF raw data'!J92) -> -2.3657e-05 | C87: =IF('DF raw data'!K92="","",'DF raw data'!K92) -> 4.84037e-05 | D87: =IF('DF raw data'!L92="","",'DF raw data'!L92) -> -3.71116e-05 | F87: -2.37539937e-05 | G87: 4.860215517e-05 | H87: -3.726375756e-05 | J87: -0.000409805848 | K87: -0.002760173513 | L87: 0.0007038735477 | M87: 0.004870365136 | N87: 3.114387231e-06
A88: =IF('DF raw data'!I93="","",'DF raw data'!I93) -> -287 | B88: =IF('DF raw data'!J93="","",'DF raw data'!J93) -> -2.78252e-05 | C88: =IF('DF raw data'!K93="","",'DF raw data'!K93) -> 4.91165e-05 | D88: =IF('DF raw data'!L93="","",'DF raw data'!L93) -> -3.37258e-05 | F88: -2.793928332e-05 | G88: 4.931787765e-05 | H88: -3.386407578e-05 | J88: -0.0004237754896 | K88: -0.002972061258 | L88: 0.0007285324866 | M88: 0.005234631379 | N88: 3.469559856e-06
A89: =IF('DF raw data'!I94="","",'DF raw data'!I94) -> -286.5 | B89: =IF('DF raw data'!J94="","",'DF raw data'!J94) -> -1.98731e-05 | C89: =IF('DF raw data'!K94="","",'DF raw data'!K94) -> 5.74098e-05 | D89: =IF('DF raw data'!L94="","",'DF raw data'!L94) -> -4.09634e-05 | F89: -1.995457971e-05 | G89: 5.764518018e-05 | H89: -4.113134994e-05 | J89: -0.0004337527795 | K89: -0.003188937648 | L89: 0.0007573550767 | M89: 0.005613308917 | N89: 3.850423949e-06
A90: =IF('DF raw data'!I95="","",'DF raw data'!I95) -> -286 | B90: =IF('DF raw data'!J95="","",'DF raw data'!J95) -> -2.49368e-05 | C90: =IF('DF raw data'!K95="","",'DF raw data'!K95) -> 5.59249e-05 | D90: =IF('DF raw data'!L95="","",'DF raw data'!L95) -> -4.06718e-05 | F90: -2.503904088e-05 | G90: 5.615419209e-05 | H90: -4.083855438e-05 | J90: -0.0004462722999 | K90: -0.003412073798 | L90: 0.0007854321727 | M90: 0.006006025003 | N90: 4.258455281e-06
A91: =IF('DF raw data'!I96="","",'DF raw data'!I96) -> -285.5 | B91: =IF('DF raw data'!J96="","",'DF raw data'!J96) -> -2.11588e-05 | C91: =IF('DF raw data'!K96="","",'DF raw data'!K96) -> 5.2328e-05 | D91: =IF('DF raw data'!L96="","",'DF raw data'!L96) -> -3.52649e-05 | F91: -2.124555108e-05 | G91: 5.25425448e-05 | H91: -3.540948609e-05 | J91: -0.0004568950755 | K91: -0.003640521336 | L91: 0.0008117034451 | M91: 0.006411876726 | N91: 4.692263077e-06
A92: =IF('DF raw data'!I97="","",'DF raw data'!I97) -> -285 | B92: =IF('DF raw data'!J97="","",'DF raw data'!J97) -> -2.48071e-05 | C92: =IF('DF raw data'!K97="","",'DF raw data'!K97) -> 5.57439e-05 | D92: =IF('DF raw data'!L97="","",'DF raw data'!L97) -> -4.30731e-05 | F92: -2.490880911e-05 | G92: 5.597244999e-05 | H92: -4.324969971e-05 | J92: -0.00046934948 | K92: -0.003875196076 | L92: 0.0008396896701 | M92: 0.006831721561 | N92: 5.154946916e-06
A93: =IF('DF raw data'!I98="","",'DF raw data'!I98) -> -284.5 | B93: =IF('DF raw data'!J98="","",'DF raw data'!J98) -> -2.36561e-05 | C93: =IF('DF raw data'!K98="","",'DF raw data'!K98) -> 6.05472e-05 | D93: =IF('DF raw data'!L98="","",'DF raw data'!L98) -> -3.85199e-05 | F93: -2.375309001e-05 | G93: 6.079544352e-05 | H93: -3.867783159e-05 | J93: -0.000481226025 | K93: -0.004115809088 | L93: 0.0008700873919 | M93: 0.007266765257 | N93: 5.649262194e-06
A94: =IF('DF raw data'!I99="","",'DF raw data'!I99) -> -284 | B94: =IF('DF raw data'!J99="","",'DF raw data'!J99) -> -3.37149e-05 | C94: =IF('DF raw data'!K99="","",'DF raw data'!K99) -> 5.16465e-05 | D94: =IF('DF raw data'!L99="","",'DF raw data'!L99) -> -4.42729e-05 | F94: -3.385313109e-05 | G94: 5.185825065e-05 | H94: -4.445441889e-05 | J94: -0.0004981525906 | K94: -0.004364885383 | L94: 0.0008960165172 | M94: 0.007714773516 | N94: 6.174762995e-06
A95: =IF('DF raw data'!I100="","",'DF raw data'!I100) -> -283.5 | B95: =IF('DF raw data'!J100="","",'DF raw data'!J100) -> -4.14756e-05 | C95: =IF('DF raw data'!K100="","",'DF raw data'!K100) -> 5.03137e-05 | D95: =IF('DF raw data'!L100="","",'DF raw data'!L100) -> -3.602e-05 | F95: -4.164564996e-05 | G95: 5.051998617e-05 | H95: -3.6167682e-05 | J95: -0.0005189754155 | K95: -0.004624373091 | L95: 0.0009212765103 | M95: 0.008175411771 | N95: 6.73380594e-06
A96: =IF('DF raw data'!I101="","",'DF raw data'!I101) -> -283 | B96: =IF('DF raw data'!J101="","",'DF raw data'!J101) -> -2.62874e-05 | C96: =IF('DF raw data'!K101="","",'DF raw data'!K101) -> 4.78227e-05 | D96: =IF('DF raw data'!L101="","",'DF raw data'!L101) -> -3.32401e-05 | F96: -2.639517834e-05 | G96: 4.801877307e-05 | H96: -3.337638441e-05 | J96: -0.0005321730047 | K96: -0.004890459593 | L96: 0.0009452858968 | M96: 0.008648054719 | N96: 7.322192707e-06
A97: =IF('DF raw data'!I102="","",'DF raw data'!I102) -> -282.5 | B97: =IF('DF raw data'!J102="","",'DF raw data'!J102) -> -3.38415e-05 | C97: =IF('DF raw data'!K102="","",'DF raw data'!K102) -> 4.38068e-05 | D97: =IF('DF raw data'!L102="","",'DF raw data'!L102) -> -4.67935e-05 | F97: -3.398025015e-05 | G97: 4.398640788e-05 | H97: -4.698535335e-05 | J97: -0.0005491631298 | K97: -0.005165041158 | L97: 0.0009672791007 | M97: 0.00913169427 | N97: 7.940797208e-06
A98: =IF('DF raw data'!I103="","",'DF raw data'!I103) -> -282 | B98: =IF('DF raw data'!J103="","",'DF raw data'!J103) -> -2.25731e-05 | C98: =IF('DF raw data'!K103="","",'DF raw data'!K103) -> 5.03108e-05 | D98: =IF('DF raw data'!L103="","",'DF raw data'!L103) -> -2.87633e-05 | F98: -2.266564971e-05 | G98: 5.051707428e-05 | H98: -2.888122953e-05 | J98: -0.0005604959546 | K98: -0.005445289136 | L98: 0.0009925376379 | M98: 0.009627963088 | N98: 8.590440547e-06
A99: =IF('DF raw data'!I104="","",'DF raw data'!I104) -> -281.5 | B99: =IF('DF raw data'!J104="","",'DF raw data'!J104) -> -2.35276e-05 | C99: =IF('DF raw data'!K104="","",'DF raw data'!K104) -> 5.19129e-05 | D99: =IF('DF raw data'!L104="","",'DF raw data'!L104) -> -3.90073e-05 | F99: -2.362406316e-05 | G99: 5.212574289e-05 | H99: -3.916722993e-05 | J99: -0.0005723079862 | K99: -0.005731443129 | L99: 0.001018600509 | M99: 0.01013726334 | N99: 9.272982261e-06
A100: =IF('DF raw data'!I105="","",'DF raw data'!I105) -> -281 | B100: =IF('DF raw data'!J105="","",'DF raw data'!J105) -> -3.02597e-05 | C100: =IF('DF raw data'!K105="","",'DF raw data'!K105) -> 5.36919e-05 | D100: =IF('DF raw data'!L105="","",'DF raw data'!L105) -> -3.5692e-05 | F100: -3.038376477e-05 | G100: 5.391203679e-05 | H100: -3.58383372e-05 | J100: -0.0005874998686 | K100: -0.006025193063 | L100: 0.001045556528 | M100: 0.01066004161 | N100: 9.992154535e-06
A101: =IF('DF raw data'!I106="","",'DF raw data'!I106) -> -280.5 | B101: =IF('DF raw data'!J106="","",'DF raw data'!J106) -> -2.7632e-05 | C101: =IF('DF raw data'!K106="","",'DF raw data'!K106) -> 5.63795e-05 | D101: =IF('DF raw data'!L106="","",'DF raw data'!L106) -> -3.53471e-05 | F101: -2.77452912e-05 | G101: 5.661065595e-05 | H101: -3.549202311e-05 | J101: -0.0006013725142 | K101: -0.00632587932 | L101: 0.001073861856 | M101: 0.01119697253 | N101: 1.074956863e-05
A102: =IF('DF raw data'!I107="","",'DF raw data'!I107) -> -280 | B102: =IF('DF raw data'!J107="","",'DF raw data'!J107) -> -2.22523e-05 | C102: =IF('DF raw data'!K107="","",'DF raw data'!K107) -> 5.86687e-05 | D102: =IF('DF raw data'!L107="","",'DF raw data'!L107) -> -2.90232e-05 | F102: -2.234353443e-05 | G102: 5.890924167e-05 | H102: -2.914219512e-05 | J102: -0.0006125442814 | K102: -0.006632151461 | L102: 0.001103316477 | M102: 0.01174863077 | N102: 1.15458275e-05
A103: =IF('DF raw data'!I108="","",'DF raw data'!I108) -> -279.5 | B103: =IF('DF raw data'!J108="","",'DF raw data'!J108) -> -2.85293e-05 | C103: =IF('DF raw data'!K108="","",'DF raw data'!K108) -> 6.04374e-05 | D103: =IF('DF raw data'!L108="","",'DF raw data'!L108) -> -3.53876e-05 | F103: -2.864627013e-05 | G103: 6.068519334e-05 | H103: -3.553268916e-05 | J103: -0.0006268674165 | K103: -0.006945585169 | L103: 0.001133659073 | M103: 0.01231546031 | N103: 1.238490033e-05
A104: =IF('DF raw data'!I109="","",'DF raw data'!I109) -> -279 | B104: =IF('DF raw data'!J109="","",'DF raw data'!J109) -> -2.01966e-05 | C104: =IF('DF raw data'!K109="","",'DF raw data'!K109) -> 5.41767e-05 | D104: =IF('DF raw data'!L109="","",'DF raw data'!L109) -> -3.64309e-05 | F104: -2.027940606e-05 | G104: 5.439882447e-05 | H104: -3.658026669e-05 | J104: -0.0006370071195 | K104: -0.007264088729 | L104: 0.001160858485 | M104: 0.01289588955 | N104: 1.326158557e-05
A105: =IF('DF raw data'!I110="","",'DF raw data'!I110) -> -278.5 | B105: =IF('DF raw data'!J110="","",'DF raw data'!J110) -> -2.59617e-05 | C105: =IF('DF raw data'!K110="","",'DF raw data'!K110) -> 5.26222e-05 | D105: =IF('DF raw data'!L110="","",'DF raw data'!L110) -> -4.15719e-05 | F105: -2.606814297e-05 | G105: 5.283795102e-05 | H105: -4.174234479e-05 | J105: -0.000650041191 | K105: -0.007589109324 | L105: 0.001187277461 | M105: 0.01348952828 | N105: 1.417767623e-05
A106: =IF('DF raw data'!I111="","",'DF raw data'!I111) -> -278 | B106: =IF('DF raw data'!J111="","",'DF raw data'!J111) -> -2.89116e-05 | C106: =IF('DF raw data'!K111="","",'DF raw data'!K111) -> 5.86844e-05 | D106: =IF('DF raw data'!L111="","",'DF raw data'!L111) -> -3.88716e-05 | F106: -2.903013756e-05 | G106: 5.892500604e-05 | H106: -3.903097356e-05 | J106: -0.0006645562598 | K106: -0.007921387454 | L106: 0.001216739964 | M106: 0.01409789826 | N106: 1.513872181e-05
A107: =IF('DF raw data'!I112="","",'DF raw data'!I112) -> -277.5 | B107: =IF('DF raw data'!J112="","",'DF raw data'!J112) -> -1.65431e-05 | C107: =IF('DF raw data'!K112="","",'DF raw data'!K112) -> 7.1473e-05 | D107: =IF('DF raw data'!L112="","",'DF raw data'!L112) -> -3.67683e-05 | F107: -1.661092671e-05 | G107: 7.17660393e-05 | H107: -3.691905003e-05 | J107: -0.0006728617231 | K107: -0.008257818316 | L107: 0.001252622984 | M107: 0.01472420976 | N107: 1.614962543e-05
A108: =IF('DF raw data'!I113="","",'DF raw data'!I113) -> -277 | B108: =IF('DF raw data'!J113="","",'DF raw data'!J113) -> -2.87905e-05 | C108: =IF('DF raw data'!K113="","",'DF raw data'!K113) -> 6.04432e-05 | D108: =IF('DF raw data'!L113="","",'DF raw data'!L113) -> -2.79496e-05 | F108: -2.890854105e-05 | G108: 6.069101712e-05 | H108: -2.806419336e-05 | J108: -0.0006873159937 | K108: -0.008601476313 | L108: 0.001282968492 | M108: 0.015365694 | N108: 1.720883115e-05
A109: =IF('DF raw data'!I114="","",'DF raw data'!I114) -> -276.5 | B109: =IF('DF raw data'!J114="","",'DF raw data'!J114) -> -1.97501e-05 | C109: =IF('DF raw data'!K114="","",'DF raw data'!K114) -> 5.58499e-05 | D109: =IF('DF raw data'!L114="","",'DF raw data'!L114) -> -3.29883e-05 | F109: -1.983107541e-05 | G109: 5.607888459e-05 | H109: -3.312355203e-05 | J109: -0.0006972315314 | K109: -0.008950092078 | L109: 0.001311007934 | M109: 0.01602119797 | N109: 1.831126795e-05
A110: =IF('DF raw data'!I115="","",'DF raw data'!I115) -> -276 | B110: =IF('DF raw data'!J115="","",'DF raw data'!J115) -> -1.61572e-05 | C110: =IF('DF raw data'!K115="","",'DF raw data'!K115) -> 5.50502e-05 | D110: =IF('DF raw data'!L115="","",'DF raw data'!L115) -> -3.8913e-05 | F110: -1.622344452e-05 | G110: 5.527590582e-05 | H110: -3.90725433e-05 | J110: -0.0007053432536 | K110: -0.009302763705 | L110: 0.001338645887 | M110: 0.01669052091 | N110: 1.945600891e-05
A111: =IF('DF raw data'!I116="","",'DF raw data'!I116) -> -275.5 | B111: =IF('DF raw data'!J116="","",'DF raw data'!J116) -> -1.91018e-05 | C111: =IF('DF raw data'!K116="","",'DF raw data'!K116) -> 5.65765e-05 | D111: =IF('DF raw data'!L116="","",'DF raw data'!L116) -> -4.446e-05 | F111: -1.918011738e-05 | G111: 5.680846365e-05 | H111: -4.4642286e-05 | J111: -0.0007149333123 | K111: -0.009660230361 | L111: 0.001367050119 | M111: 0.01737404597 | N111: 2.064598675e-05
A112: =IF('DF raw data'!I117="","",'DF raw data'!I117) -> -275 | B112: =IF('DF raw data'!J117="","",'DF raw data'!J117) -> -2.1088e-05 | C112: =IF('DF raw data'!K117="","",'DF raw data'!K117) -> 6.12969e-05 | D112: =IF('DF raw data'!L117="","",'DF raw data'!L117) -> -4.55749e-05 | F112: -2.11744608e-05 | G112: 6.154821729e-05 | H112: -4.576175709e-05 | J112: -0.0007255205427 | K112: -0.01002299063 | L112: 0.001397824228 | M112: 0.01807295809 | N112: 2.188613306e-05
A113: =IF('DF raw data'!I118="","",'DF raw data'!I118) -> -274.5 | B113: =IF('DF raw data'!J118="","",'DF raw data'!J118) -> -2.73139e-05 | C113: =IF('DF raw data'!K118="","",'DF raw data'!K118) -> 6.07279e-05 | D113: =IF('DF raw data'!L118="","",'DF raw data'!L118) -> -3.15758e-05 | F113: -2.742588699e-05 | G113: 6.097688439e-05 | H113: -3.170526078e-05 | J113: -0.0007392334862 | K113: -0.01039260738 | L113: 0.00142831267 | M113: 0.01878711442 | N113: 2.317940468e-05
A114: =IF('DF raw data'!I119="","",'DF raw data'!I119) -> -274 | B114: =IF('DF raw data'!J119="","",'DF raw data'!J119) -> -2.66645e-05 | C114: =IF('DF raw data'!K119="","",'DF raw data'!K119) -> 5.79048e-05 | D114: =IF('DF raw data'!L119="","",'DF raw data'!L119) -> -4.46361e-05 | F114: -2.677382445e-05 | G114: 5.814220968e-05 | H114: -4.481910801e-05 | J114: -0.0007526203984 | K114: -0.01076891758 | L114: 0.001457383775 | M114: 0.01951580631 | N114: 2.452460714e-05
A115: =IF('DF raw data'!I120="","",'DF raw data'!I120) -> -273.5 | B115: =IF('DF raw data'!J120="","",'DF raw data'!J120) -> -4.17298e-05 | C115: =IF('DF raw data'!K120="","",'DF raw data'!K120) -> 5.39099e-05 | D115: =IF('DF raw data'!L120="","",'DF raw data'!L120) -> -3.94533e-05 | F115: -4.190089218e-05 | G115: 5.413093059e-05 | H115: -3.961505853e-05 | J115: -0.0007735708445 | K115: -0.011155703 | L115: 0.00148444924 | M115: 0.02025803093 | N115: 2.592560784e-05
A116: =IF('DF raw data'!I121="","",'DF raw data'!I121) -> -273 | B116: =IF('DF raw data'!J121="","",'DF raw data'!J121) -> -3.97452e-05 | C116: =IF('DF raw data'!K121="","",'DF raw data'!K121) -> 5.22593e-05 | D116: =IF('DF raw data'!L121="","",'DF raw data'!L121) -> -3.58656e-05 | F116: -3.990815532e-05 | G116: 5.247356313e-05 | H116: -3.601264896e-05 | J116: -0.0007935249222 | K116: -0.01155246546 | L116: 0.001510686022 | M116: 0.02101337394 | N116: 2.738153487e-05
A117: =IF('DF raw data'!I122="","",'DF raw data'!I122) -> -272.5 | B117: =IF('DF raw data'!J122="","",'DF raw data'!J122) -> -2.21786e-05 | C117: =IF('DF raw data'!K122="","",'DF raw data'!K122) -> 4.34654e-05 | D117: =IF('DF raw data'!L122="","",'DF raw data'!L122) -> -4.40488e-05 | F117: -2.226953226e-05 | G117: 4.364360814e-05 | H117: -4.422940008e-05 | J117: -0.0008046596883 | K117: -0.0119547953 | L117: 0.001532507826 | M117: 0.02177962785 | N117: 2.88795636e-05
A118: =IF('DF raw data'!I123="","",'DF raw data'!I123) -> -272 | B118: =IF('DF raw data'!J123="","",'DF raw data'!J123) -> -2.0009e-05 | C118: =IF('DF raw data'!K123="","",'DF raw data'!K123) -> 4.69865e-05 | D118: =IF('DF raw data'!L123="","",'DF raw data'!L123) -> -2.90982e-05 | F118: -2.00910369e-05 | G118: 4.717914465e-05 | H118: -2.921750262e-05 | J118: -0.0008147052068 | K118: -0.01236214791 | L118: 0.001556097398 | M118: 0.02255767655 | N118: 3.042215544e-05
A119: =IF('DF raw data'!I124="","",'DF raw data'!I124) -> -271.5 | B119: =IF('DF raw data'!J124="","",'DF raw data'!J124) -> -2.33999e-05 | C119: =IF('DF raw data'!K124="","",'DF raw data'!K124) -> 5.35857e-05 | D119: =IF('DF raw data'!L124="","",'DF raw data'!L124) -> -3.83518e-05 | F119: -2.349583959e-05 | G119: 5.380540137e-05 | H119: -3.850904238e-05 | J119: -0.0008264531266 | K119: -0.01277537447 | L119: 0.001583000099 | M119: 0.0233491766 | N119: 3.201661248e-05
A120: =IF('DF raw data'!I125="","",'DF raw data'!I125) -> -271 | B120: =IF('DF raw data'!J125="","",'DF raw data'!J125) -> -2.92373e-05 | C120: =IF('DF raw data'!K125="","",'DF raw data'!K125) -> 5.57573e-05 | D120: =IF('DF raw data'!L125="","",'DF raw data'!L125) -> -3.09002e-05 | F120: -2.935717293e-05 | G120: 5.598590493e-05 | H120: -3.102689082e-05 | J120: -0.000841131713 | K120: -0.01319594033 | L120: 0.001610993051 | M120: 0.02415467313 | N120: 3.366801307e-05
A121: =IF('DF raw data'!I126="","",'DF raw data'!I126) -> -270.5 | B121: =IF('DF raw data'!J126="","",'DF raw data'!J126) -> -2.34609e-05 | C121: =IF('DF raw data'!K126="","",'DF raw data'!K126) -> 5.61591e-05 | D121: =IF('DF raw data'!L126="","",'DF raw data'!L126) -> -4.34036e-05 | F121: -2.355708969e-05 | G121: 5.638935231e-05 | H121: -4.358155476e-05 | J121: -0.0008529102579 | K121: -0.01362239545 | L121: 0.001639187727 | M121: 0.02497426699 | N121: 3.537520922e-05
A122: =IF('DF raw data'!I127="","",'DF raw data'!I127) -> -270 | B122: =IF('DF raw data'!J127="","",'DF raw data'!J127) -> -2.79463e-05 | C122: =IF('DF raw data'!K127="","",'DF raw data'!K127) -> 5.55621e-05 | D122: =IF('DF raw data'!L127="","",'DF raw data'!L127) -> -4.51309e-05 | F122: -2.806087983e-05 | G122: 5.578990461e-05 | H122: -4.531593669e-05 | J122: -0.0008669406978 | K122: -0.0140558658 | L122: 0.00166708268 | M122: 0.02580780833 | N122: 3.714058464e-05
A123: =IF('DF raw data'!I128="","",'DF raw data'!I128) -> -269.5 | B123: =IF('DF raw data'!J128="","",'DF raw data'!J128) -> -3.3528e-05 | C123: =IF('DF raw data'!K128="","",'DF raw data'!K128) -> 5.71354e-05 | D123: =IF('DF raw data'!L128="","",'DF raw data'!L128) -> -3.62746e-05 | F123: -3.36654648e-05 | G123: 5.736965514e-05 | H123: -3.642332586e-05 | J123: -0.0008837734302 | K123: -0.01449775252 | L123: 0.001695767507 | M123: 0.02665569208 | N123: 3.89689261e-05
A124: =IF('DF raw data'!I129="","",'DF raw data'!I129) -> -269 | B124: =IF('DF raw data'!J129="","",'DF raw data'!J129) -> -3.06447e-05 | C124: =IF('DF raw data'!K129="","",'DF raw data'!K129) -> 5.36307e-05 | D124: =IF('DF raw data'!L129="","",'DF raw data'!L129) -> -3.50262e-05 | F124: -3.077034327e-05 | G124: 5.385058587e-05 | H124: -3.516980742e-05 | J124: -0.0008991586018 | K124: -0.01494733182 | L124: 0.0017226928 | M124: 0.02751703849 | N124: 4.085700443e-05
A125: =IF('DF raw data'!I130="","",'DF raw data'!I130) -> -268.5 | B125: =IF('DF raw data'!J130="","",'DF raw data'!J130) -> -2.70572e-05 | C125: =IF('DF raw data'!K130="","",'DF raw data'!K130) -> 5.29658e-05 | D125: =IF('DF raw data'!L130="","",'DF raw data'!L130) -> -3.21786e-05 | F125: -2.716813452e-05 | G125: 5.318295978e-05 | H125: -3.231053226e-05 | J125: -0.0009127426691 | K125: -0.01540370315 | L125: 0.00174928428 | M125: 0.02839168063 | N125: 4.280355177e-05
A126: =IF('DF raw data'!I131="","",'DF raw data'!I131) -> -268 | B126: =IF('DF raw data'!J131="","",'DF raw data'!J131) -> -2.54481e-05 | C126: =IF('DF raw data'!K131="","",'DF raw data'!K131) -> 5.12951e-05 | D126: =IF('DF raw data'!L131="","",'DF raw data'!L131) -> -4.2919e-05 | F126: -2.555243721e-05 | G126: 5.150540991e-05 | H126: -4.30949679e-05 | J126: -0.0009255188877 | K126: -0.0158664626 | L126: 0.001775036985 | M126: 0.02927919912 | N126: 4.480722253e-05
A127: =IF('DF raw data'!I132="","",'DF raw data'!I132) -> -267.5 | B127: =IF('DF raw data'!J132="","",'DF raw data'!J132) -> -2.86519e-05 | C127: =IF('DF raw data'!K132="","",'DF raw data'!K132) -> 5.83099e-05 | D127: =IF('DF raw data'!L132="","",'DF raw data'!L132) -> -4.40671e-05 | F127: -2.876937279e-05 | G127: 5.854897059e-05 | H127: -4.424777511e-05 | J127: -0.0009399035741 | K127: -0.01633641438 | L127: 0.00180431147 | M127: 0.03018135485 | N127: 4.687670183e-05
A128: =IF('DF raw data'!I133="","",'DF raw data'!I133) -> -267 | B128: =IF('DF raw data'!J133="","",'DF raw data'!J133) -> -3.12215e-05 | C128: =IF('DF raw data'!K133="","",'DF raw data'!K133) -> 5.20994e-05 | D128: =IF('DF raw data'!L133="","",'DF raw data'!L133) -> -3.47262e-05 | F128: =(1-$G$1*($B$49-$G$2))*B128 -> -3.134950815e-05 | G128: 5.231300754e-05 | H128: -3.486857742e-05 | J128: =F128*$G$3+J127 -> -0.0009555783282 | K128: =J128*$G$3+K127 -> -0.01681420355 | L128: =G128*$G$3+L127 -> 0.001830467974 | M128: =L128*$G$3+M127 -> 0.03109658884 | N128: =(J128^2+L128^2)*$G$3+N127 -> 4.90085733e-05
A129: =IF('DF raw data'!I134="","",'DF raw data'!I134) -> -266.5 | B129: =IF('DF raw data'!J134="","",'DF raw data'!J134) -> -2.19229e-05 | C129: =IF('DF raw data'!K134="","",'DF raw data'!K134) -> 5.37186e-05 | D129: =IF('DF raw data'!L134="","",'DF raw data'!L134) -> -4.30901e-05 | F129: -2.201278389e-05 | G129: 5.393884626e-05 | H129: -4.326676941e-05 | J129: -0.0009665847201 | K129: -0.01729749591 | L129: 0.001857437397 | M129: 0.03202530754 | N129: 5.120075316e-05
A130: =IF('DF raw data'!I135="","",'DF raw data'!I135) -> -266 | B130: =IF('DF raw data'!J135="","",'DF raw data'!J135) -> -3.56401e-05 | C130: =IF('DF raw data'!K135="","",'DF raw data'!K135) -> 5.81154e-05 | D130: =IF('DF raw data'!L135="","",'DF raw data'!L135) -> -4.10059e-05 | F130: -3.578622441e-05 | G130: 5.835367314e-05 | H130: -4.117402419e-05 | J130: -0.0009844778323 | K130: -0.01778973483 | L130: 0.001886614234 | M130: 0.03296861466 | N130: 5.346500809e-05
A131: =IF('DF raw data'!I136="","",'DF raw data'!I136) -> -265.5 | B131: =IF('DF raw data'!J136="","",'DF raw data'!J136) -> -2.10966e-05 | C131: =IF('DF raw data'!K136="","",'DF raw data'!K136) -> 6.10369e-05 | D131: =IF('DF raw data'!L136="","",'DF raw data'!L136) -> -3.22853e-05 | F131: -2.118309606e-05 | G131: 6.128715129e-05 | H131: -3.241766973e-05 | J131: -0.0009950693803 | K131: -0.01828726952 | L131: 0.00191725781 | M131: 0.03392724356 | N131: 5.579802838e-05
A132: =IF('DF raw data'!I137="","",'DF raw data'!I137) -> -265 | B132: =IF('DF raw data'!J137="","",'DF raw data'!J137) -> -3.75069e-05 | C132: =IF('DF raw data'!K137="","",'DF raw data'!K137) -> 6.61083e-05 | D132: =IF('DF raw data'!L137="","",'DF raw data'!L137) -> -2.82172e-05 | F132: -3.766067829e-05 | G132: 6.637934403e-05 | H132: -2.833289052e-05 | J132: -0.001013899719 | K132: -0.01879421938 | L132: 0.001950447482 | M132: 0.0349024673 | N132: 5.821414739e-05
A133: =IF('DF raw data'!I138="","",'DF raw data'!I138) -> -264.5 | B133: =IF('DF raw data'!J138="","",'DF raw data'!J138) -> -2.66577e-05 | C133: =IF('DF raw data'!K138="","",'DF raw data'!K138) -> 6.67595e-05 | D133: =IF('DF raw data'!L138="","",'DF raw data'!L138) -> -5.52913e-05 | F133: -2.676699657e-05 | G133: 6.703321395e-05 | H133: -5.551799433e-05 | J133: -0.001027283218 | K133: -0.01930786098 | L133: 0.001983964089 | M133: 0.03589444935 | N133: 6.070985955e-05
A134: =IF('DF raw data'!I139="","",'DF raw data'!I139) -> -264 | B134: =IF('DF raw data'!J139="","",'DF raw data'!J139) -> -2.32665e-05 | C134: =IF('DF raw data'!K139="","",'DF raw data'!K139) -> 6.00233e-05 | D134: =IF('DF raw data'!L139="","",'DF raw data'!L139) -> -4.64586e-05 | F134: -2.336189265e-05 | G134: 6.026939553e-05 | H134: -4.664908026e-05 | J134: -0.001038964164 | K134: -0.01982734307 | L134: 0.002014098786 | M134: 0.03690149874 | N134: 6.327787978e-05
A135: =IF('DF raw data'!I140="","",'DF raw data'!I140) -> -263.5 | B135: =IF('DF raw data'!J140="","",'DF raw data'!J140) -> -2.48708e-05 | C135: =IF('DF raw data'!K140="","",'DF raw data'!K140) -> 6.23177e-05 | D135: =IF('DF raw data'!L140="","",'DF raw data'!L140) -> -4.34554e-05 | F135: -2.497277028e-05 | G135: 6.257320257e-05 | H135: -4.363356714e-05 | J135: -0.001051450549 | K135: -0.02035306834 | L135: 0.002045385388 | M135: 0.03792419143 | N135: 6.59224546e-05
A136: =IF('DF raw data'!I141="","",'DF raw data'!I141) -> -263 | B136: =IF('DF raw data'!J141="","",'DF raw data'!J141) -> -2.89772e-05 | C136: =IF('DF raw data'!K141="","",'DF raw data'!K141) -> 6.24491e-05 | D136: =IF('DF raw data'!L141="","",'DF raw data'!L141) -> -3.6776e-05 | F136: -2.909600652e-05 | G136: 6.270514131e-05 | H136: -3.69267816e-05 | J136: -0.001065998552 | K136: -0.02088606762 | L136: 0.002076737958 | M136: 0.03896256041 | N136: 6.864705133e-05
A137: =IF('DF raw data'!I142="","",'DF raw data'!I142) -> -262.5 | B137: =IF('DF raw data'!J142="","",'DF raw data'!J142) -> -2.59627e-05 | C137: =IF('DF raw data'!K142="","",'DF raw data'!K142) -> 6.04871e-05 | D137: =IF('DF raw data'!L142="","",'DF raw data'!L142) -> -4.00688e-05 | F137: -2.606914707e-05 | G137: 6.073509711e-05 | H137: -4.023308208e-05 | J137: -0.001079033126 | K137: -0.02142558418 | L137: 0.002107105507 | M137: 0.04001611316 | N137: 7.144915438e-05
A138: =IF('DF raw data'!I143="","",'DF raw data'!I143) -> -262 | B138: =IF('DF raw data'!J143="","",'DF raw data'!J143) -> -2.31426e-05 | C138: =IF('DF raw data'!K143="","",'DF raw data'!K143) -> 5.61155e-05 | D138: =IF('DF raw data'!L143="","",'DF raw data'!L143) -> -3.98106e-05 | F138: -2.323748466e-05 | G138: 5.634557355e-05 | H138: -3.997382346e-05 | J138: -0.001090651868 | K138: -0.02197091011 | L138: 0.002135278294 | M138: 0.04108375231 | N138: 7.432362182e-05
A139: =IF('DF raw data'!I144="","",'DF raw data'!I144) -> -261.5 | B139: =IF('DF raw data'!J144="","",'DF raw data'!J144) -> -3.36593e-05 | C139: =IF('DF raw data'!K144="","",'DF raw data'!K144) -> 4.90177e-05 | D139: =IF('DF raw data'!L144="","",'DF raw data'!L144) -> -3.15072e-05 | F139: -3.379730313e-05 | G139: 4.921867257e-05 | H139: -3.163637952e-05 | J139: -0.00110755052 | K139: -0.02252468537 | L139: 0.00215988763 | M139: 0.04216369613 | N139: 7.726951319e-05
A140: =IF('DF raw data'!I145="","",'DF raw data'!I145) -> -261 | B140: =IF('DF raw data'!J145="","",'DF raw data'!J145) -> -2.80155e-05 | C140: =IF('DF raw data'!K145="","",'DF raw data'!K145) -> 5.12725e-05 | D140: =IF('DF raw data'!L145="","",'DF raw data'!L145) -> -3.71601e-05 | F140: -2.813036355e-05 | G140: 5.148271725e-05 | H140: -3.731245641e-05 | J140: -0.001121615702 | K140: -0.02308549322 | L140: 0.002185628988 | M140: 0.04325651062 | N140: 8.028701112e-05
A141: =IF('DF raw data'!I146="","",'DF raw data'!I146) -> -260.5 | B141: =IF('DF raw data'!J146="","",'DF raw data'!J146) -> -3.61596e-05 | C141: =IF('DF raw data'!K146="","",'DF raw data'!K146) -> 4.57842e-05 | D141: =IF('DF raw data'!L146="","",'DF raw data'!L146) -> -3.06371e-05 | F141: -3.630785436e-05 | G141: 4.597191522e-05 | H141: -3.076271211e-05 | J141: -0.001139769629 | K141: -0.02365537804 | L141: 0.002208614946 | M141: 0.04436081809 | N141: 8.337553851e-05
A142: =IF('DF raw data'!I147="","",'DF raw data'!I147) -> -260 | B142: =IF('DF raw data'!J147="","",'DF raw data'!J147) -> -3.55867e-05 | C142: =IF('DF raw data'!K147="","",'DF raw data'!K147) -> 4.89069e-05 | D142: =IF('DF raw data'!L147="","",'DF raw data'!L147) -> -2.43807e-05 | F142: -3.573260547e-05 | G142: 4.910741829e-05 | H142: -2.448066087e-05 | J142: -0.001157635932 | K142: -0.02423419601 | L142: 0.002233168655 | M142: 0.04547740242 | N142: 8.653912011e-05
A143: =IF('DF raw data'!I148="","",'DF raw data'!I148) -> -259.5 | B143: =IF('DF raw data'!J148="","",'DF raw data'!J148) -> -3.18627e-05 | C143: =IF('DF raw data'!K148="","",'DF raw data'!K148) -> 4.72006e-05 | D143: =IF('DF raw data'!L148="","",'DF raw data'!L148) -> -3.47799e-05 | F143: -3.199333707e-05 | G143: 4.739412246e-05 | H143: -3.492249759e-05 | J143: -0.0011736326 | K143: -0.02482101231 | L143: 0.002256865716 | M143: 0.04660583528 | N143: 8.977454828e-05
A144: =IF('DF raw data'!I149="","",'DF raw data'!I149) -> -259 | B144: =IF('DF raw data'!J149="","",'DF raw data'!J149) -> -3.42939e-05 | C144: =IF('DF raw data'!K149="","",'DF raw data'!K149) -> 4.10014e-05 | D144: =IF('DF raw data'!L149="","",'DF raw data'!L149) -> -4.12259e-05 | F144: -3.443450499e-05 | G144: 4.116950574e-05 | H144: -4.139492619e-05 | J144: -0.001190849853 | K144: -0.02541643723 | L144: 0.002277450469 | M144: 0.04774456051 | N144: 9.307700028e-05
A145: =IF('DF raw data'!I150="","",'DF raw data'!I150) -> -258.5 | B145: =IF('DF raw data'!J150="","",'DF raw data'!J150) -> -2.34101e-05 | C145: =IF('DF raw data'!K150="","",'DF raw data'!K150) -> 4.98616e-05 | D145: =IF('DF raw data'!L150="","",'DF raw data'!L150) -> -2.27273e-05 | F145: -2.350608141e-05 | G145: 5.006603256e-05 | H145: -2.282048193e-05 | J145: -0.001202602893 | K145: -0.02601773868 | L145: 0.002302483486 | M145: 0.04889580226 | N145: 9.645084224e-05
A146: =IF('DF raw data'!I151="","",'DF raw data'!I151) -> -258 | B146: =IF('DF raw data'!J151="","",'DF raw data'!J151) -> -3.25663e-05 | C146: =IF('DF raw data'!K151="","",'DF raw data'!K151) -> 4.66059e-05 | D146: =IF('DF raw data'!L151="","",'DF raw data'!L151) -> -3.66443e-05 | F146: -3.269982183e-05 | G146: 4.679698419e-05 | H146: -3.679454163e-05 | J146: -0.001218952804 | K146: -0.02662721508 | L146: 0.002325881978 | M146: 0.05005874325 | N146: 9.98986287e-05
A147: =IF('DF raw data'!I152="","",'DF raw data'!I152) -> -257.5 | B147: =IF('DF raw data'!J152="","",'DF raw data'!J152) -> -2.80147e-05 | C147: =IF('DF raw data'!K152="","",'DF raw data'!K152) -> 4.35892e-05 | D147: =IF('DF raw data'!L152="","",'DF raw data'!L152) -> -3.83055e-05 | F147: -2.812956027e-05 | G147: 4.376791572e-05 | H147: -3.846255255e-05 | J147: -0.001233017584 | K147: -0.02724372387 | L147: 0.002347765936 | M147: 0.05123262621 | N147: 0.0001034147973
A148: =IF('DF raw data'!I153="","",'DF raw data'!I153) -> -257 | B148: =IF('DF raw data'!J153="","",'DF raw data'!J153) -> -3.77573e-05 | C148: =IF('DF raw data'!K153="","",'DF raw data'!K153) -> 4.98362e-05 | D148: =IF('DF raw data'!L153="","",'DF raw data'!L153) -> -3.73861e-05 | F148: -3.791210493e-05 | G148: 5.004052842e-05 | H148: -3.753938301e-05 | J148: -0.001251973637 | K148: -0.02786971069 | L148: 0.0023727862 | M148: 0.05241901931 | N148: 0.0001070135735
A149: =IF('DF raw data'!I154="","",'DF raw data'!I154) -> -256.5 | B149: =IF('DF raw data'!J154="","",'DF raw data'!J154) -> -2.73763e-05 | C149: =IF('DF raw data'!K154="","",'DF raw data'!K154) -> 4.75115e-05 | D149: =IF('DF raw data'!L154="","",'DF raw data'!L154) -> -3.44588e-05 | F149: -2.748854283e-05 | G149: 4.770629715e-05 | H149: -3.460008108e-05 | J149: -0.001265717908 | K149: -0.02850256965 | L149: 0.002396639348 | M149: 0.05361733899 | N149: 0.0001106865345
A150: =IF('DF raw data'!I155="","",'DF raw data'!I155) -> -256 | B150: =IF('DF raw data'!J155="","",'DF raw data'!J155) -> -2.4624e-05 | C150: =IF('DF raw data'!K155="","",'DF raw data'!K155) -> 4.28538e-05 | D150: =IF('DF raw data'!L155="","",'DF raw data'!L155) -> -2.87251e-05 | F150: -2.47249584e-05 | G150: 4.302950058e-05 | H150: -2.884287291e-05 | J150: -0.001278080387 | K150: -0.02914160984 | L150: 0.002418154099 | M150: 0.05482641604 | N150: 0.0001144270138
A151: =IF('DF raw data'!I156="","",'DF raw data'!I156) -> -255.5 | B151: =IF('DF raw data'!J156="","",'DF raw data'!J156) -> -2.68594e-05 | C151: =IF('DF raw data'!K156="","",'DF raw data'!K156) -> 5.13205e-05 | D151: =IF('DF raw data'!L156="","",'DF raw data'!L156) -> -4.0898e-05 | F151: -2.696952354e-05 | G151: 5.153091405e-05 | H151: -4.10656818e-05 | J151: -0.001291565149 | K151: -0.02978739241 | L151: 0.002443919556 | M151: 0.05604837581 | N151: 0.0001182474555
A152: =IF('DF raw data'!I157="","",'DF raw data'!I157) -> -255 | B152: =IF('DF raw data'!J157="","",'DF raw data'!J157) -> -2.30236e-05 | C152: =IF('DF raw data'!K157="","",'DF raw data'!K157) -> 5.8673e-05 | D152: =IF('DF raw data'!L157="","",'DF raw data'!L157) -> -2.57678e-05 | F152: -2.311799676e-05 | G152: 5.89135593e-05 | H152: -2.587344798e-05 | J152: -0.001303124148 | K152: -0.03043895449 | L152: 0.002473376335 | M152: 0.05728506398 | N152: 0.000122155317
A153: =IF('DF raw data'!I158="","",'DF raw data'!I158) -> -254.5 | B153: =IF('DF raw data'!J158="","",'DF raw data'!J158) -> -2.46877e-05 | C153: =IF('DF raw data'!K158="","",'DF raw data'!K158) -> 5.16614e-05 | D153: =IF('DF raw data'!L158="","",'DF raw data'!L158) -> -2.95122e-05 | F153: -2.478891957e-05 | G153: 5.187321174e-05 | H153: -2.963320002e-05 | J153: -0.001315518607 | K153: -0.03109671379 | L153: 0.002499312941 | M153: 0.05853472045 | N153: 0.0001261438942
A154: =IF('DF raw data'!I159="","",'DF raw data'!I159) -> -254 | B154: =IF('DF raw data'!J159="","",'DF raw data'!J159) -> -2.76339e-05 | C154: =IF('DF raw data'!K159="","",'DF raw data'!K159) -> 4.21939e-05 | D154: =IF('DF raw data'!L159="","",'DF raw data'!L159) -> -3.26605e-05 | F154: -2.774719899e-05 | G154: 4.236689499e-05 | H154: -3.279440805e-05 | J154: -0.001329392207 | K154: -0.03176140989 | L154: 0.002520496389 | M154: 0.05979496865 | N154: 0.0001302039871
A155: =IF('DF raw data'!I160="","",'DF raw data'!I160) -> -253.5 | B155: =IF('DF raw data'!J160="","",'DF raw data'!J160) -> -2.3533e-05 | C155: =IF('DF raw data'!K160="","",'DF raw data'!K160) -> 4.2939e-05 | D155: =IF('DF raw data'!L160="","",'DF raw data'!L160) -> -3.07935e-05 | F155: -2.36294853e-05 | G155: 4.31150499e-05 | H155: -3.091975335e-05 | J155: -0.00134120695 | K155: -0.03243201337 | L155: 0.002542053914 | M155: 0.0610659956 | N155: 0.0001343344242
A156: =IF('DF raw data'!I161="","",'DF raw data'!I161) -> -253 | B156: =IF('DF raw data'!J161="","",'DF raw data'!J161) -> -1.91099e-05 | C156: =IF('DF raw data'!K161="","",'DF raw data'!K161) -> 5.54127e-05 | D156: =IF('DF raw data'!L161="","",'DF raw data'!L161) -> -3.19856e-05 | F156: -1.918825059e-05 | G156: 5.563989207e-05 | H156: -3.211674096e-05 | J156: -0.001350801075 | K156: -0.03310741391 | L156: 0.00256987386 | M156: 0.06235093253 | N156: 0.0001385488818
A157: =IF('DF raw data'!I162="","",'DF raw data'!I162) -> -252.5 | B157: =IF('DF raw data'!J162="","",'DF raw data'!J162) -> -2.01909e-05 | C157: =IF('DF raw data'!K162="","",'DF raw data'!K162) -> 5.27343e-05 | D157: =IF('DF raw data'!L162="","",'DF raw data'!L162) -> -4.52863e-05 | F157: -2.027368269e-05 | G157: 5.295051063e-05 | H157: -4.547197383e-05 | J157: -0.001360937916 | K157: -0.03378788286 | L157: 0.002596349115 | M157: 0.06364910709 | N157: 0.0001428454721
A158: =IF('DF raw data'!I163="","",'DF raw data'!I163) -> -252 | B158: =IF('DF raw data'!J163="","",'DF raw data'!J163) -> -2.7244e-05 | C158: =IF('DF raw data'!K163="","",'DF raw data'!K163) -> 4.61896e-05 | D158: =IF('DF raw data'!L163="","",'DF raw data'!L163) -> -4.08266e-05 | F158: -2.73557004e-05 | G158: 4.637897736e-05 | H158: -4.099398906e-05 | J158: -0.001374615766 | K158: -0.03447519075 | L158: 0.002619538604 | M158: 0.06495887639 | N158: 0.0001472212476
A159: =IF('DF raw data'!I164="","",'DF raw data'!I164) -> -251.5 | B159: =IF('DF raw data'!J164="","",'DF raw data'!J164) -> -2.30738e-05 | C159: =IF('DF raw data'!K164="","",'DF raw data'!K164) -> 4.71953e-05 | D159: =IF('DF raw data'!L164="","",'DF raw data'!L164) -> -4.73496e-05 | F159: -2.316840258e-05 | G159: 4.738880073e-05 | H159: -4.754373336e-05 | J159: -0.001386199968 | K159: -0.03516829073 | L159: 0.002643233004 | M159: 0.0662804929 | N159: 0.0001516753632
A160: =IF('DF raw data'!I165="","",'DF raw data'!I165) -> -251 | B160: =IF('DF raw data'!J165="","",'DF raw data'!J165) -> -3.64768e-05 | C160: =IF('DF raw data'!K165="","",'DF raw data'!K165) -> 4.83324e-05 | D160: =IF('DF raw data'!L165="","",'DF raw data'!L165) -> -3.54919e-05 | F160: -3.662635488e-05 | G160: 4.853056284e-05 | H160: -3.563741679e-05 | J160: -0.001404513145 | K160: -0.0358705473 | L160: 0.002667498285 | M160: 0.06761424204 | N160: 0.0001562194653
A161: =IF('DF raw data'!I166="","",'DF raw data'!I166) -> -250.5 | B161: =IF('DF raw data'!J166="","",'DF raw data'!J166) -> -1.84075e-05 | C161: =IF('DF raw data'!K166="","",'DF raw data'!K166) -> 5.18538e-05 | D161: =IF('DF raw data'!L166="","",'DF raw data'!L166) -> -2.8251e-05 | F161: -1.848297075e-05 | G161: 5.206640058e-05 | H161: -2.83668291e-05 | J161: -0.00141375463 | K161: -0.03657742462 | L161: 0.002693531486 | M161: 0.06896100778 | N161: 0.0001608463723
A162: =IF('DF raw data'!I167="","",'DF raw data'!I167) -> -250 | B162: =IF('DF raw data'!J167="","",'DF raw data'!J167) -> -2.98731e-05 | C162: =IF('DF raw data'!K167="","",'DF raw data'!K167) -> 5.38847e-05 | D162: =IF('DF raw data'!L167="","",'DF raw data'!L167) -> -3.88719e-05 | F162: -2.999557971e-05 | G162: 5.410562727e-05 | H162: -3.903127479e-05 | J162: -0.00142875242 | K162: -0.03729180083 | L162: 0.002720584299 | M162: 0.07032129993 | N162: 0.0001655678285
A163: =IF('DF raw data'!I168="","",'DF raw data'!I168) -> -249.5 | B163: =IF('DF raw data'!J168="","",'DF raw data'!J168) -> -2.66787e-05 | C163: =IF('DF raw data'!K168="","",'DF raw data'!K168) -> 6.20976e-05 | D163: =IF('DF raw data'!L168="","",'DF raw data'!L168) -> -2.28579e-05 | F163: -2.678808267e-05 | G163: 6.235220016e-05 | H163: -2.295161739e-05 | J163: -0.001442146462 | K163: -0.03801287406 | L163: 0.002751760399 | M163: 0.07169718013 | N163: 0.0001703938144
A164: =IF('DF raw data'!I169="","",'DF raw data'!I169) -> -249 | B164: =IF('DF raw data'!J169="","",'DF raw data'!J169) -> -2.6859e-05 | C164: =IF('DF raw data'!K169="","",'DF raw data'!K169) -> 6.23949e-05 | D164: =IF('DF raw data'!L169="","",'DF raw data'!L169) -> -4.16622e-05 | F164: -2.69691219e-05 | G164: 6.265071909e-05 | H164: -4.183301502e-05 | J164: -0.001455631023 | K164: -0.03874068957 | L164: 0.002783085759 | M164: 0.07308872301 | N164: 0.0001753260284
A165: =IF('DF raw data'!I170="","",'DF raw data'!I170) -> -248.5 | B165: =IF('DF raw data'!J170="","",'DF raw data'!J170) -> -2.36586e-05 | C165: =IF('DF raw data'!K170="","",'DF raw data'!K170) -> 6.01793e-05 | D165: =IF('DF raw data'!L170="","",'DF raw data'!L170) -> -3.47951e-05 | F165: -2.375560026e-05 | G165: 6.042603513e-05 | H165: -3.493775991e-05 | J165: -0.001467508823 | K165: -0.03947444398 | L165: 0.002813298777 | M165: 0.0744953724 | N165: 0.0001803601445
A166: =IF('DF raw data'!I171="","",'DF raw data'!I171) -> -248 | B166: =IF('DF raw data'!J171="","",'DF raw data'!J171) -> -2.23146e-05 | C166: =IF('DF raw data'!K171="","",'DF raw data'!K171) -> 6.23137e-05 | D166: =IF('DF raw data'!L171="","",'DF raw data'!L171) -> -3.20751e-05 | F166: -2.240608986e-05 | G166: 6.256918617e-05 | H166: -3.220660791e-05 | J166: -0.001478711868 | K166: -0.04021379992 | L166: 0.00284458337 | M166: 0.07591766408 | N166: 0.0001854992661
A167: =IF('DF raw data'!I172="","",'DF raw data'!I172) -> -247.5 | B167: =IF('DF raw data'!J172="","",'DF raw data'!J172) -> -2.8657e-05 | C167: =IF('DF raw data'!K172="","",'DF raw data'!K172) -> 5.56281e-05 | D167: =IF('DF raw data'!L172="","",'DF raw data'!L172) -> -3.62676e-05 | F167: -2.87744937e-05 | G167: 5.585617521e-05 | H167: -3.641629716e-05 | J167: -0.001493099115 | K167: -0.04096034947 | L167: 0.002872511457 | M167: 0.07735391981 | N167: 0.0001907395996
A168: =IF('DF raw data'!I173="","",'DF raw data'!I173) -> -247 | B168: =IF('DF raw data'!J173="","",'DF raw data'!J173) -> -2.48753e-05 | C168: =IF('DF raw data'!K173="","",'DF raw data'!K173) -> 5.45265e-05 | D168: =IF('DF raw data'!L173="","",'DF raw data'!L173) -> -3.65558e-05 | F168: -2.497728873e-05 | G168: 5.475005865e-05 | H168: -3.670567878e-05 | J168: -0.001505587759 | K168: -0.04171314335 | L168: 0.002899886487 | M168: 0.07880386305 | N168: 0.0001960776677
A169: =IF('DF raw data'!I174="","",'DF raw data'!I174) -> -246.5 | B169: =IF('DF raw data'!J174="","",'DF raw data'!J174) -> -2.59027e-05 | C169: =IF('DF raw data'!K174="","",'DF raw data'!K174) -> 5.33138e-05 | D169: =IF('DF raw data'!L174="","",'DF raw data'!L174) -> -3.35702e-05 | F169: -2.600890107e-05 | G169: 5.353238658e-05 | H169: -3.370783782e-05 | J169: -0.001518592209 | K169: -0.04247243946 | L169: 0.00292665268 | M169: 0.08026718939 | N169: 0.0002015133768
A170: =IF('DF raw data'!I175="","",'DF raw data'!I175) -> -246 | B170: =IF('DF raw data'!J175="","",'DF raw data'!J175) -> -2.16135e-05 | C170: =IF('DF raw data'!K175="","",'DF raw data'!K175) -> 5.61576e-05 | D170: =IF('DF raw data'!L175="","",'DF raw data'!L175) -> -2.58812e-05 | F170: -2.170211535e-05 | G170: 5.638784616e-05 | H170: -2.598731292e-05 | J170: -0.001529443267 | K170: -0.04323716109 | L170: 0.002954846603 | M170: 0.0817446127 | N170: 0.0002070485344
A171: =IF('DF raw data'!I176="","",'DF raw data'!I176) -> -245.5 | B171: =IF('DF raw data'!J176="","",'DF raw data'!J176) -> -2.54523e-05 | C171: =IF('DF raw data'!K176="","",'DF raw data'!K176) -> 6.34387e-05 | D171: =IF('DF raw data'!L176="","",'DF raw data'!L176) -> -3.66053e-05 | F171: -2.555665443e-05 | G171: 6.369879867e-05 | H171: -3.675538173e-05 | J171: -0.001542221594 | K171: -0.04400827189 | L171: 0.002986696002 | M171: 0.0832379607 | N171: 0.0002126979346
A172: =IF('DF raw data'!I177="","",'DF raw data'!I177) -> -245 | B172: =IF('DF raw data'!J177="","",'DF raw data'!J177) -> -2.27668e-05 | C172: =IF('DF raw data'!K177="","",'DF raw data'!K177) -> 5.39383e-05 | D172: =IF('DF raw data'!L177="","",'DF raw data'!L177) -> -2.6368e-05 | F172: -2.286014388e-05 | G172: 5.415944703e-05 | H172: -2.64761088e-05 | J172: -0.001553651666 | K172: -0.04478509772 | L172: 0.003013775726 | M172: 0.08474484856 | N172: 0.0002184462734
A173: =IF('DF raw data'!I178="","",'DF raw data'!I178) -> -244.5 | B173: =IF('DF raw data'!J178="","",'DF raw data'!J178) -> -3.67978e-05 | C173: =IF('DF raw data'!K178="","",'DF raw data'!K178) -> 4.94761e-05 | D173: =IF('DF raw data'!L178="","",'DF raw data'!L178) -> -3.49008e-05 | F173: -3.694867098e-05 | G173: 4.967895201e-05 | H173: -3.504389328e-05 | J173: -0.001572126002 | K173: -0.04557116072 | L173: 0.003038615202 | M173: 0.08626415616 | N173: 0.0002242986547
A174: =IF('DF raw data'!I179="","",'DF raw data'!I179) -> -244 | B174: =IF('DF raw data'!J179="","",'DF raw data'!J179) -> -2.44855e-05 | C174: =IF('DF raw data'!K179="","",'DF raw data'!K179) -> 5.28025e-05 | D174: =IF('DF raw data'!L179="","",'DF raw data'!L179) -> -4.47868e-05 | F174: -2.458589055e-05 | G174: 5.301899025e-05 | H174: -4.497042588e-05 | J174: -0.001584418947 | K174: -0.0463633702 | L174: 0.003065124697 | M174: 0.08779671851 | N174: 0.0002302513411
A175: =IF('DF raw data'!I180="","",'DF raw data'!I180) -> -243.5 | B175: =IF('DF raw data'!J180="","",'DF raw data'!J180) -> -3.00746e-05 | C175: =IF('DF raw data'!K180="","",'DF raw data'!K180) -> 4.72611e-05 | D175: =IF('DF raw data'!L180="","",'DF raw data'!L180) -> -2.44798e-05 | F175: -3.019790586e-05 | G175: 4.745487051e-05 | H175: -2.458016718e-05 | J175: -0.0015995179 | K175: -0.04716312915 | L175: 0.003088852132 | M175: 0.08934114458 | N175: 0.0002363010736
A176: =IF('DF raw data'!I181="","",'DF raw data'!I181) -> -243 | B176: =IF('DF raw data'!J181="","",'DF raw data'!J181) -> -2.00717e-05 | C176: =IF('DF raw data'!K181="","",'DF raw data'!K181) -> 4.28486e-05 | D176: =IF('DF raw data'!L181="","",'DF raw data'!L181) -> -3.14783e-05 | F176: -2.015399397e-05 | G176: 4.302427926e-05 | H176: -3.160736103e-05 | J176: -0.001609594897 | K176: -0.0479679266 | L176: 0.003110364272 | M176: 0.09089632671 | N176: 0.0002424336544
A177: =IF('DF raw data'!I182="","",'DF raw data'!I182) -> -242.5 | B177: =IF('DF raw data'!J182="","",'DF raw data'!J182) -> -2.62225e-05 | C177: =IF('DF raw data'!K182="","",'DF raw data'!K182) -> 5.26285e-05 | D177: =IF('DF raw data'!L182="","",'DF raw data'!L182) -> -3.47718e-05 | F177: -2.633001225e-05 | G177: 5.284427685e-05 | H177: -3.491436438e-05 | J177: -0.001622759903 | K177: -0.04877930655 | L177: 0.00313678641 | M177: 0.09246471992 | N177: 0.0002486700438
A178: =IF('DF raw data'!I183="","",'DF raw data'!I183) -> -242 | B178: =IF('DF raw data'!J183="","",'DF raw data'!J183) -> -3.85294e-05 | C178: =IF('DF raw data'!K183="","",'DF raw data'!K183) -> 5.15439e-05 | D178: =IF('DF raw data'!L183="","",'DF raw data'!L183) -> -3.29303e-05 | F178: -3.868737054e-05 | G178: 5.175522999e-05 | H178: -3.306531423e-05 | J178: -0.001642103588 | K178: -0.04960035834 | L178: 0.003162664025 | M178: 0.09404605193 | N178: 0.0002550195177
A179: =IF('DF raw data'!I184="","",'DF raw data'!I184) -> -241.5 | B179: =IF('DF raw data'!J184="","",'DF raw data'!J184) -> -1.94284e-05 | C179: =IF('DF raw data'!K184="","",'DF raw data'!K184) -> 5.73856e-05 | D179: =IF('DF raw data'!L184="","",'DF raw data'!L184) -> -3.51766e-05 | F179: -1.950805644e-05 | G179: 5.762088096e-05 | H179: -3.532082406e-05 | J179: -0.001651857617 | K179: -0.05042628715 | L179: 0.003191474466 | M179: 0.09564178916 | N179: 0.0002614765891
A180: =IF('DF raw data'!I185="","",'DF raw data'!I185) -> -241 | B180: =IF('DF raw data'!J185="","",'DF raw data'!J185) -> -2.14843e-05 | C180: =IF('DF raw data'!K185="","",'DF raw data'!K185) -> 4.78264e-05 | D180: =IF('DF raw data'!L185="","",'DF raw data'!L185) -> -2.75382e-05 | F180: -2.157238563e-05 | G180: 4.802248824e-05 | H180: -2.765110662e-05 | J180: -0.001662643809 | K180: -0.05125760905 | L180: 0.00321548571 | M180: 0.09724953202 | N180: 0.0002680284555
A181: =IF('DF raw data'!I186="","",'DF raw data'!I186) -> -240.5 | B181: =IF('DF raw data'!J186="","",'DF raw data'!J186) -> -3.65438e-05 | C181: =IF('DF raw data'!K186="","",'DF raw data'!K186) -> 4.01266e-05 | D181: =IF('DF raw data'!L186="","",'DF raw data'!L186) -> -3.12973e-05 | F181: -3.669362958e-05 | G181: 4.029111906e-05 | H181: -3.142561893e-05 | J181: -0.001680990624 | K181: -0.05209810437 | L181: 0.003235631269 | M181: 0.09886734765 | N181: 0.0002746759751
A182: =IF('DF raw data'!I187="","",'DF raw data'!I187) -> -240 | B182: =IF('DF raw data'!J187="","",'DF raw data'!J187) -> -3.02e-05 | C182: =IF('DF raw data'!K187="","",'DF raw data'!K187) -> 5.10214e-05 | D182: =IF('DF raw data'!L187="","",'DF raw data'!L187) -> -2.8892e-05 | F182: -3.032382e-05 | G182: 5.123058774e-05 | H182: -2.90104572e-05 | J182: -0.001696152534 | K182: -0.05294618063 | L182: 0.003261246563 | M182: 0.1004979709 | N182: 0.0002814323064
A183: =IF('DF raw data'!I188="","",'DF raw data'!I188) -> -239.5 | B183: =IF('DF raw data'!J188="","",'DF raw data'!J188) -> -2.46869e-05 | C183: =IF('DF raw data'!K188="","",'DF raw data'!K188) -> 5.08725e-05 | D183: =IF('DF raw data'!L188="","",'DF raw data'!L188) -> -3.09507e-05 | F183: -2.478811629e-05 | G183: 5.108107725e-05 | H183: -3.107759787e-05 | J183: -0.001708546592 | K183: -0.05380045393 | L183: 0.003286787102 | M183: 0.1021413645 | N183: 0.0002882933569
A184: =IF('DF raw data'!I189="","",'DF raw data'!I189) -> -239 | B184: =IF('DF raw data'!J189="","",'DF raw data'!J189) -> -3.19909e-05 | C184: =IF('DF raw data'!K189="","",'DF raw data'!K189) -> 4.63351e-05 | D184: =IF('DF raw data'!L189="","",'DF raw data'!L189) -> -3.48866e-05 | F184: -3.212206269e-05 | G184: 4.652507391e-05 | H184: -3.502963506e-05 | J184: -0.001724607624 | K184: -0.05466275774 | L184: 0.003310049639 | M184: 0.1037963893 | N184: 0.0002952587069
A185: =IF('DF raw data'!I190="","",'DF raw data'!I190) -> -238.5 | B185: =IF('DF raw data'!J190="","",'DF raw data'!J190) -> -2.17397e-05 | C185: =IF('DF raw data'!K190="","",'DF raw data'!K190) -> 4.52196e-05 | D185: =IF('DF raw data'!L190="","",'DF raw data'!L190) -> -2.90269e-05 | F185: -2.182883277e-05 | G185: 4.540500036e-05 | H185: -2.914591029e-05 | J185: -0.00173552204 | K185: -0.05553051876 | L185: 0.003332752139 | M185: 0.1054627654 | N185: 0.0003023183437
A186: =IF('DF raw data'!I191="","",'DF raw data'!I191) -> -238 | B186: =IF('DF raw data'!J191="","",'DF raw data'!J191) -> -2.35316e-05 | C186: =IF('DF raw data'!K191="","",'DF raw data'!K191) -> 5.16042e-05 | D186: =IF('DF raw data'!L191="","",'DF raw data'!L191) -> -3.30771e-05 | F186: -2.362807956e-05 | G186: 5.181577722e-05 | H186: -3.321271611e-05 | J186: -0.00174733608 | K186: -0.0564041868 | L186: 0.003358660028 | M186: 0.1071420954 | N186: 0.000309485234
A187: =IF('DF raw data'!I192="","",'DF raw data'!I192) -> -237.5 | B187: =IF('DF raw data'!J192="","",'DF raw data'!J192) -> -2.28787e-05 | C187: =IF('DF raw data'!K192="","",'DF raw data'!K192) -> 5.40622e-05 | D187: =IF('DF raw data'!L192="","",'DF raw data'!L192) -> -5.15829e-05 | F187: -2.297250267e-05 | G187: 5.428385502e-05 | H187: -5.179438989e-05 | J187: -0.001758822331 | K187: -0.05728359797 | L187: 0.003385801955 | M187: 0.1088349964 | N187: 0.0003167637894
A188: =IF('DF raw data'!I193="","",'DF raw data'!I193) -> -237 | B188: =IF('DF raw data'!J193="","",'DF raw data'!J193) -> -2.83315e-05 | C188: =IF('DF raw data'!K193="","",'DF raw data'!K193) -> 5.66206e-05 | D188: =IF('DF raw data'!L193="","",'DF raw data'!L193) -> -4.43274e-05 | F188: -2.844765915e-05 | G188: 5.685274446e-05 | H188: -4.450914234e-05 | J188: -0.001773046161 | K188: -0.05817012105 | L188: 0.003414228327 | M188: 0.1105421105 | N188: 0.0003241641133
A189: =IF('DF raw data'!I194="","",'DF raw data'!I194) -> -236.5 | B189: =IF('DF raw data'!J194="","",'DF raw data'!J194) -> -2.6735e-05 | C189: =IF('DF raw data'!K194="","",'DF raw data'!K194) -> 4.64319e-05 | D189: =IF('DF raw data'!L194="","",'DF raw data'!L194) -> -3.52533e-05 | F189: -2.68446135e-05 | G189: 4.662227079e-05 | H189: -3.539783853e-05 | J189: -0.001786468467 | K189: -0.05906335528 | L189: 0.003437539463 | M189: 0.1122608803 | N189: 0.0003316681869
A190: =IF('DF raw data'!I195="","",'DF raw data'!I195) -> -236 | B190: =IF('DF raw data'!J195="","",'DF raw data'!J195) -> -2.7758e-05 | C190: =IF('DF raw data'!K195="","",'DF raw data'!K195) -> 5.25679e-05 | D190: =IF('DF raw data'!L195="","",'DF raw data'!L195) -> -3.89332e-05 | F190: -2.78718078e-05 | G190: 5.278342839e-05 | H190: -3.909282612e-05 | J190: -0.001800404371 | K190: -0.05996355747 | L190: 0.003463931177 | M190: 0.1139928458 | N190: 0.0003392883244
A191: =IF('DF raw data'!I196="","",'DF raw data'!I196) -> -235.5 | B191: =IF('DF raw data'!J196="","",'DF raw data'!J196) -> -2.13511e-05 | C191: =IF('DF raw data'!K196="","",'DF raw data'!K196) -> 6.19197e-05 | D191: =IF('DF raw data'!L196="","",'DF raw data'!L196) -> -3.53107e-05 | F191: -2.143863951e-05 | G191: 6.217357077e-05 | H191: -3.545547387e-05 | J191: -0.001811123691 | K191: -0.06086911931 | L191: 0.003495017962 | M191: 0.1157403548 | N191: 0.0003470359842
A192: =IF('DF raw data'!I197="","",'DF raw data'!I197) -> -235 | B192: =IF('DF raw data'!J197="","",'DF raw data'!J197) -> -2.44292e-05 | C192: =IF('DF raw data'!K197="","",'DF raw data'!K197) -> 5.67347e-05 | D192: =IF('DF raw data'!L197="","",'DF raw data'!L197) -> -3.2918e-05 | F192: =(1-$G$1*($B$49-$G$2))*B192 -> -2.452935972e-05 | G192: 5.696731227e-05 | H192: -3.30529638e-05 | J192: =F192*$G$3+J191 -> -0.001823388371 | K192: =J192*$G$3+K191 -> -0.0617808135 | L192: =G192*$G$3+L191 -> 0.003523501618 | M192: =L192*$G$3+M191 -> 0.1175021056 | N192: =(J192^2+L192^2)*$G$3+N191 -> 0.0003549058886
A193: =IF('DF raw data'!I198="","",'DF raw data'!I198) -> -234.5 | B193: =IF('DF raw data'!J198="","",'DF raw data'!J198) -> -3.68608e-05 | C193: =IF('DF raw data'!K198="","",'DF raw data'!K198) -> 5.22512e-05 | D193: =IF('DF raw data'!L198="","",'DF raw data'!L198) -> -3.6311e-05 | F193: -3.701192928e-05 | G193: 5.246542992e-05 | H193: -3.64598751e-05 | J193: -0.001841894336 | K193: -0.06270176067 | L193: 0.003549734333 | M193: 0.1192769728 | N193: 0.0003629024829
A194: =IF('DF raw data'!I199="","",'DF raw data'!I199) -> -234 | B194: =IF('DF raw data'!J199="","",'DF raw data'!J199) -> -2.49944e-05 | C194: =IF('DF raw data'!K199="","",'DF raw data'!K199) -> 5.10336e-05 | D194: =IF('DF raw data'!L199="","",'DF raw data'!L199) -> -5.0687e-05 | F194: -2.509687704e-05 | G194: 5.124283776e-05 | H194: -5.08948167e-05 | J194: -0.001854442774 | K194: -0.06362898205 | L194: 0.003575355752 | M194: 0.1210646507 | N194: 0.0003710135463
A195: =IF('DF raw data'!I200="","",'DF raw data'!I200) -> -233.5 | B195: =IF('DF raw data'!J200="","",'DF raw data'!J200) -> -3.53202e-05 | C195: =IF('DF raw data'!K200="","",'DF raw data'!K200) -> 5.61024e-05 | D195: =IF('DF raw data'!L200="","",'DF raw data'!L200) -> -4.01034e-05 | F195: -3.546501282e-05 | G195: 5.633241984e-05 | H195: -4.026782394e-05 | J195: -0.001872175281 | K195: -0.06456506969 | L195: 0.003603521962 | M195: 0.1228664117 | N195: 0.0003792587517
A196: =IF('DF raw data'!I201="","",'DF raw data'!I201) -> -233 | B196: =IF('DF raw data'!J201="","",'DF raw data'!J201) -> -1.98142e-05 | C196: =IF('DF raw data'!K201="","",'DF raw data'!K201) -> 5.50958e-05 | D196: =IF('DF raw data'!L201="","",'DF raw data'!L201) -> -3.33761e-05 | F196: -1.989543822e-05 | G196: 5.532169278e-05 | H196: -3.351294201e-05 | J196: -0.001882123 | K196: -0.06550613119 | L196: 0.003631182809 | M196: 0.1246820031 | N196: 0.0003876226895
A197: =IF('DF raw data'!I202="","",'DF raw data'!I202) -> -232.5 | B197: =IF('DF raw data'!J202="","",'DF raw data'!J202) -> -2.82729e-05 | C197: =IF('DF raw data'!K202="","",'DF raw data'!K202) -> 5.41771e-05 | D197: =IF('DF raw data'!L202="","",'DF raw data'!L202) -> -3.5569e-05 | F197: -2.838881889e-05 | G197: 5.439922611e-05 | H197: -3.57148329e-05 | J197: -0.001896317409 | K197: -0.0664542899 | L197: 0.003658382422 | M197: 0.1265111943 | N197: 0.0003961125803
A198: =IF('DF raw data'!I203="","",'DF raw data'!I203) -> -232 | B198: =IF('DF raw data'!J203="","",'DF raw data'!J203) -> -1.37203e-05 | C198: =IF('DF raw data'!K203="","",'DF raw data'!K203) -> 4.52348e-05 | D198: =IF('DF raw data'!L203="","",'DF raw data'!L203) -> -4.13307e-05 | F198: -1.377655323e-05 | G198: 4.542026268e-05 | H198: -4.150015587e-05 | J198: -0.001903205686 | K198: -0.06740589274 | L198: 0.003681092553 | M198: 0.1283517406 | N198: 0.0004046988974
A199: =IF('DF raw data'!I204="","",'DF raw data'!I204) -> -231.5 | B199: =IF('DF raw data'!J204="","",'DF raw data'!J204) -> -1.68615e-05 | C199: =IF('DF raw data'!K204="","",'DF raw data'!K204) -> 4.416e-05 | D199: =IF('DF raw data'!L204="","",'DF raw data'!L204) -> -4.0339e-05 | F199: -1.693063215e-05 | G199: 4.4341056e-05 | H199: -4.05043899e-05 | J199: -0.001911671002 | K199: -0.06836172824 | L199: 0.003703263081 | M199: 0.1302033721 | N199: 0.0004133832192
A200: =IF('DF raw data'!I205="","",'DF raw data'!I205) -> -231 | B200: =IF('DF raw data'!J205="","",'DF raw data'!J205) -> -2.71239e-05 | C200: =IF('DF raw data'!K205="","",'DF raw data'!K205) -> 4.90391e-05 | D200: =IF('DF raw data'!L205="","",'DF raw data'!L205) -> -2.84462e-05 | F200: -2.723510799e-05 | G200: 4.924016031e-05 | H200: -2.856282942e-05 | J200: -0.001925288556 | K200: -0.06932437252 | L200: 0.003727883161 | M200: 0.1320673137 | N200: 0.0004221851436
A201: =IF('DF raw data'!I206="","",'DF raw data'!I206) -> -230.5 | B201: =IF('DF raw data'!J206="","",'DF raw data'!J206) -> -2.35278e-05 | C201: =IF('DF raw data'!K206="","",'DF raw data'!K206) -> 4.68626e-05 | D201: =IF('DF raw data'!L206="","",'DF raw data'!L206) -> -3.89935e-05 | F201: -2.362426398e-05 | G201: 4.705473666e-05 | H201: -3.915337335e-05 | J201: -0.001937100688 | K201: -0.07029292286 | L201: 0.003751410529 | M201: 0.1339430189 | N201: 0.0004310978636
... 1061 more rows

Sheet 10 y=0.1
A1: =IF('DF raw data'!M1="","",'DF raw data'!M1) -> Number of header lines | B1: =IF('DF raw data'!N1="","",'DF raw data'!N1) -> 54 | C1: =IF('DF raw data'!O1="","",'DF raw data'!O1) ->  | D1: =IF('DF raw data'!P1="","",'DF raw data'!P1) ->  | F1: T_coeff | G1: -0.001 | H1: /degC | J1: ='10 y=-0.2'!J1 -> IBy total | K1: ='10 y=-0.2'!K1 -> -15.14499637 | L1: ='10 y=-0.2'!L1 -> muTm | R1: ='10 y=-0.2'!R1 -> DF ref | S1: ='10 y=-0.2'!S1 -> 1
A2: =IF('DF raw data'!M2="","",'DF raw data'!M2) -> Measured by | B2: =IF('DF raw data'!N2="","",'DF raw data'!N2) -> Danfysik | C2: =IF('DF raw data'!O2="","",'DF raw data'!O2) ->  | D2: =IF('DF raw data'!P2="","",'DF raw data'!P2) ->  | F2: Tcorr | G2: 20 | H2: degC | J2: JBy total | K2: =K1262 -> -12.26760182 | L2: muTm^2 | M2: =M1262 -> -3.390431846
A3: =IF('DF raw data'!M3="","",'DF raw data'!M3) -> Operator | B3: =IF('DF raw data'!N3="","",'DF raw data'!N3) -> PMHA | C3: =IF('DF raw data'!O3="","",'DF raw data'!O3) ->  | D3: =IF('DF raw data'!P3="","",'DF raw data'!P3) ->  | F3: Step | G3: =A63-A62 -> 0.5 | H3: mm | J3: PI total | K3: =N1262 -> 10565.59128 | L3: T^2mm^3
A4: =IF('DF raw data'!M4="","",'DF raw data'!M4) -> Data-time | B4: =IF('DF raw data'!N4="","",'DF raw data'!N4) -> 02-09-2024, 13:05:59 | C4: =IF('DF raw data'!O4="","",'DF raw data'!O4) ->  | D4: =IF('DF raw data'!P4="","",'DF raw data'!P4) -> 
A5: =IF('DF raw data'!M5="","",'DF raw data'!M5) -> Project | B5: =IF('DF raw data'!N5="","",'DF raw data'!N5) -> 504314 | C5: =IF('DF raw data'!O5="","",'DF raw data'!O5) ->  | D5: =IF('DF raw data'!P5="","",'DF raw data'!P5) -> 
A6: =IF('DF raw data'!M6="","",'DF raw data'!M6) -> Magnet type | B6: =IF('DF raw data'!N6="","",'DF raw data'!N6) -> Dipole | C6: =IF('DF raw data'!O6="","",'DF raw data'!O6) ->  | D6: =IF('DF raw data'!P6="","",'DF raw data'!P6) -> 
A7: =IF('DF raw data'!M7="","",'DF raw data'!M7) -> Magnet nr. | B7: =IF('DF raw data'!N7="","",'DF raw data'!N7) -> 2410089 | C7: =IF('DF raw data'!O7="","",'DF raw data'!O7) ->  | D7: =IF('DF raw data'!P7="","",'DF raw data'!P7) -> 
A8: =IF('DF raw data'!M8="","",'DF raw data'!M8) -> Meas. number | B8: =IF('DF raw data'!N8="","",'DF raw data'!N8) -> 301 | C8: =IF('DF raw data'!O8="","",'DF raw data'!O8) ->  | D8: =IF('DF raw data'!P8="","",'DF raw data'!P8) -> 
A9: =IF('DF raw data'!M9="","",'DF raw data'!M9) -> Add. info | B9: =IF('DF raw data'!N9="","",'DF raw data'!N9) -> Y-alignment scan 4) | C9: =IF('DF raw data'!O9="","",'DF raw data'!O9) ->  | D9: =IF('DF raw data'!P9="","",'DF raw data'!P9) -> 
A10: =IF('DF raw data'!M10="","",'DF raw data'!M10) -> Device | B10: =IF('DF raw data'!N10="","",'DF raw data'!N10) -> (HAL) HALL-PROBE | C10: =IF('DF raw data'!O10="","",'DF raw data'!O10) ->  | D10: =IF('DF raw data'!P10="","",'DF raw data'!P10) -> 
A11: =IF('DF raw data'!M11="","",'DF raw data'!M11) -> Goal | B11: =IF('DF raw data'!N11="","",'DF raw data'!N11) -> (AXI) AXis Integral (Line, EFB) | C11: =IF('DF raw data'!O11="","",'DF raw data'!O11) ->  | D11: =IF('DF raw data'!P11="","",'DF raw data'!P11) -> 
A12: =IF('DF raw data'!M12="","",'DF raw data'!M12) -> Power supply mode | B12: =IF('DF raw data'!N12="","",'DF raw data'!N12) -> (PM) Permanent Magnet (no MPS in use) | C12: =IF('DF raw data'!O12="","",'DF raw data'!O12) ->  | D12: =IF('DF raw data'!P12="","",'DF raw data'!P12) -> 
A13: =IF('DF raw data'!M13="","",'DF raw data'!M13) -> Data format | B13: =IF('DF raw data'!N13="","",'DF raw data'!N13) -> Raw data text file | C13: =IF('DF raw data'!O13="","",'DF raw data'!O13) ->  | D13: =IF('DF raw data'!P13="","",'DF raw data'!P13) -> 
A14: =IF('DF raw data'!M14="","",'DF raw data'!M14) -> Direction of the pos. x-axis | B14: =IF('DF raw data'!N14="","",'DF raw data'!N14) -> See test program | C14: =IF('DF raw data'!O14="","",'DF raw data'!O14) ->  | D14: =IF('DF raw data'!P14="","",'DF raw data'!P14) -> 
A15: =IF('DF raw data'!M15="","",'DF raw data'!M15) -> Direction of the pos. y-axis | B15: =IF('DF raw data'!N15="","",'DF raw data'!N15) -> Vertical up | C15: =IF('DF raw data'!O15="","",'DF raw data'!O15) ->  | D15: =IF('DF raw data'!P15="","",'DF raw data'!P15) -> 
A16: =IF('DF raw data'!M16="","",'DF raw data'!M16) -> Direction of the pos. z-axis | B16: =IF('DF raw data'!N16="","",'DF raw data'!N16) -> See test program | C16: =IF('DF raw data'!O16="","",'DF raw data'!O16) ->  | D16: =IF('DF raw data'!P16="","",'DF raw data'!P16) -> 
A17: =IF('DF raw data'!M17="","",'DF raw data'!M17) -> Mapper type | B17: =IF('DF raw data'!N17="","",'DF raw data'!N17) -> Precision Hall Mapper | C17: =IF('DF raw data'!O17="","",'DF raw data'!O17) ->  | D17: =IF('DF raw data'!P17="","",'DF raw data'!P17) -> 
A18: =IF('DF raw data'!M18="","",'DF raw data'!M18) -> Mapper Danfysik Reg. Number | B18: =IF('DF raw data'!N18="","",'DF raw data'!N18) -> 2033-D (mapper 1) | C18: =IF('DF raw data'!O18="","",'DF raw data'!O18) ->  | D18: =IF('DF raw data'!P18="","",'DF raw data'!P18) -> 
A19: =IF('DF raw data'!M19="","",'DF raw data'!M19) -> Measurement consept | B19: =IF('DF raw data'!N19="","",'DF raw data'!N19) -> Square line grid | C19: =IF('DF raw data'!O19="","",'DF raw data'!O19) ->  | D19: =IF('DF raw data'!P19="","",'DF raw data'!P19) -> 
A20: =IF('DF raw data'!M20="","",'DF raw data'!M20) -> Mode | B20: =IF('DF raw data'!N20="","",'DF raw data'!N20) -> On-the-fly measurement | C20: =IF('DF raw data'!O20="","",'DF raw data'!O20) ->  | D20: =IF('DF raw data'!P20="","",'DF raw data'!P20) -> 
A21: =IF('DF raw data'!M21="","",'DF raw data'!M21) ->  | B21: =IF('DF raw data'!N21="","",'DF raw data'!N21) ->  | C21: =IF('DF raw data'!O21="","",'DF raw data'!O21) ->  | D21: =IF('DF raw data'!P21="","",'DF raw data'!P21) -> 
A22: =IF('DF raw data'!M22="","",'DF raw data'!M22) -> Probe Name | B22: =IF('DF raw data'!N22="","",'DF raw data'!N22) -> ID12_By | C22: =IF('DF raw data'!O22="","",'DF raw data'!O22) ->  | D22: =IF('DF raw data'!P22="","",'DF raw data'!P22) -> 
A23: =IF('DF raw data'!M23="","",'DF raw data'!M23) -> Probe Type | B23: =IF('DF raw data'!N23="","",'DF raw data'!N23) -> DF_ID_3D_Bxyz | C23: =IF('DF raw data'!O23="","",'DF raw data'!O23) ->  | D23: =IF('DF raw data'!P23="","",'DF raw data'!P23) -> 
A24: =IF('DF raw data'!M24="","",'DF raw data'!M24) -> Probe Danfysik Reg. Number | B24: =IF('DF raw data'!N24="","",'DF raw data'!N24) -> 2277 | C24: =IF('DF raw data'!O24="","",'DF raw data'!O24) ->  | D24: =IF('DF raw data'!P24="","",'DF raw data'!P24) -> 
A25: =IF('DF raw data'!M25="","",'DF raw data'!M25) -> Probe Axis | B25: =IF('DF raw data'!N25="","",'DF raw data'!N25) -> By | C25: =IF('DF raw data'!O25="","",'DF raw data'!O25) ->  | D25: =IF('DF raw data'!P25="","",'DF raw data'!P25) -> 
A26: =IF('DF raw data'!M26="","",'DF raw data'!M26) -> Probe Current Supply | B26: =IF('DF raw data'!N26="","",'DF raw data'!N26) -> 1825-D | C26: =IF('DF raw data'!O26="","",'DF raw data'!O26) ->  | D26: =IF('DF raw data'!P26="","",'DF raw data'!P26) -> 
A27: =IF('DF raw data'!M27="","",'DF raw data'!M27) -> Probe Gain Correction | B27: =IF('DF raw data'!N27="","",'DF raw data'!N27) -> 0.99611 | C27: =IF('DF raw data'!O27="","",'DF raw data'!O27) ->  | D27: =IF('DF raw data'!P27="","",'DF raw data'!P27) -> 
A28: =IF('DF raw data'!M28="","",'DF raw data'!M28) -> Probe Offset Correction | B28: =IF('DF raw data'!N28="","",'DF raw data'!N28) -> 0.0027639 | C28: =IF('DF raw data'!O28="","",'DF raw data'!O28) ->  | D28: =IF('DF raw data'!P28="","",'DF raw data'!P28) -> 
A29: =IF('DF raw data'!M29="","",'DF raw data'!M29) -> DVM Number | B29: =IF('DF raw data'!N29="","",'DF raw data'!N29) -> 2 | C29: =IF('DF raw data'!O29="","",'DF raw data'!O29) ->  | D29: =IF('DF raw data'!P29="","",'DF raw data'!P29) -> 
A30: =IF('DF raw data'!M30="","",'DF raw data'!M30) -> DVM Type | B30: =IF('DF raw data'!N30="","",'DF raw data'!N30) -> K2701 | C30: =IF('DF raw data'!O30="","",'DF raw data'!O30) ->  | D30: =IF('DF raw data'!P30="","",'DF raw data'!P30) -> 
A31: =IF('DF raw data'!M31="","",'DF raw data'!M31) -> DVM Danfysik Reg. Number | B31: =IF('DF raw data'!N31="","",'DF raw data'!N31) -> 1743-D | C31: =IF('DF raw data'!O31="","",'DF raw data'!O31) ->  | D31: =IF('DF raw data'!P31="","",'DF raw data'!P31) -> 
A32: =IF('DF raw data'!M32="","",'DF raw data'!M32) -> Probe Name | B32: =IF('DF raw data'!N32="","",'DF raw data'!N32) -> ID12_Bx | C32: =IF('DF raw data'!O32="","",'DF raw data'!O32) ->  | D32: =IF('DF raw data'!P32="","",'DF raw data'!P32) -> 
A33: =IF('DF raw data'!M33="","",'DF raw data'!M33) -> Probe Type | B33: =IF('DF raw data'!N33="","",'DF raw data'!N33) -> DF_ID_3D_Bxyz | C33: =IF('DF raw data'!O33="","",'DF raw data'!O33) ->  | D33: =IF('DF raw data'!P33="","",'DF raw data'!P33) -> 
A34: =IF('DF raw data'!M34="","",'DF raw data'!M34) -> Probe Danfysik Reg. Number | B34: =IF('DF raw data'!N34="","",'DF raw data'!N34) -> 2277 | C34: =IF('DF raw data'!O34="","",'DF raw data'!O34) ->  | D34: =IF('DF raw data'!P34="","",'DF raw data'!P34) -> 
A35: =IF('DF raw data'!M35="","",'DF raw data'!M35) -> Probe Axis | B35: =IF('DF raw data'!N35="","",'DF raw data'!N35) -> Bx | C35: =IF('DF raw data'!O35="","",'DF raw data'!O35) ->  | D35: =IF('DF raw data'!P35="","",'DF raw data'!P35) -> 
A36: =IF('DF raw data'!M36="","",'DF raw data'!M36) -> Probe Current Supply | B36: =IF('DF raw data'!N36="","",'DF raw data'!N36) -> 1825-D | C36: =IF('DF raw data'!O36="","",'DF raw data'!O36) ->  | D36: =IF('DF raw data'!P36="","",'DF raw data'!P36) -> 
A37: =IF('DF raw data'!M37="","",'DF raw data'!M37) -> Probe Gain Correction | B37: =IF('DF raw data'!N37="","",'DF raw data'!N37) -> 1 | C37: =IF('DF raw data'!O37="","",'DF raw data'!O37) ->  | D37: =IF('DF raw data'!P37="","",'DF raw data'!P37) -> 
A38: =IF('DF raw data'!M38="","",'DF raw data'!M38) -> Probe Offset Correction | B38: =IF('DF raw data'!N38="","",'DF raw data'!N38) -> -0.17554 | C38: =IF('DF raw data'!O38="","",'DF raw data'!O38) ->  | D38: =IF('DF raw data'!P38="","",'DF raw data'!P38) -> 
A39: =IF('DF raw data'!M39="","",'DF raw data'!M39) -> DVM Number | B39: =IF('DF raw data'!N39="","",'DF raw data'!N39) -> 3 | C39: =IF('DF raw data'!O39="","",'DF raw data'!O39) ->  | D39: =IF('DF raw data'!P39="","",'DF raw data'!P39) -> 
A40: =IF('DF raw data'!M40="","",'DF raw data'!M40) -> DVM Type | B40: =IF('DF raw data'!N40="","",'DF raw data'!N40) -> K2701 | C40: =IF('DF raw data'!O40="","",'DF raw data'!O40) ->  | D40: =IF('DF raw data'!P40="","",'DF raw data'!P40) -> 
A41: =IF('DF raw data'!M41="","",'DF raw data'!M41) -> DVM Danfysik Reg. Number | B41: =IF('DF raw data'!N41="","",'DF raw data'!N41) -> 1744-D | C41: =IF('DF raw data'!O41="","",'DF raw data'!O41) ->  | D41: =IF('DF raw data'!P41="","",'DF raw data'!P41) -> 
A42: =IF('DF raw data'!M42="","",'DF raw data'!M42) -> Probe Name | B42: =IF('DF raw data'!N42="","",'DF raw data'!N42) -> ID12_Bz | C42: =IF('DF raw data'!O42="","",'DF raw data'!O42) ->  | D42: =IF('DF raw data'!P42="","",'DF raw data'!P42) -> 
A43: =IF('DF raw data'!M43="","",'DF raw data'!M43) -> Probe Type | B43: =IF('DF raw data'!N43="","",'DF raw data'!N43) -> DF_ID_3D_Bxyz | C43: =IF('DF raw data'!O43="","",'DF raw data'!O43) ->  | D43: =IF('DF raw data'!P43="","",'DF raw data'!P43) -> 
A44: =IF('DF raw data'!M44="","",'DF raw data'!M44) -> Probe Danfysik Reg. Number | B44: =IF('DF raw data'!N44="","",'DF raw data'!N44) -> 2277 | C44: =IF('DF raw data'!O44="","",'DF raw data'!O44) ->  | D44: =IF('DF raw data'!P44="","",'DF raw data'!P44) -> 
A45: =IF('DF raw data'!M45="","",'DF raw data'!M45) -> Probe Axis | B45: =IF('DF raw data'!N45="","",'DF raw data'!N45) -> Bz | C45: =IF('DF raw data'!O45="","",'DF raw data'!O45) ->  | D45: =IF('DF raw data'!P45="","",'DF raw data'!P45) -> 
A46: =IF('DF raw data'!M46="","",'DF raw data'!M46) -> Probe Current Supply | B46: =IF('DF raw data'!N46="","",'DF raw data'!N46) -> 1825-D | C46: =IF('DF raw data'!O46="","",'DF raw data'!O46) ->  | D46: =IF('DF raw data'!P46="","",'DF raw data'!P46) -> 
A47: =IF('DF raw data'!M47="","",'DF raw data'!M47) -> Probe Gain Correction | B47: =IF('DF raw data'!N47="","",'DF raw data'!N47) -> 1 | C47: =IF('DF raw data'!O47="","",'DF raw data'!O47) ->  | D47: =IF('DF raw data'!P47="","",'DF raw data'!P47) -> 
A48: =IF('DF raw data'!M53="","",'DF raw data'!M53) -> PS-Gap: | B48: =IF('DF raw data'!N53="","",'DF raw data'!N53) -> 10 | C48: =IF('DF raw data'!O53="","",'DF raw data'!O53) ->  | D48: =IF('DF raw data'!P53="","",'DF raw data'!P53) -> 
A49: =IF('DF raw data'!M54="","",'DF raw data'!M54) -> PS-Temperature: | B49: =IF('DF raw data'!N54="","",'DF raw data'!N54) -> 24.1 | C49: =IF('DF raw data'!O54="","",'DF raw data'!O54) ->  | D49: =IF('DF raw data'!P54="","",'DF raw data'!P54) -> 
A50: =IF('DF raw data'!M55="","",'DF raw data'!M55) -> PS-Encoder: | B50: =IF('DF raw data'!N55="","",'DF raw data'!N55) -> 19.5576 | C50: =IF('DF raw data'!O55="","",'DF raw data'!O55) ->  | D50: =IF('DF raw data'!P55="","",'DF raw data'!P55) -> 
A51: =IF('DF raw data'!M56="","",'DF raw data'!M56) ->  | B51: =IF('DF raw data'!N56="","",'DF raw data'!N56) ->  | C51: =IF('DF raw data'!O56="","",'DF raw data'!O56) ->  | D51: =IF('DF raw data'!P56="","",'DF raw data'!P56) -> 
A52: =IF('DF raw data'!M57="","",'DF raw data'!M57) -> Monitor-Index | B52: =IF('DF raw data'!N57="","",'DF raw data'!N57) -> [1,1,4] | C52: =IF('DF raw data'!O57="","",'DF raw data'!O57) ->  | D52: =IF('DF raw data'!P57="","",'DF raw data'!P57) -> 
A53: =IF('DF raw data'!M58="","",'DF raw data'!M58) ->  | B53: =IF('DF raw data'!N58="","",'DF raw data'!N58) ->  | C53: =IF('DF raw data'!O58="","",'DF raw data'!O58) ->  | D53: =IF('DF raw data'!P58="","",'DF raw data'!P58) -> 
A54: =IF('DF raw data'!M59="","",'DF raw data'!M59) -> Time [s] | B54: =IF('DF raw data'!N59="","",'DF raw data'!N59) -> Y [mm] | C54: =IF('DF raw data'!O59="","",'DF raw data'!O59) -> X [mm] | D54: =IF('DF raw data'!P59="","",'DF raw data'!P59) -> Nominal current [A]
A55: =IF('DF raw data'!M60="","",'DF raw data'!M60) ->  | B55: =IF('DF raw data'!N60="","",'DF raw data'!N60) ->  | C55: =IF('DF raw data'!O60="","",'DF raw data'!O60) ->  | D55: =IF('DF raw data'!P60="","",'DF raw data'!P60) -> 
A56: =IF('DF raw data'!M61="","",'DF raw data'!M61) -> 209.4 | B56: =IF('DF raw data'!N61="","",'DF raw data'!N61) -> 31.66 | C56: =IF('DF raw data'!O61="","",'DF raw data'!O61) -> 301.8 | D56: =IF('DF raw data'!P61="","",'DF raw data'!P61) -> 0
A57: =IF('DF raw data'!M62="","",'DF raw data'!M62) ->  | B57: =IF('DF raw data'!N62="","",'DF raw data'!N62) ->  | C57: =IF('DF raw data'!O62="","",'DF raw data'!O62) ->  | D57: =IF('DF raw data'!P62="","",'DF raw data'!P62) -> 
A58: =IF('DF raw data'!M63="","",'DF raw data'!M63) -> Measurement-Index | B58: =IF('DF raw data'!N63="","",'DF raw data'!N63) -> [1,1,1201,2] | C58: =IF('DF raw data'!O63="","",'DF raw data'!O63) ->  | D58: =IF('DF raw data'!P63="","",'DF raw data'!P63) -> 
A59: =IF('DF raw data'!M64="","",'DF raw data'!M64) ->  | B59: =IF('DF raw data'!N64="","",'DF raw data'!N64) ->  | C59: =IF('DF raw data'!O64="","",'DF raw data'!O64) ->  | D59: =IF('DF raw data'!P64="","",'DF raw data'!P64) -> 
A60: =IF('DF raw data'!M65="","",'DF raw data'!M65) -> Z [mm] | B60: By [T] | C60: Bx [T] | D60: Bz [T] | F60: By_corr | G60: Bx_corr | H60: Bz_corr | J60: Iy | K60: Jy | L60: Ix | M60: Jx | N60: PI
A62: =IF('DF raw data'!M67="","",'DF raw data'!M67) -> -300 | B62: =IF('DF raw data'!N67="","",'DF raw data'!N67) -> -1.99047e-05 | C62: =IF('DF raw data'!O67="","",'DF raw data'!O67) -> 2.56861e-05 | D62: =IF('DF raw data'!P67="","",'DF raw data'!P67) -> -4.62317e-05 | F62: =(1-$G$1*($B$49))*B62 -> -2.038440327e-05 | G62: =(1-$G$1*($B$49-$G$2))*C62 -> 2.579141301e-05 | H62: =(1-$G$1*($B$49-$G$2))*D62 -> -4.642124997e-05 | J62: =F62*$G$3 -> -1.019220164e-05 | K62: =J62*$G$3 -> -5.096100818e-06 | L62: =G62*$G$3 -> 1.289570651e-05 | M62: =L62*$G$3 -> 6.447853253e-06 | N62: =(J62^2+L62^2)*$G$3 -> 1.350901102e-10
A63: =IF('DF raw data'!M68="","",'DF raw data'!M68) -> -299.5 | B63: =IF('DF raw data'!N68="","",'DF raw data'!N68) -> -3.00319e-05 | C63: =IF('DF raw data'!O68="","",'DF raw data'!O68) -> 2.3704e-05 | D63: =IF('DF raw data'!P68="","",'DF raw data'!P68) -> -4.6086e-05 | F63: =(1-$G$1*($B$49-$G$2))*B63 -> -3.015503079e-05 | G63: =(1-$G$1*($B$49-$G$2))*C63 -> 2.38011864e-05 | H63: -4.62749526e-05 | J63: =F63*$G$3+J62 -> -2.526971703e-05 | K63: =J63*$G$3+K62 -> -1.773095933e-05 | L63: =G63*$G$3+L62 -> 2.47962997e-05 | M63: =L63*$G$3+M62 -> 1.884600311e-05 | N63: =(J63^2+L63^2)*$G$3+N62 -> 7.617976491e-10
A64: =IF('DF raw data'!M69="","",'DF raw data'!M69) -> -299 | B64: =IF('DF raw data'!N69="","",'DF raw data'!N69) -> -3.50956e-05 | C64: =IF('DF raw data'!O69="","",'DF raw data'!O69) -> 2.02464e-05 | D64: =IF('DF raw data'!P69="","",'DF raw data'!P69) -> -4.55027e-05 | F64: =(1-$G$1*($B$49-$G$2))*B64 -> -3.523949196e-05 | G64: 2.032941024e-05 | H64: -4.568926107e-05 | J64: =F64*$G$3+J63 -> -4.288946301e-05 | K64: =J64*$G$3+K63 -> -3.917569084e-05 | L64: =G64*$G$3+L63 -> 3.496100482e-05 | M64: =L64*$G$3+M63 -> 3.632650552e-05 | N64: =(J64^2+L64^2)*$G$3+N63 -> 2.292686597e-09
A65: =IF('DF raw data'!M70="","",'DF raw data'!M70) -> -298.5 | B65: =IF('DF raw data'!N70="","",'DF raw data'!N70) -> -4.89407e-05 | C65: =IF('DF raw data'!O70="","",'DF raw data'!O70) -> 1.94949e-05 | D65: =IF('DF raw data'!P70="","",'DF raw data'!P70) -> -4.42447e-05 | F65: -4.914135687e-05 | G65: 1.957482909e-05 | H65: -4.442610327e-05 | J65: -6.746014145e-05 | K65: -7.290576156e-05 | L65: 4.474841937e-05 | M65: 5.87007152e-05 | N65: 5.569332457e-09
A66: =IF('DF raw data'!M71="","",'DF raw data'!M71) -> -298 | B66: =IF('DF raw data'!N71="","",'DF raw data'!N71) -> -4.16349e-05 | C66: =IF('DF raw data'!O71="","",'DF raw data'!O71) -> 2.66072e-05 | D66: =IF('DF raw data'!P71="","",'DF raw data'!P71) -> -4.29147e-05 | F66: -4.180560309e-05 | G66: 2.671628952e-05 | H66: -4.309065027e-05 | J66: -8.836294299e-05 | K66: -0.0001170872331 | L66: 5.810656413e-05 | M66: 8.775399727e-05 | N66: 1.11615237e-08
A67: =IF('DF raw data'!M72="","",'DF raw data'!M72) -> -297.5 | B67: =IF('DF raw data'!N72="","",'DF raw data'!N72) -> -4.14432e-05 | C67: =IF('DF raw data'!O72="","",'DF raw data'!O72) -> 3.06616e-05 | D67: =IF('DF raw data'!P72="","",'DF raw data'!P72) -> -4.22047e-05 | F67: -4.161311712e-05 | G67: 3.078731256e-05 | H67: -4.237773927e-05 | J67: -0.0001091695016 | K67: -0.0001716719838 | L67: 7.350022041e-05 | M67: 0.0001245041075 | N67: 1.982165494e-08
A68: =IF('DF raw data'!M73="","",'DF raw data'!M73) -> -297 | B68: =IF('DF raw data'!N73="","",'DF raw data'!N73) -> -3.39439e-05 | C68: =IF('DF raw data'!O73="","",'DF raw data'!O73) -> 2.40927e-05 | D68: =IF('DF raw data'!P73="","",'DF raw data'!P73) -> -4.24783e-05 | F68: -3.408306999e-05 | G68: 2.419148007e-05 | H68: -4.265246103e-05 | J68: -0.0001262110365 | K68: -0.0002347775021 | L68: 8.559596045e-05 | M68: 0.0001673020877 | N68: 3.144960203e-08
A69: =IF('DF raw data'!M74="","",'DF raw data'!M74) -> -296.5 | B69: =IF('DF raw data'!N74="","",'DF raw data'!N74) -> -3.00336e-05 | C69: =IF('DF raw data'!O74="","",'DF raw data'!O74) -> 1.78153e-05 | D69: =IF('DF raw data'!P74="","",'DF raw data'!P74) -> -4.3468e-05 | F69: -3.015673776e-05 | G69: 1.788834273e-05 | H69: -4.36462188e-05 | J69: -0.0001412894054 | K69: -0.0003054222048 | L69: 9.454013181e-05 | M69: 0.0002145721536 | N69: 4.589986833e-08
A70: =IF('DF raw data'!M75="","",'DF raw data'!M75) -> -296 | B70: =IF('DF raw data'!N75="","",'DF raw data'!N75) -> -3.64424e-05 | C70: =IF('DF raw data'!O75="","",'DF raw data'!O75) -> 2.08325e-05 | D70: =IF('DF raw data'!P75="","",'DF raw data'!P75) -> -4.44023e-05 | F70: -3.659181384e-05 | G70: 2.091791325e-05 | H70: -4.458434943e-05 | J70: -0.0001595853123 | K70: -0.000385214861 | L70: 0.0001049990884 | M70: 0.0002670716978 | N70: 6.414600858e-08
A71: =IF('DF raw data'!M76="","",'DF raw data'!M76) -> -295.5 | B71: =IF('DF raw data'!N76="","",'DF raw data'!N76) -> -3.88779e-05 | C71: =IF('DF raw data'!O76="","",'DF raw data'!O76) -> 3.64191e-05 | D71: =IF('DF raw data'!P76="","",'DF raw data'!P76) -> -4.44141e-05 | F71: -3.903729939e-05 | G71: 3.656841831e-05 | H71: -4.459619781e-05 | J71: -0.000179103962 | K71: -0.000474766842 | L71: 0.0001232832976 | M71: 0.0003287133466 | N71: 8.778450892e-08
A72: =IF('DF raw data'!M77="","",'DF raw data'!M77) -> -295 | B72: =IF('DF raw data'!N77="","",'DF raw data'!N77) -> -4.8685e-05 | C72: =IF('DF raw data'!O77="","",'DF raw data'!O77) -> 3.79475e-05 | D72: =IF('DF raw data'!P77="","",'DF raw data'!P77) -> -4.33073e-05 | F72: -4.88846085e-05 | G72: 3.810308475e-05 | H72: -4.348485993e-05 | J72: -0.0002035462663 | K72: -0.0005765399752 | L72: 0.00014233484 | M72: 0.0003998807666 | N72: 1.186296535e-07
A73: =IF('DF raw data'!M78="","",'DF raw data'!M78) -> -294.5 | B73: =IF('DF raw data'!N78="","",'DF raw data'!N78) -> -4.24043e-05 | C73: =IF('DF raw data'!O78="","",'DF raw data'!O78) -> 2.72711e-05 | D73: =IF('DF raw data'!P78="","",'DF raw data'!P78) -> -4.24977e-05 | F73: -4.257815763e-05 | G73: 2.738291151e-05 | H73: -4.267194057e-05 | J73: -0.0002248353451 | K73: -0.0006889576477 | L73: 0.0001560262957 | M73: 0.0004778939145 | N73: 1.560772222e-07
A74: =IF('DF raw data'!M79="","",'DF raw data'!M79) -> -294 | B74: =IF('DF raw data'!N79="","",'DF raw data'!N79) -> -2.93287e-05 | C74: =IF('DF raw data'!O79="","",'DF raw data'!O79) -> 2.71564e-05 | D74: =IF('DF raw data'!P79="","",'DF raw data'!P79) -> -4.30801e-05 | F74: -2.944894767e-05 | G74: 2.726774124e-05 | H74: -4.325672841e-05 | J74: -0.0002395598189 | K74: -0.0008087375572 | L74: 0.0001696601663 | M74: 0.0005627239976 | N74: 1.991639616e-07
A75: =IF('DF raw data'!M80="","",'DF raw data'!M80) -> -293.5 | B75: =IF('DF raw data'!N80="","",'DF raw data'!N80) -> -3.99681e-05 | C75: =IF('DF raw data'!O80="","",'DF raw data'!O80) -> 2.65394e-05 | D75: =IF('DF raw data'!P80="","",'DF raw data'!P80) -> -4.36143e-05 | F75: -4.013196921e-05 | G75: 2.664821154e-05 | H75: -4.379311863e-05 | J75: -0.0002596258035 | K75: -0.0009385504589 | L75: 0.0001829842721 | M75: 0.0006542161337 | N75: 2.496083625e-07
A76: =IF('DF raw data'!M81="","",'DF raw data'!M81) -> -293 | B76: =IF('DF raw data'!N81="","",'DF raw data'!N81) -> -4.55447e-05 | C76: =IF('DF raw data'!O81="","",'DF raw data'!O81) -> 2.84898e-05 | D76: =IF('DF raw data'!P81="","",'DF raw data'!P81) -> -4.28786e-05 | F76: -4.573143327e-05 | G76: 2.860660818e-05 | H76: -4.305440226e-05 | J76: -0.0002824915202 | K76: -0.001079796219 | L76: 0.0001972875762 | M76: 0.0007528599218 | N76: 3.089702858e-07
A77: =IF('DF raw data'!M82="","",'DF raw data'!M82) -> -292.5 | B77: =IF('DF raw data'!N82="","",'DF raw data'!N82) -> -3.41362e-05 | C77: =IF('DF raw data'!O82="","",'DF raw data'!O82) -> 2.84695e-05 | D77: =IF('DF raw data'!P82="","",'DF raw data'!P82) -> -4.22365e-05 | F77: -3.427615842e-05 | G77: 2.858622495e-05 | H77: -4.240966965e-05 | J77: -0.0002996295994 | K77: -0.001229611019 | L77: 0.0002115806887 | M77: 0.0008586502661 | N77: 3.762424282e-07
A78: =IF('DF raw data'!M83="","",'DF raw data'!M83) -> -292 | B78: =IF('DF raw data'!N83="","",'DF raw data'!N83) -> -2.75984e-05 | C78: =IF('DF raw data'!O83="","",'DF raw data'!O83) -> 2.28062e-05 | D78: =IF('DF raw data'!P83="","",'DF raw data'!P83) -> -4.26457e-05 | F78: -2.771155344e-05 | G78: 2.289970542e-05 | H78: -4.282054737e-05 | J78: -0.0003134853761 | K78: -0.001386353707 | L78: 0.0002230305414 | M78: 0.0009701655368 | N78: 4.502502799e-07
A79: =IF('DF raw data'!M84="","",'DF raw data'!M84) -> -291.5 | B79: =IF('DF raw data'!N84="","",'DF raw data'!N84) -> -3.40163e-05 | C79: =IF('DF raw data'!O84="","",'DF raw data'!O84) -> 2.67779e-05 | D79: =IF('DF raw data'!P84="","",'DF raw data'!P84) -> -2.95979e-05 | F79: -3.415576683e-05 | G79: 2.688768939e-05 | H79: -2.971925139e-05 | J79: -0.0003305632595 | K79: -0.001551635337 | L79: 0.0002364743861 | M79: 0.00108840273 | N79: 5.328463818e-07
A80: =IF('DF raw data'!M85="","",'DF raw data'!M85) -> -291 | B80: =IF('DF raw data'!N85="","",'DF raw data'!N85) -> -3.10574e-05 | C80: =IF('DF raw data'!O85="","",'DF raw data'!O85) -> 3.34169e-05 | D80: =IF('DF raw data'!P85="","",'DF raw data'!P85) -> -4.59824e-05 | F80: -3.118473534e-05 | G80: 3.355390929e-05 | H80: -4.617092784e-05 | J80: -0.0003461556272 | K80: -0.00172471315 | L80: 0.0002532513407 | M80: 0.0012150284 | N80: 6.248263617e-07
A81: =IF('DF raw data'!M86="","",'DF raw data'!M86) -> -290.5 | B81: =IF('DF raw data'!N86="","",'DF raw data'!N86) -> -2.53493e-05 | C81: =IF('DF raw data'!O86="","",'DF raw data'!O86) -> 2.94863e-05 | D81: =IF('DF raw data'!P86="","",'DF raw data'!P86) -> -5.1518e-05 | F81: -2.545323213e-05 | G81: 2.960719383e-05 | H81: -5.17292238e-05 | J81: -0.0003588822433 | K81: -0.001904154272 | L81: 0.0002680549376 | M81: 0.001349055869 | N81: 7.251513188e-07
A82: =IF('DF raw data'!M87="","",'DF raw data'!M87) -> -290 | B82: =IF('DF raw data'!N87="","",'DF raw data'!N87) -> -3.66318e-05 | C82: =IF('DF raw data'!O87="","",'DF raw data'!O87) -> 2.51041e-05 | D82: =IF('DF raw data'!P87="","",'DF raw data'!P87) -> -4.86756e-05 | F82: -3.678199038e-05 | G82: 2.520702681e-05 | H82: -4.887516996e-05 | J82: -0.0003772732384 | K82: -0.002092790891 | L82: 0.000280658451 | M82: 0.001489385095 | N82: 8.357034501e-07
A83: =IF('DF raw data'!M88="","",'DF raw data'!M88) -> -289.5 | B83: =IF('DF raw data'!N88="","",'DF raw data'!N88) -> -4.40653e-05 | C83: =IF('DF raw data'!O88="","",'DF raw data'!O88) -> 2.33192e-05 | D83: =IF('DF raw data'!P88="","",'DF raw data'!P88) -> -5.12117e-05 | F83: -4.424596773e-05 | G83: 2.341480872e-05 | H83: -5.142166797e-05 | J83: -0.0003993962223 | K83: -0.002292489002 | L83: 0.0002923658554 | M83: 0.001635568022 | N83: 9.58201018e-07
A84: =IF('DF raw data'!M89="","",'DF raw data'!M89) -> -289 | B84: =IF('DF raw data'!N89="","",'DF raw data'!N89) -> -4.09887e-05 | C84: =IF('DF raw data'!O89="","",'DF raw data'!O89) -> 3.66224e-05 | D84: =IF('DF raw data'!P89="","",'DF raw data'!P89) -> -5.11079e-05 | F84: -4.115675367e-05 | G84: 3.677255184e-05 | H84: -5.131744239e-05 | J84: -0.0004199745992 | K84: -0.002502476302 | L84: 0.0003107521313 | M84: 0.001790944088 | N84: 1.094673793e-06
A85: =IF('DF raw data'!M90="","",'DF raw data'!M90) -> -288.5 | B85: =IF('DF raw data'!N90="","",'DF raw data'!N90) -> -3.3175e-05 | C85: =IF('DF raw data'!O90="","",'DF raw data'!O90) -> 3.42284e-05 | D85: =IF('DF raw data'!P90="","",'DF raw data'!P90) -> -4.23054e-05 | F85: -3.33110175e-05 | G85: 3.436873644e-05 | H85: -4.247885214e-05 | J85: -0.0004366301079 | K85: -0.002720791356 | L85: 0.0003279364995 | M85: 0.001954912338 | N85: 1.243767893e-06
A86: =IF('DF raw data'!M91="","",'DF raw data'!M91) -> -288 | B86: =IF('DF raw data'!N91="","",'DF raw data'!N91) -> -2.90649e-05 | C86: =IF('DF raw data'!O91="","",'DF raw data'!O91) -> 2.69337e-05 | D86: =IF('DF raw data'!P91="","",'DF raw data'!P91) -> -5.45681e-05 | F86: -2.918406609e-05 | G86: 2.704412817e-05 | H86: -5.479182921e-05 | J86: -0.0004512221409 | K86: -0.002946402426 | L86: 0.0003414585636 | M86: 0.00212564162 | N86: 1.403865578e-06
A87: =IF('DF raw data'!M92="","",'DF raw data'!M92) -> -287.5 | B87: =IF('DF raw data'!N92="","",'DF raw data'!N92) -> -3.2332e-05 | C87: =IF('DF raw data'!O92="","",'DF raw data'!O92) -> 3.41068e-05 | D87: =IF('DF raw data'!P92="","",'DF raw data'!P92) -> -5.71789e-05 | F87: -3.24645612e-05 | G87: 3.424663788e-05 | H87: -5.741333349e-05 | J87: -0.0004674544215 | K87: -0.003180129637 | L87: 0.0003585818826 | M87: 0.002304932561 | N87: 1.57741288e-06
A88: =IF('DF raw data'!M93="","",'DF raw data'!M93) -> -287 | B88: =IF('DF raw data'!N93="","",'DF raw data'!N93) -> -4.11144e-05 | C88: =IF('DF raw data'!O93="","",'DF raw data'!O93) -> 3.79134e-05 | D88: =IF('DF raw data'!P93="","",'DF raw data'!P93) -> -5.497e-05 | F88: -4.128296904e-05 | G88: 3.806884494e-05 | H88: -5.5195377e-05 | J88: -0.0004880959061 | K88: -0.00342417759 | L88: 0.000377616305 | M88: 0.002493740713 | N88: 1.767828724e-06
A89: =IF('DF raw data'!M94="","",'DF raw data'!M94) -> -286.5 | B89: =IF('DF raw data'!N94="","",'DF raw data'!N94) -> -4.90648e-05 | C89: =IF('DF raw data'!O94="","",'DF raw data'!O94) -> 3.51147e-05 | D89: =IF('DF raw data'!P94="","",'DF raw data'!P94) -> -5.07611e-05 | F89: -4.926596568e-05 | G89: 3.525867027e-05 | H89: -5.096922051e-05 | J89: -0.0005127288889 | K89: -0.003680542034 | L89: 0.0003952456402 | M89: 0.002691363533 | N89: 1.977383738e-06
A90: =IF('DF raw data'!M95="","",'DF raw data'!M95) -> -286 | B90: =IF('DF raw data'!N95="","",'DF raw data'!N95) -> -3.49607e-05 | C90: =IF('DF raw data'!O95="","",'DF raw data'!O95) -> 3.88458e-05 | D90: =IF('DF raw data'!P95="","",'DF raw data'!P95) -> -5.59102e-05 | F90: -3.510403887e-05 | G90: 3.900506778e-05 | H90: -5.613943182e-05 | J90: -0.0005302809083 | K90: -0.003945682489 | L90: 0.0004147481741 | M90: 0.00289873762 | N90: 2.203990683e-06
A91: =IF('DF raw data'!M96="","",'DF raw data'!M96) -> -285.5 | B91: =IF('DF raw data'!N96="","",'DF raw data'!N96) -> -3.74043e-05 | C91: =IF('DF raw data'!O96="","",'DF raw data'!O96) -> 2.81645e-05 | D91: =IF('DF raw data'!P96="","",'DF raw data'!P96) -> -4.35101e-05 | F91: -3.755765763e-05 | G91: 2.827997445e-05 | H91: -4.368849141e-05 | J91: -0.0005490597372 | K91: -0.004220212357 | L91: 0.0004288881613 | M91: 0.003113181701 | N91: 2.446696508e-06
A92: =IF('DF raw data'!M97="","",'DF raw data'!M97) -> -285 | B92: =IF('DF raw data'!N97="","",'DF raw data'!N97) -> -2.85618e-05 | C92: =IF('DF raw data'!O97="","",'DF raw data'!O97) -> 2.00325e-05 | D92: =IF('DF raw data'!P97="","",'DF raw data'!P97) -> -3.9751e-05 | F92: -2.867890338e-05 | G92: 2.011463325e-05 | H92: -3.99139791e-05 | J92: -0.0005633991888 | K92: -0.004501911952 | L92: 0.0004389454779 | M92: 0.00333265444 | N92: 2.701742397e-06
A93: =IF('DF raw data'!M98="","",'DF raw data'!M98) -> -284.5 | B93: =IF('DF raw data'!N98="","",'DF raw data'!N98) -> -3.50356e-05 | C93: =IF('DF raw data'!O98="","",'DF raw data'!O98) -> 2.25795e-05 | D93: =IF('DF raw data'!P98="","",'DF raw data'!P98) -> -3.94654e-05 | F93: -3.517924596e-05 | G93: 2.267207595e-05 | H93: -3.962720814e-05 | J93: -0.0005809888118 | K93: -0.004792406357 | L93: 0.0004502815159 | M93: 0.003557795198 | N93: 2.971893119e-06
A94: =IF('DF raw data'!M99="","",'DF raw data'!M99) -> -284 | B94: =IF('DF raw data'!N99="","",'DF raw data'!N99) -> -2.66964e-05 | C94: =IF('DF raw data'!O99="","",'DF raw data'!O99) -> 3.18851e-05 | D94: =IF('DF raw data'!P99="","",'DF raw data'!P99) -> -4.99701e-05 | F94: -2.680585524e-05 | G94: 3.201582891e-05 | H94: -5.017497741e-05 | J94: -0.0005943917394 | K94: -0.005089602227 | L94: 0.0004662894303 | M94: 0.003790939913 | N94: 3.257256805e-06
A95: =IF('DF raw data'!M100="","",'DF raw data'!M100) -> -283.5 | B95: =IF('DF raw data'!N100="","",'DF raw data'!N100) -> -3.91343e-05 | C95: =IF('DF raw data'!O100="","",'DF raw data'!O100) -> 2.81732e-05 | D95: =IF('DF raw data'!P100="","",'DF raw data'!P100) -> -4.44587e-05 | F95: -3.929475063e-05 | G95: 2.828871012e-05 | H95: -4.464098067e-05 | J95: -0.0006140391148 | K95: -0.005396621785 | L95: 0.0004804337854 | M95: 0.004031156806 | N95: 3.561187134e-06
A96: =IF('DF raw data'!M101="","",'DF raw data'!M101) -> -283 | B96: =IF('DF raw data'!N101="","",'DF raw data'!N101) -> -3.1376e-05 | C96: =IF('DF raw data'!O101="","",'DF raw data'!O101) -> 2.86422e-05 | D96: =IF('DF raw data'!P101="","",'DF raw data'!P101) -> -4.86993e-05 | F96: -3.15046416e-05 | G96: 2.875963302e-05 | H96: -4.889896713e-05 | J96: -0.0006297914356 | K96: -0.005711517502 | L96: 0.0004948136019 | M96: 0.004278563607 | N96: 3.88192601e-06
A97: =IF('DF raw data'!M102="","",'DF raw data'!M102) -> -282.5 | B97: =IF('DF raw data'!N102="","",'DF raw data'!N102) -> -3.43933e-05 | C97: =IF('DF raw data'!O102="","",'DF raw data'!O102) -> 2.54549e-05 | D97: =IF('DF raw data'!P102="","",'DF raw data'!P102) -> -4.12015e-05 | F97: -3.453431253e-05 | G97: 2.555926509e-05 | H97: -4.137042615e-05 | J97: -0.0006470585918 | K97: -0.006035046798 | L97: 0.0005075932345 | M97: 0.004532360224 | N97: 4.220093867e-06
A98: =IF('DF raw data'!M103="","",'DF raw data'!M103) -> -282 | B98: =IF('DF raw data'!N103="","",'DF raw data'!N103) -> -3.90054e-05 | C98: =IF('DF raw data'!O103="","",'DF raw data'!O103) -> 2.9797e-05 | D98: =IF('DF raw data'!P103="","",'DF raw data'!P103) -> -4.54632e-05 | F98: -3.916532214e-05 | G98: 2.99191677e-05 | H98: -4.564959912e-05 | J98: -0.0006666412529 | K98: -0.006368367425 | L98: 0.0005225528183 | M98: 0.004793636633 | N98: 4.57882987e-06
A99: =IF('DF raw data'!M104="","",'DF raw data'!M104) -> -281.5 | B99: =IF('DF raw data'!N104="","",'DF raw data'!N104) -> -3.16392e-05 | C99: =IF('DF raw data'!O104="","",'DF raw data'!O104) -> 3.97726e-05 | D99: =IF('DF raw data'!P104="","",'DF raw data'!P104) -> -3.82564e-05 | F99: -3.176892072e-05 | G99: 3.993566766e-05 | H99: -3.841325124e-05 | J99: -0.0006825257133 | K99: -0.006709630281 | L99: 0.0005425206521 | M99: 0.005064896959 | N99: 4.958914874e-06
A100: =IF('DF raw data'!M105="","",'DF raw data'!M105) -> -281 | B100: =IF('DF raw data'!N105="","",'DF raw data'!N105) -> -3.06835e-05 | C100: =IF('DF raw data'!O105="","",'DF raw data'!O105) -> 3.48809e-05 | D100: =IF('DF raw data'!P105="","",'DF raw data'!P105) -> -2.96793e-05 | F100: -3.080930235e-05 | G100: 3.502391169e-05 | H100: -2.980098513e-05 | J100: -0.0006979303644 | K100: -0.007058595464 | L100: 0.000560032608 | M100: 0.005344913263 | N100: 5.359286532e-06
A101: =IF('DF raw data'!M106="","",'DF raw data'!M106) -> -280.5 | B101: =IF('DF raw data'!N106="","",'DF raw data'!N106) -> -4.01031e-05 | C101: =IF('DF raw data'!O106="","",'DF raw data'!O106) -> 3.15147e-05 | D101: =IF('DF raw data'!P106="","",'DF raw data'!P106) -> -3.32402e-05 | F101: -4.026752271e-05 | G101: 3.164391027e-05 | H101: -3.337648482e-05 | J101: -0.0007180641258 | K101: -0.007417627526 | L101: 0.0005758545631 | M101: 0.005632840545 | N101: 5.782898815e-06
A102: =IF('DF raw data'!M107="","",'DF raw data'!M107) -> -280 | B102: =IF('DF raw data'!N107="","",'DF raw data'!N107) -> -4.79163e-05 | C102: =IF('DF raw data'!O107="","",'DF raw data'!O107) -> 4.30526e-05 | D102: =IF('DF raw data'!P107="","",'DF raw data'!P107) -> -4.27752e-05 | F102: -4.811275683e-05 | G102: 4.322911566e-05 | H102: -4.295057832e-05 | J102: -0.0007421205042 | K102: -0.007788687779 | L102: 0.000597469121 | M102: 0.005931575105 | N102: 6.236754912e-06
A103: =IF('DF raw data'!M108="","",'DF raw data'!M108) -> -279.5 | B103: =IF('DF raw data'!N108="","",'DF raw data'!N108) -> -3.63847e-05 | C103: =IF('DF raw data'!O108="","",'DF raw data'!O108) -> 5.53047e-05 | D103: =IF('DF raw data'!P108="","",'DF raw data'!P108) -> -3.43772e-05 | F103: -3.653387727e-05 | G103: 5.553144927e-05 | H103: -3.451814652e-05 | J103: -0.0007603874428 | K103: -0.0081688815 | L103: 0.0006252348456 | M103: 0.006244192528 | N103: 6.72130875e-06
A104: =IF('DF raw data'!M109="","",'DF raw data'!M109) -> -279 | B104: =IF('DF raw data'!N109="","",'DF raw data'!N109) -> -4.18901e-05 | C104: =IF('DF raw data'!O109="","",'DF raw data'!O109) -> 4.45684e-05 | D104: =IF('DF raw data'!P109="","",'DF raw data'!P109) -> -4.49184e-05 | F104: -4.206184941e-05 | G104: 4.475113044e-05 | H104: -4.510256544e-05 | J104: -0.0007814183675 | K104: -0.008559590684 | L104: 0.0006476104108 | M104: 0.006567997733 | N104: 7.236315704e-06
A105: =IF('DF raw data'!M110="","",'DF raw data'!M110) -> -278.5 | B105: =IF('DF raw data'!N110="","",'DF raw data'!N110) -> -2.08088e-05 | C105: =IF('DF raw data'!O110="","",'DF raw data'!O110) -> 4.08013e-05 | D105: =IF('DF raw data'!P110="","",'DF raw data'!P110) -> -3.58265e-05 | F105: -2.089411608e-05 | G105: 4.096858533e-05 | H105: -3.597338865e-05 | J105: -0.0007918654256 | K105: -0.008955523397 | L105: 0.0006680947035 | M105: 0.006902045085 | N105: 7.773016397e-06
A106: =IF('DF raw data'!M111="","",'DF raw data'!M111) -> -278 | B106: =IF('DF raw data'!N111="","",'DF raw data'!N111) -> -1.79153e-05 | C106: =IF('DF raw data'!O111="","",'DF raw data'!O111) -> 3.4161e-05 | D106: =IF('DF raw data'!P111="","",'DF raw data'!P111) -> -5.01953e-05 | F106: -1.798875273e-05 | G106: 3.43010601e-05 | H106: -5.040110073e-05 | J106: -0.0008008598019 | K106: -0.009355953298 | L106: 0.0006852452335 | M106: 0.007244667702 | N106: 8.328485123e-06
A107: =IF('DF raw data'!M112="","",'DF raw data'!M112) -> -277.5 | B107: =IF('DF raw data'!N112="","",'DF raw data'!N112) -> -2.97762e-05 | C107: =IF('DF raw data'!O112="","",'DF raw data'!O112) -> 3.52017e-05 | D107: =IF('DF raw data'!P112="","",'DF raw data'!P112) -> -4.50585e-05 | F107: -2.989828242e-05 | G107: 3.534602697e-05 | H107: -4.524323985e-05 | J107: -0.0008158089432 | K107: -0.009763857769 | L107: 0.000702918247 | M107: 0.007596126825 | N107: 8.90830427e-06
A108: =IF('DF raw data'!M113="","",'DF raw data'!M113) -> -277 | B108: =IF('DF raw data'!N113="","",'DF raw data'!N113) -> -2.22121e-05 | C108: =IF('DF raw data'!O113="","",'DF raw data'!O113) -> 3.13933e-05 | D108: =IF('DF raw data'!P113="","",'DF raw data'!P113) -> -4.62261e-05 | F108: -2.230316961e-05 | G108: 3.152201253e-05 | H108: -4.641562701e-05 | J108: -0.000826960528 | K108: -0.01017733803 | L108: 0.0007186792533 | M108: 0.007955466452 | N108: 9.508486062e-06
A109: =IF('DF raw data'!M114="","",'DF raw data'!M114) -> -276.5 | B109: =IF('DF raw data'!N114="","",'DF raw data'!N114) -> -3.11905e-05 | C109: =IF('DF raw data'!O114="","",'DF raw data'!O114) -> 2.54828e-05 | D109: =IF('DF raw data'!P114="","",'DF raw data'!P114) -> -3.84972e-05 | F109: -3.131838105e-05 | G109: 2.558727948e-05 | H109: -3.865503852e-05 | J109: -0.0008426197185 | K109: -0.01059864789 | L109: 0.000731472893 | M109: 0.008321202899 | N109: 1.013101635e-05
A110: =IF('DF raw data'!M115="","",'DF raw data'!M115) -> -276 | B110: =IF('DF raw data'!N115="","",'DF raw data'!N115) -> -3.65139e-05 | C110: =IF('DF raw data'!O115="","",'DF raw data'!O115) -> 2.36113e-05 | D110: =IF('DF raw data'!P115="","",'DF raw data'!P115) -> -3.297e-05 | F110: -3.666360699e-05 | G110: 2.370810633e-05 | H110: -3.3105177e-05 | J110: -0.000860951522 | K110: -0.01102912365 | L110: 0.0007433269462 | M110: 0.008692866372 | N110: 1.077790259e-05
A111: =IF('DF raw data'!M116="","",'DF raw data'!M116) -> -275.5 | B111: =IF('DF raw data'!N116="","",'DF raw data'!N116) -> -3.06253e-05 | C111: =IF('DF raw data'!O116="","",'DF raw data'!O116) -> 1.8334e-05 | D111: =IF('DF raw data'!P116="","",'DF raw data'!P116) -> -2.04329e-05 | F111: -3.075086373e-05 | G111: 1.84091694e-05 | H111: -2.051667489e-05 | J111: -0.0008763269538 | K111: -0.01146728713 | L111: 0.0007525315309 | M111: 0.009069132137 | N111: 1.144502891e-05
A112: =IF('DF raw data'!M117="","",'DF raw data'!M117) -> -275 | B112: =IF('DF raw data'!N117="","",'DF raw data'!N117) -> -2.66405e-05 | C112: =IF('DF raw data'!O117="","",'DF raw data'!O117) -> 2.18489e-05 | D112: =IF('DF raw data'!P117="","",'DF raw data'!P117) -> -3.75855e-05 | F112: -2.674972605e-05 | G112: 2.193848049e-05 | H112: -3.773960055e-05 | J112: -0.0008897018169 | K112: -0.01191213804 | L112: 0.0007635007711 | M112: 0.009450882523 | N112: 1.213228028e-05
A113: =IF('DF raw data'!M118="","",'DF raw data'!M118) -> -274.5 | B113: =IF('DF raw data'!N118="","",'DF raw data'!N118) -> -3.86892e-05 | C113: =IF('DF raw data'!O118="","",'DF raw data'!O118) -> 2.56085e-05 | D113: =IF('DF raw data'!P118="","",'DF raw data'!P118) -> -3.92396e-05 | F113: -3.884782572e-05 | G113: 2.571349485e-05 | H113: -3.940048236e-05 | J113: -0.0009091257297 | K113: -0.0123667009 | L113: 0.0007763575185 | M113: 0.009839061282 | N113: 1.284690058e-05
A114: =IF('DF raw data'!M119="","",'DF raw data'!M119) -> -274 | B114: =IF('DF raw data'!N119="","",'DF raw data'!N119) -> -3.7533e-05 | C114: =IF('DF raw data'!O119="","",'DF raw data'!O119) -> 3.29911e-05 | D114: =IF('DF raw data'!P119="","",'DF raw data'!P119) -> -4.27804e-05 | F114: -3.76868853e-05 | G114: 3.312636351e-05 | H114: -4.295579964e-05 | J114: -0.0009279691724 | K114: -0.01283068549 | L114: 0.0007929207003 | M114: 0.01023552163 | N114: 1.359182559e-05
A115: =IF('DF raw data'!M120="","",'DF raw data'!M120) -> -273.5 | B115: =IF('DF raw data'!N120="","",'DF raw data'!N120) -> -3.72745e-05 | C115: =IF('DF raw data'!O120="","",'DF raw data'!O120) -> 3.80892e-05 | D115: =IF('DF raw data'!P120="","",'DF raw data'!P120) -> -4.60352e-05 | F115: -3.742732545e-05 | G115: 3.824536572e-05 | H115: -4.622394432e-05 | J115: -0.0009466828351 | K115: -0.01330402691 | L115: 0.0008120433832 | M115: 0.01064154332 | N115: 1.436963701e-05
A116: =IF('DF raw data'!M121="","",'DF raw data'!M121) -> -273 | B116: =IF('DF raw data'!N121="","",'DF raw data'!N121) -> -3.2535e-05 | C116: =IF('DF raw data'!O121="","",'DF raw data'!O121) -> 2.87677e-05 | D116: =IF('DF raw data'!P121="","",'DF raw data'!P121) -> -4.10016e-05 | F116: -3.26683935e-05 | G116: 2.888564757e-05 | H116: -4.116970656e-05 | J116: -0.0009630170319 | K116: -0.01378553542 | L116: 0.0008264862069 | M116: 0.01105478643 | N116: 1.517487764e-05
A117: =IF('DF raw data'!M122="","",'DF raw data'!M122) -> -272.5 | B117: =IF('DF raw data'!N122="","",'DF raw data'!N122) -> -2.89519e-05 | C117: =IF('DF raw data'!O122="","",'DF raw data'!O122) -> 2.86218e-05 | D117: =IF('DF raw data'!P122="","",'DF raw data'!P122) -> -3.12124e-05 | F117: -2.907060279e-05 | G117: 2.873914938e-05 | H117: -3.134037084e-05 | J117: -0.0009775523333 | K117: -0.01427431159 | L117: 0.0008408557816 | M117: 0.01147521432 | N117: 1.600620114e-05
A118: =IF('DF raw data'!M123="","",'DF raw data'!M123) -> -272 | B118: =IF('DF raw data'!N123="","",'DF raw data'!N123) -> -4.06787e-05 | C118: =IF('DF raw data'!O123="","",'DF raw data'!O123) -> 3.00902e-05 | D118: =IF('DF raw data'!P123="","",'DF raw data'!P123) -> -3.4959e-05 | F118: -4.084548267e-05 | G118: 3.021356982e-05 | H118: -3.51023319e-05 | J118: -0.0009979750746 | K118: -0.01477329913 | L118: 0.0008559625665 | M118: 0.0119031956 | N118: 1.687051422e-05
A119: =IF('DF raw data'!M124="","",'DF raw data'!M124) -> -271.5 | B119: =IF('DF raw data'!N124="","",'DF raw data'!N124) -> -3.15082e-05 | C119: =IF('DF raw data'!O124="","",'DF raw data'!O124) -> 2.82092e-05 | D119: =IF('DF raw data'!P124="","",'DF raw data'!P124) -> -4.2668e-05 | F119: -3.163738362e-05 | G119: 2.832485772e-05 | H119: -4.28429388e-05 | J119: -0.001013793766 | K119: -0.01528019601 | L119: 0.0008701249954 | M119: 0.0123382581 | N119: 1.776296188e-05
A120: =IF('DF raw data'!M125="","",'DF raw data'!M125) -> -271 | B120: =IF('DF raw data'!N125="","",'DF raw data'!N125) -> -2.77942e-05 | C120: =IF('DF raw data'!O125="","",'DF raw data'!O125) -> 2.82449e-05 | D120: =IF('DF raw data'!P125="","",'DF raw data'!P125) -> -3.7524e-05 | F120: -2.790815622e-05 | G120: 2.836070409e-05 | H120: -3.76778484e-05 | J120: -0.001027747845 | K120: -0.01579406993 | L120: 0.0008843053475 | M120: 0.01278041077 | N120: 1.868209267e-05
A121: =IF('DF raw data'!M126="","",'DF raw data'!M126) -> -270.5 | B121: =IF('DF raw data'!N126="","",'DF raw data'!N126) -> -4.15178e-05 | C121: =IF('DF raw data'!O126="","",'DF raw data'!O126) -> 2.92176e-05 | D121: =IF('DF raw data'!P126="","",'DF raw data'!P126) -> -2.59869e-05 | F121: -4.168802298e-05 | G121: 2.933739216e-05 | H121: -2.609344629e-05 | J121: -0.001048591856 | K121: -0.01631836586 | L121: 0.0008989740435 | M121: 0.01322989779 | N121: 1.963594227e-05
A122: =IF('DF raw data'!M127="","",'DF raw data'!M127) -> -270 | B122: =IF('DF raw data'!N127="","",'DF raw data'!N127) -> -3.39461e-05 | C122: =IF('DF raw data'!O127="","",'DF raw data'!O127) -> 2.67373e-05 | D122: =IF('DF raw data'!P127="","",'DF raw data'!P127) -> -3.92663e-05 | F122: -3.408527901e-05 | G122: 2.684692293e-05 | H122: -3.942729183e-05 | J122: -0.001065634496 | K122: -0.01685118311 | L122: 0.000912397505 | M122: 0.01368609655 | N122: 2.061996532e-05
A123: =IF('DF raw data'!M128="","",'DF raw data'!M128) -> -269.5 | B123: =IF('DF raw data'!N128="","",'DF raw data'!N128) -> -2.7925e-05 | C123: =IF('DF raw data'!O128="","",'DF raw data'!O128) -> 2.44598e-05 | D123: =IF('DF raw data'!P128="","",'DF raw data'!P128) -> -3.34548e-05 | F123: -2.80394925e-05 | G123: 2.456008518e-05 | H123: -3.359196468e-05 | J123: -0.001079654242 | K123: -0.01739101023 | L123: 0.0009246775476 | M123: 0.01414843532 | N123: 2.163030624e-05
A124: =IF('DF raw data'!M129="","",'DF raw data'!M129) -> -269 | B124: =IF('DF raw data'!N129="","",'DF raw data'!N129) -> -3.06082e-05 | C124: =IF('DF raw data'!O129="","",'DF raw data'!O129) -> 2.9602e-05 | D124: =IF('DF raw data'!P129="","",'DF raw data'!P129) -> -4.68154e-05 | F124: -3.073369362e-05 | G124: 2.97233682e-05 | H124: -4.700734314e-05 | J124: -0.001095021089 | K124: -0.01793852077 | L124: 0.0009395392317 | M124: 0.01461820494 | N124: 2.267120882e-05
A125: =IF('DF raw data'!M130="","",'DF raw data'!M130) -> -268.5 | B125: =IF('DF raw data'!N130="","",'DF raw data'!N130) -> -3.46447e-05 | C125: =IF('DF raw data'!O130="","",'DF raw data'!O130) -> 2.72343e-05 | D125: =IF('DF raw data'!P130="","",'DF raw data'!P130) -> -4.90685e-05 | F125: -3.478674327e-05 | G125: 2.734596063e-05 | H125: -4.926968085e-05 | J125: -0.00111241446 | K125: -0.018494728 | L125: 0.000953212212 | M125: 0.01509481104 | N125: 2.374424854e-05
A126: =IF('DF raw data'!M131="","",'DF raw data'!M131) -> -268 | B126: =IF('DF raw data'!N131="","",'DF raw data'!N131) -> -3.06169e-05 | C126: =IF('DF raw data'!O131="","",'DF raw data'!O131) -> 2.34539e-05 | D126: =IF('DF raw data'!P131="","",'DF raw data'!P131) -> -3.33913e-05 | F126: -3.074242929e-05 | G126: 2.355006099e-05 | H126: -3.352820433e-05 | J126: -0.001127785675 | K126: -0.01905862084 | L126: 0.0009649872425 | M126: 0.01557730466 | N126: 2.4845799e-05
A127: =IF('DF raw data'!M132="","",'DF raw data'!M132) -> -267.5 | B127: =IF('DF raw data'!N132="","",'DF raw data'!N132) -> -3.20248e-05 | C127: =IF('DF raw data'!O132="","",'DF raw data'!O132) -> 2.85797e-05 | D127: =IF('DF raw data'!P132="","",'DF raw data'!P132) -> -3.70397e-05 | F127: -3.215610168e-05 | G127: 2.869687677e-05 | H127: -3.719156277e-05 | J127: -0.001143863726 | K127: -0.0196305527 | L127: 0.0009793356809 | M127: 0.0160669725 | N127: 2.59795603e-05
A128: =IF('DF raw data'!M133="","",'DF raw data'!M133) -> -267 | B128: =IF('DF raw data'!N133="","",'DF raw data'!N133) -> -2.94641e-05 | C128: =IF('DF raw data'!O133="","",'DF raw data'!O133) -> 2.4198e-05 | D128: =IF('DF raw data'!P133="","",'DF raw data'!P133) -> -3.21444e-05 | F128: =(1-$G$1*($B$49-$G$2))*B128 -> -2.958490281e-05 | G128: 2.42972118e-05 | H128: -3.227619204e-05 | J128: =F128*$G$3+J127 -> -0.001158656177 | K128: =J128*$G$3+K127 -> -0.02020988079 | L128: =G128*$G$3+L127 -> 0.0009914842868 | M128: =L128*$G$3+M127 -> 0.01656271465 | N128: =(J128^2+L128^2)*$G$3+N127 -> 2.714232291e-05
A129: =IF('DF raw data'!M134="","",'DF raw data'!M134) -> -266.5 | B129: =IF('DF raw data'!N134="","",'DF raw data'!N134) -> -3.93979e-05 | C129: =IF('DF raw data'!O134="","",'DF raw data'!O134) -> 2.56702e-05 | D129: =IF('DF raw data'!P134="","",'DF raw data'!P134) -> -3.34265e-05 | F129: -3.955943139e-05 | G129: 2.577544782e-05 | H129: -3.356354865e-05 | J129: -0.001178435893 | K129: -0.02079909874 | L129: 0.001004372011 | M129: 0.01706490065 | N129: 2.834106005e-05
A130: =IF('DF raw data'!M135="","",'DF raw data'!M135) -> -266 | B130: =IF('DF raw data'!N135="","",'DF raw data'!N135) -> -2.72809e-05 | C130: =IF('DF raw data'!O135="","",'DF raw data'!O135) -> 3.00089e-05 | D130: =IF('DF raw data'!P135="","",'DF raw data'!P135) -> -3.83175e-05 | F130: -2.739275169e-05 | G130: 3.013193649e-05 | H130: -3.847460175e-05 | J130: -0.001192132269 | K130: -0.02139516487 | L130: 0.001019437979 | M130: 0.01757461964 | N130: 2.957127662e-05
A131: =IF('DF raw data'!M136="","",'DF raw data'!M136) -> -265.5 | B131: =IF('DF raw data'!N136="","",'DF raw data'!N136) -> -3.11338e-05 | C131: =IF('DF raw data'!O136="","",'DF raw data'!O136) -> 2.70256e-05 | D131: =IF('DF raw data'!P136="","",'DF raw data'!P136) -> -2.69437e-05 | F131: -3.126144858e-05 | G131: 2.713640496e-05 | H131: -2.705416917e-05 | J131: -0.001207762993 | K131: -0.02199904637 | L131: 0.001033006181 | M131: 0.01809112273 | N131: 3.083417323e-05
A132: =IF('DF raw data'!M137="","",'DF raw data'!M137) -> -265 | B132: =IF('DF raw data'!N137="","",'DF raw data'!N137) -> -2.84974e-05 | C132: =IF('DF raw data'!O137="","",'DF raw data'!O137) -> 3.4792e-05 | D132: =IF('DF raw data'!P137="","",'DF raw data'!P137) -> -4.01631e-05 | F132: -2.861423934e-05 | G132: 3.49346472e-05 | H132: -4.032776871e-05 | J132: -0.001222070113 | K132: -0.02261008143 | L132: 0.001050473505 | M132: 0.01861635949 | N132: 3.213264821e-05
A133: =IF('DF raw data'!M138="","",'DF raw data'!M138) -> -264.5 | B133: =IF('DF raw data'!N138="","",'DF raw data'!N138) -> -2.97083e-05 | C133: =IF('DF raw data'!O138="","",'DF raw data'!O138) -> 2.64075e-05 | D133: =IF('DF raw data'!P138="","",'DF raw data'!P138) -> -5.08708e-05 | F133: -2.983010403e-05 | G133: 2.651577075e-05 | H133: -5.107937028e-05 | J133: -0.001236985165 | K133: -0.02322857401 | L133: 0.00106373139 | M133: 0.01914822518 | N133: 3.346347659e-05
A134: =IF('DF raw data'!M139="","",'DF raw data'!M139) -> -264 | B134: =IF('DF raw data'!N139="","",'DF raw data'!N139) -> -2.99123e-05 | C134: =IF('DF raw data'!O139="","",'DF raw data'!O139) -> 2.77585e-05 | D134: =IF('DF raw data'!P139="","",'DF raw data'!P139) -> -3.30546e-05 | F134: -3.003494043e-05 | G134: 2.787230985e-05 | H134: -3.319012386e-05 | J134: -0.001252002635 | K134: -0.02385457533 | L134: 0.001077667545 | M134: 0.01968705895 | N134: 3.482791556e-05
A135: =IF('DF raw data'!M140="","",'DF raw data'!M140) -> -263.5 | B135: =IF('DF raw data'!N140="","",'DF raw data'!N140) -> -2.70897e-05 | C135: =IF('DF raw data'!O140="","",'DF raw data'!O140) -> 3.68411e-05 | D135: =IF('DF raw data'!P140="","",'DF raw data'!P140) -> -3.65414e-05 | F135: -2.720076777e-05 | G135: 3.699214851e-05 | H135: -3.669121974e-05 | J135: -0.001265603019 | K135: -0.02448737683 | L135: 0.00109616362 | M135: 0.02023514076 | N135: 3.62295784e-05
A136: =IF('DF raw data'!M141="","",'DF raw data'!M141) -> -263 | B136: =IF('DF raw data'!N141="","",'DF raw data'!N141) -> -2.29294e-05 | C136: =IF('DF raw data'!O141="","",'DF raw data'!O141) -> 2.77354e-05 | D136: =IF('DF raw data'!P141="","",'DF raw data'!P141) -> -2.75293e-05 | F136: -2.302341054e-05 | G136: 2.784911514e-05 | H136: -2.764217013e-05 | J136: -0.001277114724 | K136: -0.0251259342 | L136: 0.001110088177 | M136: 0.02079018485 | N136: 3.766123729e-05
A137: =IF('DF raw data'!M142="","",'DF raw data'!M142) -> -262.5 | B137: =IF('DF raw data'!N142="","",'DF raw data'!N142) -> -2.73477e-05 | C137: =IF('DF raw data'!O142="","",'DF raw data'!O142) -> 2.65712e-05 | D137: =IF('DF raw data'!P142="","",'DF raw data'!P142) -> -3.39315e-05 | F137: -2.745982557e-05 | G137: 2.668014192e-05 | H137: -3.407061915e-05 | J137: -0.001290844637 | K137: -0.02577135652 | L137: 0.001123428248 | M137: 0.02135189898 | N137: 3.912542274e-05
A138: =IF('DF raw data'!M143="","",'DF raw data'!M143) -> -262 | B138: =IF('DF raw data'!N143="","",'DF raw data'!N143) -> -3.29213e-05 | C138: =IF('DF raw data'!O143="","",'DF raw data'!O143) -> 2.62364e-05 | D138: =IF('DF raw data'!P143="","",'DF raw data'!P143) -> -3.8356e-05 | F138: -3.305627733e-05 | G138: 2.634396924e-05 | H138: -3.85132596e-05 | J138: -0.001307372775 | K138: -0.0264250429 | L138: 0.001136600233 | M138: 0.02192019909 | N138: 4.062596457e-05
A139: =IF('DF raw data'!M144="","",'DF raw data'!M144) -> -261.5 | B139: =IF('DF raw data'!N144="","",'DF raw data'!N144) -> -2.85578e-05 | C139: =IF('DF raw data'!O144="","",'DF raw data'!O144) -> 2.12475e-05 | D139: =IF('DF raw data'!P144="","",'DF raw data'!P144) -> -4.59433e-05 | F139: -2.867488698e-05 | G139: 2.133461475e-05 | H139: -4.613166753e-05 | J139: -0.001321710219 | K139: -0.02708589801 | L139: 0.00114726754 | M139: 0.02249383286 | N139: 4.215753493e-05
A140: =IF('DF raw data'!M145="","",'DF raw data'!M145) -> -261 | B140: =IF('DF raw data'!N145="","",'DF raw data'!N145) -> -3.48436e-05 | C140: =IF('DF raw data'!O145="","",'DF raw data'!O145) -> 2.16133e-05 | D140: =IF('DF raw data'!P145="","",'DF raw data'!P145) -> -3.9012e-05 | F140: -3.498645876e-05 | G140: 2.170191453e-05 | H140: -3.91719492e-05 | J140: -0.001339203448 | K140: -0.02775549974 | L140: 0.001158118497 | M140: 0.02307289211 | N140: 4.372488709e-05
A141: =IF('DF raw data'!M146="","",'DF raw data'!M146) -> -260.5 | B141: =IF('DF raw data'!N146="","",'DF raw data'!N146) -> -4.17035e-05 | C141: =IF('DF raw data'!O146="","",'DF raw data'!O146) -> 2.59273e-05 | D141: =IF('DF raw data'!P146="","",'DF raw data'!P146) -> -3.64051e-05 | F141: -4.187448435e-05 | G141: 2.603360193e-05 | H141: -3.655436091e-05 | J141: -0.00136014069 | K141: -0.02843557008 | L141: 0.001171135298 | M141: 0.02365845976 | N141: 4.533565739e-05
A142: =IF('DF raw data'!M147="","",'DF raw data'!M147) -> -260 | B142: =IF('DF raw data'!N147="","",'DF raw data'!N147) -> -3.04258e-05 | C142: =IF('DF raw data'!O147="","",'DF raw data'!O147) -> 2.91279e-05 | D142: =IF('DF raw data'!P147="","",'DF raw data'!P147) -> -3.18885e-05 | F142: -3.055054578e-05 | G142: 2.924732439e-05 | H142: -3.201924285e-05 | J142: -0.001375415963 | K142: -0.02912327806 | L142: 0.001185758961 | M142: 0.02425133924 | N142: 4.698455408e-05
A143: =IF('DF raw data'!M148="","",'DF raw data'!M148) -> -259.5 | B143: =IF('DF raw data'!N148="","",'DF raw data'!N148) -> -3.5811e-05 | C143: =IF('DF raw data'!O148="","",'DF raw data'!O148) -> 2.51831e-05 | D143: =IF('DF raw data'!P148="","",'DF raw data'!P148) -> -2.99164e-05 | F143: -3.59578251e-05 | G143: 2.528635071e-05 | H143: -3.003905724e-05 | J143: -0.001393394876 | K143: -0.0298199755 | L143: 0.001198402136 | M143: 0.02485054031 | N143: 4.867341256e-05
